Workbook

Sheet ADP-Rank (hidden)
A1: PLAYERNAME | B1: PlayerID | C1: Pos | D1: OF Pos | E1: TEAM | F1: Age | G1: FT | H1: High | I1: Low | J1: Yahoo | K1: High | L1: Low | M1: CBS ADP | N1: High | O1: Low | P1: ESPN | Q1: High | R1: Low | S1: Fpros | T1: High | U1: Low | V1: NFBC | W1: High | X1: Low | Y1: Comb ADP | Z1: High | AA1: Low | AB1: RotoChamp | AC1: Yahoo Staff | AD1: ESPN Tristan | AE1: ESPN Karabell | AF1: Fantasy Pros Avg | AG1: MC | AH1: Team In Sheet? | AI1: Rank Chosen | AJ1: Filtered-Rank | AK1: Chosen-ADP | AL1: Filtered-ADP-Rank | AM1: ADP Round | AN1: Early | AO1: Late | AP1: Filtered-Early | AQ1: Filtered-Late | AR1: ImportADP | AS1: High | AT1: Low | AU1: =IF(VLOOKUP(A2,'Name-Sort'!$D$2:$E$961,2,FALSE)="",A2,"") -> Jose Abreu | AV1: =IFERROR(INDEX($AU$1:$AU$961,SMALL(IF($AU$1:$AU$961<>"",ROW($AU$1:$AU$961)),ROW(AU1))),"") -> Jose Abreu
A2: Jose Abreu | B2: abreujo02 | C2: 1B | E2: CWS | F2: 32 | G2: 76 | H2: =MIN(G2*0.75,IFERROR($W2,999),IFERROR($N2,999)) -> 50 | I2: =MAX(G2*1.33,IFERROR($X2,1),IFERROR($O2,1)) -> 121 | J2: 54 | K2: =MIN(J2*0.75,IFERROR($W2,999),IFERROR($N2,999)) -> 40.5 | L2: =MAX(J2*1.33,IFERROR($X2,1),IFERROR($O2,1)) -> 121 | M2: 62.77 | N2: 50 | O2: 87 | P2: 77 | Q2: =MIN(P2*0.75,IFERROR($W2,999),IFERROR($N2,999)) -> 50 | R2: =MAX(P2*1.33,IFERROR($X2,1),IFERROR($O2,1)) -> 121 | S2: 73.8 | T2: =MIN(S2*0.75,IFERROR($W2,999),IFERROR($N2,999)) -> 50 | U2: =MAX(S2*1.33,IFERROR($X2,1),IFERROR($O2,1)) -> 121 | V2: 85.18 | W2: 53 | X2: 121 | Y2: =IFERROR((IFERROR(V2,0)+IFERROR(S2,0)+IFERROR(M2,0)+IFERROR(G2,0)+IFERROR(P2,0)+IFERROR(J2,0))/(IF(ISERROR(V2),0,1)+IF(ISERROR(S2),0,1)+IF(ISERROR(M2),0,1)+IF(ISERROR(G2),0,1)+IF(ISERROR(P2),0,1)+IF(ISERROR(J2),0,1)),#N/A) -> 71.45833333 | Z2: =MIN(Y2*0.75,IFERROR($W2,999),IFERROR($N2,999)) -> 50 | AA2: =MAX(Y2*1.33,IFERROR($X2,1),IFERROR($O2,1)) -> 121 | AB2: 79 | AC2: 48 | AD2: 75 | AE2: 51 | AF2: 52 | AH2: =IFERROR(INDEX('Guts-2'!$K$1:$K$30,MATCH(E2,'Guts-2'!$J$1:$J$30,0)),TRUE) -> TRUE | AI2: =IF(AH2=FALSE,"",IFERROR(CHOOSE('Guts-2'!$D$27,AB2,AC2,AD2,AE2,AF2,AG2),"")) -> 52 | AJ2: =IFERROR(RANK(AI2,$AI$2:$AI$961,1),"") -> 52 | AK2: =IF(AH2=FALSE,"",IFERROR(CHOOSE('Guts-2'!$D$26,G2,J2,M2,P2,S2,V2,Y2,AR2),"")) -> 73.8 | AL2: =IFERROR(IF(Settings!$M$5="Mixed (Standard)",AK2,RANK(AK2,$AK$2:$AK$961,1)),"") -> 73.8 | AM2: =IFERROR(IF(Settings!$M$5="Mixed (Standard)",(RANK(AK2,$AK$2:$AK$961,1)/('Guts-2'!$N$1+1))+1,(RANK(AL2,$AL$2:$AL$961,1)/('Guts-2'!$N$1+1))+1),"") -> 6.615384615 | AN2: =IFERROR(CHOOSE('Guts-2'!$D$26,H2,K2,N2,Q2,T2,W2,Z2,AS2),"") -> 50 | AO2: =IFERROR(CHOOSE('Guts-2'!$D$26,I2,L2,O2,R2,U2,X2,AA2,AT2),"") -> 121 | AP2: =IFERROR(IF(AH2=TRUE,IF((AN2-COUNTIFS($AN$2:$AN$961,"<"&AN2,$AH$2:$AH$961,FALSE))<1,1,AN2-COUNTIFS($AN$2:$AN$961,"<"&AN2,$AH$2:$AH$961,FALSE)),""),"") -> 50 | AQ2: =IFERROR(IF(AH2=FALSE,"",IF((AO2-COUNTIFS($AO$2:$AO$961,"<"&AO2,$AH$2:$AH$961,FALSE))<1,1,AO2-COUNTIFS($AO$2:$AO$961,"<"&AO2,$AH$2:$AH$961,FALSE))),"") -> 121 | AR2: =INDEX('Import (ADP)'!$C$2:$C$999,MATCH(A2, 'Import (ADP)'!$B$2:$B$999,0)) ->  | AS2: =IFERROR(MIN(N2,W2,ROUND(AR2*0.75,0)),ROUND(AR2*0.75,0)) ->  | AT2: =IFERROR(MAX(O2,X2,ROUND(AR2*1.25,0)),ROUND(AS2*1.25,0)) ->  | AU2: =IF(VLOOKUP(A3,'Name-Sort'!$D$2:$E$961,2,FALSE)="",A3,"") -> Ronald Acuna | AV2: =IFERROR(INDEX($AU$1:$AU$961,SMALL(IF($AU$1:$AU$961<>"",ROW($AU$1:$AU$961)),ROW(AU2))),"") -> Ronald Acuna
A3: Ronald Acuna | B3: acunaro01 | C3: OF | D3: LF,CF | E3: ATL | F3: 21 | G3: 10 | H3: =MIN(G3*0.75,IFERROR($W3,999),IFERROR($N3,999)) -> 3 | I3: =MAX(G3*1.33,IFERROR($X3,1),IFERROR($O3,1)) -> 21 | J3: 9 | K3: =MIN(J3*0.75,IFERROR($W3,999),IFERROR($N3,999)) -> 3 | L3: =MAX(J3*1.33,IFERROR($X3,1),IFERROR($O3,1)) -> 21 | M3: 11.98 | N3: 3 | O3: 21 | P3: 17 | Q3: =MIN(P3*0.75,IFERROR($W3,999),IFERROR($N3,999)) -> 3 | R3: =MAX(P3*1.33,IFERROR($X3,1),IFERROR($O3,1)) -> 22.61 | S3: 11.3 | T3: =MIN(S3*0.75,IFERROR($W3,999),IFERROR($N3,999)) -> 3 | U3: =MAX(S3*1.33,IFERROR($X3,1),IFERROR($O3,1)) -> 21 | V3: 8.32 | W3: 3 | X3: 18 | Y3: =IFERROR((IFERROR(V3,0)+IFERROR(S3,0)+IFERROR(M3,0)+IFERROR(G3,0)+IFERROR(P3,0)+IFERROR(J3,0))/(IF(ISERROR(V3),0,1)+IF(ISERROR(S3),0,1)+IF(ISERROR(M3),0,1)+IF(ISERROR(G3),0,1)+IF(ISERROR(P3),0,1)+IF(ISERROR(J3),0,1)),#N/A) -> 11.26666667 | Z3: =MIN(Y3*0.75,IFERROR($W3,999),IFERROR($N3,999)) -> 3 | AA3: =MAX(Y3*1.33,IFERROR($X3,1),IFERROR($O3,1)) -> 21 | AB3: 12 | AC3: 9 | AD3: 15 | AE3: 9 | AF3: 9 | AH3: =IFERROR(INDEX('Guts-2'!$K$1:$K$30,MATCH(E3,'Guts-2'!$J$1:$J$30,0)),TRUE) -> TRUE | AI3: =IF(AH3=FALSE,"",IFERROR(CHOOSE('Guts-2'!$D$27,AB3,AC3,AD3,AE3,AF3,AG3),"")) -> 9 | AJ3: =IFERROR(RANK(AI3,$AI$2:$AI$961,1),"") -> 9 | AK3: =IF(AH3=FALSE,"",IFERROR(CHOOSE('Guts-2'!$D$26,G3,J3,M3,P3,S3,V3,Y3,AR3),"")) -> 11.3 | AL3: =IFERROR(IF(Settings!$M$5="Mixed (Standard)",AK3,RANK(AK3,$AK$2:$AK$961,1)),"") -> 11.3 | AM3: =IFERROR(IF(Settings!$M$5="Mixed (Standard)",(RANK(AK3,$AK$2:$AK$961,1)/('Guts-2'!$N$1+1))+1,(RANK(AL3,$AL$2:$AL$961,1)/('Guts-2'!$N$1+1))+1),"") -> 1.846153846 | AN3: =IFERROR(CHOOSE('Guts-2'!$D$26,H3,K3,N3,Q3,T3,W3,Z3,AS3),"") -> 3 | AO3: =IFERROR(CHOOSE('Guts-2'!$D$26,I3,L3,O3,R3,U3,X3,AA3,AT3),"") -> 21 | AP3: 3 | AQ3: 21 | AR3: =INDEX('Import (ADP)'!$C$2:$C$999,MATCH(A3, 'Import (ADP)'!$B$2:$B$999,0)) ->  | AU3: =IF(VLOOKUP(A4,'Name-Sort'!$D$2:$E$961,2,FALSE)="",A4,"") -> Willy Adames | AV3: =IFERROR(INDEX($AU$1:$AU$961,SMALL(IF($AU$1:$AU$961<>"",ROW($AU$1:$AU$961)),ROW(AU3))),"") -> Willy Adames
A4: Willy Adames | B4: adamewi01 | C4: SS | E4: TB | F4: 23 | G4: 198 | H4: 126 | I4: 357 | J4: 370 | K4: 126 | L4: 492.1 | M4: 229.82 | N4: 126 | O4: 299 | P4: 352 | Q4: 126 | R4: 468.16 | S4: 311.8 | T4: 126 | U4: 414.694 | V4: 239.41 | W4: 136 | X4: 357 | Y4: 283.505 | Z4: 126 | AA4: 377.06165 | AB4: 228 | AC4: 277 | AD4: 262 | AE4: 179 | AF4: 254 | AH4: =IFERROR(INDEX('Guts-2'!$K$1:$K$30,MATCH(E4,'Guts-2'!$J$1:$J$30,0)),TRUE) -> TRUE | AI4: =IF(AH4=FALSE,"",IFERROR(CHOOSE('Guts-2'!$D$27,AB4,AC4,AD4,AE4,AF4,AG4),"")) -> 254 | AJ4: 254 | AK4: =IF(AH4=FALSE,"",IFERROR(CHOOSE('Guts-2'!$D$26,G4,J4,M4,P4,S4,V4,Y4,AR4),"")) -> 311.8 | AL4: =IFERROR(IF(Settings!$M$5="Mixed (Standard)",AK4,RANK(AK4,$AK$2:$AK$961,1)),"") -> 311.8 | AM4: =IFERROR(IF(Settings!$M$5="Mixed (Standard)",(RANK(AK4,$AK$2:$AK$961,1)/('Guts-2'!$N$1+1))+1,(RANK(AL4,$AL$2:$AL$961,1)/('Guts-2'!$N$1+1))+1),"") -> 24.15384615 | AN4: =IFERROR(CHOOSE('Guts-2'!$D$26,H4,K4,N4,Q4,T4,W4,Z4,AS4),"") -> 126 | AO4: =IFERROR(CHOOSE('Guts-2'!$D$26,I4,L4,O4,R4,U4,X4,AA4,AT4),"") -> 414.694 | AP4: 126 | AQ4: 414.694 | AR4: =INDEX('Import (ADP)'!$C$2:$C$999,MATCH(A4, 'Import (ADP)'!$B$2:$B$999,0)) ->  | AU4: =IF(VLOOKUP(A5,'Name-Sort'!$D$2:$E$961,2,FALSE)="",A5,"") -> Matt Adams | AV4: =IFERROR(INDEX($AU$1:$AU$961,SMALL(IF($AU$1:$AU$961<>"",ROW($AU$1:$AU$961)),ROW(AU4))),"") -> Matt Adams
A5: Matt Adams | B5: adamsma01 | C5: 1B | D5: LF | E5: WAS | F5: 30 | G5: 478 | H5: 178 | I5: 635.74 | M5: 317.23 | N5: 178 | O5: 465 | P5: 414 | Q5: 178 | R5: 594 | S5: 454 | T5: 178 | U5: 603.82 | V5: 634.31 | W5: 334 | X5: 594 | Y5: 459.508 | Z5: 178 | AA5: 611.14564 | AF5: 589 | AH5: =IFERROR(INDEX('Guts-2'!$K$1:$K$30,MATCH(E5,'Guts-2'!$J$1:$J$30,0)),TRUE) -> TRUE | AI5: =IF(AH5=FALSE,"",IFERROR(CHOOSE('Guts-2'!$D$27,AB5,AC5,AD5,AE5,AF5,AG5),"")) -> 589 | AJ5: 575 | AK5: =IF(AH5=FALSE,"",IFERROR(CHOOSE('Guts-2'!$D$26,G5,J5,M5,P5,S5,V5,Y5,AR5),"")) -> 454 | AL5: =IFERROR(IF(Settings!$M$5="Mixed (Standard)",AK5,RANK(AK5,$AK$2:$AK$961,1)),"") -> 454 | AM5: =IFERROR(IF(Settings!$M$5="Mixed (Standard)",(RANK(AK5,$AK$2:$AK$961,1)/('Guts-2'!$N$1+1))+1,(RANK(AL5,$AL$2:$AL$961,1)/('Guts-2'!$N$1+1))+1),"") -> 36.30769231 | AN5: =IFERROR(CHOOSE('Guts-2'!$D$26,H5,K5,N5,Q5,T5,W5,Z5,AS5),"") -> 178 | AO5: =IFERROR(CHOOSE('Guts-2'!$D$26,I5,L5,O5,R5,U5,X5,AA5,AT5),"") -> 603.82 | AP5: 178 | AQ5: 603.82 | AR5: =INDEX('Import (ADP)'!$C$2:$C$999,MATCH(A5, 'Import (ADP)'!$B$2:$B$999,0)) ->  | AU5: =IF(VLOOKUP(A6,'Name-Sort'!$D$2:$E$961,2,FALSE)="",A6,"") -> Ehire Adrianza | AV5: =IFERROR(INDEX($AU$1:$AU$961,SMALL(IF($AU$1:$AU$961<>"",ROW($AU$1:$AU$961)),ROW(AU5))),"") -> Ehire Adrianza
A6: Ehire Adrianza | B6: adriaeh01 | C6: SS | D6: LF | E6: MIN | F6: 29 | G6: 642 | H6: 410 | I6: 853.86 | P6: 513 | Q6: 384.75 | R6: 750 | S6: 596.5 | T6: 410 | U6: 793.345 | V6: 738.67 | W6: 410 | X6: 750 | Y6: 622.5425 | Z6: 410 | AA6: 827.981525 | AF6: 607 | AH6: =IFERROR(INDEX('Guts-2'!$K$1:$K$30,MATCH(E6,'Guts-2'!$J$1:$J$30,0)),TRUE) -> TRUE | AI6: =IF(AH6=FALSE,"",IFERROR(CHOOSE('Guts-2'!$D$27,AB6,AC6,AD6,AE6,AF6,AG6),"")) -> 607 | AJ6: 589 | AK6: =IF(AH6=FALSE,"",IFERROR(CHOOSE('Guts-2'!$D$26,G6,J6,M6,P6,S6,V6,Y6,AR6),"")) -> 596.5 | AL6: =IFERROR(IF(Settings!$M$5="Mixed (Standard)",AK6,RANK(AK6,$AK$2:$AK$961,1)),"") -> 596.5 | AM6: =IFERROR(IF(Settings!$M$5="Mixed (Standard)",(RANK(AK6,$AK$2:$AK$961,1)/('Guts-2'!$N$1+1))+1,(RANK(AL6,$AL$2:$AL$961,1)/('Guts-2'!$N$1+1))+1),"") -> 43.30769231 | AN6: =IFERROR(CHOOSE('Guts-2'!$D$26,H6,K6,N6,Q6,T6,W6,Z6,AS6),"") -> 410 | AO6: =IFERROR(CHOOSE('Guts-2'!$D$26,I6,L6,O6,R6,U6,X6,AA6,AT6),"") -> 793.345 | AP6: 410 | AQ6: 793.345 | AR6: =INDEX('Import (ADP)'!$C$2:$C$999,MATCH(A6, 'Import (ADP)'!$B$2:$B$999,0)) ->  | AU6: =IF(VLOOKUP(A7,'Name-Sort'!$D$2:$E$961,2,FALSE)="",A7,"") -> Jesus Aguilar | AV6: =IFERROR(INDEX($AU$1:$AU$961,SMALL(IF($AU$1:$AU$961<>"",ROW($AU$1:$AU$961)),ROW(AU6))),"") -> Jesus Aguilar
A7: Jesus Aguilar | B7: aguilje01 | C7: 1B | E7: MIL | F7: 28 | G7: 75 | H7: 41 | I7: 127 | J7: 78 | K7: 41 | L7: 127 | M7: 85.2 | N7: 55 | O7: 112 | P7: 81 | Q7: 41 | R7: 127 | S7: 79 | T7: 41 | U7: 127 | V7: 80.15 | W7: 41 | X7: 127 | Y7: 79.725 | Z7: 41 | AA7: 127 | AB7: 66 | AC7: 76 | AD7: 79 | AE7: 85 | AF7: 79 | AH7: =IFERROR(INDEX('Guts-2'!$K$1:$K$30,MATCH(E7,'Guts-2'!$J$1:$J$30,0)),TRUE) -> TRUE | AI7: =IF(AH7=FALSE,"",IFERROR(CHOOSE('Guts-2'!$D$27,AB7,AC7,AD7,AE7,AF7,AG7),"")) -> 79 | AJ7: 79 | AK7: =IF(AH7=FALSE,"",IFERROR(CHOOSE('Guts-2'!$D$26,G7,J7,M7,P7,S7,V7,Y7,AR7),"")) -> 79 | AL7: =IFERROR(IF(Settings!$M$5="Mixed (Standard)",AK7,RANK(AK7,$AK$2:$AK$961,1)),"") -> 79 | AM7: =IFERROR(IF(Settings!$M$5="Mixed (Standard)",(RANK(AK7,$AK$2:$AK$961,1)/('Guts-2'!$N$1+1))+1,(RANK(AL7,$AL$2:$AL$961,1)/('Guts-2'!$N$1+1))+1),"") -> 7 | AN7: =IFERROR(CHOOSE('Guts-2'!$D$26,H7,K7,N7,Q7,T7,W7,Z7,AS7),"") -> 41 | AO7: =IFERROR(CHOOSE('Guts-2'!$D$26,I7,L7,O7,R7,U7,X7,AA7,AT7),"") -> 127 | AP7: 41 | AQ7: 127 | AR7: =INDEX('Import (ADP)'!$C$2:$C$999,MATCH(A7, 'Import (ADP)'!$B$2:$B$999,0)) ->  | AU7: =IF(VLOOKUP(A8,'Name-Sort'!$D$2:$E$961,2,FALSE)="",A8,"") -> Nick Ahmed | AV7: =IFERROR(INDEX($AU$1:$AU$961,SMALL(IF($AU$1:$AU$961<>"",ROW($AU$1:$AU$961)),ROW(AU7))),"") -> Nick Ahmed
A8: Nick Ahmed | B8: ahmedni01 | C8: SS | E8: ARI | F8: 29 | G8: 455 | H8: 293 | I8: 605.15 | S8: 431.5 | T8: 293 | U8: 573.895 | V8: 566.02 | W8: 293 | X8: 534 | Y8: 484.1733333 | Z8: 293 | AA8: 643.9505333 | AF8: 406 | AH8: =IFERROR(INDEX('Guts-2'!$K$1:$K$30,MATCH(E8,'Guts-2'!$J$1:$J$30,0)),TRUE) -> TRUE | AI8: =IF(AH8=FALSE,"",IFERROR(CHOOSE('Guts-2'!$D$27,AB8,AC8,AD8,AE8,AF8,AG8),"")) -> 406 | AJ8: 406 | AK8: =IF(AH8=FALSE,"",IFERROR(CHOOSE('Guts-2'!$D$26,G8,J8,M8,P8,S8,V8,Y8,AR8),"")) -> 431.5 | AL8: =IFERROR(IF(Settings!$M$5="Mixed (Standard)",AK8,RANK(AK8,$AK$2:$AK$961,1)),"") -> 431.5 | AM8: =IFERROR(IF(Settings!$M$5="Mixed (Standard)",(RANK(AK8,$AK$2:$AK$961,1)/('Guts-2'!$N$1+1))+1,(RANK(AL8,$AL$2:$AL$961,1)/('Guts-2'!$N$1+1))+1),"") -> 35.07692308 | AN8: =IFERROR(CHOOSE('Guts-2'!$D$26,H8,K8,N8,Q8,T8,W8,Z8,AS8),"") -> 293 | AO8: =IFERROR(CHOOSE('Guts-2'!$D$26,I8,L8,O8,R8,U8,X8,AA8,AT8),"") -> 573.895 | AP8: 293 | AQ8: 573.895 | AR8: =INDEX('Import (ADP)'!$C$2:$C$999,MATCH(A8, 'Import (ADP)'!$B$2:$B$999,0)) ->  | AU8: =IF(VLOOKUP(A9,'Name-Sort'!$D$2:$E$961,2,FALSE)="",A9,"") -> Ozzie Albies | AV8: =IFERROR(INDEX($AU$1:$AU$961,SMALL(IF($AU$1:$AU$961<>"",ROW($AU$1:$AU$961)),ROW(AU8))),"") -> Ozzie Albies
A9: Ozzie Albies | B9: albieoz01 | C9: 2B | E9: ATL | F9: 22 | G9: 47 | H9: 35.25 | I9: 86 | J9: 50 | K9: 37.5 | L9: 86 | M9: 61.51 | N9: 40 | O9: 81 | P9: 46 | Q9: 34.5 | R9: 86 | S9: 53.3 | T9: 39.975 | U9: 86 | V9: 59.28 | W9: 43 | X9: 86 | Y9: 52.84833333 | Z9: 39.63625 | AA9: 86 | AB9: 93 | AC9: 56 | AD9: 44 | AE9: 54 | AF9: 51 | AH9: =IFERROR(INDEX('Guts-2'!$K$1:$K$30,MATCH(E9,'Guts-2'!$J$1:$J$30,0)),TRUE) -> TRUE | AI9: =IF(AH9=FALSE,"",IFERROR(CHOOSE('Guts-2'!$D$27,AB9,AC9,AD9,AE9,AF9,AG9),"")) -> 51 | AJ9: 51 | AK9: =IF(AH9=FALSE,"",IFERROR(CHOOSE('Guts-2'!$D$26,G9,J9,M9,P9,S9,V9,Y9,AR9),"")) -> 53.3 | AL9: =IFERROR(IF(Settings!$M$5="Mixed (Standard)",AK9,RANK(AK9,$AK$2:$AK$961,1)),"") -> 53.3 | AM9: =IFERROR(IF(Settings!$M$5="Mixed (Standard)",(RANK(AK9,$AK$2:$AK$961,1)/('Guts-2'!$N$1+1))+1,(RANK(AL9,$AL$2:$AL$961,1)/('Guts-2'!$N$1+1))+1),"") -> 5 | AN9: =IFERROR(CHOOSE('Guts-2'!$D$26,H9,K9,N9,Q9,T9,W9,Z9,AS9),"") -> 39.975 | AO9: =IFERROR(CHOOSE('Guts-2'!$D$26,I9,L9,O9,R9,U9,X9,AA9,AT9),"") -> 86 | AP9: 39.975 | AQ9: 86 | AR9: =INDEX('Import (ADP)'!$C$2:$C$999,MATCH(A9, 'Import (ADP)'!$B$2:$B$999,0)) ->  | AU9: =IF(VLOOKUP(A10,'Name-Sort'!$D$2:$E$961,2,FALSE)="",A10,"") -> Sandy Alcantara | AV9: =IFERROR(INDEX($AU$1:$AU$961,SMALL(IF($AU$1:$AU$961<>"",ROW($AU$1:$AU$961)),ROW(AU9))),"") -> Sandy Alcantara
A10: Sandy Alcantara | B10: alcansa01 | C10: SP | E10: MIA | F10: 23 | G10: 378 | H10: 283.5 | I10: 600 | P10: 462 | Q10: 288 | R10: 614.46 | S10: 440 | T10: 288 | U10: 600 | V10: 554.95 | W10: 288 | X10: 600 | Y10: 458.7375 | Z10: 288 | AA10: 610.120875 | AF10: 494 | AH10: =IFERROR(INDEX('Guts-2'!$K$1:$K$30,MATCH(E10,'Guts-2'!$J$1:$J$30,0)),TRUE) -> TRUE | AI10: =IF(AH10=FALSE,"",IFERROR(CHOOSE('Guts-2'!$D$27,AB10,AC10,AD10,AE10,AF10,AG10),"")) -> 494 | AJ10: 492 | AK10: =IF(AH10=FALSE,"",IFERROR(CHOOSE('Guts-2'!$D$26,G10,J10,M10,P10,S10,V10,Y10,AR10),"")) -> 440 | AL10: =IFERROR(IF(Settings!$M$5="Mixed (Standard)",AK10,RANK(AK10,$AK$2:$AK$961,1)),"") -> 440 | AM10: =IFERROR(IF(Settings!$M$5="Mixed (Standard)",(RANK(AK10,$AK$2:$AK$961,1)/('Guts-2'!$N$1+1))+1,(RANK(AL10,$AL$2:$AL$961,1)/('Guts-2'!$N$1+1))+1),"") -> 35.38461538 | AN10: =IFERROR(CHOOSE('Guts-2'!$D$26,H10,K10,N10,Q10,T10,W10,Z10,AS10),"") -> 288 | AO10: =IFERROR(CHOOSE('Guts-2'!$D$26,I10,L10,O10,R10,U10,X10,AA10,AT10),"") -> 600 | AP10: 288 | AQ10: 600 | AR10: =INDEX('Import (ADP)'!$C$2:$C$999,MATCH(A10, 'Import (ADP)'!$B$2:$B$999,0)) ->  | AU10: =IF(VLOOKUP(A11,'Name-Sort'!$D$2:$E$961,2,FALSE)="",A11,"") -> Jorge Alfaro | AV10: =IFERROR(INDEX($AU$1:$AU$961,SMALL(IF($AU$1:$AU$961<>"",ROW($AU$1:$AU$961)),ROW(AU10))),"") -> Jorge Alfaro
A11: Jorge Alfaro | B11: alfarjo01 | C11: C | E11: PHI | F11: 25 | G11: 260 | H11: 173 | I11: 377 | J11: 258 | K11: 173 | L11: 377 | M11: 264.74 | N11: 182 | O11: 377 | P11: 310 | Q11: 173 | R11: 412.3 | S11: 260 | T11: 173 | U11: 377 | V11: 240.06 | W11: 173 | X11: 341 | Y11: 265.4666667 | Z11: 173 | AA11: 377 | AB11: 215 | AD11: 278 | AE11: 248 | AF11: 308 | AH11: =IFERROR(INDEX('Guts-2'!$K$1:$K$30,MATCH(E11,'Guts-2'!$J$1:$J$30,0)),TRUE) -> TRUE | AI11: =IF(AH11=FALSE,"",IFERROR(CHOOSE('Guts-2'!$D$27,AB11,AC11,AD11,AE11,AF11,AG11),"")) -> 308 | AJ11: 308 | AK11: =IF(AH11=FALSE,"",IFERROR(CHOOSE('Guts-2'!$D$26,G11,J11,M11,P11,S11,V11,Y11,AR11),"")) -> 260 | AL11: =IFERROR(IF(Settings!$M$5="Mixed (Standard)",AK11,RANK(AK11,$AK$2:$AK$961,1)),"") -> 260 | AM11: =IFERROR(IF(Settings!$M$5="Mixed (Standard)",(RANK(AK11,$AK$2:$AK$961,1)/('Guts-2'!$N$1+1))+1,(RANK(AL11,$AL$2:$AL$961,1)/('Guts-2'!$N$1+1))+1),"") -> 20.07692308 | AN11: =IFERROR(CHOOSE('Guts-2'!$D$26,H11,K11,N11,Q11,T11,W11,Z11,AS11),"") -> 173 | AO11: =IFERROR(CHOOSE('Guts-2'!$D$26,I11,L11,O11,R11,U11,X11,AA11,AT11),"") -> 377 | AP11: 173 | AQ11: 377 | AR11: =INDEX('Import (ADP)'!$C$2:$C$999,MATCH(A11, 'Import (ADP)'!$B$2:$B$999,0)) ->  | AU11: =IF(VLOOKUP(A12,'Name-Sort'!$D$2:$E$961,2,FALSE)="",A12,"") -> Anthony Alford | AV11: =IFERROR(INDEX($AU$1:$AU$961,SMALL(IF($AU$1:$AU$961<>"",ROW($AU$1:$AU$961)),ROW(AU11))),"") -> Anthony Alford
A12: Anthony Alford | B12: alforan01 | C12: OF | D12: LF | E12: TOR | F12: 24 | G12: 710 | H12: 355 | I12: 944.3 | P12: 694 | Q12: 355 | R12: 923.02 | S12: 734 | T12: 355 | U12: 976.22 | V12: 744.05 | W12: 355 | X12: 750 | Y12: 720.5125 | Z12: 355 | AA12: 958.281625 | AH12: =IFERROR(INDEX('Guts-2'!$K$1:$K$30,MATCH(E12,'Guts-2'!$J$1:$J$30,0)),TRUE) -> TRUE | AI12: =IF(AH12=FALSE,"",IFERROR(CHOOSE('Guts-2'!$D$27,AB12,AC12,AD12,AE12,AF12,AG12),"")) ->  | AK12: =IF(AH12=FALSE,"",IFERROR(CHOOSE('Guts-2'!$D$26,G12,J12,M12,P12,S12,V12,Y12,AR12),"")) -> 734 | AL12: =IFERROR(IF(Settings!$M$5="Mixed (Standard)",AK12,RANK(AK12,$AK$2:$AK$961,1)),"") -> 734 | AM12: =IFERROR(IF(Settings!$M$5="Mixed (Standard)",(RANK(AK12,$AK$2:$AK$961,1)/('Guts-2'!$N$1+1))+1,(RANK(AL12,$AL$2:$AL$961,1)/('Guts-2'!$N$1+1))+1),"") -> 47.07692308 | AN12: =IFERROR(CHOOSE('Guts-2'!$D$26,H12,K12,N12,Q12,T12,W12,Z12,AS12),"") -> 355 | AO12: =IFERROR(CHOOSE('Guts-2'!$D$26,I12,L12,O12,R12,U12,X12,AA12,AT12),"") -> 976.22 | AP12: 355 | AQ12: 976.22 | AR12: =INDEX('Import (ADP)'!$C$2:$C$999,MATCH(A12, 'Import (ADP)'!$B$2:$B$999,0)) ->  | AU12: =IF(VLOOKUP(A13,'Name-Sort'!$D$2:$E$961,2,FALSE)="",A13,"") -> Kolby Allard | AV12: =IFERROR(INDEX($AU$1:$AU$961,SMALL(IF($AU$1:$AU$961<>"",ROW($AU$1:$AU$961)),ROW(AU12))),"") -> Kolby Allard
A13: Kolby Allard | B13: allarko01 | C13: SP | E13: ATL | F13: 21 | V13: 745.81 | W13: 532 | X13: 739 | Y13: 745.81 | Z13: 532 | AA13: 991.9273 | AF13: 758 | AH13: =IFERROR(INDEX('Guts-2'!$K$1:$K$30,MATCH(E13,'Guts-2'!$J$1:$J$30,0)),TRUE) -> TRUE | AI13: =IF(AH13=FALSE,"",IFERROR(CHOOSE('Guts-2'!$D$27,AB13,AC13,AD13,AE13,AF13,AG13),"")) -> 758 | AJ13: 700 | AK13: =IF(AH13=FALSE,"",IFERROR(CHOOSE('Guts-2'!$D$26,G13,J13,M13,P13,S13,V13,Y13,AR13),"")) ->  | AL13: =IFERROR(IF(Settings!$M$5="Mixed (Standard)",AK13,RANK(AK13,$AK$2:$AK$961,1)),"") ->  | AM13: =IFERROR(IF(Settings!$M$5="Mixed (Standard)",(RANK(AK13,$AK$2:$AK$961,1)/('Guts-2'!$N$1+1))+1,(RANK(AL13,$AL$2:$AL$961,1)/('Guts-2'!$N$1+1))+1),"") ->  | AN13: =IFERROR(CHOOSE('Guts-2'!$D$26,H13,K13,N13,Q13,T13,W13,Z13,AS13),"") ->  | AO13: =IFERROR(CHOOSE('Guts-2'!$D$26,I13,L13,O13,R13,U13,X13,AA13,AT13),"") ->  | AR13: =INDEX('Import (ADP)'!$C$2:$C$999,MATCH(A13, 'Import (ADP)'!$B$2:$B$999,0)) ->  | AU13: =IF(VLOOKUP(A14,'Name-Sort'!$D$2:$E$961,2,FALSE)="",A14,"") -> Cody Allen | AV13: =IFERROR(INDEX($AU$1:$AU$961,SMALL(IF($AU$1:$AU$961<>"",ROW($AU$1:$AU$961)),ROW(AU13))),"") -> Cody Allen
A14: Cody Allen | B14: allenco01 | C14: RP | E14: LAA | F14: 30 | G14: 222 | H14: 89 | I14: 295.26 | J14: 156 | K14: 89 | L14: 258 | M14: 164.16 | N14: 89 | O14: 255 | P14: 182 | Q14: 89 | R14: 258 | S14: 163 | T14: 89 | U14: 258 | V14: 164.45 | W14: 93 | X14: 258 | Y14: 175.2683333 | Z14: 89 | AA14: 258 | AB14: 107 | AC14: 167 | AD14: 196 | AE14: 165 | AF14: 167 | AH14: =IFERROR(INDEX('Guts-2'!$K$1:$K$30,MATCH(E14,'Guts-2'!$J$1:$J$30,0)),TRUE) -> TRUE | AI14: =IF(AH14=FALSE,"",IFERROR(CHOOSE('Guts-2'!$D$27,AB14,AC14,AD14,AE14,AF14,AG14),"")) -> 167 | AJ14: 167 | AK14: =IF(AH14=FALSE,"",IFERROR(CHOOSE('Guts-2'!$D$26,G14,J14,M14,P14,S14,V14,Y14,AR14),"")) -> 163 | AL14: =IFERROR(IF(Settings!$M$5="Mixed (Standard)",AK14,RANK(AK14,$AK$2:$AK$961,1)),"") -> 163 | AM14: =IFERROR(IF(Settings!$M$5="Mixed (Standard)",(RANK(AK14,$AK$2:$AK$961,1)/('Guts-2'!$N$1+1))+1,(RANK(AL14,$AL$2:$AL$961,1)/('Guts-2'!$N$1+1))+1),"") -> 13.30769231 | AN14: =IFERROR(CHOOSE('Guts-2'!$D$26,H14,K14,N14,Q14,T14,W14,Z14,AS14),"") -> 89 | AO14: =IFERROR(CHOOSE('Guts-2'!$D$26,I14,L14,O14,R14,U14,X14,AA14,AT14),"") -> 258 | AP14: 89 | AQ14: 258 | AR14: =INDEX('Import (ADP)'!$C$2:$C$999,MATCH(A14, 'Import (ADP)'!$B$2:$B$999,0)) ->  | AU14: =IF(VLOOKUP(A15,'Name-Sort'!$D$2:$E$961,2,FALSE)="",A15,"") -> Greg Allen | AV14: =IFERROR(INDEX($AU$1:$AU$961,SMALL(IF($AU$1:$AU$961<>"",ROW($AU$1:$AU$961)),ROW(AU14))),"") -> Greg Allen
A15: Greg Allen | B15: allengr01 | C15: OF | D15: CF,RF | E15: CLE | F15: 26 | G15: 347 | H15: 133 | I15: 461.51 | J15: 359 | K15: 133 | L15: 477.47 | M15: 217.66 | N15: 133 | O15: 304 | S15: 342.3 | T15: 133 | U15: 455.259 | V15: 341.28 | W15: 209 | X15: 420 | Y15: 321.448 | Z15: 133 | AA15: 427.52584 | AF15: 358 | AH15: =IFERROR(INDEX('Guts-2'!$K$1:$K$30,MATCH(E15,'Guts-2'!$J$1:$J$30,0)),TRUE) -> TRUE | AI15: =IF(AH15=FALSE,"",IFERROR(CHOOSE('Guts-2'!$D$27,AB15,AC15,AD15,AE15,AF15,AG15),"")) -> 358 | AJ15: 358 | AK15: =IF(AH15=FALSE,"",IFERROR(CHOOSE('Guts-2'!$D$26,G15,J15,M15,P15,S15,V15,Y15,AR15),"")) -> 342.3 | AL15: =IFERROR(IF(Settings!$M$5="Mixed (Standard)",AK15,RANK(AK15,$AK$2:$AK$961,1)),"") -> 342.3 | AM15: =IFERROR(IF(Settings!$M$5="Mixed (Standard)",(RANK(AK15,$AK$2:$AK$961,1)/('Guts-2'!$N$1+1))+1,(RANK(AL15,$AL$2:$AL$961,1)/('Guts-2'!$N$1+1))+1),"") -> 28.07692308 | AN15: =IFERROR(CHOOSE('Guts-2'!$D$26,H15,K15,N15,Q15,T15,W15,Z15,AS15),"") -> 133 | AO15: =IFERROR(CHOOSE('Guts-2'!$D$26,I15,L15,O15,R15,U15,X15,AA15,AT15),"") -> 455.259 | AP15: 133 | AQ15: 455.259 | AR15: =INDEX('Import (ADP)'!$C$2:$C$999,MATCH(A15, 'Import (ADP)'!$B$2:$B$999,0)) ->  | AU15: =IF(VLOOKUP(A16,'Name-Sort'!$D$2:$E$961,2,FALSE)="",A16,"") -> Albert Almora | AV15: =IFERROR(INDEX($AU$1:$AU$961,SMALL(IF($AU$1:$AU$961<>"",ROW($AU$1:$AU$961)),ROW(AU15))),"") -> Albert Almora
A16: Albert Almora | B16: almoral01 | C16: OF | D16: CF | E16: CHC | F16: 24 | P16: 363 | Q16: 272.25 | R16: 606 | S16: 445 | T16: 333.75 | U16: 606 | V16: 655.14 | W16: 377 | X16: 606 | Y16: 487.7133333 | Z16: 365.785 | AA16: 648.6587333 | AF16: 436 | AH16: =IFERROR(INDEX('Guts-2'!$K$1:$K$30,MATCH(E16,'Guts-2'!$J$1:$J$30,0)),TRUE) -> TRUE | AI16: =IF(AH16=FALSE,"",IFERROR(CHOOSE('Guts-2'!$D$27,AB16,AC16,AD16,AE16,AF16,AG16),"")) -> 436 | AJ16: 436 | AK16: =IF(AH16=FALSE,"",IFERROR(CHOOSE('Guts-2'!$D$26,G16,J16,M16,P16,S16,V16,Y16,AR16),"")) -> 445 | AL16: =IFERROR(IF(Settings!$M$5="Mixed (Standard)",AK16,RANK(AK16,$AK$2:$AK$961,1)),"") -> 445 | AM16: =IFERROR(IF(Settings!$M$5="Mixed (Standard)",(RANK(AK16,$AK$2:$AK$961,1)/('Guts-2'!$N$1+1))+1,(RANK(AL16,$AL$2:$AL$961,1)/('Guts-2'!$N$1+1))+1),"") -> 35.69230769 | AN16: =IFERROR(CHOOSE('Guts-2'!$D$26,H16,K16,N16,Q16,T16,W16,Z16,AS16),"") -> 333.75 | AO16: =IFERROR(CHOOSE('Guts-2'!$D$26,I16,L16,O16,R16,U16,X16,AA16,AT16),"") -> 606 | AP16: 333.75 | AQ16: 606 | AR16: =INDEX('Import (ADP)'!$C$2:$C$999,MATCH(A16, 'Import (ADP)'!$B$2:$B$999,0)) ->  | AU16: =IF(VLOOKUP(A17,'Name-Sort'!$D$2:$E$961,2,FALSE)="",A17,"") -> Peter Alonso | AV16: =IFERROR(INDEX($AU$1:$AU$961,SMALL(IF($AU$1:$AU$961<>"",ROW($AU$1:$AU$961)),ROW(AU16))),"") -> Peter Alonso
A17: Peter Alonso | B17: alonspe01 | C17: 1B | E17: NYM | F17: 24 | J17: 349 | K17: 99 | L17: 464.17 | M17: 202.51 | N17: 99 | O17: 264 | P17: 291 | Q17: 99 | R17: 387.03 | S17: 287.5 | T17: 99 | U17: 382.375 | V17: 242.25 | W17: 130 | X17: 340 | Y17: 274.452 | Z17: 99 | AA17: 365.02116 | AE17: 220 | AF17: 266 | AH17: =IFERROR(INDEX('Guts-2'!$K$1:$K$30,MATCH(E17,'Guts-2'!$J$1:$J$30,0)),TRUE) -> TRUE | AI17: =IF(AH17=FALSE,"",IFERROR(CHOOSE('Guts-2'!$D$27,AB17,AC17,AD17,AE17,AF17,AG17),"")) -> 266 | AJ17: 266 | AK17: =IF(AH17=FALSE,"",IFERROR(CHOOSE('Guts-2'!$D$26,G17,J17,M17,P17,S17,V17,Y17,AR17),"")) -> 287.5 | AL17: =IFERROR(IF(Settings!$M$5="Mixed (Standard)",AK17,RANK(AK17,$AK$2:$AK$961,1)),"") -> 287.5 | AM17: =IFERROR(IF(Settings!$M$5="Mixed (Standard)",(RANK(AK17,$AK$2:$AK$961,1)/('Guts-2'!$N$1+1))+1,(RANK(AL17,$AL$2:$AL$961,1)/('Guts-2'!$N$1+1))+1),"") -> 22 | AN17: =IFERROR(CHOOSE('Guts-2'!$D$26,H17,K17,N17,Q17,T17,W17,Z17,AS17),"") -> 99 | AO17: =IFERROR(CHOOSE('Guts-2'!$D$26,I17,L17,O17,R17,U17,X17,AA17,AT17),"") -> 382.375 | AP17: 99 | AQ17: 382.375 | AR17: =INDEX('Import (ADP)'!$C$2:$C$999,MATCH(A17, 'Import (ADP)'!$B$2:$B$999,0)) ->  | AU17: =IF(VLOOKUP(A18,'Name-Sort'!$D$2:$E$961,2,FALSE)="",A18,"") -> Yonder Alonso | AV17: =IFERROR(INDEX($AU$1:$AU$961,SMALL(IF($AU$1:$AU$961<>"",ROW($AU$1:$AU$961)),ROW(AU17))),"") -> Yonder Alonso
A18: Yonder Alonso | B18: alonsyo01 | C18: 1B | E18: CWS | F18: 31 | G18: 303 | H18: 170 | I18: 435 | M18: 315.67 | N18: 170 | O18: 435 | P18: 386 | Q18: 170 | R18: 513.38 | S18: 334 | T18: 170 | U18: 444.22 | V18: 317.11 | W18: 236 | X18: 390 | Y18: 331.156 | Z18: 170 | AA18: 440.43748 | AB18: 273 | AC18: 251 | AD18: 286 | AE18: 218 | AF18: 277 | AH18: =IFERROR(INDEX('Guts-2'!$K$1:$K$30,MATCH(E18,'Guts-2'!$J$1:$J$30,0)),TRUE) -> TRUE | AI18: =IF(AH18=FALSE,"",IFERROR(CHOOSE('Guts-2'!$D$27,AB18,AC18,AD18,AE18,AF18,AG18),"")) -> 277 | AJ18: 277 | AK18: =IF(AH18=FALSE,"",IFERROR(CHOOSE('Guts-2'!$D$26,G18,J18,M18,P18,S18,V18,Y18,AR18),"")) -> 334 | AL18: =IFERROR(IF(Settings!$M$5="Mixed (Standard)",AK18,RANK(AK18,$AK$2:$AK$961,1)),"") -> 334 | AM18: =IFERROR(IF(Settings!$M$5="Mixed (Standard)",(RANK(AK18,$AK$2:$AK$961,1)/('Guts-2'!$N$1+1))+1,(RANK(AL18,$AL$2:$AL$961,1)/('Guts-2'!$N$1+1))+1),"") -> 26.61538462 | AN18: =IFERROR(CHOOSE('Guts-2'!$D$26,H18,K18,N18,Q18,T18,W18,Z18,AS18),"") -> 170 | AO18: =IFERROR(CHOOSE('Guts-2'!$D$26,I18,L18,O18,R18,U18,X18,AA18,AT18),"") -> 444.22 | AP18: 170 | AQ18: 444.22 | AR18: =INDEX('Import (ADP)'!$C$2:$C$999,MATCH(A18, 'Import (ADP)'!$B$2:$B$999,0)) ->  | AU18: =IF(VLOOKUP(A19,'Name-Sort'!$D$2:$E$961,2,FALSE)="",A19,"") -> Aaron Altherr | AV18: =IFERROR(INDEX($AU$1:$AU$961,SMALL(IF($AU$1:$AU$961<>"",ROW($AU$1:$AU$961)),ROW(AU18))),"") -> Aaron Altherr
A19: Aaron Altherr | B19: altheaa01 | C19: OF | D19: LF,CF,RF | E19: PHI | F19: 28 | G19: 696 | H19: 405 | I19: 925.68 | P19: 730 | Q19: 405 | R19: 970.9 | S19: 652.3 | T19: 405 | U19: 867.559 | V19: 742.1 | W19: 405 | X19: 744 | Y19: 705.1 | Z19: 405 | AA19: 937.783 | AF19: 546 | AH19: =IFERROR(INDEX('Guts-2'!$K$1:$K$30,MATCH(E19,'Guts-2'!$J$1:$J$30,0)),TRUE) -> TRUE | AI19: =IF(AH19=FALSE,"",IFERROR(CHOOSE('Guts-2'!$D$27,AB19,AC19,AD19,AE19,AF19,AG19),"")) -> 546 | AJ19: 538 | AK19: =IF(AH19=FALSE,"",IFERROR(CHOOSE('Guts-2'!$D$26,G19,J19,M19,P19,S19,V19,Y19,AR19),"")) -> 652.3 | AL19: =IFERROR(IF(Settings!$M$5="Mixed (Standard)",AK19,RANK(AK19,$AK$2:$AK$961,1)),"") -> 652.3 | AM19: =IFERROR(IF(Settings!$M$5="Mixed (Standard)",(RANK(AK19,$AK$2:$AK$961,1)/('Guts-2'!$N$1+1))+1,(RANK(AL19,$AL$2:$AL$961,1)/('Guts-2'!$N$1+1))+1),"") -> 44.84615385 | AN19: =IFERROR(CHOOSE('Guts-2'!$D$26,H19,K19,N19,Q19,T19,W19,Z19,AS19),"") -> 405 | AO19: =IFERROR(CHOOSE('Guts-2'!$D$26,I19,L19,O19,R19,U19,X19,AA19,AT19),"") -> 867.559 | AP19: 405 | AQ19: 867.559 | AR19: =INDEX('Import (ADP)'!$C$2:$C$999,MATCH(A19, 'Import (ADP)'!$B$2:$B$999,0)) ->  | AU19: =IF(VLOOKUP(A20,'Name-Sort'!$D$2:$E$961,2,FALSE)="",A20,"") -> Jose Altuve | AV19: =IFERROR(INDEX($AU$1:$AU$961,SMALL(IF($AU$1:$AU$961<>"",ROW($AU$1:$AU$961)),ROW(AU19))),"") -> Jose Altuve
A20: Jose Altuve | B20: altuvjo01 | C20: 2B | E20: HOU | F20: 28 | G20: 17 | H20: 3 | I20: 27 | J20: 11 | K20: 3 | L20: 27 | M20: 8.83 | N20: 3 | O20: 18 | P20: 12 | Q20: 3 | R20: 27 | S20: 12.5 | T20: 3 | U20: 27 | V20: 14.26 | W20: 4 | X20: 27 | Y20: 12.59833333 | Z20: 3 | AA20: 27 | AB20: 9 | AC20: 11 | AD20: 11 | AE20: 11 | AF20: 14 | AH20: =IFERROR(INDEX('Guts-2'!$K$1:$K$30,MATCH(E20,'Guts-2'!$J$1:$J$30,0)),TRUE) -> TRUE | AI20: =IF(AH20=FALSE,"",IFERROR(CHOOSE('Guts-2'!$D$27,AB20,AC20,AD20,AE20,AF20,AG20),"")) -> 14 | AJ20: 14 | AK20: =IF(AH20=FALSE,"",IFERROR(CHOOSE('Guts-2'!$D$26,G20,J20,M20,P20,S20,V20,Y20,AR20),"")) -> 12.5 | AL20: =IFERROR(IF(Settings!$M$5="Mixed (Standard)",AK20,RANK(AK20,$AK$2:$AK$961,1)),"") -> 12.5 | AM20: =IFERROR(IF(Settings!$M$5="Mixed (Standard)",(RANK(AK20,$AK$2:$AK$961,1)/('Guts-2'!$N$1+1))+1,(RANK(AL20,$AL$2:$AL$961,1)/('Guts-2'!$N$1+1))+1),"") -> 1.923076923 | AN20: =IFERROR(CHOOSE('Guts-2'!$D$26,H20,K20,N20,Q20,T20,W20,Z20,AS20),"") -> 3 | AO20: =IFERROR(CHOOSE('Guts-2'!$D$26,I20,L20,O20,R20,U20,X20,AA20,AT20),"") -> 27 | AP20: 3 | AQ20: 27 | AR20: =INDEX('Import (ADP)'!$C$2:$C$999,MATCH(A20, 'Import (ADP)'!$B$2:$B$999,0)) -> 2.3 | AS20: 2 | AT20: 27 | AU20: =IF(VLOOKUP(A21,'Name-Sort'!$D$2:$E$961,2,FALSE)="",A21,"") -> Jose Alvarado | AV20: =IFERROR(INDEX($AU$1:$AU$961,SMALL(IF($AU$1:$AU$961<>"",ROW($AU$1:$AU$961)),ROW(AU20))),"") -> Jose Alvarado
A21: Jose Alvarado | B21: alvarjo03 | C21: RP | E21: TB | F21: 23 | G21: 206 | H21: 81 | I21: 284 | J21: 215 | K21: 81 | L21: 285.95 | M21: 168.17 | N21: 81 | O21: 244 | P21: 173 | Q21: 81 | R21: 284 | S21: 179 | T21: 81 | U21: 284 | V21: 167.57 | W21: 106 | X21: 284 | Y21: 184.79 | Z21: 81 | AA21: 284 | AB21: 144 | AC21: 213 | AD21: 184 | AE21: 156 | AF21: 194 | AH21: =IFERROR(INDEX('Guts-2'!$K$1:$K$30,MATCH(E21,'Guts-2'!$J$1:$J$30,0)),TRUE) -> TRUE | AI21: =IF(AH21=FALSE,"",IFERROR(CHOOSE('Guts-2'!$D$27,AB21,AC21,AD21,AE21,AF21,AG21),"")) -> 194 | AJ21: 194 | AK21: =IF(AH21=FALSE,"",IFERROR(CHOOSE('Guts-2'!$D$26,G21,J21,M21,P21,S21,V21,Y21,AR21),"")) -> 179 | AL21: =IFERROR(IF(Settings!$M$5="Mixed (Standard)",AK21,RANK(AK21,$AK$2:$AK$961,1)),"") -> 179 | AM21: =IFERROR(IF(Settings!$M$5="Mixed (Standard)",(RANK(AK21,$AK$2:$AK$961,1)/('Guts-2'!$N$1+1))+1,(RANK(AL21,$AL$2:$AL$961,1)/('Guts-2'!$N$1+1))+1),"") -> 14.38461538 | AN21: =IFERROR(CHOOSE('Guts-2'!$D$26,H21,K21,N21,Q21,T21,W21,Z21,AS21),"") -> 81 | AO21: =IFERROR(CHOOSE('Guts-2'!$D$26,I21,L21,O21,R21,U21,X21,AA21,AT21),"") -> 284 | AP21: 81 | AQ21: 284 | AR21: =INDEX('Import (ADP)'!$C$2:$C$999,MATCH(A21, 'Import (ADP)'!$B$2:$B$999,0)) ->  | AU21: =IF(VLOOKUP(A22,'Name-Sort'!$D$2:$E$961,2,FALSE)="",A22,"") -> Brett Anderson | AV21: =IFERROR(INDEX($AU$1:$AU$961,SMALL(IF($AU$1:$AU$961<>"",ROW($AU$1:$AU$961)),ROW(AU21))),"") -> Brett Anderson
A22: Brett Anderson | B22: anderbr04 | C22: SP | E22: OAK | F22: 31 | P22: 593 | Q22: 444.75 | R22: 788.69 | S22: 649.5 | T22: 476 | U22: 863.835 | V22: 725.05 | W22: 476 | X22: 744 | Y22: 655.85 | Z22: 476 | AA22: 872.2805 | AH22: =IFERROR(INDEX('Guts-2'!$K$1:$K$30,MATCH(E22,'Guts-2'!$J$1:$J$30,0)),TRUE) -> TRUE | AI22: =IF(AH22=FALSE,"",IFERROR(CHOOSE('Guts-2'!$D$27,AB22,AC22,AD22,AE22,AF22,AG22),"")) ->  | AK22: =IF(AH22=FALSE,"",IFERROR(CHOOSE('Guts-2'!$D$26,G22,J22,M22,P22,S22,V22,Y22,AR22),"")) -> 649.5 | AL22: =IFERROR(IF(Settings!$M$5="Mixed (Standard)",AK22,RANK(AK22,$AK$2:$AK$961,1)),"") -> 649.5 | AM22: =IFERROR(IF(Settings!$M$5="Mixed (Standard)",(RANK(AK22,$AK$2:$AK$961,1)/('Guts-2'!$N$1+1))+1,(RANK(AL22,$AL$2:$AL$961,1)/('Guts-2'!$N$1+1))+1),"") -> 44.76923077 | AN22: =IFERROR(CHOOSE('Guts-2'!$D$26,H22,K22,N22,Q22,T22,W22,Z22,AS22),"") -> 476 | AO22: =IFERROR(CHOOSE('Guts-2'!$D$26,I22,L22,O22,R22,U22,X22,AA22,AT22),"") -> 863.835 | AP22: 476 | AQ22: 863.835 | AR22: =INDEX('Import (ADP)'!$C$2:$C$999,MATCH(A22, 'Import (ADP)'!$B$2:$B$999,0)) ->  | AU22: =IF(VLOOKUP(A23,'Name-Sort'!$D$2:$E$961,2,FALSE)="",A23,"") -> Brian Anderson | AV22: =IFERROR(INDEX($AU$1:$AU$961,SMALL(IF($AU$1:$AU$961<>"",ROW($AU$1:$AU$961)),ROW(AU22))),"") -> Brian Anderson
A23: Brian Anderson | B23: anderbr06 | C23: 3B | D23: RF | E23: MIA | F23: 25 | G23: 248 | H23: 186 | I23: 430 | J23: 368 | K23: 193 | L23: 489.44 | M23: 296.18 | N23: 200 | O23: 355 | P23: 209 | Q23: 156.75 | R23: 430 | S23: 303.3 | T23: 193 | U23: 430 | V23: 289.83 | W23: 193 | X23: 430 | Y23: 285.7183333 | Z23: 193 | AA23: 430 | AB23: 255 | AC23: 274 | AD23: 226 | AE23: 231 | AF23: 276 | AH23: =IFERROR(INDEX('Guts-2'!$K$1:$K$30,MATCH(E23,'Guts-2'!$J$1:$J$30,0)),TRUE) -> TRUE | AI23: =IF(AH23=FALSE,"",IFERROR(CHOOSE('Guts-2'!$D$27,AB23,AC23,AD23,AE23,AF23,AG23),"")) -> 276 | AJ23: 276 | AK23: =IF(AH23=FALSE,"",IFERROR(CHOOSE('Guts-2'!$D$26,G23,J23,M23,P23,S23,V23,Y23,AR23),"")) -> 303.3 | AL23: =IFERROR(IF(Settings!$M$5="Mixed (Standard)",AK23,RANK(AK23,$AK$2:$AK$961,1)),"") -> 303.3 | AM23: =IFERROR(IF(Settings!$M$5="Mixed (Standard)",(RANK(AK23,$AK$2:$AK$961,1)/('Guts-2'!$N$1+1))+1,(RANK(AL23,$AL$2:$AL$961,1)/('Guts-2'!$N$1+1))+1),"") -> 23.46153846 | AN23: =IFERROR(CHOOSE('Guts-2'!$D$26,H23,K23,N23,Q23,T23,W23,Z23,AS23),"") -> 193 | AO23: =IFERROR(CHOOSE('Guts-2'!$D$26,I23,L23,O23,R23,U23,X23,AA23,AT23),"") -> 430 | AP23: 193 | AQ23: 430 | AR23: =INDEX('Import (ADP)'!$C$2:$C$999,MATCH(A23, 'Import (ADP)'!$B$2:$B$999,0)) ->  | AU23: =IF(VLOOKUP(A24,'Name-Sort'!$D$2:$E$961,2,FALSE)="",A24,"") -> Chase Anderson | AV23: =IFERROR(INDEX($AU$1:$AU$961,SMALL(IF($AU$1:$AU$961<>"",ROW($AU$1:$AU$961)),ROW(AU23))),"") -> Chase Anderson
A24: Chase Anderson | B24: anderch01 | C24: SP | E24: MIL | F24: 31 | G24: 359 | H24: 169 | I24: 477.47 | M24: 297.63 | N24: 169 | O24: 380 | S24: 342 | T24: 169 | U24: 454.86 | V24: 458.76 | W24: 265 | X24: 453 | Y24: 364.3475 | Z24: 169 | AA24: 484.582175 | AF24: 359 | AH24: =IFERROR(INDEX('Guts-2'!$K$1:$K$30,MATCH(E24,'Guts-2'!$J$1:$J$30,0)),TRUE) -> TRUE | AI24: =IF(AH24=FALSE,"",IFERROR(CHOOSE('Guts-2'!$D$27,AB24,AC24,AD24,AE24,AF24,AG24),"")) -> 359 | AJ24: 359 | AK24: =IF(AH24=FALSE,"",IFERROR(CHOOSE('Guts-2'!$D$26,G24,J24,M24,P24,S24,V24,Y24,AR24),"")) -> 342 | AL24: =IFERROR(IF(Settings!$M$5="Mixed (Standard)",AK24,RANK(AK24,$AK$2:$AK$961,1)),"") -> 342 | AM24: =IFERROR(IF(Settings!$M$5="Mixed (Standard)",(RANK(AK24,$AK$2:$AK$961,1)/('Guts-2'!$N$1+1))+1,(RANK(AL24,$AL$2:$AL$961,1)/('Guts-2'!$N$1+1))+1),"") -> 27.92307692 | AN24: =IFERROR(CHOOSE('Guts-2'!$D$26,H24,K24,N24,Q24,T24,W24,Z24,AS24),"") -> 169 | AO24: =IFERROR(CHOOSE('Guts-2'!$D$26,I24,L24,O24,R24,U24,X24,AA24,AT24),"") -> 454.86 | AP24: 169 | AQ24: 454.86 | AR24: =INDEX('Import (ADP)'!$C$2:$C$999,MATCH(A24, 'Import (ADP)'!$B$2:$B$999,0)) ->  | AU24: =IF(VLOOKUP(A25,'Name-Sort'!$D$2:$E$961,2,FALSE)="",A25,"") -> Ian Anderson | AV24: =IFERROR(INDEX($AU$1:$AU$961,SMALL(IF($AU$1:$AU$961<>"",ROW($AU$1:$AU$961)),ROW(AU24))),"") -> Ian Anderson
A25: Ian Anderson | B25: anderia01 | C25: SP | E25: ATL | F25: 20 | V25: 741.85 | W25: 348 | X25: 748 | Y25: 741.85 | Z25: 348 | AA25: 986.6605 | AH25: =IFERROR(INDEX('Guts-2'!$K$1:$K$30,MATCH(E25,'Guts-2'!$J$1:$J$30,0)),TRUE) -> TRUE | AI25: =IF(AH25=FALSE,"",IFERROR(CHOOSE('Guts-2'!$D$27,AB25,AC25,AD25,AE25,AF25,AG25),"")) ->  | AK25: =IF(AH25=FALSE,"",IFERROR(CHOOSE('Guts-2'!$D$26,G25,J25,M25,P25,S25,V25,Y25,AR25),"")) ->  | AL25: =IFERROR(IF(Settings!$M$5="Mixed (Standard)",AK25,RANK(AK25,$AK$2:$AK$961,1)),"") ->  | AM25: =IFERROR(IF(Settings!$M$5="Mixed (Standard)",(RANK(AK25,$AK$2:$AK$961,1)/('Guts-2'!$N$1+1))+1,(RANK(AL25,$AL$2:$AL$961,1)/('Guts-2'!$N$1+1))+1),"") ->  | AN25: =IFERROR(CHOOSE('Guts-2'!$D$26,H25,K25,N25,Q25,T25,W25,Z25,AS25),"") ->  | AO25: =IFERROR(CHOOSE('Guts-2'!$D$26,I25,L25,O25,R25,U25,X25,AA25,AT25),"") ->  | AR25: =INDEX('Import (ADP)'!$C$2:$C$999,MATCH(A25, 'Import (ADP)'!$B$2:$B$999,0)) ->  | AU25: =IF(VLOOKUP(A26,'Name-Sort'!$D$2:$E$961,2,FALSE)="",A26,"") -> Justin Anderson | AV25: =IFERROR(INDEX($AU$1:$AU$961,SMALL(IF($AU$1:$AU$961<>"",ROW($AU$1:$AU$961)),ROW(AU25))),"") -> Justin Anderson
A26: Justin Anderson | B26: anderju01 | C26: RP | E26: LAA | F26: 26 | G26: 732 | H26: 498 | I26: 973.56 | P26: 954 | Q26: 498 | R26: 1268.82 | S26: 856 | T26: 498 | U26: 1138.48 | V26: 748.53 | W26: 498 | X26: 745 | Y26: 822.6325 | Z26: 498 | AA26: 1094.101225 | AF26: 720 | AH26: =IFERROR(INDEX('Guts-2'!$K$1:$K$30,MATCH(E26,'Guts-2'!$J$1:$J$30,0)),TRUE) -> TRUE | AI26: =IF(AH26=FALSE,"",IFERROR(CHOOSE('Guts-2'!$D$27,AB26,AC26,AD26,AE26,AF26,AG26),"")) -> 720 | AJ26: 680 | AK26: =IF(AH26=FALSE,"",IFERROR(CHOOSE('Guts-2'!$D$26,G26,J26,M26,P26,S26,V26,Y26,AR26),"")) -> 856 | AL26: =IFERROR(IF(Settings!$M$5="Mixed (Standard)",AK26,RANK(AK26,$AK$2:$AK$961,1)),"") -> 856 | AM26: =IFERROR(IF(Settings!$M$5="Mixed (Standard)",(RANK(AK26,$AK$2:$AK$961,1)/('Guts-2'!$N$1+1))+1,(RANK(AL26,$AL$2:$AL$961,1)/('Guts-2'!$N$1+1))+1),"") -> 49.46153846 | AN26: =IFERROR(CHOOSE('Guts-2'!$D$26,H26,K26,N26,Q26,T26,W26,Z26,AS26),"") -> 498 | AO26: =IFERROR(CHOOSE('Guts-2'!$D$26,I26,L26,O26,R26,U26,X26,AA26,AT26),"") -> 1138.48 | AP26: 498 | AQ26: 1138.48 | AR26: =INDEX('Import (ADP)'!$C$2:$C$999,MATCH(A26, 'Import (ADP)'!$B$2:$B$999,0)) ->  | AU26: =IF(VLOOKUP(A27,'Name-Sort'!$D$2:$E$961,2,FALSE)="",A27,"") -> Tim Anderson | AV26: =IFERROR(INDEX($AU$1:$AU$961,SMALL(IF($AU$1:$AU$961<>"",ROW($AU$1:$AU$961)),ROW(AU26))),"") -> Tim Anderson
A27: Tim Anderson | B27: anderti01 | C27: SS | E27: CWS | F27: 25 | G27: 130 | H27: 89 | I27: 218 | J27: 135 | K27: 89 | L27: 218 | M27: 159.63 | N27: 95 | O27: 218 | P27: 144 | Q27: 89 | R27: 218 | S27: 137 | T27: 89 | U27: 218 | V27: 133.97 | W27: 89 | X27: 182 | Y27: 139.9333333 | Z27: 89 | AA27: 218 | AB27: 177 | AC27: 109 | AD27: 110 | AE27: 95 | AF27: 136 | AH27: =IFERROR(INDEX('Guts-2'!$K$1:$K$30,MATCH(E27,'Guts-2'!$J$1:$J$30,0)),TRUE) -> TRUE | AI27: =IF(AH27=FALSE,"",IFERROR(CHOOSE('Guts-2'!$D$27,AB27,AC27,AD27,AE27,AF27,AG27),"")) -> 136 | AJ27: 136 | AK27: =IF(AH27=FALSE,"",IFERROR(CHOOSE('Guts-2'!$D$26,G27,J27,M27,P27,S27,V27,Y27,AR27),"")) -> 137 | AL27: =IFERROR(IF(Settings!$M$5="Mixed (Standard)",AK27,RANK(AK27,$AK$2:$AK$961,1)),"") -> 137 | AM27: =IFERROR(IF(Settings!$M$5="Mixed (Standard)",(RANK(AK27,$AK$2:$AK$961,1)/('Guts-2'!$N$1+1))+1,(RANK(AL27,$AL$2:$AL$961,1)/('Guts-2'!$N$1+1))+1),"") -> 11.69230769 | AN27: =IFERROR(CHOOSE('Guts-2'!$D$26,H27,K27,N27,Q27,T27,W27,Z27,AS27),"") -> 89 | AO27: =IFERROR(CHOOSE('Guts-2'!$D$26,I27,L27,O27,R27,U27,X27,AA27,AT27),"") -> 218 | AP27: 89 | AQ27: 218 | AR27: =INDEX('Import (ADP)'!$C$2:$C$999,MATCH(A27, 'Import (ADP)'!$B$2:$B$999,0)) ->  | AU27: =IF(VLOOKUP(A28,'Name-Sort'!$D$2:$E$961,2,FALSE)="",A28,"") -> Tyler Anderson | AV27: =IFERROR(INDEX($AU$1:$AU$961,SMALL(IF($AU$1:$AU$961<>"",ROW($AU$1:$AU$961)),ROW(AU27))),"") -> Tyler Anderson
A28: Tyler Anderson | B28: anderty01 | C28: SP | E28: COL | F28: 29 | G28: 386 | H28: 192 | I28: 546 | M28: 349 | N28: 192 | O28: 507 | S28: 402 | T28: 192 | U28: 546 | V28: 521.71 | W28: 271 | X28: 546 | Y28: 414.6775 | Z28: 192 | AA28: 551.521075 | AB28: 265 | AF28: 372 | AH28: =IFERROR(INDEX('Guts-2'!$K$1:$K$30,MATCH(E28,'Guts-2'!$J$1:$J$30,0)),TRUE) -> TRUE | AI28: =IF(AH28=FALSE,"",IFERROR(CHOOSE('Guts-2'!$D$27,AB28,AC28,AD28,AE28,AF28,AG28),"")) -> 372 | AJ28: 372 | AK28: =IF(AH28=FALSE,"",IFERROR(CHOOSE('Guts-2'!$D$26,G28,J28,M28,P28,S28,V28,Y28,AR28),"")) -> 402 | AL28: =IFERROR(IF(Settings!$M$5="Mixed (Standard)",AK28,RANK(AK28,$AK$2:$AK$961,1)),"") -> 402 | AM28: =IFERROR(IF(Settings!$M$5="Mixed (Standard)",(RANK(AK28,$AK$2:$AK$961,1)/('Guts-2'!$N$1+1))+1,(RANK(AL28,$AL$2:$AL$961,1)/('Guts-2'!$N$1+1))+1),"") -> 33.23076923 | AN28: =IFERROR(CHOOSE('Guts-2'!$D$26,H28,K28,N28,Q28,T28,W28,Z28,AS28),"") -> 192 | AO28: =IFERROR(CHOOSE('Guts-2'!$D$26,I28,L28,O28,R28,U28,X28,AA28,AT28),"") -> 546 | AP28: 192 | AQ28: 546 | AR28: =INDEX('Import (ADP)'!$C$2:$C$999,MATCH(A28, 'Import (ADP)'!$B$2:$B$999,0)) ->  | AU28: =IF(VLOOKUP(A29,'Name-Sort'!$D$2:$E$961,2,FALSE)="",A29,"") -> Matt Andriese | AV28: =IFERROR(INDEX($AU$1:$AU$961,SMALL(IF($AU$1:$AU$961<>"",ROW($AU$1:$AU$961)),ROW(AU28))),"") -> Matt Andriese
A29: Matt Andriese | B29: andrima01 | C29: RP | E29: ARI | F29: 29 | G29: 894 | H29: 670.5 | I29: 1189.02 | S29: 629 | T29: 471.75 | U29: 836.57 | V29: 749.86 | W29: 674 | X29: 750 | Y29: 757.62 | Z29: 568.215 | AA29: 1007.6346 | AF29: 671 | AH29: =IFERROR(INDEX('Guts-2'!$K$1:$K$30,MATCH(E29,'Guts-2'!$J$1:$J$30,0)),TRUE) -> TRUE | AI29: =IF(AH29=FALSE,"",IFERROR(CHOOSE('Guts-2'!$D$27,AB29,AC29,AD29,AE29,AF29,AG29),"")) -> 671 | AJ29: 646 | AK29: =IF(AH29=FALSE,"",IFERROR(CHOOSE('Guts-2'!$D$26,G29,J29,M29,P29,S29,V29,Y29,AR29),"")) -> 629 | AL29: =IFERROR(IF(Settings!$M$5="Mixed (Standard)",AK29,RANK(AK29,$AK$2:$AK$961,1)),"") -> 629 | AM29: =IFERROR(IF(Settings!$M$5="Mixed (Standard)",(RANK(AK29,$AK$2:$AK$961,1)/('Guts-2'!$N$1+1))+1,(RANK(AL29,$AL$2:$AL$961,1)/('Guts-2'!$N$1+1))+1),"") -> 44.23076923 | AN29: =IFERROR(CHOOSE('Guts-2'!$D$26,H29,K29,N29,Q29,T29,W29,Z29,AS29),"") -> 471.75 | AO29: =IFERROR(CHOOSE('Guts-2'!$D$26,I29,L29,O29,R29,U29,X29,AA29,AT29),"") -> 836.57 | AP29: 471.75 | AQ29: 836.57 | AR29: =INDEX('Import (ADP)'!$C$2:$C$999,MATCH(A29, 'Import (ADP)'!$B$2:$B$999,0)) ->  | AU29: =IF(VLOOKUP(A30,'Name-Sort'!$D$2:$E$961,2,FALSE)="",A30,"") -> Elvis Andrus | AV29: =IFERROR(INDEX($AU$1:$AU$961,SMALL(IF($AU$1:$AU$961<>"",ROW($AU$1:$AU$961)),ROW(AU29))),"") -> Elvis Andrus
A30: Elvis Andrus | B30: andruel01 | C30: SS | E30: TEX | F30: 30 | G30: 169 | H30: 119 | I30: 274 | J30: 148 | K30: 111 | L30: 274 | M30: 183.18 | N30: 119 | O30: 262 | P30: 158 | Q30: 118.5 | R30: 274 | S30: 168 | T30: 119 | U30: 274 | V30: 186.65 | W30: 138 | X30: 274 | Y30: 168.805 | Z30: 119 | AA30: 274 | AB30: 224 | AC30: 147 | AD30: 131 | AE30: 106 | AF30: 140 | AH30: =IFERROR(INDEX('Guts-2'!$K$1:$K$30,MATCH(E30,'Guts-2'!$J$1:$J$30,0)),TRUE) -> TRUE | AI30: =IF(AH30=FALSE,"",IFERROR(CHOOSE('Guts-2'!$D$27,AB30,AC30,AD30,AE30,AF30,AG30),"")) -> 140 | AJ30: 140 | AK30: =IF(AH30=FALSE,"",IFERROR(CHOOSE('Guts-2'!$D$26,G30,J30,M30,P30,S30,V30,Y30,AR30),"")) -> 168 | AL30: =IFERROR(IF(Settings!$M$5="Mixed (Standard)",AK30,RANK(AK30,$AK$2:$AK$961,1)),"") -> 168 | AM30: =IFERROR(IF(Settings!$M$5="Mixed (Standard)",(RANK(AK30,$AK$2:$AK$961,1)/('Guts-2'!$N$1+1))+1,(RANK(AL30,$AL$2:$AL$961,1)/('Guts-2'!$N$1+1))+1),"") -> 13.53846154 | AN30: =IFERROR(CHOOSE('Guts-2'!$D$26,H30,K30,N30,Q30,T30,W30,Z30,AS30),"") -> 119 | AO30: =IFERROR(CHOOSE('Guts-2'!$D$26,I30,L30,O30,R30,U30,X30,AA30,AT30),"") -> 274 | AP30: 119 | AQ30: 274 | AR30: =INDEX('Import (ADP)'!$C$2:$C$999,MATCH(A30, 'Import (ADP)'!$B$2:$B$999,0)) ->  | AU30: =IF(VLOOKUP(A31,'Name-Sort'!$D$2:$E$961,2,FALSE)="",A31,"") -> Miguel Andujar | AV30: =IFERROR(INDEX($AU$1:$AU$961,SMALL(IF($AU$1:$AU$961<>"",ROW($AU$1:$AU$961)),ROW(AU30))),"") -> Miguel Andujar
A31: Miguel Andujar | B31: andujmi01 | C31: 3B | E31: NYY | F31: 24 | G31: 68 | H31: 46 | I31: 125 | J31: 86 | K31: 46 | L31: 125 | M31: 90.31 | N31: 48 | O31: 125 | P31: 78 | Q31: 46 | R31: 125 | S31: 79 | T31: 46 | U31: 125 | V31: 79.02 | W31: 46 | X31: 120 | Y31: 80.055 | Z31: 46 | AA31: 125 | AB31: 71 | AC31: 80 | AD31: 76 | AE31: 78 | AF31: 89 | AH31: =IFERROR(INDEX('Guts-2'!$K$1:$K$30,MATCH(E31,'Guts-2'!$J$1:$J$30,0)),TRUE) -> TRUE | AI31: =IF(AH31=FALSE,"",IFERROR(CHOOSE('Guts-2'!$D$27,AB31,AC31,AD31,AE31,AF31,AG31),"")) -> 89 | AJ31: 89 | AK31: =IF(AH31=FALSE,"",IFERROR(CHOOSE('Guts-2'!$D$26,G31,J31,M31,P31,S31,V31,Y31,AR31),"")) -> 79 | AL31: =IFERROR(IF(Settings!$M$5="Mixed (Standard)",AK31,RANK(AK31,$AK$2:$AK$961,1)),"") -> 79 | AM31: =IFERROR(IF(Settings!$M$5="Mixed (Standard)",(RANK(AK31,$AK$2:$AK$961,1)/('Guts-2'!$N$1+1))+1,(RANK(AL31,$AL$2:$AL$961,1)/('Guts-2'!$N$1+1))+1),"") -> 7 | AN31: =IFERROR(CHOOSE('Guts-2'!$D$26,H31,K31,N31,Q31,T31,W31,Z31,AS31),"") -> 46 | AO31: =IFERROR(CHOOSE('Guts-2'!$D$26,I31,L31,O31,R31,U31,X31,AA31,AT31),"") -> 125 | AP31: 46 | AQ31: 125 | AR31: =INDEX('Import (ADP)'!$C$2:$C$999,MATCH(A31, 'Import (ADP)'!$B$2:$B$999,0)) ->  | AU31: =IF(VLOOKUP(A32,'Name-Sort'!$D$2:$E$961,2,FALSE)="",A32,"") -> Victor Arano | AV31: =IFERROR(INDEX($AU$1:$AU$961,SMALL(IF($AU$1:$AU$961<>"",ROW($AU$1:$AU$961)),ROW(AU31))),"") -> Victor Arano
A32: Victor Arano | B32: aranovi01 | C32: RP | E32: PHI | F32: 24 | V32: 750.38 | W32: 658 | X32: 735 | Y32: 750.38 | Z32: 562.785 | AA32: 998.0054 | AH32: =IFERROR(INDEX('Guts-2'!$K$1:$K$30,MATCH(E32,'Guts-2'!$J$1:$J$30,0)),TRUE) -> TRUE | AI32: =IF(AH32=FALSE,"",IFERROR(CHOOSE('Guts-2'!$D$27,AB32,AC32,AD32,AE32,AF32,AG32),"")) ->  | AK32: =IF(AH32=FALSE,"",IFERROR(CHOOSE('Guts-2'!$D$26,G32,J32,M32,P32,S32,V32,Y32,AR32),"")) ->  | AL32: =IFERROR(IF(Settings!$M$5="Mixed (Standard)",AK32,RANK(AK32,$AK$2:$AK$961,1)),"") ->  | AM32: =IFERROR(IF(Settings!$M$5="Mixed (Standard)",(RANK(AK32,$AK$2:$AK$961,1)/('Guts-2'!$N$1+1))+1,(RANK(AL32,$AL$2:$AL$961,1)/('Guts-2'!$N$1+1))+1),"") ->  | AN32: =IFERROR(CHOOSE('Guts-2'!$D$26,H32,K32,N32,Q32,T32,W32,Z32,AS32),"") ->  | AO32: =IFERROR(CHOOSE('Guts-2'!$D$26,I32,L32,O32,R32,U32,X32,AA32,AT32),"") ->  | AR32: =INDEX('Import (ADP)'!$C$2:$C$999,MATCH(A32, 'Import (ADP)'!$B$2:$B$999,0)) ->  | AU32: =IF(VLOOKUP(A33,'Name-Sort'!$D$2:$E$961,2,FALSE)="",A33,"") -> Chris Archer | AV32: =IFERROR(INDEX($AU$1:$AU$961,SMALL(IF($AU$1:$AU$961<>"",ROW($AU$1:$AU$961)),ROW(AU32))),"") -> Chris Archer
A33: Chris Archer | B33: archech01 | C33: SP | E33: PIT | F33: 30 | G33: 126 | H33: 49 | I33: 185 | J33: 126 | K33: 49 | L33: 185 | M33: 105.62 | N33: 49 | O33: 146 | P33: 130 | Q33: 49 | R33: 185 | S33: 128 | T33: 49 | U33: 185 | V33: 134.32 | W33: 86 | X33: 185 | Y33: 124.99 | Z33: 49 | AA33: 185 | AB33: 151 | AC33: 123 | AD33: 136 | AE33: 181 | AF33: 124 | AH33: =IFERROR(INDEX('Guts-2'!$K$1:$K$30,MATCH(E33,'Guts-2'!$J$1:$J$30,0)),TRUE) -> TRUE | AI33: =IF(AH33=FALSE,"",IFERROR(CHOOSE('Guts-2'!$D$27,AB33,AC33,AD33,AE33,AF33,AG33),"")) -> 124 | AJ33: 124 | AK33: =IF(AH33=FALSE,"",IFERROR(CHOOSE('Guts-2'!$D$26,G33,J33,M33,P33,S33,V33,Y33,AR33),"")) -> 128 | AL33: =IFERROR(IF(Settings!$M$5="Mixed (Standard)",AK33,RANK(AK33,$AK$2:$AK$961,1)),"") -> 128 | AM33: =IFERROR(IF(Settings!$M$5="Mixed (Standard)",(RANK(AK33,$AK$2:$AK$961,1)/('Guts-2'!$N$1+1))+1,(RANK(AL33,$AL$2:$AL$961,1)/('Guts-2'!$N$1+1))+1),"") -> 11.07692308 | AN33: =IFERROR(CHOOSE('Guts-2'!$D$26,H33,K33,N33,Q33,T33,W33,Z33,AS33),"") -> 49 | AO33: =IFERROR(CHOOSE('Guts-2'!$D$26,I33,L33,O33,R33,U33,X33,AA33,AT33),"") -> 185 | AP33: 49 | AQ33: 185 | AR33: =INDEX('Import (ADP)'!$C$2:$C$999,MATCH(A33, 'Import (ADP)'!$B$2:$B$999,0)) ->  | AU33: =IF(VLOOKUP(A34,'Name-Sort'!$D$2:$E$961,2,FALSE)="",A34,"") -> Francisco Arcia | AV33: =IFERROR(INDEX($AU$1:$AU$961,SMALL(IF($AU$1:$AU$961<>"",ROW($AU$1:$AU$961)),ROW(AU33))),"") -> Francisco Arcia
A34: Francisco Arcia | B34: arciafr01 | C34: C | E34: CHC | F34: 29 | AH34: =IFERROR(INDEX('Guts-2'!$K$1:$K$30,MATCH(E34,'Guts-2'!$J$1:$J$30,0)),TRUE) -> TRUE | AI34: =IF(AH34=FALSE,"",IFERROR(CHOOSE('Guts-2'!$D$27,AB34,AC34,AD34,AE34,AF34,AG34),"")) ->  | AK34: =IF(AH34=FALSE,"",IFERROR(CHOOSE('Guts-2'!$D$26,G34,J34,M34,P34,S34,V34,Y34,AR34),"")) ->  | AL34: =IFERROR(IF(Settings!$M$5="Mixed (Standard)",AK34,RANK(AK34,$AK$2:$AK$961,1)),"") ->  | AM34: =IFERROR(IF(Settings!$M$5="Mixed (Standard)",(RANK(AK34,$AK$2:$AK$961,1)/('Guts-2'!$N$1+1))+1,(RANK(AL34,$AL$2:$AL$961,1)/('Guts-2'!$N$1+1))+1),"") ->  | AN34: =IFERROR(CHOOSE('Guts-2'!$D$26,H34,K34,N34,Q34,T34,W34,Z34,AS34),"") ->  | AO34: =IFERROR(CHOOSE('Guts-2'!$D$26,I34,L34,O34,R34,U34,X34,AA34,AT34),"") ->  | AR34: =INDEX('Import (ADP)'!$C$2:$C$999,MATCH(A34, 'Import (ADP)'!$B$2:$B$999,0)) ->  | AU34: =IF(VLOOKUP(A35,'Name-Sort'!$D$2:$E$961,2,FALSE)="",A35,"") -> Orlando Arcia | AV34: =IFERROR(INDEX($AU$1:$AU$961,SMALL(IF($AU$1:$AU$961<>"",ROW($AU$1:$AU$961)),ROW(AU34))),"") -> Orlando Arcia
A35: Orlando Arcia | B35: arciaor01 | C35: SS | E35: MIL | F35: 24 | M35: 319 | N35: 160 | O35: 409 | V35: 520.05 | W35: 307 | X35: 455 | Y35: 419.525 | Z35: 160 | AA35: 557.96825 | AD35: 293 | AF35: 349 | AH35: =IFERROR(INDEX('Guts-2'!$K$1:$K$30,MATCH(E35,'Guts-2'!$J$1:$J$30,0)),TRUE) -> TRUE | AI35: =IF(AH35=FALSE,"",IFERROR(CHOOSE('Guts-2'!$D$27,AB35,AC35,AD35,AE35,AF35,AG35),"")) -> 349 | AJ35: 349 | AK35: =IF(AH35=FALSE,"",IFERROR(CHOOSE('Guts-2'!$D$26,G35,J35,M35,P35,S35,V35,Y35,AR35),"")) ->  | AL35: =IFERROR(IF(Settings!$M$5="Mixed (Standard)",AK35,RANK(AK35,$AK$2:$AK$961,1)),"") ->  | AM35: =IFERROR(IF(Settings!$M$5="Mixed (Standard)",(RANK(AK35,$AK$2:$AK$961,1)/('Guts-2'!$N$1+1))+1,(RANK(AL35,$AL$2:$AL$961,1)/('Guts-2'!$N$1+1))+1),"") ->  | AN35: =IFERROR(CHOOSE('Guts-2'!$D$26,H35,K35,N35,Q35,T35,W35,Z35,AS35),"") ->  | AO35: =IFERROR(CHOOSE('Guts-2'!$D$26,I35,L35,O35,R35,U35,X35,AA35,AT35),"") ->  | AR35: =INDEX('Import (ADP)'!$C$2:$C$999,MATCH(A35, 'Import (ADP)'!$B$2:$B$999,0)) ->  | AU35: =IF(VLOOKUP(A36,'Name-Sort'!$D$2:$E$961,2,FALSE)="",A36,"") -> Nolan Arenado | AV35: =IFERROR(INDEX($AU$1:$AU$961,SMALL(IF($AU$1:$AU$961<>"",ROW($AU$1:$AU$961)),ROW(AU35))),"") -> Nolan Arenado
A36: Nolan Arenado | B36: arenano01 | C36: 3B | E36: COL | F36: 27 | G36: 7 | H36: 3 | I36: 14 | J36: 3 | K36: 2.25 | L36: 14 | M36: 5.45 | N36: 3 | O36: 9 | P36: 6 | Q36: 3 | R36: 14 | S36: 5.8 | T36: 3 | U36: 14 | V36: 7.39 | W36: 3 | X36: 14 | Y36: 5.773333333 | Z36: 3 | AA36: 14 | AB36: 5 | AC36: 3 | AD36: 6 | AE36: 5 | AF36: 4 | AH36: =IFERROR(INDEX('Guts-2'!$K$1:$K$30,MATCH(E36,'Guts-2'!$J$1:$J$30,0)),TRUE) -> TRUE | AI36: =IF(AH36=FALSE,"",IFERROR(CHOOSE('Guts-2'!$D$27,AB36,AC36,AD36,AE36,AF36,AG36),"")) -> 4 | AJ36: 4 | AK36: =IF(AH36=FALSE,"",IFERROR(CHOOSE('Guts-2'!$D$26,G36,J36,M36,P36,S36,V36,Y36,AR36),"")) -> 5.8 | AL36: =IFERROR(IF(Settings!$M$5="Mixed (Standard)",AK36,RANK(AK36,$AK$2:$AK$961,1)),"") -> 5.8 | AM36: =IFERROR(IF(Settings!$M$5="Mixed (Standard)",(RANK(AK36,$AK$2:$AK$961,1)/('Guts-2'!$N$1+1))+1,(RANK(AL36,$AL$2:$AL$961,1)/('Guts-2'!$N$1+1))+1),"") -> 1.461538462 | AN36: =IFERROR(CHOOSE('Guts-2'!$D$26,H36,K36,N36,Q36,T36,W36,Z36,AS36),"") -> 3 | AO36: =IFERROR(CHOOSE('Guts-2'!$D$26,I36,L36,O36,R36,U36,X36,AA36,AT36),"") -> 14 | AP36: 3 | AQ36: 14 | AR36: =INDEX('Import (ADP)'!$C$2:$C$999,MATCH(A36, 'Import (ADP)'!$B$2:$B$999,0)) -> 4.5 | AS36: 3 | AT36: 14 | AU36: =IF(VLOOKUP(A37,'Name-Sort'!$D$2:$E$961,2,FALSE)="",A37,"") -> Jake Arrieta | AV36: =IFERROR(INDEX($AU$1:$AU$961,SMALL(IF($AU$1:$AU$961<>"",ROW($AU$1:$AU$961)),ROW(AU36))),"") -> Jake Arrieta
A37: Jake Arrieta | B37: arrieja01 | C37: SP | E37: PHI | F37: 33 | G37: 209 | H37: 104 | I37: 293 | J37: 172 | K37: 104 | L37: 293 | M37: 194.46 | N37: 104 | O37: 288 | P37: 176 | Q37: 104 | R37: 293 | S37: 184.5 | T37: 104 | U37: 293 | V37: 210.81 | W37: 148 | X37: 293 | Y37: 191.1283333 | Z37: 104 | AA37: 293 | AB37: 197 | AC37: 183 | AD37: 203 | AE37: 213 | AF37: 190 | AH37: =IFERROR(INDEX('Guts-2'!$K$1:$K$30,MATCH(E37,'Guts-2'!$J$1:$J$30,0)),TRUE) -> TRUE | AI37: =IF(AH37=FALSE,"",IFERROR(CHOOSE('Guts-2'!$D$27,AB37,AC37,AD37,AE37,AF37,AG37),"")) -> 190 | AJ37: 190 | AK37: =IF(AH37=FALSE,"",IFERROR(CHOOSE('Guts-2'!$D$26,G37,J37,M37,P37,S37,V37,Y37,AR37),"")) -> 184.5 | AL37: =IFERROR(IF(Settings!$M$5="Mixed (Standard)",AK37,RANK(AK37,$AK$2:$AK$961,1)),"") -> 184.5 | AM37: =IFERROR(IF(Settings!$M$5="Mixed (Standard)",(RANK(AK37,$AK$2:$AK$961,1)/('Guts-2'!$N$1+1))+1,(RANK(AL37,$AL$2:$AL$961,1)/('Guts-2'!$N$1+1))+1),"") -> 15 | AN37: =IFERROR(CHOOSE('Guts-2'!$D$26,H37,K37,N37,Q37,T37,W37,Z37,AS37),"") -> 104 | AO37: =IFERROR(CHOOSE('Guts-2'!$D$26,I37,L37,O37,R37,U37,X37,AA37,AT37),"") -> 293 | AP37: 104 | AQ37: 293 | AR37: =INDEX('Import (ADP)'!$C$2:$C$999,MATCH(A37, 'Import (ADP)'!$B$2:$B$999,0)) ->  | AU37: =IF(VLOOKUP(A38,'Name-Sort'!$D$2:$E$961,2,FALSE)="",A38,"") -> Christian Arroyo | AV37: =IFERROR(INDEX($AU$1:$AU$961,SMALL(IF($AU$1:$AU$961<>"",ROW($AU$1:$AU$961)),ROW(AU37))),"") -> Christian Arroyo
A38: Christian Arroyo | B38: arroych01 | C38: 3B | E38: TB | F38: 23 | V38: 747.05 | W38: 541 | X38: 729 | Y38: 747.05 | Z38: 541 | AA38: 993.5765 | AF38: 508 | AH38: =IFERROR(INDEX('Guts-2'!$K$1:$K$30,MATCH(E38,'Guts-2'!$J$1:$J$30,0)),TRUE) -> TRUE | AI38: =IF(AH38=FALSE,"",IFERROR(CHOOSE('Guts-2'!$D$27,AB38,AC38,AD38,AE38,AF38,AG38),"")) -> 508 | AJ38: 506 | AK38: =IF(AH38=FALSE,"",IFERROR(CHOOSE('Guts-2'!$D$26,G38,J38,M38,P38,S38,V38,Y38,AR38),"")) ->  | AL38: =IFERROR(IF(Settings!$M$5="Mixed (Standard)",AK38,RANK(AK38,$AK$2:$AK$961,1)),"") ->  | AM38: =IFERROR(IF(Settings!$M$5="Mixed (Standard)",(RANK(AK38,$AK$2:$AK$961,1)/('Guts-2'!$N$1+1))+1,(RANK(AL38,$AL$2:$AL$961,1)/('Guts-2'!$N$1+1))+1),"") ->  | AN38: =IFERROR(CHOOSE('Guts-2'!$D$26,H38,K38,N38,Q38,T38,W38,Z38,AS38),"") ->  | AO38: =IFERROR(CHOOSE('Guts-2'!$D$26,I38,L38,O38,R38,U38,X38,AA38,AT38),"") ->  | AR38: =INDEX('Import (ADP)'!$C$2:$C$999,MATCH(A38, 'Import (ADP)'!$B$2:$B$999,0)) ->  | AU38: =IF(VLOOKUP(A39,'Name-Sort'!$D$2:$E$961,2,FALSE)="",A39,"") -> Willians Astudillo | AV38: =IFERROR(INDEX($AU$1:$AU$961,SMALL(IF($AU$1:$AU$961<>"",ROW($AU$1:$AU$961)),ROW(AU38))),"") -> Willians Astudillo
A39: Willians Astudillo | B39: astudwi01 | C39: C | E39: MIN | F39: 27 | G39: 276 | H39: 123 | I39: 383 | J39: 363 | K39: 123 | L39: 482.79 | M39: 245.48 | N39: 123 | O39: 383 | P39: 380 | Q39: 123 | R39: 505.4 | S39: 324 | T39: 123 | U39: 430.92 | V39: 253.5 | W39: 152 | X39: 375 | Y39: 306.9966667 | Z39: 123 | AA39: 408.3055667 | AE39: 271 | AF39: 351 | AH39: =IFERROR(INDEX('Guts-2'!$K$1:$K$30,MATCH(E39,'Guts-2'!$J$1:$J$30,0)),TRUE) -> TRUE | AI39: =IF(AH39=FALSE,"",IFERROR(CHOOSE('Guts-2'!$D$27,AB39,AC39,AD39,AE39,AF39,AG39),"")) -> 351 | AJ39: 351 | AK39: =IF(AH39=FALSE,"",IFERROR(CHOOSE('Guts-2'!$D$26,G39,J39,M39,P39,S39,V39,Y39,AR39),"")) -> 324 | AL39: =IFERROR(IF(Settings!$M$5="Mixed (Standard)",AK39,RANK(AK39,$AK$2:$AK$961,1)),"") -> 324 | AM39: =IFERROR(IF(Settings!$M$5="Mixed (Standard)",(RANK(AK39,$AK$2:$AK$961,1)/('Guts-2'!$N$1+1))+1,(RANK(AL39,$AL$2:$AL$961,1)/('Guts-2'!$N$1+1))+1),"") -> 25.69230769 | AN39: =IFERROR(CHOOSE('Guts-2'!$D$26,H39,K39,N39,Q39,T39,W39,Z39,AS39),"") -> 123 | AO39: =IFERROR(CHOOSE('Guts-2'!$D$26,I39,L39,O39,R39,U39,X39,AA39,AT39),"") -> 430.92 | AP39: 123 | AQ39: 430.92 | AR39: =INDEX('Import (ADP)'!$C$2:$C$999,MATCH(A39, 'Import (ADP)'!$B$2:$B$999,0)) ->  | AU39: =IF(VLOOKUP(A40,'Name-Sort'!$D$2:$E$961,2,FALSE)="",A40,"") -> Carlos Asuaje | AV39: =IFERROR(INDEX($AU$1:$AU$961,SMALL(IF($AU$1:$AU$961<>"",ROW($AU$1:$AU$961)),ROW(AU39))),"") -> Carlos Asuaje
A40: Carlos Asuaje | B40: asuajca01 | C40: 2B | E40: FA | F40: 27 | P40: 957 | Q40: 717.75 | R40: 1272.81 | S40: 1027.5 | T40: 770.625 | U40: 1366.575 | Y40: 992.25 | Z40: 744.1875 | AA40: 1319.6925 | AH40: =IFERROR(INDEX('Guts-2'!$K$1:$K$30,MATCH(E40,'Guts-2'!$J$1:$J$30,0)),TRUE) -> TRUE | AI40: =IF(AH40=FALSE,"",IFERROR(CHOOSE('Guts-2'!$D$27,AB40,AC40,AD40,AE40,AF40,AG40),"")) ->  | AK40: =IF(AH40=FALSE,"",IFERROR(CHOOSE('Guts-2'!$D$26,G40,J40,M40,P40,S40,V40,Y40,AR40),"")) -> 1027.5 | AL40: =IFERROR(IF(Settings!$M$5="Mixed (Standard)",AK40,RANK(AK40,$AK$2:$AK$961,1)),"") -> 1027.5 | AM40: =IFERROR(IF(Settings!$M$5="Mixed (Standard)",(RANK(AK40,$AK$2:$AK$961,1)/('Guts-2'!$N$1+1))+1,(RANK(AL40,$AL$2:$AL$961,1)/('Guts-2'!$N$1+1))+1),"") -> 50 | AN40: =IFERROR(CHOOSE('Guts-2'!$D$26,H40,K40,N40,Q40,T40,W40,Z40,AS40),"") -> 770.625 | AO40: =IFERROR(CHOOSE('Guts-2'!$D$26,I40,L40,O40,R40,U40,X40,AA40,AT40),"") -> 1366.575 | AP40: 770.625 | AQ40: 1366.575 | AR40: =INDEX('Import (ADP)'!$C$2:$C$999,MATCH(A40, 'Import (ADP)'!$B$2:$B$999,0)) ->  | AU40: =IF(VLOOKUP(A41,'Name-Sort'!$D$2:$E$961,2,FALSE)="",A41,"") -> Tyler Austin | AV40: =IFERROR(INDEX($AU$1:$AU$961,SMALL(IF($AU$1:$AU$961<>"",ROW($AU$1:$AU$961)),ROW(AU40))),"") -> Tyler Austin
A41: Tyler Austin | B41: austity01 | C41: 1B | E41: MIN | F41: 27 | V41: 685.26 | W41: 410 | X41: 705 | Y41: 685.26 | Z41: 410 | AA41: 911.3958 | AF41: 530 | AH41: =IFERROR(INDEX('Guts-2'!$K$1:$K$30,MATCH(E41,'Guts-2'!$J$1:$J$30,0)),TRUE) -> TRUE | AI41: =IF(AH41=FALSE,"",IFERROR(CHOOSE('Guts-2'!$D$27,AB41,AC41,AD41,AE41,AF41,AG41),"")) -> 530 | AJ41: 524 | AK41: =IF(AH41=FALSE,"",IFERROR(CHOOSE('Guts-2'!$D$26,G41,J41,M41,P41,S41,V41,Y41,AR41),"")) ->  | AL41: =IFERROR(IF(Settings!$M$5="Mixed (Standard)",AK41,RANK(AK41,$AK$2:$AK$961,1)),"") ->  | AM41: =IFERROR(IF(Settings!$M$5="Mixed (Standard)",(RANK(AK41,$AK$2:$AK$961,1)/('Guts-2'!$N$1+1))+1,(RANK(AL41,$AL$2:$AL$961,1)/('Guts-2'!$N$1+1))+1),"") ->  | AN41: =IFERROR(CHOOSE('Guts-2'!$D$26,H41,K41,N41,Q41,T41,W41,Z41,AS41),"") ->  | AO41: =IFERROR(CHOOSE('Guts-2'!$D$26,I41,L41,O41,R41,U41,X41,AA41,AT41),"") ->  | AR41: =INDEX('Import (ADP)'!$C$2:$C$999,MATCH(A41, 'Import (ADP)'!$B$2:$B$999,0)) ->  | AU41: =IF(VLOOKUP(A42,'Name-Sort'!$D$2:$E$961,2,FALSE)="",A42,"") -> Alex Avila | AV41: =IFERROR(INDEX($AU$1:$AU$961,SMALL(IF($AU$1:$AU$961<>"",ROW($AU$1:$AU$961)),ROW(AU41))),"") -> Alex Avila
A42: Alex Avila | B42: avilaal01 | C42: C | E42: ARI | F42: 32 | V42: 724.89 | W42: 461 | X42: 748 | Y42: 724.89 | Z42: 461 | AA42: 964.1037 | AF42: 699 | AH42: =IFERROR(INDEX('Guts-2'!$K$1:$K$30,MATCH(E42,'Guts-2'!$J$1:$J$30,0)),TRUE) -> TRUE | AI42: =IF(AH42=FALSE,"",IFERROR(CHOOSE('Guts-2'!$D$27,AB42,AC42,AD42,AE42,AF42,AG42),"")) -> 699 | AJ42: 666 | AK42: =IF(AH42=FALSE,"",IFERROR(CHOOSE('Guts-2'!$D$26,G42,J42,M42,P42,S42,V42,Y42,AR42),"")) ->  | AL42: =IFERROR(IF(Settings!$M$5="Mixed (Standard)",AK42,RANK(AK42,$AK$2:$AK$961,1)),"") ->  | AM42: =IFERROR(IF(Settings!$M$5="Mixed (Standard)",(RANK(AK42,$AK$2:$AK$961,1)/('Guts-2'!$N$1+1))+1,(RANK(AL42,$AL$2:$AL$961,1)/('Guts-2'!$N$1+1))+1),"") ->  | AN42: =IFERROR(CHOOSE('Guts-2'!$D$26,H42,K42,N42,Q42,T42,W42,Z42,AS42),"") ->  | AO42: =IFERROR(CHOOSE('Guts-2'!$D$26,I42,L42,O42,R42,U42,X42,AA42,AT42),"") ->  | AR42: =INDEX('Import (ADP)'!$C$2:$C$999,MATCH(A42, 'Import (ADP)'!$B$2:$B$999,0)) ->  | AU42: =IF(VLOOKUP(A43,'Name-Sort'!$D$2:$E$961,2,FALSE)="",A43,"") -> Harrison Bader | AV42: =IFERROR(INDEX($AU$1:$AU$961,SMALL(IF($AU$1:$AU$961<>"",ROW($AU$1:$AU$961)),ROW(AU42))),"") -> Harrison Bader
A43: Harrison Bader | B43: baderha01 | C43: OF | D43: LF,CF,RF | E43: STL | F43: 24 | G43: 155 | H43: 116.25 | I43: 285 | J43: 192 | K43: 133 | L43: 285 | M43: 209.22 | N43: 133 | O43: 268 | P43: 181 | Q43: 133 | R43: 285 | S43: 181.3 | T43: 133 | U43: 285 | V43: 187.32 | W43: 140 | X43: 285 | Y43: 184.3066667 | Z43: 133 | AA43: 285 | AB43: 161 | AC43: 174 | AD43: 148 | AE43: 153 | AF43: 180 | AH43: =IFERROR(INDEX('Guts-2'!$K$1:$K$30,MATCH(E43,'Guts-2'!$J$1:$J$30,0)),TRUE) -> TRUE | AI43: =IF(AH43=FALSE,"",IFERROR(CHOOSE('Guts-2'!$D$27,AB43,AC43,AD43,AE43,AF43,AG43),"")) -> 180 | AJ43: 180 | AK43: =IF(AH43=FALSE,"",IFERROR(CHOOSE('Guts-2'!$D$26,G43,J43,M43,P43,S43,V43,Y43,AR43),"")) -> 181.3 | AL43: =IFERROR(IF(Settings!$M$5="Mixed (Standard)",AK43,RANK(AK43,$AK$2:$AK$961,1)),"") -> 181.3 | AM43: =IFERROR(IF(Settings!$M$5="Mixed (Standard)",(RANK(AK43,$AK$2:$AK$961,1)/('Guts-2'!$N$1+1))+1,(RANK(AL43,$AL$2:$AL$961,1)/('Guts-2'!$N$1+1))+1),"") -> 14.53846154 | AN43: =IFERROR(CHOOSE('Guts-2'!$D$26,H43,K43,N43,Q43,T43,W43,Z43,AS43),"") -> 133 | AO43: =IFERROR(CHOOSE('Guts-2'!$D$26,I43,L43,O43,R43,U43,X43,AA43,AT43),"") -> 285 | AP43: 133 | AQ43: 285 | AR43: =INDEX('Import (ADP)'!$C$2:$C$999,MATCH(A43, 'Import (ADP)'!$B$2:$B$999,0)) ->  | AU43: =IF(VLOOKUP(A44,'Name-Sort'!$D$2:$E$961,2,FALSE)="",A44,"") -> Javier Baez | AV43: =IFERROR(INDEX($AU$1:$AU$961,SMALL(IF($AU$1:$AU$961<>"",ROW($AU$1:$AU$961)),ROW(AU43))),"") -> Javier Baez
A44: Javier Baez | B44: baezja01 | C44: SS | E44: CHC | F44: 26 | G44: 18 | H44: 2 | I44: 29 | J44: 21 | K44: 2 | L44: 29 | M44: 22.29 | N44: 12 | O44: 29 | P44: 19 | Q44: 2 | R44: 29 | S44: 17 | T44: 2 | U44: 29 | V44: 15.04 | W44: 2 | X44: 28 | Y44: 18.72166667 | Z44: 2 | AA44: 29 | AB44: 21 | AC44: 17 | AD44: 17 | AE44: 14 | AF44: 24 | AH44: =IFERROR(INDEX('Guts-2'!$K$1:$K$30,MATCH(E44,'Guts-2'!$J$1:$J$30,0)),TRUE) -> TRUE | AI44: =IF(AH44=FALSE,"",IFERROR(CHOOSE('Guts-2'!$D$27,AB44,AC44,AD44,AE44,AF44,AG44),"")) -> 24 | AJ44: 24 | AK44: =IF(AH44=FALSE,"",IFERROR(CHOOSE('Guts-2'!$D$26,G44,J44,M44,P44,S44,V44,Y44,AR44),"")) -> 17 | AL44: =IFERROR(IF(Settings!$M$5="Mixed (Standard)",AK44,RANK(AK44,$AK$2:$AK$961,1)),"") -> 17 | AM44: =IFERROR(IF(Settings!$M$5="Mixed (Standard)",(RANK(AK44,$AK$2:$AK$961,1)/('Guts-2'!$N$1+1))+1,(RANK(AL44,$AL$2:$AL$961,1)/('Guts-2'!$N$1+1))+1),"") -> 2.230769231 | AN44: =IFERROR(CHOOSE('Guts-2'!$D$26,H44,K44,N44,Q44,T44,W44,Z44,AS44),"") -> 2 | AO44: =IFERROR(CHOOSE('Guts-2'!$D$26,I44,L44,O44,R44,U44,X44,AA44,AT44),"") -> 29 | AP44: 2 | AQ44: 29 | AR44: =INDEX('Import (ADP)'!$C$2:$C$999,MATCH(A44, 'Import (ADP)'!$B$2:$B$999,0)) ->  | AU44: =IF(VLOOKUP(A45,'Name-Sort'!$D$2:$E$961,2,FALSE)="",A45,"") -> Pedro Baez | AV44: =IFERROR(INDEX($AU$1:$AU$961,SMALL(IF($AU$1:$AU$961<>"",ROW($AU$1:$AU$961)),ROW(AU44))),"") -> Pedro Baez
A45: Pedro Baez | B45: baezpe01 | C45: RP | E45: LAD | F45: 31 | G45: 725 | H45: 519 | I45: 964.25 | P45: 878 | Q45: 519 | R45: 1167.74 | S45: 800.5 | T45: 519 | U45: 1064.665 | V45: 742.31 | W45: 519 | X45: 748 | Y45: 786.4525 | Z45: 519 | AA45: 1045.981825 | AF45: 647 | AH45: =IFERROR(INDEX('Guts-2'!$K$1:$K$30,MATCH(E45,'Guts-2'!$J$1:$J$30,0)),TRUE) -> TRUE | AI45: =IF(AH45=FALSE,"",IFERROR(CHOOSE('Guts-2'!$D$27,AB45,AC45,AD45,AE45,AF45,AG45),"")) -> 647 | AJ45: 625 | AK45: =IF(AH45=FALSE,"",IFERROR(CHOOSE('Guts-2'!$D$26,G45,J45,M45,P45,S45,V45,Y45,AR45),"")) -> 800.5 | AL45: =IFERROR(IF(Settings!$M$5="Mixed (Standard)",AK45,RANK(AK45,$AK$2:$AK$961,1)),"") -> 800.5 | AM45: =IFERROR(IF(Settings!$M$5="Mixed (Standard)",(RANK(AK45,$AK$2:$AK$961,1)/('Guts-2'!$N$1+1))+1,(RANK(AL45,$AL$2:$AL$961,1)/('Guts-2'!$N$1+1))+1),"") -> 48.46153846 | AN45: =IFERROR(CHOOSE('Guts-2'!$D$26,H45,K45,N45,Q45,T45,W45,Z45,AS45),"") -> 519 | AO45: =IFERROR(CHOOSE('Guts-2'!$D$26,I45,L45,O45,R45,U45,X45,AA45,AT45),"") -> 1064.665 | AP45: 519 | AQ45: 1064.665 | AR45: =INDEX('Import (ADP)'!$C$2:$C$999,MATCH(A45, 'Import (ADP)'!$B$2:$B$999,0)) ->  | AU45: =IF(VLOOKUP(A46,'Name-Sort'!$D$2:$E$961,2,FALSE)="",A46,"") -> Austin Barnes | AV45: =IFERROR(INDEX($AU$1:$AU$961,SMALL(IF($AU$1:$AU$961<>"",ROW($AU$1:$AU$961)),ROW(AU45))),"") -> Austin Barnes
A46: Austin Barnes | B46: barneau01 | C46: C | E46: LAD | F46: 29 | G46: 385 | H46: 147 | I46: 512.05 | J46: 284 | K46: 147 | L46: 489 | M46: 294.2 | N46: 147 | O46: 489 | P46: 366 | Q46: 147 | R46: 489 | S46: 325 | T46: 147 | U46: 489 | V46: 337.25 | W46: 193 | X46: 440 | Y46: 331.9083333 | Z46: 147 | AA46: 489 | AF46: 426 | AH46: =IFERROR(INDEX('Guts-2'!$K$1:$K$30,MATCH(E46,'Guts-2'!$J$1:$J$30,0)),TRUE) -> TRUE | AI46: =IF(AH46=FALSE,"",IFERROR(CHOOSE('Guts-2'!$D$27,AB46,AC46,AD46,AE46,AF46,AG46),"")) -> 426 | AJ46: 426 | AK46: =IF(AH46=FALSE,"",IFERROR(CHOOSE('Guts-2'!$D$26,G46,J46,M46,P46,S46,V46,Y46,AR46),"")) -> 325 | AL46: =IFERROR(IF(Settings!$M$5="Mixed (Standard)",AK46,RANK(AK46,$AK$2:$AK$961,1)),"") -> 325 | AM46: =IFERROR(IF(Settings!$M$5="Mixed (Standard)",(RANK(AK46,$AK$2:$AK$961,1)/('Guts-2'!$N$1+1))+1,(RANK(AL46,$AL$2:$AL$961,1)/('Guts-2'!$N$1+1))+1),"") -> 25.84615385 | AN46: =IFERROR(CHOOSE('Guts-2'!$D$26,H46,K46,N46,Q46,T46,W46,Z46,AS46),"") -> 147 | AO46: =IFERROR(CHOOSE('Guts-2'!$D$26,I46,L46,O46,R46,U46,X46,AA46,AT46),"") -> 489 | AP46: 147 | AQ46: 489 | AR46: =INDEX('Import (ADP)'!$C$2:$C$999,MATCH(A46, 'Import (ADP)'!$B$2:$B$999,0)) ->  | AU46: =IF(VLOOKUP(A47,'Name-Sort'!$D$2:$E$961,2,FALSE)="",A47,"") -> Matt Barnes | AV46: =IFERROR(INDEX($AU$1:$AU$961,SMALL(IF($AU$1:$AU$961<>"",ROW($AU$1:$AU$961)),ROW(AU46))),"") -> Matt Barnes
A47: Matt Barnes | B47: barnema01 | C47: RP | E47: BOS | F47: 28 | G47: 406 | H47: 107 | I47: 539.98 | J47: 226 | K47: 107 | L47: 382 | M47: 207.13 | N47: 107 | O47: 298 | P47: 225 | Q47: 107 | R47: 382 | S47: 244.5 | T47: 107 | U47: 382 | V47: 260.09 | W47: 156 | X47: 382 | Y47: 261.4533333 | Z47: 107 | AA47: 382 | AB47: 275 | AC47: 234 | AD47: 266 | AF47: 286 | AH47: =IFERROR(INDEX('Guts-2'!$K$1:$K$30,MATCH(E47,'Guts-2'!$J$1:$J$30,0)),TRUE) -> TRUE | AI47: =IF(AH47=FALSE,"",IFERROR(CHOOSE('Guts-2'!$D$27,AB47,AC47,AD47,AE47,AF47,AG47),"")) -> 286 | AJ47: 286 | AK47: =IF(AH47=FALSE,"",IFERROR(CHOOSE('Guts-2'!$D$26,G47,J47,M47,P47,S47,V47,Y47,AR47),"")) -> 244.5 | AL47: =IFERROR(IF(Settings!$M$5="Mixed (Standard)",AK47,RANK(AK47,$AK$2:$AK$961,1)),"") -> 244.5 | AM47: =IFERROR(IF(Settings!$M$5="Mixed (Standard)",(RANK(AK47,$AK$2:$AK$961,1)/('Guts-2'!$N$1+1))+1,(RANK(AL47,$AL$2:$AL$961,1)/('Guts-2'!$N$1+1))+1),"") -> 19 | AN47: =IFERROR(CHOOSE('Guts-2'!$D$26,H47,K47,N47,Q47,T47,W47,Z47,AS47),"") -> 107 | AO47: =IFERROR(CHOOSE('Guts-2'!$D$26,I47,L47,O47,R47,U47,X47,AA47,AT47),"") -> 382 | AP47: 107 | AQ47: 382 | AR47: =INDEX('Import (ADP)'!$C$2:$C$999,MATCH(A47, 'Import (ADP)'!$B$2:$B$999,0)) ->  | AU47: =IF(VLOOKUP(A48,'Name-Sort'!$D$2:$E$961,2,FALSE)="",A48,"") -> Tucker Barnhart | AV47: =IFERROR(INDEX($AU$1:$AU$961,SMALL(IF($AU$1:$AU$961<>"",ROW($AU$1:$AU$961)),ROW(AU47))),"") -> Tucker Barnhart
A48: Tucker Barnhart | B48: barnhtu01 | C48: C | E48: CIN | F48: 28 | G48: 317 | H48: 140 | I48: 430 | J48: 314 | K48: 140 | L48: 430 | M48: 275.33 | N48: 140 | O48: 430 | P48: 267 | Q48: 140 | R48: 430 | S48: 279.8 | T48: 140 | U48: 430 | V48: 265.41 | W48: 184 | X48: 351 | Y48: 286.4233333 | Z48: 140 | AA48: 430 | AB48: 251 | AC48: 303 | AF48: 323 | AH48: =IFERROR(INDEX('Guts-2'!$K$1:$K$30,MATCH(E48,'Guts-2'!$J$1:$J$30,0)),TRUE) -> TRUE | AI48: =IF(AH48=FALSE,"",IFERROR(CHOOSE('Guts-2'!$D$27,AB48,AC48,AD48,AE48,AF48,AG48),"")) -> 323 | AJ48: 323 | AK48: =IF(AH48=FALSE,"",IFERROR(CHOOSE('Guts-2'!$D$26,G48,J48,M48,P48,S48,V48,Y48,AR48),"")) -> 279.8 | AL48: =IFERROR(IF(Settings!$M$5="Mixed (Standard)",AK48,RANK(AK48,$AK$2:$AK$961,1)),"") -> 279.8 | AM48: =IFERROR(IF(Settings!$M$5="Mixed (Standard)",(RANK(AK48,$AK$2:$AK$961,1)/('Guts-2'!$N$1+1))+1,(RANK(AL48,$AL$2:$AL$961,1)/('Guts-2'!$N$1+1))+1),"") -> 21.15384615 | AN48: =IFERROR(CHOOSE('Guts-2'!$D$26,H48,K48,N48,Q48,T48,W48,Z48,AS48),"") -> 140 | AO48: =IFERROR(CHOOSE('Guts-2'!$D$26,I48,L48,O48,R48,U48,X48,AA48,AT48),"") -> 430 | AP48: 140 | AQ48: 430 | AR48: =INDEX('Import (ADP)'!$C$2:$C$999,MATCH(A48, 'Import (ADP)'!$B$2:$B$999,0)) ->  | AU48: =IF(VLOOKUP(A49,'Name-Sort'!$D$2:$E$961,2,FALSE)="",A49,"") -> Kyle Barraclough | AV48: =IFERROR(INDEX($AU$1:$AU$961,SMALL(IF($AU$1:$AU$961<>"",ROW($AU$1:$AU$961)),ROW(AU48))),"") -> Kyle Barraclough
A49: Kyle Barraclough | B49: barraky01 | C49: RP | E49: WAS | F49: 28 | V49: 706.94 | W49: 459 | X49: 746 | Y49: 706.94 | Z49: 459 | AA49: 940.2302 | AF49: 729 | AH49: =IFERROR(INDEX('Guts-2'!$K$1:$K$30,MATCH(E49,'Guts-2'!$J$1:$J$30,0)),TRUE) -> TRUE | AI49: =IF(AH49=FALSE,"",IFERROR(CHOOSE('Guts-2'!$D$27,AB49,AC49,AD49,AE49,AF49,AG49),"")) -> 729 | AJ49: 685 | AK49: =IF(AH49=FALSE,"",IFERROR(CHOOSE('Guts-2'!$D$26,G49,J49,M49,P49,S49,V49,Y49,AR49),"")) ->  | AL49: =IFERROR(IF(Settings!$M$5="Mixed (Standard)",AK49,RANK(AK49,$AK$2:$AK$961,1)),"") ->  | AM49: =IFERROR(IF(Settings!$M$5="Mixed (Standard)",(RANK(AK49,$AK$2:$AK$961,1)/('Guts-2'!$N$1+1))+1,(RANK(AL49,$AL$2:$AL$961,1)/('Guts-2'!$N$1+1))+1),"") ->  | AN49: =IFERROR(CHOOSE('Guts-2'!$D$26,H49,K49,N49,Q49,T49,W49,Z49,AS49),"") ->  | AO49: =IFERROR(CHOOSE('Guts-2'!$D$26,I49,L49,O49,R49,U49,X49,AA49,AT49),"") ->  | AR49: =INDEX('Import (ADP)'!$C$2:$C$999,MATCH(A49, 'Import (ADP)'!$B$2:$B$999,0)) ->  | AU49: =IF(VLOOKUP(A50,'Name-Sort'!$D$2:$E$961,2,FALSE)="",A50,"") -> Franklin Barreto | AV49: =IFERROR(INDEX($AU$1:$AU$961,SMALL(IF($AU$1:$AU$961<>"",ROW($AU$1:$AU$961)),ROW(AU49))),"") -> Franklin Barreto
A50: Franklin Barreto | B50: barrefr01 | C50: SS | E50: OAK | F50: 23 | G50: 423 | H50: 317.25 | I50: 578 | S50: 392 | T50: 294 | U50: 578 | V50: 632.73 | W50: 336 | X50: 578 | Y50: 482.5766667 | Z50: 336 | AA50: 641.8269667 | AF50: 431 | AH50: =IFERROR(INDEX('Guts-2'!$K$1:$K$30,MATCH(E50,'Guts-2'!$J$1:$J$30,0)),TRUE) -> TRUE | AI50: =IF(AH50=FALSE,"",IFERROR(CHOOSE('Guts-2'!$D$27,AB50,AC50,AD50,AE50,AF50,AG50),"")) -> 431 | AJ50: 431 | AK50: =IF(AH50=FALSE,"",IFERROR(CHOOSE('Guts-2'!$D$26,G50,J50,M50,P50,S50,V50,Y50,AR50),"")) -> 392 | AL50: =IFERROR(IF(Settings!$M$5="Mixed (Standard)",AK50,RANK(AK50,$AK$2:$AK$961,1)),"") -> 392 | AM50: =IFERROR(IF(Settings!$M$5="Mixed (Standard)",(RANK(AK50,$AK$2:$AK$961,1)/('Guts-2'!$N$1+1))+1,(RANK(AL50,$AL$2:$AL$961,1)/('Guts-2'!$N$1+1))+1),"") -> 32.69230769 | AN50: =IFERROR(CHOOSE('Guts-2'!$D$26,H50,K50,N50,Q50,T50,W50,Z50,AS50),"") -> 294 | AO50: =IFERROR(CHOOSE('Guts-2'!$D$26,I50,L50,O50,R50,U50,X50,AA50,AT50),"") -> 578 | AP50: 294 | AQ50: 578 | AR50: =INDEX('Import (ADP)'!$C$2:$C$999,MATCH(A50, 'Import (ADP)'!$B$2:$B$999,0)) ->  | AU50: =IF(VLOOKUP(A51,'Name-Sort'!$D$2:$E$961,2,FALSE)="",A51,"") -> Jaime Barria | AV50: =IFERROR(INDEX($AU$1:$AU$961,SMALL(IF($AU$1:$AU$961<>"",ROW($AU$1:$AU$961)),ROW(AU50))),"") -> Jaime Barria
A51: Jaime Barria | B51: barrija01 | C51: SP | E51: LAA | F51: 22 | G51: 375 | H51: 269 | I51: 508 | S51: 430 | T51: 269 | U51: 571.9 | V51: 541.73 | W51: 269 | X51: 508 | Y51: 448.91 | Z51: 269 | AA51: 597.0503 | AF51: 526 | AH51: =IFERROR(INDEX('Guts-2'!$K$1:$K$30,MATCH(E51,'Guts-2'!$J$1:$J$30,0)),TRUE) -> TRUE | AI51: =IF(AH51=FALSE,"",IFERROR(CHOOSE('Guts-2'!$D$27,AB51,AC51,AD51,AE51,AF51,AG51),"")) -> 526 | AJ51: 520 | AK51: =IF(AH51=FALSE,"",IFERROR(CHOOSE('Guts-2'!$D$26,G51,J51,M51,P51,S51,V51,Y51,AR51),"")) -> 430 | AL51: =IFERROR(IF(Settings!$M$5="Mixed (Standard)",AK51,RANK(AK51,$AK$2:$AK$961,1)),"") -> 430 | AM51: =IFERROR(IF(Settings!$M$5="Mixed (Standard)",(RANK(AK51,$AK$2:$AK$961,1)/('Guts-2'!$N$1+1))+1,(RANK(AL51,$AL$2:$AL$961,1)/('Guts-2'!$N$1+1))+1),"") -> 35 | AN51: =IFERROR(CHOOSE('Guts-2'!$D$26,H51,K51,N51,Q51,T51,W51,Z51,AS51),"") -> 269 | AO51: =IFERROR(CHOOSE('Guts-2'!$D$26,I51,L51,O51,R51,U51,X51,AA51,AT51),"") -> 571.9 | AP51: 269 | AQ51: 571.9 | AR51: =INDEX('Import (ADP)'!$C$2:$C$999,MATCH(A51, 'Import (ADP)'!$B$2:$B$999,0)) ->  | AU51: =IF(VLOOKUP(A52,'Name-Sort'!$D$2:$E$961,2,FALSE)="",A52,"") -> Chris Bassitt | AV51: =IFERROR(INDEX($AU$1:$AU$961,SMALL(IF($AU$1:$AU$961<>"",ROW($AU$1:$AU$961)),ROW(AU51))),"") -> Chris Bassitt
A52: Chris Bassitt | B52: bassich01 | C52: SP | E52: OAK | F52: 30 | V52: 741.1 | W52: 533 | X52: 738 | Y52: 741.1 | Z52: 533 | AA52: 985.663 | AH52: =IFERROR(INDEX('Guts-2'!$K$1:$K$30,MATCH(E52,'Guts-2'!$J$1:$J$30,0)),TRUE) -> TRUE | AI52: =IF(AH52=FALSE,"",IFERROR(CHOOSE('Guts-2'!$D$27,AB52,AC52,AD52,AE52,AF52,AG52),"")) ->  | AK52: =IF(AH52=FALSE,"",IFERROR(CHOOSE('Guts-2'!$D$26,G52,J52,M52,P52,S52,V52,Y52,AR52),"")) ->  | AL52: =IFERROR(IF(Settings!$M$5="Mixed (Standard)",AK52,RANK(AK52,$AK$2:$AK$961,1)),"") ->  | AM52: =IFERROR(IF(Settings!$M$5="Mixed (Standard)",(RANK(AK52,$AK$2:$AK$961,1)/('Guts-2'!$N$1+1))+1,(RANK(AL52,$AL$2:$AL$961,1)/('Guts-2'!$N$1+1))+1),"") ->  | AN52: =IFERROR(CHOOSE('Guts-2'!$D$26,H52,K52,N52,Q52,T52,W52,Z52,AS52),"") ->  | AO52: =IFERROR(CHOOSE('Guts-2'!$D$26,I52,L52,O52,R52,U52,X52,AA52,AT52),"") ->  | AR52: =INDEX('Import (ADP)'!$C$2:$C$999,MATCH(A52, 'Import (ADP)'!$B$2:$B$999,0)) ->  | AU52: =IF(VLOOKUP(A53,'Name-Sort'!$D$2:$E$961,2,FALSE)="",A53,"") -> Jake Bauers | AV52: =IFERROR(INDEX($AU$1:$AU$961,SMALL(IF($AU$1:$AU$961<>"",ROW($AU$1:$AU$961)),ROW(AU52))),"") -> Jake Bauers
A53: Jake Bauers | B53: bauerja01 | C53: 1B | D53: LF | E53: CLE | F53: 23 | G53: 256 | H53: 163 | I53: 340.48 | J53: 298 | K53: 163 | L53: 396.34 | M53: 248.07 | N53: 163 | O53: 311 | P53: 217 | Q53: 162.75 | R53: 321 | S53: 254.3 | T53: 163 | U53: 338.219 | V53: 230.33 | W53: 169 | X53: 321 | Y53: 250.6166667 | Z53: 163 | AA53: 333.3201667 | AC53: 219 | AD53: 197 | AE53: 178 | AF53: 206 | AH53: =IFERROR(INDEX('Guts-2'!$K$1:$K$30,MATCH(E53,'Guts-2'!$J$1:$J$30,0)),TRUE) -> TRUE | AI53: =IF(AH53=FALSE,"",IFERROR(CHOOSE('Guts-2'!$D$27,AB53,AC53,AD53,AE53,AF53,AG53),"")) -> 206 | AJ53: 206 | AK53: =IF(AH53=FALSE,"",IFERROR(CHOOSE('Guts-2'!$D$26,G53,J53,M53,P53,S53,V53,Y53,AR53),"")) -> 254.3 | AL53: =IFERROR(IF(Settings!$M$5="Mixed (Standard)",AK53,RANK(AK53,$AK$2:$AK$961,1)),"") -> 254.3 | AM53: =IFERROR(IF(Settings!$M$5="Mixed (Standard)",(RANK(AK53,$AK$2:$AK$961,1)/('Guts-2'!$N$1+1))+1,(RANK(AL53,$AL$2:$AL$961,1)/('Guts-2'!$N$1+1))+1),"") -> 19.61538462 | AN53: =IFERROR(CHOOSE('Guts-2'!$D$26,H53,K53,N53,Q53,T53,W53,Z53,AS53),"") -> 163 | AO53: =IFERROR(CHOOSE('Guts-2'!$D$26,I53,L53,O53,R53,U53,X53,AA53,AT53),"") -> 338.219 | AP53: 163 | AQ53: 338.219 | AR53: =INDEX('Import (ADP)'!$C$2:$C$999,MATCH(A53, 'Import (ADP)'!$B$2:$B$999,0)) ->  | AU53: =IF(VLOOKUP(A54,'Name-Sort'!$D$2:$E$961,2,FALSE)="",A54,"") -> Trevor Bauer | AV53: =IFERROR(INDEX($AU$1:$AU$961,SMALL(IF($AU$1:$AU$961<>"",ROW($AU$1:$AU$961)),ROW(AU53))),"") -> Trevor Bauer
A54: Trevor Bauer | B54: bauertr01 | C54: SP | E54: CLE | F54: 28 | G54: 35 | H54: 20 | I54: 48 | J54: 49 | K54: 20 | L54: 65.17 | M54: 35.46 | N54: 24 | O54: 48 | P54: 32 | Q54: 20 | R54: 48 | S54: 36.5 | T54: 20 | U54: 48.545 | V54: 32.49 | W54: 20 | X54: 48 | Y54: 36.74166667 | Z54: 20 | AA54: 48.86641667 | AB54: 61 | AC54: 46 | AD54: 32 | AE54: 43 | AF54: 35 | AH54: =IFERROR(INDEX('Guts-2'!$K$1:$K$30,MATCH(E54,'Guts-2'!$J$1:$J$30,0)),TRUE) -> TRUE | AI54: =IF(AH54=FALSE,"",IFERROR(CHOOSE('Guts-2'!$D$27,AB54,AC54,AD54,AE54,AF54,AG54),"")) -> 35 | AJ54: 35 | AK54: =IF(AH54=FALSE,"",IFERROR(CHOOSE('Guts-2'!$D$26,G54,J54,M54,P54,S54,V54,Y54,AR54),"")) -> 36.5 | AL54: =IFERROR(IF(Settings!$M$5="Mixed (Standard)",AK54,RANK(AK54,$AK$2:$AK$961,1)),"") -> 36.5 | AM54: =IFERROR(IF(Settings!$M$5="Mixed (Standard)",(RANK(AK54,$AK$2:$AK$961,1)/('Guts-2'!$N$1+1))+1,(RANK(AL54,$AL$2:$AL$961,1)/('Guts-2'!$N$1+1))+1),"") -> 3.692307692 | AN54: =IFERROR(CHOOSE('Guts-2'!$D$26,H54,K54,N54,Q54,T54,W54,Z54,AS54),"") -> 20 | AO54: =IFERROR(CHOOSE('Guts-2'!$D$26,I54,L54,O54,R54,U54,X54,AA54,AT54),"") -> 48.545 | AP54: 20 | AQ54: 48.545 | AR54: =INDEX('Import (ADP)'!$C$2:$C$999,MATCH(A54, 'Import (ADP)'!$B$2:$B$999,0)) ->  | AU54: =IF(VLOOKUP(A55,'Name-Sort'!$D$2:$E$961,2,FALSE)="",A55,"") -> Jose Bautista | AV54: =IFERROR(INDEX($AU$1:$AU$961,SMALL(IF($AU$1:$AU$961<>"",ROW($AU$1:$AU$961)),ROW(AU54))),"") -> Jose Bautista
A55: Jose Bautista | B55: bautijo02 | C55: 3B | D55: LF,RF | E55: FA | F55: 38 | P55: 393 | Q55: 294.75 | R55: 733 | S55: 635.5 | T55: 476.625 | U55: 845.215 | V55: 749.71 | W55: 616 | X55: 733 | Y55: 592.7366667 | Z55: 444.5525 | AA55: 788.3397667 | AH55: =IFERROR(INDEX('Guts-2'!$K$1:$K$30,MATCH(E55,'Guts-2'!$J$1:$J$30,0)),TRUE) -> TRUE | AI55: =IF(AH55=FALSE,"",IFERROR(CHOOSE('Guts-2'!$D$27,AB55,AC55,AD55,AE55,AF55,AG55),"")) ->  | AK55: =IF(AH55=FALSE,"",IFERROR(CHOOSE('Guts-2'!$D$26,G55,J55,M55,P55,S55,V55,Y55,AR55),"")) -> 635.5 | AL55: =IFERROR(IF(Settings!$M$5="Mixed (Standard)",AK55,RANK(AK55,$AK$2:$AK$961,1)),"") -> 635.5 | AM55: =IFERROR(IF(Settings!$M$5="Mixed (Standard)",(RANK(AK55,$AK$2:$AK$961,1)/('Guts-2'!$N$1+1))+1,(RANK(AL55,$AL$2:$AL$961,1)/('Guts-2'!$N$1+1))+1),"") -> 44.38461538 | AN55: =IFERROR(CHOOSE('Guts-2'!$D$26,H55,K55,N55,Q55,T55,W55,Z55,AS55),"") -> 476.625 | AO55: =IFERROR(CHOOSE('Guts-2'!$D$26,I55,L55,O55,R55,U55,X55,AA55,AT55),"") -> 845.215 | AP55: 476.625 | AQ55: 845.215 | AR55: =INDEX('Import (ADP)'!$C$2:$C$999,MATCH(A55, 'Import (ADP)'!$B$2:$B$999,0)) ->  | AU55: =IF(VLOOKUP(A56,'Name-Sort'!$D$2:$E$961,2,FALSE)="",A56,"") -> Tim Beckham | AV55: =IFERROR(INDEX($AU$1:$AU$961,SMALL(IF($AU$1:$AU$961<>"",ROW($AU$1:$AU$961)),ROW(AU55))),"") -> Tim Beckham
A56: Tim Beckham | B56: beckhti01 | C56: SS | E56: SEA | F56: 29 | G56: 451 | H56: 338.25 | I56: 599.83 | P56: 472 | Q56: 347 | R56: 627.76 | S56: 471.5 | T56: 347 | U56: 627.095 | V56: 627.51 | W56: 347 | X56: 581 | Y56: 505.5025 | Z56: 347 | AA56: 672.318325 | AF56: 458 | AH56: =IFERROR(INDEX('Guts-2'!$K$1:$K$30,MATCH(E56,'Guts-2'!$J$1:$J$30,0)),TRUE) -> TRUE | AI56: =IF(AH56=FALSE,"",IFERROR(CHOOSE('Guts-2'!$D$27,AB56,AC56,AD56,AE56,AF56,AG56),"")) -> 458 | AJ56: 458 | AK56: =IF(AH56=FALSE,"",IFERROR(CHOOSE('Guts-2'!$D$26,G56,J56,M56,P56,S56,V56,Y56,AR56),"")) -> 471.5 | AL56: =IFERROR(IF(Settings!$M$5="Mixed (Standard)",AK56,RANK(AK56,$AK$2:$AK$961,1)),"") -> 471.5 | AM56: =IFERROR(IF(Settings!$M$5="Mixed (Standard)",(RANK(AK56,$AK$2:$AK$961,1)/('Guts-2'!$N$1+1))+1,(RANK(AL56,$AL$2:$AL$961,1)/('Guts-2'!$N$1+1))+1),"") -> 37.53846154 | AN56: =IFERROR(CHOOSE('Guts-2'!$D$26,H56,K56,N56,Q56,T56,W56,Z56,AS56),"") -> 347 | AO56: =IFERROR(CHOOSE('Guts-2'!$D$26,I56,L56,O56,R56,U56,X56,AA56,AT56),"") -> 627.095 | AP56: 347 | AQ56: 627.095 | AR56: =INDEX('Import (ADP)'!$C$2:$C$999,MATCH(A56, 'Import (ADP)'!$B$2:$B$999,0)) ->  | AU56: =IF(VLOOKUP(A57,'Name-Sort'!$D$2:$E$961,2,FALSE)="",A57,"") -> Cam Bedrosian | AV56: =IFERROR(INDEX($AU$1:$AU$961,SMALL(IF($AU$1:$AU$961<>"",ROW($AU$1:$AU$961)),ROW(AU56))),"") -> Cam Bedrosian
A57: Cam Bedrosian | B57: bedroca01 | C57: RP | E57: LAA | F57: 27 | V57: 742.29 | W57: 463 | X57: 743 | Y57: 742.29 | Z57: 463 | AA57: 987.2457 | AF57: 528 | AH57: =IFERROR(INDEX('Guts-2'!$K$1:$K$30,MATCH(E57,'Guts-2'!$J$1:$J$30,0)),TRUE) -> TRUE | AI57: =IF(AH57=FALSE,"",IFERROR(CHOOSE('Guts-2'!$D$27,AB57,AC57,AD57,AE57,AF57,AG57),"")) -> 528 | AJ57: 522 | AK57: =IF(AH57=FALSE,"",IFERROR(CHOOSE('Guts-2'!$D$26,G57,J57,M57,P57,S57,V57,Y57,AR57),"")) ->  | AL57: =IFERROR(IF(Settings!$M$5="Mixed (Standard)",AK57,RANK(AK57,$AK$2:$AK$961,1)),"") ->  | AM57: =IFERROR(IF(Settings!$M$5="Mixed (Standard)",(RANK(AK57,$AK$2:$AK$961,1)/('Guts-2'!$N$1+1))+1,(RANK(AL57,$AL$2:$AL$961,1)/('Guts-2'!$N$1+1))+1),"") ->  | AN57: =IFERROR(CHOOSE('Guts-2'!$D$26,H57,K57,N57,Q57,T57,W57,Z57,AS57),"") ->  | AO57: =IFERROR(CHOOSE('Guts-2'!$D$26,I57,L57,O57,R57,U57,X57,AA57,AT57),"") ->  | AR57: =INDEX('Import (ADP)'!$C$2:$C$999,MATCH(A57, 'Import (ADP)'!$B$2:$B$999,0)) ->  | AU57: =IF(VLOOKUP(A58,'Name-Sort'!$D$2:$E$961,2,FALSE)="",A58,"") -> Jalen Beeks | AV57: =IFERROR(INDEX($AU$1:$AU$961,SMALL(IF($AU$1:$AU$961<>"",ROW($AU$1:$AU$961)),ROW(AU57))),"") -> Jalen Beeks
A58: Jalen Beeks | B58: beeksja02 | C58: SP | E58: TB | F58: 25 | V58: 732.64 | W58: 555 | X58: 750 | Y58: 732.64 | Z58: 549.48 | AA58: 974.4112 | AF58: 491 | AH58: =IFERROR(INDEX('Guts-2'!$K$1:$K$30,MATCH(E58,'Guts-2'!$J$1:$J$30,0)),TRUE) -> TRUE | AI58: =IF(AH58=FALSE,"",IFERROR(CHOOSE('Guts-2'!$D$27,AB58,AC58,AD58,AE58,AF58,AG58),"")) -> 491 | AJ58: 489 | AK58: =IF(AH58=FALSE,"",IFERROR(CHOOSE('Guts-2'!$D$26,G58,J58,M58,P58,S58,V58,Y58,AR58),"")) ->  | AL58: =IFERROR(IF(Settings!$M$5="Mixed (Standard)",AK58,RANK(AK58,$AK$2:$AK$961,1)),"") ->  | AM58: =IFERROR(IF(Settings!$M$5="Mixed (Standard)",(RANK(AK58,$AK$2:$AK$961,1)/('Guts-2'!$N$1+1))+1,(RANK(AL58,$AL$2:$AL$961,1)/('Guts-2'!$N$1+1))+1),"") ->  | AN58: =IFERROR(CHOOSE('Guts-2'!$D$26,H58,K58,N58,Q58,T58,W58,Z58,AS58),"") ->  | AO58: =IFERROR(CHOOSE('Guts-2'!$D$26,I58,L58,O58,R58,U58,X58,AA58,AT58),"") ->  | AR58: =INDEX('Import (ADP)'!$C$2:$C$999,MATCH(A58, 'Import (ADP)'!$B$2:$B$999,0)) ->  | AU58: =IF(VLOOKUP(A59,'Name-Sort'!$D$2:$E$961,2,FALSE)="",A59,"") -> Cody Bellinger | AV58: =IFERROR(INDEX($AU$1:$AU$961,SMALL(IF($AU$1:$AU$961<>"",ROW($AU$1:$AU$961)),ROW(AU58))),"") -> Cody Bellinger
A59: Cody Bellinger | B59: bellico01 | C59: 1B | D59: LF,CF | E59: LAD | F59: 23 | G59: 40 | H59: 29 | I59: 63 | J59: 43 | K59: 29 | L59: 63 | M59: 49.12 | N59: 31 | O59: 63 | P59: 37 | Q59: 27.75 | R59: 63 | S59: 42.3 | T59: 29 | U59: 63 | V59: 43.79 | W59: 29 | X59: 62 | Y59: 42.535 | Z59: 29 | AA59: 63 | AB59: 59 | AC59: 43 | AD59: 38 | AE59: 44 | AF59: 42 | AH59: =IFERROR(INDEX('Guts-2'!$K$1:$K$30,MATCH(E59,'Guts-2'!$J$1:$J$30,0)),TRUE) -> TRUE | AI59: =IF(AH59=FALSE,"",IFERROR(CHOOSE('Guts-2'!$D$27,AB59,AC59,AD59,AE59,AF59,AG59),"")) -> 42 | AJ59: 42 | AK59: =IF(AH59=FALSE,"",IFERROR(CHOOSE('Guts-2'!$D$26,G59,J59,M59,P59,S59,V59,Y59,AR59),"")) -> 42.3 | AL59: =IFERROR(IF(Settings!$M$5="Mixed (Standard)",AK59,RANK(AK59,$AK$2:$AK$961,1)),"") -> 42.3 | AM59: =IFERROR(IF(Settings!$M$5="Mixed (Standard)",(RANK(AK59,$AK$2:$AK$961,1)/('Guts-2'!$N$1+1))+1,(RANK(AL59,$AL$2:$AL$961,1)/('Guts-2'!$N$1+1))+1),"") -> 4.230769231 | AN59: =IFERROR(CHOOSE('Guts-2'!$D$26,H59,K59,N59,Q59,T59,W59,Z59,AS59),"") -> 29 | AO59: =IFERROR(CHOOSE('Guts-2'!$D$26,I59,L59,O59,R59,U59,X59,AA59,AT59),"") -> 63 | AP59: 29 | AQ59: 63 | AR59: =INDEX('Import (ADP)'!$C$2:$C$999,MATCH(A59, 'Import (ADP)'!$B$2:$B$999,0)) ->  | AU59: =IF(VLOOKUP(A60,'Name-Sort'!$D$2:$E$961,2,FALSE)="",A60,"") -> Josh Bell | AV59: =IFERROR(INDEX($AU$1:$AU$961,SMALL(IF($AU$1:$AU$961<>"",ROW($AU$1:$AU$961)),ROW(AU59))),"") -> Josh Bell
A60: Josh Bell | B60: belljo02 | C60: 1B | E60: PIT | F60: 26 | G60: 235 | H60: 121 | I60: 328 | J60: 251 | K60: 121 | L60: 333.83 | M60: 232.05 | N60: 121 | O60: 283 | P60: 215 | Q60: 121 | R60: 328 | S60: 242 | T60: 121 | U60: 328 | V60: 258.7 | W60: 182 | X60: 328 | Y60: 238.9583333 | Z60: 121 | AA60: 328 | AB60: 290 | AC60: 199 | AD60: 188 | AE60: 184 | AF60: 211 | AH60: =IFERROR(INDEX('Guts-2'!$K$1:$K$30,MATCH(E60,'Guts-2'!$J$1:$J$30,0)),TRUE) -> TRUE | AI60: =IF(AH60=FALSE,"",IFERROR(CHOOSE('Guts-2'!$D$27,AB60,AC60,AD60,AE60,AF60,AG60),"")) -> 211 | AJ60: 211 | AK60: =IF(AH60=FALSE,"",IFERROR(CHOOSE('Guts-2'!$D$26,G60,J60,M60,P60,S60,V60,Y60,AR60),"")) -> 242 | AL60: =IFERROR(IF(Settings!$M$5="Mixed (Standard)",AK60,RANK(AK60,$AK$2:$AK$961,1)),"") -> 242 | AM60: =IFERROR(IF(Settings!$M$5="Mixed (Standard)",(RANK(AK60,$AK$2:$AK$961,1)/('Guts-2'!$N$1+1))+1,(RANK(AL60,$AL$2:$AL$961,1)/('Guts-2'!$N$1+1))+1),"") -> 18.61538462 | AN60: =IFERROR(CHOOSE('Guts-2'!$D$26,H60,K60,N60,Q60,T60,W60,Z60,AS60),"") -> 121 | AO60: =IFERROR(CHOOSE('Guts-2'!$D$26,I60,L60,O60,R60,U60,X60,AA60,AT60),"") -> 328 | AP60: 121 | AQ60: 328 | AR60: =INDEX('Import (ADP)'!$C$2:$C$999,MATCH(A60, 'Import (ADP)'!$B$2:$B$999,0)) ->  | AU60: =IF(VLOOKUP(A61,'Name-Sort'!$D$2:$E$961,2,FALSE)="",A61,"") -> Brandon Belt | AV60: =IFERROR(INDEX($AU$1:$AU$961,SMALL(IF($AU$1:$AU$961<>"",ROW($AU$1:$AU$961)),ROW(AU60))),"") -> Brandon Belt
A61: Brandon Belt | B61: beltbr01 | C61: 1B | D61: LF | E61: SF | F61: 30 | G61: 333 | H61: 138 | I61: 442.89 | M61: 264.19 | N61: 138 | O61: 328 | P61: 342 | Q61: 138 | R61: 454.86 | S61: 342 | T61: 138 | U61: 454.86 | V61: 426.34 | W61: 225 | X61: 412 | Y61: 341.506 | Z61: 138 | AA61: 454.20298 | AC61: 271 | AD61: 245 | AE61: 276 | AF61: 260 | AH61: =IFERROR(INDEX('Guts-2'!$K$1:$K$30,MATCH(E61,'Guts-2'!$J$1:$J$30,0)),TRUE) -> TRUE | AI61: =IF(AH61=FALSE,"",IFERROR(CHOOSE('Guts-2'!$D$27,AB61,AC61,AD61,AE61,AF61,AG61),"")) -> 260 | AJ61: 260 | AK61: =IF(AH61=FALSE,"",IFERROR(CHOOSE('Guts-2'!$D$26,G61,J61,M61,P61,S61,V61,Y61,AR61),"")) -> 342 | AL61: =IFERROR(IF(Settings!$M$5="Mixed (Standard)",AK61,RANK(AK61,$AK$2:$AK$961,1)),"") -> 342 | AM61: =IFERROR(IF(Settings!$M$5="Mixed (Standard)",(RANK(AK61,$AK$2:$AK$961,1)/('Guts-2'!$N$1+1))+1,(RANK(AL61,$AL$2:$AL$961,1)/('Guts-2'!$N$1+1))+1),"") -> 27.92307692 | AN61: =IFERROR(CHOOSE('Guts-2'!$D$26,H61,K61,N61,Q61,T61,W61,Z61,AS61),"") -> 138 | AO61: =IFERROR(CHOOSE('Guts-2'!$D$26,I61,L61,O61,R61,U61,X61,AA61,AT61),"") -> 454.86 | AP61: 138 | AQ61: 454.86 | AR61: =INDEX('Import (ADP)'!$C$2:$C$999,MATCH(A61, 'Import (ADP)'!$B$2:$B$999,0)) ->  | AU61: =IF(VLOOKUP(A62,'Name-Sort'!$D$2:$E$961,2,FALSE)="",A62,"") -> Andrew Benintendi | AV61: =IFERROR(INDEX($AU$1:$AU$961,SMALL(IF($AU$1:$AU$961<>"",ROW($AU$1:$AU$961)),ROW(AU61))),"") -> Andrew Benintendi
A62: Andrew Benintendi | B62: beninan01 | C62: OF | D62: LF,CF | E62: BOS | F62: 24 | G62: 29 | H62: 16 | I62: 45 | J62: 27 | K62: 16 | L62: 45 | M62: 31.08 | N62: 18 | O62: 45 | P62: 35 | Q62: 16 | R62: 46.55 | S62: 30 | T62: 16 | U62: 45 | V62: 29.09 | W62: 16 | X62: 38 | Y62: 30.195 | Z62: 16 | AA62: 45 | AB62: 30 | AC62: 29 | AD62: 36 | AE62: 19 | AF62: 27 | AH62: =IFERROR(INDEX('Guts-2'!$K$1:$K$30,MATCH(E62,'Guts-2'!$J$1:$J$30,0)),TRUE) -> TRUE | AI62: =IF(AH62=FALSE,"",IFERROR(CHOOSE('Guts-2'!$D$27,AB62,AC62,AD62,AE62,AF62,AG62),"")) -> 27 | AJ62: 27 | AK62: =IF(AH62=FALSE,"",IFERROR(CHOOSE('Guts-2'!$D$26,G62,J62,M62,P62,S62,V62,Y62,AR62),"")) -> 30 | AL62: =IFERROR(IF(Settings!$M$5="Mixed (Standard)",AK62,RANK(AK62,$AK$2:$AK$961,1)),"") -> 30 | AM62: =IFERROR(IF(Settings!$M$5="Mixed (Standard)",(RANK(AK62,$AK$2:$AK$961,1)/('Guts-2'!$N$1+1))+1,(RANK(AL62,$AL$2:$AL$961,1)/('Guts-2'!$N$1+1))+1),"") -> 3.230769231 | AN62: =IFERROR(CHOOSE('Guts-2'!$D$26,H62,K62,N62,Q62,T62,W62,Z62,AS62),"") -> 16 | AO62: =IFERROR(CHOOSE('Guts-2'!$D$26,I62,L62,O62,R62,U62,X62,AA62,AT62),"") -> 45 | AP62: 16 | AQ62: 45 | AR62: =INDEX('Import (ADP)'!$C$2:$C$999,MATCH(A62, 'Import (ADP)'!$B$2:$B$999,0)) ->  | AU62: =IF(VLOOKUP(A63,'Name-Sort'!$D$2:$E$961,2,FALSE)="",A63,"") -> Jose Berrios | AV62: =IFERROR(INDEX($AU$1:$AU$961,SMALL(IF($AU$1:$AU$961<>"",ROW($AU$1:$AU$961)),ROW(AU62))),"") -> Jose Berrios
... 77 more rows

Sheet Name-Sort (hidden)
B1: =IFERROR(INDEX($A$1:$A$961,SMALL(IF($A$1:$A$961<>"",ROW($A$1:$A$961)),ROW(A1))),"") -> Mike Trout | C1: ORDER | D1: PLAYERNAME | E1: Team | F1: Original Pos | G1: New Pos | H1: Pos to Use | I1: New Pos | J1: Show Team? | K1: Drafted | L1: Show or No | M1: ADP | N1: WERTH | O1: Expert Ranking | P1: ='Your Roto Draft'!P10 -> AVG | Q1: ='Your Roto Draft'!Q10 -> HR | R1: ='Your Roto Draft'!R10 -> R | S1: ='Your Roto Draft'!S10 -> RBI | T1: ='Your Roto Draft'!T10 -> SB | U1: ='Your Roto Draft'!U10 ->  | V1: ='Your Roto Draft'!V10 ->  | W1: ='Your Roto Draft'!W10 ->  | X1: ='Your Roto Draft'!X10 ->  | Y1: ='Your Roto Draft'!Y10 ->  | Z1: ='Your Roto Draft'!Z10 ->  | AA1: ='Your Roto Draft'!AA10 ->  | AB1: ='Your Roto Draft'!P9 -> W | AC1: ='Your Roto Draft'!Q9 -> SV | AD1: ='Your Roto Draft'!R9 -> K | AE1: ='Your Roto Draft'!S9 -> ERA | AF1: ='Your Roto Draft'!T9 -> WHIP | AG1: ='Your Roto Draft'!U9 ->  | AH1: ='Your Roto Draft'!V9 ->  | AI1: ='Your Roto Draft'!W9 ->  | AJ1: ='Your Roto Draft'!X9 ->  | AK1: ='Your Roto Draft'!Y9 ->  | AL1: ='Your Roto Draft'!Z9 ->  | AM1: ='Your Roto Draft'!AA9 ->  | AO1: =IFERROR(INDEX($AN$1:$AN$961,SMALL(IF($AN$1:$AN$961<>"",ROW($AN$1:$AN$961)),ROW(AN1))),"") -> Mike Trout
A2: =IFERROR(IF(VLOOKUP(ROW($A1),$C$2:$N$961,9,FALSE)=FALSE,VLOOKUP(ROW($A1),$C$2:$N$961,2,FALSE),""),"") -> Mike Trout | B2: =IFERROR(INDEX($A$1:$A$961,SMALL(IF($A$1:$A$961<>"",ROW($A$1:$A$961)),ROW(A2))),"") -> Mookie Betts | C2: =IFERROR(IF(L2=FALSE,"",CHOOSE(MATCH(RIGHT('Your Roto Draft'!$P$4,LEN('Your Roto Draft'!$P$4)-8),$M$1:$AM$1,0),1+SUMPRODUCT(($L$2:$L$962=TRUE)*($M$2:$M$962<M2))+COUNTIFS($L$2:L2,L2,$M$2:M2,M2)-1,1+SUMPRODUCT(($L$2:$L$962=TRUE)*($N$2:$N$962>N2))+COUNTIFS($L$2:L2,L2,$N$2:N2,N2)-1,1+SUMPRODUCT(($L$2:$L$962=TRUE)*($O$2:$O$962<O2))+COUNTIFS($L$2:L2,L2,$O$2:O2,O2)-1,1+SUMPRODUCT(($L$2:$L$962=TRUE)*($P$2:$P$962>P2))+COUNTIFS($L$2:L2,L2,$P$2:P2,P2)-1,1+SUMPRODUCT(($L$2:$L$962=TRUE)*($Q$2:$Q$962>Q2))+COUNTIFS($L$2:L2,L2,$Q$2:Q2,Q2)-1,1+SUMPRODUCT(($L$2:$L$962=TRUE)*($R$2:$R$962>R2))+COUNTIFS($L$2:L2,L2,$R$2:R2,R2)-1,1+SUMPRODUCT(($L$2:$L$962=TRUE)*($S$2:$S$962>S2))+COUNTIFS($L$2:L2,L2,$S$2:S2,S2)-1,1+SUMPRODUCT(($L$2:$L$962=TRUE)*($T$2:$T$962>T2))+COUNTIFS($L$2:L2,L2,$T$2:T2,T2)-1,1+SUMPRODUCT(($L$2:$L$962=TRUE)*($U$2:$U$962>U2))+COUNTIFS($L$2:L2,L2,$U$2:U2,U2)-1,1+SUMPRODUCT(($L$2:$L$962=TRUE)*($V$2:$V$962>V2))+COUNTIFS($L$2:L2,L2,$V$2:V2,V2)-1,1+SUMPRODUCT(($L$2:$L$962=TRUE)*($W$2:$W$962>W2))+COUNTIFS($L$2:L2,L2,$W$2:W2,W2)-1,1+SUMPRODUCT(($L$2:$L$962=TRUE)*($X$2:$X$962>X2))+COUNTIFS($L$2:L2,L2,$X$2:X2,X2)-1,1+SUMPRODUCT(($L$2:$L$962=TRUE)*($Y$2:$Y$962>Y2))+COUNTIFS($L$2:L2,L2,$Y$2:Y2,Y2)-1,1+SUMPRODUCT(($L$2:$L$962=TRUE)*($Z$2:$Z$962>Z2))+COUNTIFS($L$2:L2,L2,$Z$2:Z2,Z2)-1,1+SUMPRODUCT(($L$2:$L$962=TRUE)*($AA$2:$AA$962>AA2))+COUNTIFS($L$2:L2,L2,$AA$2:AA2,AA2)-1,1+SUMPRODUCT(($L$2:$L$962=TRUE)*($AB$2:$AB$962>AB2))+COUNTIFS($L$2:L2,L2,$AB$2:AB2,AB2)-1,1+SUMPRODUCT(($L$2:$L$962=TRUE)*($AC$2:$AC$962>AC2))+COUNTIFS($L$2:L2,L2,$AC$2:AC2,AC2)-1,1+SUMPRODUCT(($L$2:$L$962=TRUE)*($AD$2:$AD$962>AD2))+COUNTIFS($L$2:L2,L2,$AD$2:AD2,AD2)-1,1+SUMPRODUCT(($L$2:$L$962=TRUE)*($AE$2:$AE$962>AE2))+COUNTIFS($L$2:L2,L2,$AE$2:AE2,AE2)-1,1+SUMPRODUCT(($L$2:$L$962=TRUE)*($AF$2:$AF$962>AF2))+COUNTIFS($L$2:L2,L2,$AF$2:AF2,AF2)-1,1+SUMPRODUCT(($L$2:$L$962=TRUE)*($AG$2:$AG$962>AG2))+COUNTIFS($L$2:L2,L2,$AG$2:AG2,AG2)-1,1+SUMPRODUCT(($L$2:$L$962=TRUE)*($AH$2:$AH$962>AH2))+COUNTIFS($L$2:L2,L2,$AH$2:AH2,AH2)-1,1+SUMPRODUCT(($L$2:$L$962=TRUE)*($AI$2:$AI$962>AI2))+COUNTIFS($L$2:L2,L2,$AI$2:AI2,AI2)-1,1+SUMPRODUCT(($L$2:$L$962=TRUE)*($AJ$2:$AJ$962>AJ2))+COUNTIFS($L$2:L2,L2,$AJ$2:AJ2,AJ2)-1,1+SUMPRODUCT(($L$2:$L$962=TRUE)*($AK$2:$AK$962>AK2))+COUNTIFS($L$2:L2,L2,$AK$2:AK2,AK2)-1,1+SUMPRODUCT(($L$2:$L$962=TRUE)*($AL$2:$AL$962>AL2))+COUNTIFS($L$2:L2,L2,$AL$2:AL2,AL2)-1,1+SUMPRODUCT(($L$2:$L$962=TRUE)*($AM$2:$AM$962>AM2))+COUNTIFS($L$2:L2,L2,$AM$2:AM2,AM2)-1,)),"") -> 73 | D2: Jose Abreu | E2: =IFERROR(INDEX('Draft Log'!$D$4:$D$806,MATCH(D2,'Draft Log'!$C$4:$C$806,0)),"") ->  | F2: =IFERROR(INDEX('ADP-Rank'!$C$2:$C$832,MATCH(D2,'ADP-Rank'!$A$2:$A$832,0)),"") -> 1B | G2: =IFERROR(IF(F2=I2,"",IF(INDEX('Your Roto Draft'!$B$11:$B$634,MATCH(D2,'Your Roto Draft'!$C$11:$C$634,0))="",IF(I2<>"",I2,""),INDEX('Your Roto Draft'!$B$11:$B$634,MATCH(D2,'Your Roto Draft'!$C$11:$C$634,0)))),"") ->  | H2: =IFERROR(IF(I2="",F2,IF(I2<>F2,I2,F2)),"") -> 1B | J2: =INDEX('ADP-Rank'!$AH$2:$AH$832,MATCH(D2,'ADP-Rank'!$A$2:$A$832,0)) -> TRUE | K2: =IF(E2="",FALSE,TRUE) -> FALSE | L2: =IF(J2=FALSE,FALSE,IF(AND('Your Roto Draft'!$P$6="Hide Drafted Players",K2=TRUE),FALSE,IF(OR('Your Roto Draft'!$P$5="Show All Positions",AND('Your Roto Draft'!$P$5="Only Show: C",H2="C"),AND('Your Roto Draft'!$P$5="Only Show: 1B",H2="1B"),AND('Your Roto Draft'!$P$5="Only Show: 2B",H2="2B"),AND('Your Roto Draft'!$P$5="Only Show: 3B",H2="3B"),AND('Your Roto Draft'!$P$5="Only Show: SS",H2="SS"),AND('Your Roto Draft'!$P$5="Only Show: OF",H2="OF"),AND('Your Roto Draft'!$P$5="Only Show: SP",H2="SP"),AND('Your Roto Draft'!$P$5="Only Show: RP",H2="RP"),AND('Your Roto Draft'!$P$5="Only Show: CI",OR(H2={"1B","3B"})),AND('Your Roto Draft'!$P$5="Only Show: MI",OR(H2={"2B","SS"})),AND('Your Roto Draft'!$P$5="Only Show: IF",OR(H2={"C","1B","2B","3B","SS"})),AND('Your Roto Draft'!$P$5="Only Show: DH",OR(H2={"C","1B","2B","3B","SS","OF","DH"})),AND('Your Roto Draft'!$P$5="Only Show: P",OR(H2={"SP","RP"})),AND('Your Roto Draft'!$P$5="Only Show: LF",ISERROR(SEARCH("LF",VLOOKUP($D2,'ADP-Rank'!$A$2:$D$961,4,FALSE)))=FALSE),AND('Your Roto Draft'!$P$5="Only Show: RF",ISERROR(SEARCH("RF",VLOOKUP($D2,'ADP-Rank'!$A$2:$D$961,4,FALSE)))=FALSE),AND('Your Roto Draft'!$P$5="Only Show: CF",ISERROR(SEARCH("CF",VLOOKUP($D2,'ADP-Rank'!$A$2:$D$961,4,FALSE)))=FALSE)),TRUE,FALSE))) -> TRUE | M2: =IFERROR(IF(VLOOKUP($D2,'ADP-Rank'!$A$2:$AV$961,38,FALSE)="",9999,VLOOKUP($D2,'ADP-Rank'!$A$2:$AV$961,38,FALSE)),9999) -> 73.8 | N2: =IF(D2="Non-Ranked Player",-1001,IFERROR(VLOOKUP($D2,'All-WERTH'!$C$2:$E$962,3,FALSE),-1000)) -> 1.691628512 | O2: =IF(D2="Non-Ranked Player",10000,IFERROR(IF(VLOOKUP(D2,'ADP-Rank'!$A$2:$AJ$961,36,FALSE)="",9999,VLOOKUP(D2,'ADP-Rank'!$A$2:$AJ$961,36,FALSE)),9999)) -> 52 | P2: =IF($D2="Unlisted Player",-1001,IFERROR(IF(VLOOKUP($D2,'All-WERTH'!$C$2:$AC$962,4,FALSE)="",-1000,VLOOKUP($D2,'All-WERTH'!$C$2:$AC$962,4,FALSE)),-1000)) -> 0.9365241264 | Q2: =IF($D2="Unlisted Player",-1001,IFERROR(IF(VLOOKUP($D2,'All-WERTH'!$C$2:$AC$962,5,FALSE)="",-1000,VLOOKUP($D2,'All-WERTH'!$C$2:$AC$962,5,FALSE)),-1000)) -> 0.6600712405 | R2: =IF($D2="Unlisted Player",-1001,IFERROR(IF(VLOOKUP($D2,'All-WERTH'!$C$2:$AC$962,6,FALSE)="",-1000,VLOOKUP($D2,'All-WERTH'!$C$2:$AC$962,6,FALSE)),-1000)) -> -0.03982531905 | S2: =IF($D2="Unlisted Player",-1001,IFERROR(IF(VLOOKUP($D2,'All-WERTH'!$C$2:$AC$962,7,FALSE)="",-1000,VLOOKUP($D2,'All-WERTH'!$C$2:$AC$962,7,FALSE)),-1000)) -> 1.003252588 | T2: =IF($D2="Unlisted Player",-1001,IFERROR(IF(VLOOKUP($D2,'All-WERTH'!$C$2:$AC$962,8,FALSE)="",-1000,VLOOKUP($D2,'All-WERTH'!$C$2:$AC$962,8,FALSE)),-1000)) -> -0.8683941236 | U2: =IF($D2="Unlisted Player",-1001,IFERROR(IF(VLOOKUP($D2,'All-WERTH'!$C$2:$AC$962,9,FALSE)="",-1000,VLOOKUP($D2,'All-WERTH'!$C$2:$AC$962,9,FALSE)),-1000)) -> -1000 | V2: =IF($D2="Unlisted Player",-1001,IFERROR(IF(VLOOKUP($D2,'All-WERTH'!$C$2:$AC$962,10,FALSE)="",-1000,VLOOKUP($D2,'All-WERTH'!$C$2:$AC$962,10,FALSE)),-1000)) -> -1000 | W2: =IF($D2="Unlisted Player",-1001,IFERROR(IF(VLOOKUP($D2,'All-WERTH'!$C$2:$AC$962,11,FALSE)="",-1000,VLOOKUP($D2,'All-WERTH'!$C$2:$AC$962,11,FALSE)),-1000)) -> -1000 | X2: =IF($D2="Unlisted Player",-1001,IFERROR(IF(VLOOKUP($D2,'All-WERTH'!$C$2:$AC$962,12,FALSE)="",-1000,VLOOKUP($D2,'All-WERTH'!$C$2:$AC$962,12,FALSE)),-1000)) -> -1000 | Y2: =IF($D2="Unlisted Player",-1001,IFERROR(IF(VLOOKUP($D2,'All-WERTH'!$C$2:$AC$962,13,FALSE)="",-1000,VLOOKUP($D2,'All-WERTH'!$C$2:$AC$962,13,FALSE)),-1000)) -> -1000 | Z2: =IF($D2="Unlisted Player",-1001,IFERROR(IF(VLOOKUP($D2,'All-WERTH'!$C$2:$AC$962,14,FALSE)="",-1000,VLOOKUP($D2,'All-WERTH'!$C$2:$AC$962,14,FALSE)),-1000)) -> -1000 | AA2: =IF($D2="Unlisted Player",-1001,IFERROR(IF(VLOOKUP($D2,'All-WERTH'!$C$2:$AC$962,15,FALSE)="",-1000,VLOOKUP($D2,'All-WERTH'!$C$2:$AC$962,15,FALSE)),-1000)) -> -1000 | AB2: =IF($D2="Unlisted Player",-1001,IFERROR(IF(VLOOKUP($D2,'All-WERTH'!$C$2:$AC$962,16,FALSE)="",-1000,VLOOKUP($D2,'All-WERTH'!$C$2:$AC$962,16,FALSE)),-1000)) -> -1000 | AC2: =IF($D2="Unlisted Player",-1001,IFERROR(IF(VLOOKUP($D2,'All-WERTH'!$C$2:$AC$962,17,FALSE)="",-1000,VLOOKUP($D2,'All-WERTH'!$C$2:$AC$962,17,FALSE)),-1000)) -> -1000 | AD2: =IF($D2="Unlisted Player",-1001,IFERROR(IF(VLOOKUP($D2,'All-WERTH'!$C$2:$AC$962,18,FALSE)="",-1000,VLOOKUP($D2,'All-WERTH'!$C$2:$AC$962,18,FALSE)),-1000)) -> -1000 | AE2: =IF($D2="Unlisted Player",-1001,IFERROR(IF(VLOOKUP($D2,'All-WERTH'!$C$2:$AC$962,19,FALSE)="",-1000,VLOOKUP($D2,'All-WERTH'!$C$2:$AC$962,19,FALSE)),-1000)) -> -1000 | AF2: =IF($D2="Unlisted Player",-1001,IFERROR(IF(VLOOKUP($D2,'All-WERTH'!$C$2:$AC$962,20,FALSE)="",-1000,VLOOKUP($D2,'All-WERTH'!$C$2:$AC$962,20,FALSE)),-1000)) -> -1000 | AG2: =IF($D2="Unlisted Player",-1001,IFERROR(IF(VLOOKUP($D2,'All-WERTH'!$C$2:$AC$962,21,FALSE)="",-1000,VLOOKUP($D2,'All-WERTH'!$C$2:$AC$962,21,FALSE)),-1000)) -> -1000 | AH2: =IF($D2="Unlisted Player",-1001,IFERROR(IF(VLOOKUP($D2,'All-WERTH'!$C$2:$AC$962,22,FALSE)="",-1000,VLOOKUP($D2,'All-WERTH'!$C$2:$AC$962,22,FALSE)),-1000)) -> -1000 | AI2: =IF($D2="Unlisted Player",-1001,IFERROR(IF(VLOOKUP($D2,'All-WERTH'!$C$2:$AC$962,23,FALSE)="",-1000,VLOOKUP($D2,'All-WERTH'!$C$2:$AC$962,23,FALSE)),-1000)) -> -1000 | AJ2: =IF($D2="Unlisted Player",-1001,IFERROR(IF(VLOOKUP($D2,'All-WERTH'!$C$2:$AC$962,24,FALSE)="",-1000,VLOOKUP($D2,'All-WERTH'!$C$2:$AC$962,24,FALSE)),-1000)) -> -1000 | AK2: =IF($D2="Unlisted Player",-1001,IFERROR(IF(VLOOKUP($D2,'All-WERTH'!$C$2:$AC$962,25,FALSE)="",-1000,VLOOKUP($D2,'All-WERTH'!$C$2:$AC$962,25,FALSE)),-1000)) -> -1000 | AL2: =IF($D2="Unlisted Player",-1001,IFERROR(IF(VLOOKUP($D2,'All-WERTH'!$C$2:$AC$962,26,FALSE)="",-1000,VLOOKUP($D2,'All-WERTH'!$C$2:$AC$962,26,FALSE)),-1000)) -> -1000 | AM2: =IF($D2="Unlisted Player",-1001,IFERROR(IF(VLOOKUP($D2,'All-WERTH'!$C$2:$AC$962,27,FALSE)="",-1000,VLOOKUP($D2,'All-WERTH'!$C$2:$AC$962,27,FALSE)),-1000)) -> -1000 | AN2: =IF(ISERROR(VLOOKUP($B1,Keepers!$C$2:$D$450,2,FALSE)),B1,"") -> Mike Trout | AO2: =IFERROR(INDEX($AN$1:$AN$961,SMALL(IF($AN$1:$AN$961<>"",ROW($AN$1:$AN$961)),ROW(AN2))),"") -> Mookie Betts
A3: Mookie Betts | B3: =IFERROR(INDEX($A$1:$A$961,SMALL(IF($A$1:$A$961<>"",ROW($A$1:$A$961)),ROW(A3))),"") -> Jose Ramirez | C3: =IFERROR(IF(L3=FALSE,"",CHOOSE(MATCH(RIGHT('Your Roto Draft'!$P$4,LEN('Your Roto Draft'!$P$4)-8),$M$1:$AM$1,0),1+SUMPRODUCT(($L$2:$L$962=TRUE)*($M$2:$M$962<M3))+COUNTIFS($L$2:L3,L3,$M$2:M3,M3)-1,1+SUMPRODUCT(($L$2:$L$962=TRUE)*($N$2:$N$962>N3))+COUNTIFS($L$2:L3,L3,$N$2:N3,N3)-1,1+SUMPRODUCT(($L$2:$L$962=TRUE)*($O$2:$O$962<O3))+COUNTIFS($L$2:L3,L3,$O$2:O3,O3)-1,1+SUMPRODUCT(($L$2:$L$962=TRUE)*($P$2:$P$962>P3))+COUNTIFS($L$2:L3,L3,$P$2:P3,P3)-1,1+SUMPRODUCT(($L$2:$L$962=TRUE)*($Q$2:$Q$962>Q3))+COUNTIFS($L$2:L3,L3,$Q$2:Q3,Q3)-1,1+SUMPRODUCT(($L$2:$L$962=TRUE)*($R$2:$R$962>R3))+COUNTIFS($L$2:L3,L3,$R$2:R3,R3)-1,1+SUMPRODUCT(($L$2:$L$962=TRUE)*($S$2:$S$962>S3))+COUNTIFS($L$2:L3,L3,$S$2:S3,S3)-1,1+SUMPRODUCT(($L$2:$L$962=TRUE)*($T$2:$T$962>T3))+COUNTIFS($L$2:L3,L3,$T$2:T3,T3)-1,1+SUMPRODUCT(($L$2:$L$962=TRUE)*($U$2:$U$962>U3))+COUNTIFS($L$2:L3,L3,$U$2:U3,U3)-1,1+SUMPRODUCT(($L$2:$L$962=TRUE)*($V$2:$V$962>V3))+COUNTIFS($L$2:L3,L3,$V$2:V3,V3)-1,1+SUMPRODUCT(($L$2:$L$962=TRUE)*($W$2:$W$962>W3))+COUNTIFS($L$2:L3,L3,$W$2:W3,W3)-1,1+SUMPRODUCT(($L$2:$L$962=TRUE)*($X$2:$X$962>X3))+COUNTIFS($L$2:L3,L3,$X$2:X3,X3)-1,1+SUMPRODUCT(($L$2:$L$962=TRUE)*($Y$2:$Y$962>Y3))+COUNTIFS($L$2:L3,L3,$Y$2:Y3,Y3)-1,1+SUMPRODUCT(($L$2:$L$962=TRUE)*($Z$2:$Z$962>Z3))+COUNTIFS($L$2:L3,L3,$Z$2:Z3,Z3)-1,1+SUMPRODUCT(($L$2:$L$962=TRUE)*($AA$2:$AA$962>AA3))+COUNTIFS($L$2:L3,L3,$AA$2:AA3,AA3)-1,1+SUMPRODUCT(($L$2:$L$962=TRUE)*($AB$2:$AB$962>AB3))+COUNTIFS($L$2:L3,L3,$AB$2:AB3,AB3)-1,1+SUMPRODUCT(($L$2:$L$962=TRUE)*($AC$2:$AC$962>AC3))+COUNTIFS($L$2:L3,L3,$AC$2:AC3,AC3)-1,1+SUMPRODUCT(($L$2:$L$962=TRUE)*($AD$2:$AD$962>AD3))+COUNTIFS($L$2:L3,L3,$AD$2:AD3,AD3)-1,1+SUMPRODUCT(($L$2:$L$962=TRUE)*($AE$2:$AE$962>AE3))+COUNTIFS($L$2:L3,L3,$AE$2:AE3,AE3)-1,1+SUMPRODUCT(($L$2:$L$962=TRUE)*($AF$2:$AF$962>AF3))+COUNTIFS($L$2:L3,L3,$AF$2:AF3,AF3)-1,1+SUMPRODUCT(($L$2:$L$962=TRUE)*($AG$2:$AG$962>AG3))+COUNTIFS($L$2:L3,L3,$AG$2:AG3,AG3)-1,1+SUMPRODUCT(($L$2:$L$962=TRUE)*($AH$2:$AH$962>AH3))+COUNTIFS($L$2:L3,L3,$AH$2:AH3,AH3)-1,1+SUMPRODUCT(($L$2:$L$962=TRUE)*($AI$2:$AI$962>AI3))+COUNTIFS($L$2:L3,L3,$AI$2:AI3,AI3)-1,1+SUMPRODUCT(($L$2:$L$962=TRUE)*($AJ$2:$AJ$962>AJ3))+COUNTIFS($L$2:L3,L3,$AJ$2:AJ3,AJ3)-1,1+SUMPRODUCT(($L$2:$L$962=TRUE)*($AK$2:$AK$962>AK3))+COUNTIFS($L$2:L3,L3,$AK$2:AK3,AK3)-1,1+SUMPRODUCT(($L$2:$L$962=TRUE)*($AL$2:$AL$962>AL3))+COUNTIFS($L$2:L3,L3,$AL$2:AL3,AL3)-1,1+SUMPRODUCT(($L$2:$L$962=TRUE)*($AM$2:$AM$962>AM3))+COUNTIFS($L$2:L3,L3,$AM$2:AM3,AM3)-1,)),"") -> 11 | D3: Ronald Acuna | E3: =IFERROR(INDEX('Draft Log'!$D$4:$D$806,MATCH(D3,'Draft Log'!$C$4:$C$806,0)),"") ->  | F3: =IFERROR(INDEX('ADP-Rank'!$C$2:$C$832,MATCH(D3,'ADP-Rank'!$A$2:$A$832,0)),"") -> OF | G3: =IFERROR(IF(F3=I3,"",IF(INDEX('Your Roto Draft'!$B$11:$B$634,MATCH(D3,'Your Roto Draft'!$C$11:$C$634,0))="",IF(I3<>"",I3,""),INDEX('Your Roto Draft'!$B$11:$B$634,MATCH(D3,'Your Roto Draft'!$C$11:$C$634,0)))),"") ->  | H3: OF | J3: =INDEX('ADP-Rank'!$AH$2:$AH$832,MATCH(D3,'ADP-Rank'!$A$2:$A$832,0)) -> TRUE | K3: =IF(E3="",FALSE,TRUE) -> FALSE | L3: =IF(J3=FALSE,FALSE,IF(AND('Your Roto Draft'!$P$6="Hide Drafted Players",K3=TRUE),FALSE,IF(OR('Your Roto Draft'!$P$5="Show All Positions",AND('Your Roto Draft'!$P$5="Only Show: C",H3="C"),AND('Your Roto Draft'!$P$5="Only Show: 1B",H3="1B"),AND('Your Roto Draft'!$P$5="Only Show: 2B",H3="2B"),AND('Your Roto Draft'!$P$5="Only Show: 3B",H3="3B"),AND('Your Roto Draft'!$P$5="Only Show: SS",H3="SS"),AND('Your Roto Draft'!$P$5="Only Show: OF",H3="OF"),AND('Your Roto Draft'!$P$5="Only Show: SP",H3="SP"),AND('Your Roto Draft'!$P$5="Only Show: RP",H3="RP"),AND('Your Roto Draft'!$P$5="Only Show: CI",OR(H3={"1B","3B"})),AND('Your Roto Draft'!$P$5="Only Show: MI",OR(H3={"2B","SS"})),AND('Your Roto Draft'!$P$5="Only Show: IF",OR(H3={"C","1B","2B","3B","SS"})),AND('Your Roto Draft'!$P$5="Only Show: DH",OR(H3={"C","1B","2B","3B","SS","OF","DH"})),AND('Your Roto Draft'!$P$5="Only Show: P",OR(H3={"SP","RP"})),AND('Your Roto Draft'!$P$5="Only Show: LF",ISERROR(SEARCH("LF",VLOOKUP($D3,'ADP-Rank'!$A$2:$D$961,4,FALSE)))=FALSE),AND('Your Roto Draft'!$P$5="Only Show: RF",ISERROR(SEARCH("RF",VLOOKUP($D3,'ADP-Rank'!$A$2:$D$961,4,FALSE)))=FALSE),AND('Your Roto Draft'!$P$5="Only Show: CF",ISERROR(SEARCH("CF",VLOOKUP($D3,'ADP-Rank'!$A$2:$D$961,4,FALSE)))=FALSE)),TRUE,FALSE))) -> TRUE | M3: =IFERROR(IF(VLOOKUP($D3,'ADP-Rank'!$A$2:$AV$961,38,FALSE)="",9999,VLOOKUP($D3,'ADP-Rank'!$A$2:$AV$961,38,FALSE)),9999) -> 11.3 | N3: =IF(D3="Non-Ranked Player",-1001,IFERROR(VLOOKUP($D3,'All-WERTH'!$C$2:$E$962,3,FALSE),-1000)) -> 4.999066178 | O3: =IF(D3="Non-Ranked Player",10000,IFERROR(IF(VLOOKUP(D3,'ADP-Rank'!$A$2:$AJ$961,36,FALSE)="",9999,VLOOKUP(D3,'ADP-Rank'!$A$2:$AJ$961,36,FALSE)),9999)) -> 9 | P3: =IF($D3="Unlisted Player",-1001,IFERROR(IF(VLOOKUP($D3,'All-WERTH'!$C$2:$AC$962,4,FALSE)="",-1000,VLOOKUP($D3,'All-WERTH'!$C$2:$AC$962,4,FALSE)),-1000)) -> 0.6060484771 | Q3: =IF($D3="Unlisted Player",-1001,IFERROR(IF(VLOOKUP($D3,'All-WERTH'!$C$2:$AC$962,5,FALSE)="",-1000,VLOOKUP($D3,'All-WERTH'!$C$2:$AC$962,5,FALSE)),-1000)) -> 0.9871968648 | R3: =IF($D3="Unlisted Player",-1001,IFERROR(IF(VLOOKUP($D3,'All-WERTH'!$C$2:$AC$962,6,FALSE)="",-1000,VLOOKUP($D3,'All-WERTH'!$C$2:$AC$962,6,FALSE)),-1000)) -> 1.125086006 | S3: =IF($D3="Unlisted Player",-1001,IFERROR(IF(VLOOKUP($D3,'All-WERTH'!$C$2:$AC$962,7,FALSE)="",-1000,VLOOKUP($D3,'All-WERTH'!$C$2:$AC$962,7,FALSE)),-1000)) -> 0.5645810231 | T3: =IF($D3="Unlisted Player",-1001,IFERROR(IF(VLOOKUP($D3,'All-WERTH'!$C$2:$AC$962,8,FALSE)="",-1000,VLOOKUP($D3,'All-WERTH'!$C$2:$AC$962,8,FALSE)),-1000)) -> 1.716153807 | U3: =IF($D3="Unlisted Player",-1001,IFERROR(IF(VLOOKUP($D3,'All-WERTH'!$C$2:$AC$962,9,FALSE)="",-1000,VLOOKUP($D3,'All-WERTH'!$C$2:$AC$962,9,FALSE)),-1000)) -> -1000 | V3: =IF($D3="Unlisted Player",-1001,IFERROR(IF(VLOOKUP($D3,'All-WERTH'!$C$2:$AC$962,10,FALSE)="",-1000,VLOOKUP($D3,'All-WERTH'!$C$2:$AC$962,10,FALSE)),-1000)) -> -1000 | W3: =IF($D3="Unlisted Player",-1001,IFERROR(IF(VLOOKUP($D3,'All-WERTH'!$C$2:$AC$962,11,FALSE)="",-1000,VLOOKUP($D3,'All-WERTH'!$C$2:$AC$962,11,FALSE)),-1000)) -> -1000 | X3: =IF($D3="Unlisted Player",-1001,IFERROR(IF(VLOOKUP($D3,'All-WERTH'!$C$2:$AC$962,12,FALSE)="",-1000,VLOOKUP($D3,'All-WERTH'!$C$2:$AC$962,12,FALSE)),-1000)) -> -1000 | Y3: =IF($D3="Unlisted Player",-1001,IFERROR(IF(VLOOKUP($D3,'All-WERTH'!$C$2:$AC$962,13,FALSE)="",-1000,VLOOKUP($D3,'All-WERTH'!$C$2:$AC$962,13,FALSE)),-1000)) -> -1000 | Z3: =IF($D3="Unlisted Player",-1001,IFERROR(IF(VLOOKUP($D3,'All-WERTH'!$C$2:$AC$962,14,FALSE)="",-1000,VLOOKUP($D3,'All-WERTH'!$C$2:$AC$962,14,FALSE)),-1000)) -> -1000 | AA3: =IF($D3="Unlisted Player",-1001,IFERROR(IF(VLOOKUP($D3,'All-WERTH'!$C$2:$AC$962,15,FALSE)="",-1000,VLOOKUP($D3,'All-WERTH'!$C$2:$AC$962,15,FALSE)),-1000)) -> -1000 | AB3: =IF($D3="Unlisted Player",-1001,IFERROR(IF(VLOOKUP($D3,'All-WERTH'!$C$2:$AC$962,16,FALSE)="",-1000,VLOOKUP($D3,'All-WERTH'!$C$2:$AC$962,16,FALSE)),-1000)) -> -1000 | AC3: =IF($D3="Unlisted Player",-1001,IFERROR(IF(VLOOKUP($D3,'All-WERTH'!$C$2:$AC$962,17,FALSE)="",-1000,VLOOKUP($D3,'All-WERTH'!$C$2:$AC$962,17,FALSE)),-1000)) -> -1000 | AD3: =IF($D3="Unlisted Player",-1001,IFERROR(IF(VLOOKUP($D3,'All-WERTH'!$C$2:$AC$962,18,FALSE)="",-1000,VLOOKUP($D3,'All-WERTH'!$C$2:$AC$962,18,FALSE)),-1000)) -> -1000 | AE3: =IF($D3="Unlisted Player",-1001,IFERROR(IF(VLOOKUP($D3,'All-WERTH'!$C$2:$AC$962,19,FALSE)="",-1000,VLOOKUP($D3,'All-WERTH'!$C$2:$AC$962,19,FALSE)),-1000)) -> -1000 | AF3: =IF($D3="Unlisted Player",-1001,IFERROR(IF(VLOOKUP($D3,'All-WERTH'!$C$2:$AC$962,20,FALSE)="",-1000,VLOOKUP($D3,'All-WERTH'!$C$2:$AC$962,20,FALSE)),-1000)) -> -1000 | AG3: =IF($D3="Unlisted Player",-1001,IFERROR(IF(VLOOKUP($D3,'All-WERTH'!$C$2:$AC$962,21,FALSE)="",-1000,VLOOKUP($D3,'All-WERTH'!$C$2:$AC$962,21,FALSE)),-1000)) -> -1000 | AH3: =IF($D3="Unlisted Player",-1001,IFERROR(IF(VLOOKUP($D3,'All-WERTH'!$C$2:$AC$962,22,FALSE)="",-1000,VLOOKUP($D3,'All-WERTH'!$C$2:$AC$962,22,FALSE)),-1000)) -> -1000 | AI3: =IF($D3="Unlisted Player",-1001,IFERROR(IF(VLOOKUP($D3,'All-WERTH'!$C$2:$AC$962,23,FALSE)="",-1000,VLOOKUP($D3,'All-WERTH'!$C$2:$AC$962,23,FALSE)),-1000)) -> -1000 | AJ3: =IF($D3="Unlisted Player",-1001,IFERROR(IF(VLOOKUP($D3,'All-WERTH'!$C$2:$AC$962,24,FALSE)="",-1000,VLOOKUP($D3,'All-WERTH'!$C$2:$AC$962,24,FALSE)),-1000)) -> -1000 | AK3: =IF($D3="Unlisted Player",-1001,IFERROR(IF(VLOOKUP($D3,'All-WERTH'!$C$2:$AC$962,25,FALSE)="",-1000,VLOOKUP($D3,'All-WERTH'!$C$2:$AC$962,25,FALSE)),-1000)) -> -1000 | AL3: =IF($D3="Unlisted Player",-1001,IFERROR(IF(VLOOKUP($D3,'All-WERTH'!$C$2:$AC$962,26,FALSE)="",-1000,VLOOKUP($D3,'All-WERTH'!$C$2:$AC$962,26,FALSE)),-1000)) -> -1000 | AM3: =IF($D3="Unlisted Player",-1001,IFERROR(IF(VLOOKUP($D3,'All-WERTH'!$C$2:$AC$962,27,FALSE)="",-1000,VLOOKUP($D3,'All-WERTH'!$C$2:$AC$962,27,FALSE)),-1000)) -> -1000 | AN3: =IF(ISERROR(VLOOKUP($B2,Keepers!$C$2:$D$450,2,FALSE)),B2,"") -> Mookie Betts | AO3: =IFERROR(INDEX($AN$1:$AN$961,SMALL(IF($AN$1:$AN$961<>"",ROW($AN$1:$AN$961)),ROW(AN3))),"") -> Jose Ramirez
A4: Jose Ramirez | B4: =IFERROR(INDEX($A$1:$A$961,SMALL(IF($A$1:$A$961<>"",ROW($A$1:$A$961)),ROW(A4))),"") -> Max Scherzer | C4: =IFERROR(IF(L4=FALSE,"",CHOOSE(MATCH(RIGHT('Your Roto Draft'!$P$4,LEN('Your Roto Draft'!$P$4)-8),$M$1:$AM$1,0),1+SUMPRODUCT(($L$2:$L$962=TRUE)*($M$2:$M$962<M4))+COUNTIFS($L$2:L4,L4,$M$2:M4,M4)-1,1+SUMPRODUCT(($L$2:$L$962=TRUE)*($N$2:$N$962>N4))+COUNTIFS($L$2:L4,L4,$N$2:N4,N4)-1,1+SUMPRODUCT(($L$2:$L$962=TRUE)*($O$2:$O$962<O4))+COUNTIFS($L$2:L4,L4,$O$2:O4,O4)-1,1+SUMPRODUCT(($L$2:$L$962=TRUE)*($P$2:$P$962>P4))+COUNTIFS($L$2:L4,L4,$P$2:P4,P4)-1,1+SUMPRODUCT(($L$2:$L$962=TRUE)*($Q$2:$Q$962>Q4))+COUNTIFS($L$2:L4,L4,$Q$2:Q4,Q4)-1,1+SUMPRODUCT(($L$2:$L$962=TRUE)*($R$2:$R$962>R4))+COUNTIFS($L$2:L4,L4,$R$2:R4,R4)-1,1+SUMPRODUCT(($L$2:$L$962=TRUE)*($S$2:$S$962>S4))+COUNTIFS($L$2:L4,L4,$S$2:S4,S4)-1,1+SUMPRODUCT(($L$2:$L$962=TRUE)*($T$2:$T$962>T4))+COUNTIFS($L$2:L4,L4,$T$2:T4,T4)-1,1+SUMPRODUCT(($L$2:$L$962=TRUE)*($U$2:$U$962>U4))+COUNTIFS($L$2:L4,L4,$U$2:U4,U4)-1,1+SUMPRODUCT(($L$2:$L$962=TRUE)*($V$2:$V$962>V4))+COUNTIFS($L$2:L4,L4,$V$2:V4,V4)-1,1+SUMPRODUCT(($L$2:$L$962=TRUE)*($W$2:$W$962>W4))+COUNTIFS($L$2:L4,L4,$W$2:W4,W4)-1,1+SUMPRODUCT(($L$2:$L$962=TRUE)*($X$2:$X$962>X4))+COUNTIFS($L$2:L4,L4,$X$2:X4,X4)-1,1+SUMPRODUCT(($L$2:$L$962=TRUE)*($Y$2:$Y$962>Y4))+COUNTIFS($L$2:L4,L4,$Y$2:Y4,Y4)-1,1+SUMPRODUCT(($L$2:$L$962=TRUE)*($Z$2:$Z$962>Z4))+COUNTIFS($L$2:L4,L4,$Z$2:Z4,Z4)-1,1+SUMPRODUCT(($L$2:$L$962=TRUE)*($AA$2:$AA$962>AA4))+COUNTIFS($L$2:L4,L4,$AA$2:AA4,AA4)-1,1+SUMPRODUCT(($L$2:$L$962=TRUE)*($AB$2:$AB$962>AB4))+COUNTIFS($L$2:L4,L4,$AB$2:AB4,AB4)-1,1+SUMPRODUCT(($L$2:$L$962=TRUE)*($AC$2:$AC$962>AC4))+COUNTIFS($L$2:L4,L4,$AC$2:AC4,AC4)-1,1+SUMPRODUCT(($L$2:$L$962=TRUE)*($AD$2:$AD$962>AD4))+COUNTIFS($L$2:L4,L4,$AD$2:AD4,AD4)-1,1+SUMPRODUCT(($L$2:$L$962=TRUE)*($AE$2:$AE$962>AE4))+COUNTIFS($L$2:L4,L4,$AE$2:AE4,AE4)-1,1+SUMPRODUCT(($L$2:$L$962=TRUE)*($AF$2:$AF$962>AF4))+COUNTIFS($L$2:L4,L4,$AF$2:AF4,AF4)-1,1+SUMPRODUCT(($L$2:$L$962=TRUE)*($AG$2:$AG$962>AG4))+COUNTIFS($L$2:L4,L4,$AG$2:AG4,AG4)-1,1+SUMPRODUCT(($L$2:$L$962=TRUE)*($AH$2:$AH$962>AH4))+COUNTIFS($L$2:L4,L4,$AH$2:AH4,AH4)-1,1+SUMPRODUCT(($L$2:$L$962=TRUE)*($AI$2:$AI$962>AI4))+COUNTIFS($L$2:L4,L4,$AI$2:AI4,AI4)-1,1+SUMPRODUCT(($L$2:$L$962=TRUE)*($AJ$2:$AJ$962>AJ4))+COUNTIFS($L$2:L4,L4,$AJ$2:AJ4,AJ4)-1,1+SUMPRODUCT(($L$2:$L$962=TRUE)*($AK$2:$AK$962>AK4))+COUNTIFS($L$2:L4,L4,$AK$2:AK4,AK4)-1,1+SUMPRODUCT(($L$2:$L$962=TRUE)*($AL$2:$AL$962>AL4))+COUNTIFS($L$2:L4,L4,$AL$2:AL4,AL4)-1,1+SUMPRODUCT(($L$2:$L$962=TRUE)*($AM$2:$AM$962>AM4))+COUNTIFS($L$2:L4,L4,$AM$2:AM4,AM4)-1,)),"") -> 301 | D4: Willy Adames | E4: =IFERROR(INDEX('Draft Log'!$D$4:$D$806,MATCH(D4,'Draft Log'!$C$4:$C$806,0)),"") ->  | F4: =IFERROR(INDEX('ADP-Rank'!$C$2:$C$832,MATCH(D4,'ADP-Rank'!$A$2:$A$832,0)),"") -> SS | G4: =IFERROR(IF(F4=I4,"",IF(INDEX('Your Roto Draft'!$B$11:$B$634,MATCH(D4,'Your Roto Draft'!$C$11:$C$634,0))="",IF(I4<>"",I4,""),INDEX('Your Roto Draft'!$B$11:$B$634,MATCH(D4,'Your Roto Draft'!$C$11:$C$634,0)))),"") ->  | H4: SS | J4: =INDEX('ADP-Rank'!$AH$2:$AH$832,MATCH(D4,'ADP-Rank'!$A$2:$A$832,0)) -> TRUE | K4: FALSE | L4: =IF(J4=FALSE,FALSE,IF(AND('Your Roto Draft'!$P$6="Hide Drafted Players",K4=TRUE),FALSE,IF(OR('Your Roto Draft'!$P$5="Show All Positions",AND('Your Roto Draft'!$P$5="Only Show: C",H4="C"),AND('Your Roto Draft'!$P$5="Only Show: 1B",H4="1B"),AND('Your Roto Draft'!$P$5="Only Show: 2B",H4="2B"),AND('Your Roto Draft'!$P$5="Only Show: 3B",H4="3B"),AND('Your Roto Draft'!$P$5="Only Show: SS",H4="SS"),AND('Your Roto Draft'!$P$5="Only Show: OF",H4="OF"),AND('Your Roto Draft'!$P$5="Only Show: SP",H4="SP"),AND('Your Roto Draft'!$P$5="Only Show: RP",H4="RP"),AND('Your Roto Draft'!$P$5="Only Show: CI",OR(H4={"1B","3B"})),AND('Your Roto Draft'!$P$5="Only Show: MI",OR(H4={"2B","SS"})),AND('Your Roto Draft'!$P$5="Only Show: IF",OR(H4={"C","1B","2B","3B","SS"})),AND('Your Roto Draft'!$P$5="Only Show: DH",OR(H4={"C","1B","2B","3B","SS","OF","DH"})),AND('Your Roto Draft'!$P$5="Only Show: P",OR(H4={"SP","RP"})),AND('Your Roto Draft'!$P$5="Only Show: LF",ISERROR(SEARCH("LF",VLOOKUP($D4,'ADP-Rank'!$A$2:$D$961,4,FALSE)))=FALSE),AND('Your Roto Draft'!$P$5="Only Show: RF",ISERROR(SEARCH("RF",VLOOKUP($D4,'ADP-Rank'!$A$2:$D$961,4,FALSE)))=FALSE),AND('Your Roto Draft'!$P$5="Only Show: CF",ISERROR(SEARCH("CF",VLOOKUP($D4,'ADP-Rank'!$A$2:$D$961,4,FALSE)))=FALSE)),TRUE,FALSE))) -> TRUE | M4: =IFERROR(IF(VLOOKUP($D4,'ADP-Rank'!$A$2:$AV$961,38,FALSE)="",9999,VLOOKUP($D4,'ADP-Rank'!$A$2:$AV$961,38,FALSE)),9999) -> 311.8 | N4: =IF(D4="Non-Ranked Player",-1001,IFERROR(VLOOKUP($D4,'All-WERTH'!$C$2:$E$962,3,FALSE),-1000)) -> -3.307236089 | O4: =IF(D4="Non-Ranked Player",10000,IFERROR(IF(VLOOKUP(D4,'ADP-Rank'!$A$2:$AJ$961,36,FALSE)="",9999,VLOOKUP(D4,'ADP-Rank'!$A$2:$AJ$961,36,FALSE)),9999)) -> 254 | P4: =IF($D4="Unlisted Player",-1001,IFERROR(IF(VLOOKUP($D4,'All-WERTH'!$C$2:$AC$962,4,FALSE)="",-1000,VLOOKUP($D4,'All-WERTH'!$C$2:$AC$962,4,FALSE)),-1000)) -> -1.289405941 | Q4: =IF($D4="Unlisted Player",-1001,IFERROR(IF(VLOOKUP($D4,'All-WERTH'!$C$2:$AC$962,5,FALSE)="",-1000,VLOOKUP($D4,'All-WERTH'!$C$2:$AC$962,5,FALSE)),-1000)) -> -0.7851156984 | R4: =IF($D4="Unlisted Player",-1001,IFERROR(IF(VLOOKUP($D4,'All-WERTH'!$C$2:$AC$962,6,FALSE)="",-1000,VLOOKUP($D4,'All-WERTH'!$C$2:$AC$962,6,FALSE)),-1000)) -> -0.3702141788 | S4: =IF($D4="Unlisted Player",-1001,IFERROR(IF(VLOOKUP($D4,'All-WERTH'!$C$2:$AC$962,7,FALSE)="",-1000,VLOOKUP($D4,'All-WERTH'!$C$2:$AC$962,7,FALSE)),-1000)) -> -0.806352637 | T4: =IF($D4="Unlisted Player",-1001,IFERROR(IF(VLOOKUP($D4,'All-WERTH'!$C$2:$AC$962,8,FALSE)="",-1000,VLOOKUP($D4,'All-WERTH'!$C$2:$AC$962,8,FALSE)),-1000)) -> -0.05614763382 | U4: =IF($D4="Unlisted Player",-1001,IFERROR(IF(VLOOKUP($D4,'All-WERTH'!$C$2:$AC$962,9,FALSE)="",-1000,VLOOKUP($D4,'All-WERTH'!$C$2:$AC$962,9,FALSE)),-1000)) -> -1000 | V4: =IF($D4="Unlisted Player",-1001,IFERROR(IF(VLOOKUP($D4,'All-WERTH'!$C$2:$AC$962,10,FALSE)="",-1000,VLOOKUP($D4,'All-WERTH'!$C$2:$AC$962,10,FALSE)),-1000)) -> -1000 | W4: =IF($D4="Unlisted Player",-1001,IFERROR(IF(VLOOKUP($D4,'All-WERTH'!$C$2:$AC$962,11,FALSE)="",-1000,VLOOKUP($D4,'All-WERTH'!$C$2:$AC$962,11,FALSE)),-1000)) -> -1000 | X4: =IF($D4="Unlisted Player",-1001,IFERROR(IF(VLOOKUP($D4,'All-WERTH'!$C$2:$AC$962,12,FALSE)="",-1000,VLOOKUP($D4,'All-WERTH'!$C$2:$AC$962,12,FALSE)),-1000)) -> -1000 | Y4: =IF($D4="Unlisted Player",-1001,IFERROR(IF(VLOOKUP($D4,'All-WERTH'!$C$2:$AC$962,13,FALSE)="",-1000,VLOOKUP($D4,'All-WERTH'!$C$2:$AC$962,13,FALSE)),-1000)) -> -1000 | Z4: =IF($D4="Unlisted Player",-1001,IFERROR(IF(VLOOKUP($D4,'All-WERTH'!$C$2:$AC$962,14,FALSE)="",-1000,VLOOKUP($D4,'All-WERTH'!$C$2:$AC$962,14,FALSE)),-1000)) -> -1000 | AA4: =IF($D4="Unlisted Player",-1001,IFERROR(IF(VLOOKUP($D4,'All-WERTH'!$C$2:$AC$962,15,FALSE)="",-1000,VLOOKUP($D4,'All-WERTH'!$C$2:$AC$962,15,FALSE)),-1000)) -> -1000 | AB4: =IF($D4="Unlisted Player",-1001,IFERROR(IF(VLOOKUP($D4,'All-WERTH'!$C$2:$AC$962,16,FALSE)="",-1000,VLOOKUP($D4,'All-WERTH'!$C$2:$AC$962,16,FALSE)),-1000)) -> -1000 | AC4: =IF($D4="Unlisted Player",-1001,IFERROR(IF(VLOOKUP($D4,'All-WERTH'!$C$2:$AC$962,17,FALSE)="",-1000,VLOOKUP($D4,'All-WERTH'!$C$2:$AC$962,17,FALSE)),-1000)) -> -1000 | AD4: =IF($D4="Unlisted Player",-1001,IFERROR(IF(VLOOKUP($D4,'All-WERTH'!$C$2:$AC$962,18,FALSE)="",-1000,VLOOKUP($D4,'All-WERTH'!$C$2:$AC$962,18,FALSE)),-1000)) -> -1000 | AE4: =IF($D4="Unlisted Player",-1001,IFERROR(IF(VLOOKUP($D4,'All-WERTH'!$C$2:$AC$962,19,FALSE)="",-1000,VLOOKUP($D4,'All-WERTH'!$C$2:$AC$962,19,FALSE)),-1000)) -> -1000 | AF4: =IF($D4="Unlisted Player",-1001,IFERROR(IF(VLOOKUP($D4,'All-WERTH'!$C$2:$AC$962,20,FALSE)="",-1000,VLOOKUP($D4,'All-WERTH'!$C$2:$AC$962,20,FALSE)),-1000)) -> -1000 | AG4: =IF($D4="Unlisted Player",-1001,IFERROR(IF(VLOOKUP($D4,'All-WERTH'!$C$2:$AC$962,21,FALSE)="",-1000,VLOOKUP($D4,'All-WERTH'!$C$2:$AC$962,21,FALSE)),-1000)) -> -1000 | AH4: =IF($D4="Unlisted Player",-1001,IFERROR(IF(VLOOKUP($D4,'All-WERTH'!$C$2:$AC$962,22,FALSE)="",-1000,VLOOKUP($D4,'All-WERTH'!$C$2:$AC$962,22,FALSE)),-1000)) -> -1000 | AI4: =IF($D4="Unlisted Player",-1001,IFERROR(IF(VLOOKUP($D4,'All-WERTH'!$C$2:$AC$962,23,FALSE)="",-1000,VLOOKUP($D4,'All-WERTH'!$C$2:$AC$962,23,FALSE)),-1000)) -> -1000 | AJ4: =IF($D4="Unlisted Player",-1001,IFERROR(IF(VLOOKUP($D4,'All-WERTH'!$C$2:$AC$962,24,FALSE)="",-1000,VLOOKUP($D4,'All-WERTH'!$C$2:$AC$962,24,FALSE)),-1000)) -> -1000 | AK4: =IF($D4="Unlisted Player",-1001,IFERROR(IF(VLOOKUP($D4,'All-WERTH'!$C$2:$AC$962,25,FALSE)="",-1000,VLOOKUP($D4,'All-WERTH'!$C$2:$AC$962,25,FALSE)),-1000)) -> -1000 | AL4: =IF($D4="Unlisted Player",-1001,IFERROR(IF(VLOOKUP($D4,'All-WERTH'!$C$2:$AC$962,26,FALSE)="",-1000,VLOOKUP($D4,'All-WERTH'!$C$2:$AC$962,26,FALSE)),-1000)) -> -1000 | AM4: =IF($D4="Unlisted Player",-1001,IFERROR(IF(VLOOKUP($D4,'All-WERTH'!$C$2:$AC$962,27,FALSE)="",-1000,VLOOKUP($D4,'All-WERTH'!$C$2:$AC$962,27,FALSE)),-1000)) -> -1000 | AN4: =IF(ISERROR(VLOOKUP($B3,Keepers!$C$2:$D$450,2,FALSE)),B3,"") -> Jose Ramirez | AO4: =IFERROR(INDEX($AN$1:$AN$961,SMALL(IF($AN$1:$AN$961<>"",ROW($AN$1:$AN$961)),ROW(AN4))),"") -> Max Scherzer
A5: Max Scherzer | B5: =IFERROR(INDEX($A$1:$A$961,SMALL(IF($A$1:$A$961<>"",ROW($A$1:$A$961)),ROW(A5))),"") -> J.D. Martinez | C5: =IFERROR(IF(L5=FALSE,"",CHOOSE(MATCH(RIGHT('Your Roto Draft'!$P$4,LEN('Your Roto Draft'!$P$4)-8),$M$1:$AM$1,0),1+SUMPRODUCT(($L$2:$L$962=TRUE)*($M$2:$M$962<M5))+COUNTIFS($L$2:L5,L5,$M$2:M5,M5)-1,1+SUMPRODUCT(($L$2:$L$962=TRUE)*($N$2:$N$962>N5))+COUNTIFS($L$2:L5,L5,$N$2:N5,N5)-1,1+SUMPRODUCT(($L$2:$L$962=TRUE)*($O$2:$O$962<O5))+COUNTIFS($L$2:L5,L5,$O$2:O5,O5)-1,1+SUMPRODUCT(($L$2:$L$962=TRUE)*($P$2:$P$962>P5))+COUNTIFS($L$2:L5,L5,$P$2:P5,P5)-1,1+SUMPRODUCT(($L$2:$L$962=TRUE)*($Q$2:$Q$962>Q5))+COUNTIFS($L$2:L5,L5,$Q$2:Q5,Q5)-1,1+SUMPRODUCT(($L$2:$L$962=TRUE)*($R$2:$R$962>R5))+COUNTIFS($L$2:L5,L5,$R$2:R5,R5)-1,1+SUMPRODUCT(($L$2:$L$962=TRUE)*($S$2:$S$962>S5))+COUNTIFS($L$2:L5,L5,$S$2:S5,S5)-1,1+SUMPRODUCT(($L$2:$L$962=TRUE)*($T$2:$T$962>T5))+COUNTIFS($L$2:L5,L5,$T$2:T5,T5)-1,1+SUMPRODUCT(($L$2:$L$962=TRUE)*($U$2:$U$962>U5))+COUNTIFS($L$2:L5,L5,$U$2:U5,U5)-1,1+SUMPRODUCT(($L$2:$L$962=TRUE)*($V$2:$V$962>V5))+COUNTIFS($L$2:L5,L5,$V$2:V5,V5)-1,1+SUMPRODUCT(($L$2:$L$962=TRUE)*($W$2:$W$962>W5))+COUNTIFS($L$2:L5,L5,$W$2:W5,W5)-1,1+SUMPRODUCT(($L$2:$L$962=TRUE)*($X$2:$X$962>X5))+COUNTIFS($L$2:L5,L5,$X$2:X5,X5)-1,1+SUMPRODUCT(($L$2:$L$962=TRUE)*($Y$2:$Y$962>Y5))+COUNTIFS($L$2:L5,L5,$Y$2:Y5,Y5)-1,1+SUMPRODUCT(($L$2:$L$962=TRUE)*($Z$2:$Z$962>Z5))+COUNTIFS($L$2:L5,L5,$Z$2:Z5,Z5)-1,1+SUMPRODUCT(($L$2:$L$962=TRUE)*($AA$2:$AA$962>AA5))+COUNTIFS($L$2:L5,L5,$AA$2:AA5,AA5)-1,1+SUMPRODUCT(($L$2:$L$962=TRUE)*($AB$2:$AB$962>AB5))+COUNTIFS($L$2:L5,L5,$AB$2:AB5,AB5)-1,1+SUMPRODUCT(($L$2:$L$962=TRUE)*($AC$2:$AC$962>AC5))+COUNTIFS($L$2:L5,L5,$AC$2:AC5,AC5)-1,1+SUMPRODUCT(($L$2:$L$962=TRUE)*($AD$2:$AD$962>AD5))+COUNTIFS($L$2:L5,L5,$AD$2:AD5,AD5)-1,1+SUMPRODUCT(($L$2:$L$962=TRUE)*($AE$2:$AE$962>AE5))+COUNTIFS($L$2:L5,L5,$AE$2:AE5,AE5)-1,1+SUMPRODUCT(($L$2:$L$962=TRUE)*($AF$2:$AF$962>AF5))+COUNTIFS($L$2:L5,L5,$AF$2:AF5,AF5)-1,1+SUMPRODUCT(($L$2:$L$962=TRUE)*($AG$2:$AG$962>AG5))+COUNTIFS($L$2:L5,L5,$AG$2:AG5,AG5)-1,1+SUMPRODUCT(($L$2:$L$962=TRUE)*($AH$2:$AH$962>AH5))+COUNTIFS($L$2:L5,L5,$AH$2:AH5,AH5)-1,1+SUMPRODUCT(($L$2:$L$962=TRUE)*($AI$2:$AI$962>AI5))+COUNTIFS($L$2:L5,L5,$AI$2:AI5,AI5)-1,1+SUMPRODUCT(($L$2:$L$962=TRUE)*($AJ$2:$AJ$962>AJ5))+COUNTIFS($L$2:L5,L5,$AJ$2:AJ5,AJ5)-1,1+SUMPRODUCT(($L$2:$L$962=TRUE)*($AK$2:$AK$962>AK5))+COUNTIFS($L$2:L5,L5,$AK$2:AK5,AK5)-1,1+SUMPRODUCT(($L$2:$L$962=TRUE)*($AL$2:$AL$962>AL5))+COUNTIFS($L$2:L5,L5,$AL$2:AL5,AL5)-1,1+SUMPRODUCT(($L$2:$L$962=TRUE)*($AM$2:$AM$962>AM5))+COUNTIFS($L$2:L5,L5,$AM$2:AM5,AM5)-1,)),"") -> 459 | D5: Matt Adams | E5: =IFERROR(INDEX('Draft Log'!$D$4:$D$806,MATCH(D5,'Draft Log'!$C$4:$C$806,0)),"") ->  | F5: =IFERROR(INDEX('ADP-Rank'!$C$2:$C$832,MATCH(D5,'ADP-Rank'!$A$2:$A$832,0)),"") -> 1B | G5: =IFERROR(IF(F5=I5,"",IF(INDEX('Your Roto Draft'!$B$11:$B$634,MATCH(D5,'Your Roto Draft'!$C$11:$C$634,0))="",IF(I5<>"",I5,""),INDEX('Your Roto Draft'!$B$11:$B$634,MATCH(D5,'Your Roto Draft'!$C$11:$C$634,0)))),"") ->  | H5: 1B | J5: =INDEX('ADP-Rank'!$AH$2:$AH$832,MATCH(D5,'ADP-Rank'!$A$2:$A$832,0)) -> TRUE | K5: FALSE | L5: =IF(J5=FALSE,FALSE,IF(AND('Your Roto Draft'!$P$6="Hide Drafted Players",K5=TRUE),FALSE,IF(OR('Your Roto Draft'!$P$5="Show All Positions",AND('Your Roto Draft'!$P$5="Only Show: C",H5="C"),AND('Your Roto Draft'!$P$5="Only Show: 1B",H5="1B"),AND('Your Roto Draft'!$P$5="Only Show: 2B",H5="2B"),AND('Your Roto Draft'!$P$5="Only Show: 3B",H5="3B"),AND('Your Roto Draft'!$P$5="Only Show: SS",H5="SS"),AND('Your Roto Draft'!$P$5="Only Show: OF",H5="OF"),AND('Your Roto Draft'!$P$5="Only Show: SP",H5="SP"),AND('Your Roto Draft'!$P$5="Only Show: RP",H5="RP"),AND('Your Roto Draft'!$P$5="Only Show: CI",OR(H5={"1B","3B"})),AND('Your Roto Draft'!$P$5="Only Show: MI",OR(H5={"2B","SS"})),AND('Your Roto Draft'!$P$5="Only Show: IF",OR(H5={"C","1B","2B","3B","SS"})),AND('Your Roto Draft'!$P$5="Only Show: DH",OR(H5={"C","1B","2B","3B","SS","OF","DH"})),AND('Your Roto Draft'!$P$5="Only Show: P",OR(H5={"SP","RP"})),AND('Your Roto Draft'!$P$5="Only Show: LF",ISERROR(SEARCH("LF",VLOOKUP($D5,'ADP-Rank'!$A$2:$D$961,4,FALSE)))=FALSE),AND('Your Roto Draft'!$P$5="Only Show: RF",ISERROR(SEARCH("RF",VLOOKUP($D5,'ADP-Rank'!$A$2:$D$961,4,FALSE)))=FALSE),AND('Your Roto Draft'!$P$5="Only Show: CF",ISERROR(SEARCH("CF",VLOOKUP($D5,'ADP-Rank'!$A$2:$D$961,4,FALSE)))=FALSE)),TRUE,FALSE))) -> TRUE | M5: =IFERROR(IF(VLOOKUP($D5,'ADP-Rank'!$A$2:$AV$961,38,FALSE)="",9999,VLOOKUP($D5,'ADP-Rank'!$A$2:$AV$961,38,FALSE)),9999) -> 454 | N5: =IF(D5="Non-Ranked Player",-1001,IFERROR(VLOOKUP($D5,'All-WERTH'!$C$2:$E$962,3,FALSE),-1000)) -> -7.348888736 | O5: =IF(D5="Non-Ranked Player",10000,IFERROR(IF(VLOOKUP(D5,'ADP-Rank'!$A$2:$AJ$961,36,FALSE)="",9999,VLOOKUP(D5,'ADP-Rank'!$A$2:$AJ$961,36,FALSE)),9999)) -> 575 | P5: =IF($D5="Unlisted Player",-1001,IFERROR(IF(VLOOKUP($D5,'All-WERTH'!$C$2:$AC$962,4,FALSE)="",-1000,VLOOKUP($D5,'All-WERTH'!$C$2:$AC$962,4,FALSE)),-1000)) -> -0.6040945055 | Q5: =IF($D5="Unlisted Player",-1001,IFERROR(IF(VLOOKUP($D5,'All-WERTH'!$C$2:$AC$962,5,FALSE)="",-1000,VLOOKUP($D5,'All-WERTH'!$C$2:$AC$962,5,FALSE)),-1000)) -> -0.9218550643 | R5: =IF($D5="Unlisted Player",-1001,IFERROR(IF(VLOOKUP($D5,'All-WERTH'!$C$2:$AC$962,6,FALSE)="",-1000,VLOOKUP($D5,'All-WERTH'!$C$2:$AC$962,6,FALSE)),-1000)) -> -2.878222783 | S5: =IF($D5="Unlisted Player",-1001,IFERROR(IF(VLOOKUP($D5,'All-WERTH'!$C$2:$AC$962,7,FALSE)="",-1000,VLOOKUP($D5,'All-WERTH'!$C$2:$AC$962,7,FALSE)),-1000)) -> -1.877377505 | T5: =IF($D5="Unlisted Player",-1001,IFERROR(IF(VLOOKUP($D5,'All-WERTH'!$C$2:$AC$962,8,FALSE)="",-1000,VLOOKUP($D5,'All-WERTH'!$C$2:$AC$962,8,FALSE)),-1000)) -> -1.067338878 | U5: =IF($D5="Unlisted Player",-1001,IFERROR(IF(VLOOKUP($D5,'All-WERTH'!$C$2:$AC$962,9,FALSE)="",-1000,VLOOKUP($D5,'All-WERTH'!$C$2:$AC$962,9,FALSE)),-1000)) -> -1000 | V5: =IF($D5="Unlisted Player",-1001,IFERROR(IF(VLOOKUP($D5,'All-WERTH'!$C$2:$AC$962,10,FALSE)="",-1000,VLOOKUP($D5,'All-WERTH'!$C$2:$AC$962,10,FALSE)),-1000)) -> -1000 | W5: =IF($D5="Unlisted Player",-1001,IFERROR(IF(VLOOKUP($D5,'All-WERTH'!$C$2:$AC$962,11,FALSE)="",-1000,VLOOKUP($D5,'All-WERTH'!$C$2:$AC$962,11,FALSE)),-1000)) -> -1000 | X5: =IF($D5="Unlisted Player",-1001,IFERROR(IF(VLOOKUP($D5,'All-WERTH'!$C$2:$AC$962,12,FALSE)="",-1000,VLOOKUP($D5,'All-WERTH'!$C$2:$AC$962,12,FALSE)),-1000)) -> -1000 | Y5: =IF($D5="Unlisted Player",-1001,IFERROR(IF(VLOOKUP($D5,'All-WERTH'!$C$2:$AC$962,13,FALSE)="",-1000,VLOOKUP($D5,'All-WERTH'!$C$2:$AC$962,13,FALSE)),-1000)) -> -1000 | Z5: =IF($D5="Unlisted Player",-1001,IFERROR(IF(VLOOKUP($D5,'All-WERTH'!$C$2:$AC$962,14,FALSE)="",-1000,VLOOKUP($D5,'All-WERTH'!$C$2:$AC$962,14,FALSE)),-1000)) -> -1000 | AA5: =IF($D5="Unlisted Player",-1001,IFERROR(IF(VLOOKUP($D5,'All-WERTH'!$C$2:$AC$962,15,FALSE)="",-1000,VLOOKUP($D5,'All-WERTH'!$C$2:$AC$962,15,FALSE)),-1000)) -> -1000 | AB5: =IF($D5="Unlisted Player",-1001,IFERROR(IF(VLOOKUP($D5,'All-WERTH'!$C$2:$AC$962,16,FALSE)="",-1000,VLOOKUP($D5,'All-WERTH'!$C$2:$AC$962,16,FALSE)),-1000)) -> -1000 | AC5: =IF($D5="Unlisted Player",-1001,IFERROR(IF(VLOOKUP($D5,'All-WERTH'!$C$2:$AC$962,17,FALSE)="",-1000,VLOOKUP($D5,'All-WERTH'!$C$2:$AC$962,17,FALSE)),-1000)) -> -1000 | AD5: =IF($D5="Unlisted Player",-1001,IFERROR(IF(VLOOKUP($D5,'All-WERTH'!$C$2:$AC$962,18,FALSE)="",-1000,VLOOKUP($D5,'All-WERTH'!$C$2:$AC$962,18,FALSE)),-1000)) -> -1000 | AE5: =IF($D5="Unlisted Player",-1001,IFERROR(IF(VLOOKUP($D5,'All-WERTH'!$C$2:$AC$962,19,FALSE)="",-1000,VLOOKUP($D5,'All-WERTH'!$C$2:$AC$962,19,FALSE)),-1000)) -> -1000 | AF5: =IF($D5="Unlisted Player",-1001,IFERROR(IF(VLOOKUP($D5,'All-WERTH'!$C$2:$AC$962,20,FALSE)="",-1000,VLOOKUP($D5,'All-WERTH'!$C$2:$AC$962,20,FALSE)),-1000)) -> -1000 | AG5: =IF($D5="Unlisted Player",-1001,IFERROR(IF(VLOOKUP($D5,'All-WERTH'!$C$2:$AC$962,21,FALSE)="",-1000,VLOOKUP($D5,'All-WERTH'!$C$2:$AC$962,21,FALSE)),-1000)) -> -1000 | AH5: =IF($D5="Unlisted Player",-1001,IFERROR(IF(VLOOKUP($D5,'All-WERTH'!$C$2:$AC$962,22,FALSE)="",-1000,VLOOKUP($D5,'All-WERTH'!$C$2:$AC$962,22,FALSE)),-1000)) -> -1000 | AI5: =IF($D5="Unlisted Player",-1001,IFERROR(IF(VLOOKUP($D5,'All-WERTH'!$C$2:$AC$962,23,FALSE)="",-1000,VLOOKUP($D5,'All-WERTH'!$C$2:$AC$962,23,FALSE)),-1000)) -> -1000 | AJ5: =IF($D5="Unlisted Player",-1001,IFERROR(IF(VLOOKUP($D5,'All-WERTH'!$C$2:$AC$962,24,FALSE)="",-1000,VLOOKUP($D5,'All-WERTH'!$C$2:$AC$962,24,FALSE)),-1000)) -> -1000 | AK5: =IF($D5="Unlisted Player",-1001,IFERROR(IF(VLOOKUP($D5,'All-WERTH'!$C$2:$AC$962,25,FALSE)="",-1000,VLOOKUP($D5,'All-WERTH'!$C$2:$AC$962,25,FALSE)),-1000)) -> -1000 | AL5: =IF($D5="Unlisted Player",-1001,IFERROR(IF(VLOOKUP($D5,'All-WERTH'!$C$2:$AC$962,26,FALSE)="",-1000,VLOOKUP($D5,'All-WERTH'!$C$2:$AC$962,26,FALSE)),-1000)) -> -1000 | AM5: =IF($D5="Unlisted Player",-1001,IFERROR(IF(VLOOKUP($D5,'All-WERTH'!$C$2:$AC$962,27,FALSE)="",-1000,VLOOKUP($D5,'All-WERTH'!$C$2:$AC$962,27,FALSE)),-1000)) -> -1000 | AN5: =IF(ISERROR(VLOOKUP($B4,Keepers!$C$2:$D$450,2,FALSE)),B4,"") -> Max Scherzer | AO5: =IFERROR(INDEX($AN$1:$AN$961,SMALL(IF($AN$1:$AN$961<>"",ROW($AN$1:$AN$961)),ROW(AN5))),"") -> J.D. Martinez
A6: J.D. Martinez | B6: =IFERROR(INDEX($A$1:$A$961,SMALL(IF($A$1:$A$961<>"",ROW($A$1:$A$961)),ROW(A6))),"") -> Nolan Arenado | C6: =IFERROR(IF(L6=FALSE,"",CHOOSE(MATCH(RIGHT('Your Roto Draft'!$P$4,LEN('Your Roto Draft'!$P$4)-8),$M$1:$AM$1,0),1+SUMPRODUCT(($L$2:$L$962=TRUE)*($M$2:$M$962<M6))+COUNTIFS($L$2:L6,L6,$M$2:M6,M6)-1,1+SUMPRODUCT(($L$2:$L$962=TRUE)*($N$2:$N$962>N6))+COUNTIFS($L$2:L6,L6,$N$2:N6,N6)-1,1+SUMPRODUCT(($L$2:$L$962=TRUE)*($O$2:$O$962<O6))+COUNTIFS($L$2:L6,L6,$O$2:O6,O6)-1,1+SUMPRODUCT(($L$2:$L$962=TRUE)*($P$2:$P$962>P6))+COUNTIFS($L$2:L6,L6,$P$2:P6,P6)-1,1+SUMPRODUCT(($L$2:$L$962=TRUE)*($Q$2:$Q$962>Q6))+COUNTIFS($L$2:L6,L6,$Q$2:Q6,Q6)-1,1+SUMPRODUCT(($L$2:$L$962=TRUE)*($R$2:$R$962>R6))+COUNTIFS($L$2:L6,L6,$R$2:R6,R6)-1,1+SUMPRODUCT(($L$2:$L$962=TRUE)*($S$2:$S$962>S6))+COUNTIFS($L$2:L6,L6,$S$2:S6,S6)-1,1+SUMPRODUCT(($L$2:$L$962=TRUE)*($T$2:$T$962>T6))+COUNTIFS($L$2:L6,L6,$T$2:T6,T6)-1,1+SUMPRODUCT(($L$2:$L$962=TRUE)*($U$2:$U$962>U6))+COUNTIFS($L$2:L6,L6,$U$2:U6,U6)-1,1+SUMPRODUCT(($L$2:$L$962=TRUE)*($V$2:$V$962>V6))+COUNTIFS($L$2:L6,L6,$V$2:V6,V6)-1,1+SUMPRODUCT(($L$2:$L$962=TRUE)*($W$2:$W$962>W6))+COUNTIFS($L$2:L6,L6,$W$2:W6,W6)-1,1+SUMPRODUCT(($L$2:$L$962=TRUE)*($X$2:$X$962>X6))+COUNTIFS($L$2:L6,L6,$X$2:X6,X6)-1,1+SUMPRODUCT(($L$2:$L$962=TRUE)*($Y$2:$Y$962>Y6))+COUNTIFS($L$2:L6,L6,$Y$2:Y6,Y6)-1,1+SUMPRODUCT(($L$2:$L$962=TRUE)*($Z$2:$Z$962>Z6))+COUNTIFS($L$2:L6,L6,$Z$2:Z6,Z6)-1,1+SUMPRODUCT(($L$2:$L$962=TRUE)*($AA$2:$AA$962>AA6))+COUNTIFS($L$2:L6,L6,$AA$2:AA6,AA6)-1,1+SUMPRODUCT(($L$2:$L$962=TRUE)*($AB$2:$AB$962>AB6))+COUNTIFS($L$2:L6,L6,$AB$2:AB6,AB6)-1,1+SUMPRODUCT(($L$2:$L$962=TRUE)*($AC$2:$AC$962>AC6))+COUNTIFS($L$2:L6,L6,$AC$2:AC6,AC6)-1,1+SUMPRODUCT(($L$2:$L$962=TRUE)*($AD$2:$AD$962>AD6))+COUNTIFS($L$2:L6,L6,$AD$2:AD6,AD6)-1,1+SUMPRODUCT(($L$2:$L$962=TRUE)*($AE$2:$AE$962>AE6))+COUNTIFS($L$2:L6,L6,$AE$2:AE6,AE6)-1,1+SUMPRODUCT(($L$2:$L$962=TRUE)*($AF$2:$AF$962>AF6))+COUNTIFS($L$2:L6,L6,$AF$2:AF6,AF6)-1,1+SUMPRODUCT(($L$2:$L$962=TRUE)*($AG$2:$AG$962>AG6))+COUNTIFS($L$2:L6,L6,$AG$2:AG6,AG6)-1,1+SUMPRODUCT(($L$2:$L$962=TRUE)*($AH$2:$AH$962>AH6))+COUNTIFS($L$2:L6,L6,$AH$2:AH6,AH6)-1,1+SUMPRODUCT(($L$2:$L$962=TRUE)*($AI$2:$AI$962>AI6))+COUNTIFS($L$2:L6,L6,$AI$2:AI6,AI6)-1,1+SUMPRODUCT(($L$2:$L$962=TRUE)*($AJ$2:$AJ$962>AJ6))+COUNTIFS($L$2:L6,L6,$AJ$2:AJ6,AJ6)-1,1+SUMPRODUCT(($L$2:$L$962=TRUE)*($AK$2:$AK$962>AK6))+COUNTIFS($L$2:L6,L6,$AK$2:AK6,AK6)-1,1+SUMPRODUCT(($L$2:$L$962=TRUE)*($AL$2:$AL$962>AL6))+COUNTIFS($L$2:L6,L6,$AL$2:AL6,AL6)-1,1+SUMPRODUCT(($L$2:$L$962=TRUE)*($AM$2:$AM$962>AM6))+COUNTIFS($L$2:L6,L6,$AM$2:AM6,AM6)-1,)),"") -> 550 | D6: Ehire Adrianza | E6: =IFERROR(INDEX('Draft Log'!$D$4:$D$806,MATCH(D6,'Draft Log'!$C$4:$C$806,0)),"") ->  | F6: =IFERROR(INDEX('ADP-Rank'!$C$2:$C$832,MATCH(D6,'ADP-Rank'!$A$2:$A$832,0)),"") -> SS | G6: =IFERROR(IF(F6=I6,"",IF(INDEX('Your Roto Draft'!$B$11:$B$634,MATCH(D6,'Your Roto Draft'!$C$11:$C$634,0))="",IF(I6<>"",I6,""),INDEX('Your Roto Draft'!$B$11:$B$634,MATCH(D6,'Your Roto Draft'!$C$11:$C$634,0)))),"") ->  | H6: SS | J6: =INDEX('ADP-Rank'!$AH$2:$AH$832,MATCH(D6,'ADP-Rank'!$A$2:$A$832,0)) -> TRUE | K6: FALSE | L6: =IF(J6=FALSE,FALSE,IF(AND('Your Roto Draft'!$P$6="Hide Drafted Players",K6=TRUE),FALSE,IF(OR('Your Roto Draft'!$P$5="Show All Positions",AND('Your Roto Draft'!$P$5="Only Show: C",H6="C"),AND('Your Roto Draft'!$P$5="Only Show: 1B",H6="1B"),AND('Your Roto Draft'!$P$5="Only Show: 2B",H6="2B"),AND('Your Roto Draft'!$P$5="Only Show: 3B",H6="3B"),AND('Your Roto Draft'!$P$5="Only Show: SS",H6="SS"),AND('Your Roto Draft'!$P$5="Only Show: OF",H6="OF"),AND('Your Roto Draft'!$P$5="Only Show: SP",H6="SP"),AND('Your Roto Draft'!$P$5="Only Show: RP",H6="RP"),AND('Your Roto Draft'!$P$5="Only Show: CI",OR(H6={"1B","3B"})),AND('Your Roto Draft'!$P$5="Only Show: MI",OR(H6={"2B","SS"})),AND('Your Roto Draft'!$P$5="Only Show: IF",OR(H6={"C","1B","2B","3B","SS"})),AND('Your Roto Draft'!$P$5="Only Show: DH",OR(H6={"C","1B","2B","3B","SS","OF","DH"})),AND('Your Roto Draft'!$P$5="Only Show: P",OR(H6={"SP","RP"})),AND('Your Roto Draft'!$P$5="Only Show: LF",ISERROR(SEARCH("LF",VLOOKUP($D6,'ADP-Rank'!$A$2:$D$961,4,FALSE)))=FALSE),AND('Your Roto Draft'!$P$5="Only Show: RF",ISERROR(SEARCH("RF",VLOOKUP($D6,'ADP-Rank'!$A$2:$D$961,4,FALSE)))=FALSE),AND('Your Roto Draft'!$P$5="Only Show: CF",ISERROR(SEARCH("CF",VLOOKUP($D6,'ADP-Rank'!$A$2:$D$961,4,FALSE)))=FALSE)),TRUE,FALSE))) -> TRUE | M6: =IFERROR(IF(VLOOKUP($D6,'ADP-Rank'!$A$2:$AV$961,38,FALSE)="",9999,VLOOKUP($D6,'ADP-Rank'!$A$2:$AV$961,38,FALSE)),9999) -> 596.5 | N6: =IF(D6="Non-Ranked Player",-1001,IFERROR(VLOOKUP($D6,'All-WERTH'!$C$2:$E$962,3,FALSE),-1000)) -> -11.53464797 | O6: =IF(D6="Non-Ranked Player",10000,IFERROR(IF(VLOOKUP(D6,'ADP-Rank'!$A$2:$AJ$961,36,FALSE)="",9999,VLOOKUP(D6,'ADP-Rank'!$A$2:$AJ$961,36,FALSE)),9999)) -> 589 | P6: =IF($D6="Unlisted Player",-1001,IFERROR(IF(VLOOKUP($D6,'All-WERTH'!$C$2:$AC$962,4,FALSE)="",-1000,VLOOKUP($D6,'All-WERTH'!$C$2:$AC$962,4,FALSE)),-1000)) -> -0.68757062 | Q6: =IF($D6="Unlisted Player",-1001,IFERROR(IF(VLOOKUP($D6,'All-WERTH'!$C$2:$AC$962,5,FALSE)="",-1000,VLOOKUP($D6,'All-WERTH'!$C$2:$AC$962,5,FALSE)),-1000)) -> -2.537991607 | R6: =IF($D6="Unlisted Player",-1001,IFERROR(IF(VLOOKUP($D6,'All-WERTH'!$C$2:$AC$962,6,FALSE)="",-1000,VLOOKUP($D6,'All-WERTH'!$C$2:$AC$962,6,FALSE)),-1000)) -> -3.790112688 | S6: =IF($D6="Unlisted Player",-1001,IFERROR(IF(VLOOKUP($D6,'All-WERTH'!$C$2:$AC$962,7,FALSE)="",-1000,VLOOKUP($D6,'All-WERTH'!$C$2:$AC$962,7,FALSE)),-1000)) -> -3.774693159 | T6: =IF($D6="Unlisted Player",-1001,IFERROR(IF(VLOOKUP($D6,'All-WERTH'!$C$2:$AC$962,8,FALSE)="",-1000,VLOOKUP($D6,'All-WERTH'!$C$2:$AC$962,8,FALSE)),-1000)) -> -0.7442798941 | U6: =IF($D6="Unlisted Player",-1001,IFERROR(IF(VLOOKUP($D6,'All-WERTH'!$C$2:$AC$962,9,FALSE)="",-1000,VLOOKUP($D6,'All-WERTH'!$C$2:$AC$962,9,FALSE)),-1000)) -> -1000 | V6: =IF($D6="Unlisted Player",-1001,IFERROR(IF(VLOOKUP($D6,'All-WERTH'!$C$2:$AC$962,10,FALSE)="",-1000,VLOOKUP($D6,'All-WERTH'!$C$2:$AC$962,10,FALSE)),-1000)) -> -1000 | W6: =IF($D6="Unlisted Player",-1001,IFERROR(IF(VLOOKUP($D6,'All-WERTH'!$C$2:$AC$962,11,FALSE)="",-1000,VLOOKUP($D6,'All-WERTH'!$C$2:$AC$962,11,FALSE)),-1000)) -> -1000 | X6: =IF($D6="Unlisted Player",-1001,IFERROR(IF(VLOOKUP($D6,'All-WERTH'!$C$2:$AC$962,12,FALSE)="",-1000,VLOOKUP($D6,'All-WERTH'!$C$2:$AC$962,12,FALSE)),-1000)) -> -1000 | Y6: =IF($D6="Unlisted Player",-1001,IFERROR(IF(VLOOKUP($D6,'All-WERTH'!$C$2:$AC$962,13,FALSE)="",-1000,VLOOKUP($D6,'All-WERTH'!$C$2:$AC$962,13,FALSE)),-1000)) -> -1000 | Z6: =IF($D6="Unlisted Player",-1001,IFERROR(IF(VLOOKUP($D6,'All-WERTH'!$C$2:$AC$962,14,FALSE)="",-1000,VLOOKUP($D6,'All-WERTH'!$C$2:$AC$962,14,FALSE)),-1000)) -> -1000 | AA6: =IF($D6="Unlisted Player",-1001,IFERROR(IF(VLOOKUP($D6,'All-WERTH'!$C$2:$AC$962,15,FALSE)="",-1000,VLOOKUP($D6,'All-WERTH'!$C$2:$AC$962,15,FALSE)),-1000)) -> -1000 | AB6: =IF($D6="Unlisted Player",-1001,IFERROR(IF(VLOOKUP($D6,'All-WERTH'!$C$2:$AC$962,16,FALSE)="",-1000,VLOOKUP($D6,'All-WERTH'!$C$2:$AC$962,16,FALSE)),-1000)) -> -1000 | AC6: =IF($D6="Unlisted Player",-1001,IFERROR(IF(VLOOKUP($D6,'All-WERTH'!$C$2:$AC$962,17,FALSE)="",-1000,VLOOKUP($D6,'All-WERTH'!$C$2:$AC$962,17,FALSE)),-1000)) -> -1000 | AD6: =IF($D6="Unlisted Player",-1001,IFERROR(IF(VLOOKUP($D6,'All-WERTH'!$C$2:$AC$962,18,FALSE)="",-1000,VLOOKUP($D6,'All-WERTH'!$C$2:$AC$962,18,FALSE)),-1000)) -> -1000 | AE6: =IF($D6="Unlisted Player",-1001,IFERROR(IF(VLOOKUP($D6,'All-WERTH'!$C$2:$AC$962,19,FALSE)="",-1000,VLOOKUP($D6,'All-WERTH'!$C$2:$AC$962,19,FALSE)),-1000)) -> -1000 | AF6: =IF($D6="Unlisted Player",-1001,IFERROR(IF(VLOOKUP($D6,'All-WERTH'!$C$2:$AC$962,20,FALSE)="",-1000,VLOOKUP($D6,'All-WERTH'!$C$2:$AC$962,20,FALSE)),-1000)) -> -1000 | AG6: =IF($D6="Unlisted Player",-1001,IFERROR(IF(VLOOKUP($D6,'All-WERTH'!$C$2:$AC$962,21,FALSE)="",-1000,VLOOKUP($D6,'All-WERTH'!$C$2:$AC$962,21,FALSE)),-1000)) -> -1000 | AH6: =IF($D6="Unlisted Player",-1001,IFERROR(IF(VLOOKUP($D6,'All-WERTH'!$C$2:$AC$962,22,FALSE)="",-1000,VLOOKUP($D6,'All-WERTH'!$C$2:$AC$962,22,FALSE)),-1000)) -> -1000 | AI6: =IF($D6="Unlisted Player",-1001,IFERROR(IF(VLOOKUP($D6,'All-WERTH'!$C$2:$AC$962,23,FALSE)="",-1000,VLOOKUP($D6,'All-WERTH'!$C$2:$AC$962,23,FALSE)),-1000)) -> -1000 | AJ6: =IF($D6="Unlisted Player",-1001,IFERROR(IF(VLOOKUP($D6,'All-WERTH'!$C$2:$AC$962,24,FALSE)="",-1000,VLOOKUP($D6,'All-WERTH'!$C$2:$AC$962,24,FALSE)),-1000)) -> -1000 | AK6: =IF($D6="Unlisted Player",-1001,IFERROR(IF(VLOOKUP($D6,'All-WERTH'!$C$2:$AC$962,25,FALSE)="",-1000,VLOOKUP($D6,'All-WERTH'!$C$2:$AC$962,25,FALSE)),-1000)) -> -1000 | AL6: =IF($D6="Unlisted Player",-1001,IFERROR(IF(VLOOKUP($D6,'All-WERTH'!$C$2:$AC$962,26,FALSE)="",-1000,VLOOKUP($D6,'All-WERTH'!$C$2:$AC$962,26,FALSE)),-1000)) -> -1000 | AM6: =IF($D6="Unlisted Player",-1001,IFERROR(IF(VLOOKUP($D6,'All-WERTH'!$C$2:$AC$962,27,FALSE)="",-1000,VLOOKUP($D6,'All-WERTH'!$C$2:$AC$962,27,FALSE)),-1000)) -> -1000 | AN6: =IF(ISERROR(VLOOKUP($B5,Keepers!$C$2:$D$450,2,FALSE)),B5,"") -> J.D. Martinez | AO6: =IFERROR(INDEX($AN$1:$AN$961,SMALL(IF($AN$1:$AN$961<>"",ROW($AN$1:$AN$961)),ROW(AN6))),"") -> Nolan Arenado
A7: Nolan Arenado | B7: =IFERROR(INDEX($A$1:$A$961,SMALL(IF($A$1:$A$961<>"",ROW($A$1:$A$961)),ROW(A7))),"") -> Christian Yelich | C7: =IFERROR(IF(L7=FALSE,"",CHOOSE(MATCH(RIGHT('Your Roto Draft'!$P$4,LEN('Your Roto Draft'!$P$4)-8),$M$1:$AM$1,0),1+SUMPRODUCT(($L$2:$L$962=TRUE)*($M$2:$M$962<M7))+COUNTIFS($L$2:L7,L7,$M$2:M7,M7)-1,1+SUMPRODUCT(($L$2:$L$962=TRUE)*($N$2:$N$962>N7))+COUNTIFS($L$2:L7,L7,$N$2:N7,N7)-1,1+SUMPRODUCT(($L$2:$L$962=TRUE)*($O$2:$O$962<O7))+COUNTIFS($L$2:L7,L7,$O$2:O7,O7)-1,1+SUMPRODUCT(($L$2:$L$962=TRUE)*($P$2:$P$962>P7))+COUNTIFS($L$2:L7,L7,$P$2:P7,P7)-1,1+SUMPRODUCT(($L$2:$L$962=TRUE)*($Q$2:$Q$962>Q7))+COUNTIFS($L$2:L7,L7,$Q$2:Q7,Q7)-1,1+SUMPRODUCT(($L$2:$L$962=TRUE)*($R$2:$R$962>R7))+COUNTIFS($L$2:L7,L7,$R$2:R7,R7)-1,1+SUMPRODUCT(($L$2:$L$962=TRUE)*($S$2:$S$962>S7))+COUNTIFS($L$2:L7,L7,$S$2:S7,S7)-1,1+SUMPRODUCT(($L$2:$L$962=TRUE)*($T$2:$T$962>T7))+COUNTIFS($L$2:L7,L7,$T$2:T7,T7)-1,1+SUMPRODUCT(($L$2:$L$962=TRUE)*($U$2:$U$962>U7))+COUNTIFS($L$2:L7,L7,$U$2:U7,U7)-1,1+SUMPRODUCT(($L$2:$L$962=TRUE)*($V$2:$V$962>V7))+COUNTIFS($L$2:L7,L7,$V$2:V7,V7)-1,1+SUMPRODUCT(($L$2:$L$962=TRUE)*($W$2:$W$962>W7))+COUNTIFS($L$2:L7,L7,$W$2:W7,W7)-1,1+SUMPRODUCT(($L$2:$L$962=TRUE)*($X$2:$X$962>X7))+COUNTIFS($L$2:L7,L7,$X$2:X7,X7)-1,1+SUMPRODUCT(($L$2:$L$962=TRUE)*($Y$2:$Y$962>Y7))+COUNTIFS($L$2:L7,L7,$Y$2:Y7,Y7)-1,1+SUMPRODUCT(($L$2:$L$962=TRUE)*($Z$2:$Z$962>Z7))+COUNTIFS($L$2:L7,L7,$Z$2:Z7,Z7)-1,1+SUMPRODUCT(($L$2:$L$962=TRUE)*($AA$2:$AA$962>AA7))+COUNTIFS($L$2:L7,L7,$AA$2:AA7,AA7)-1,1+SUMPRODUCT(($L$2:$L$962=TRUE)*($AB$2:$AB$962>AB7))+COUNTIFS($L$2:L7,L7,$AB$2:AB7,AB7)-1,1+SUMPRODUCT(($L$2:$L$962=TRUE)*($AC$2:$AC$962>AC7))+COUNTIFS($L$2:L7,L7,$AC$2:AC7,AC7)-1,1+SUMPRODUCT(($L$2:$L$962=TRUE)*($AD$2:$AD$962>AD7))+COUNTIFS($L$2:L7,L7,$AD$2:AD7,AD7)-1,1+SUMPRODUCT(($L$2:$L$962=TRUE)*($AE$2:$AE$962>AE7))+COUNTIFS($L$2:L7,L7,$AE$2:AE7,AE7)-1,1+SUMPRODUCT(($L$2:$L$962=TRUE)*($AF$2:$AF$962>AF7))+COUNTIFS($L$2:L7,L7,$AF$2:AF7,AF7)-1,1+SUMPRODUCT(($L$2:$L$962=TRUE)*($AG$2:$AG$962>AG7))+COUNTIFS($L$2:L7,L7,$AG$2:AG7,AG7)-1,1+SUMPRODUCT(($L$2:$L$962=TRUE)*($AH$2:$AH$962>AH7))+COUNTIFS($L$2:L7,L7,$AH$2:AH7,AH7)-1,1+SUMPRODUCT(($L$2:$L$962=TRUE)*($AI$2:$AI$962>AI7))+COUNTIFS($L$2:L7,L7,$AI$2:AI7,AI7)-1,1+SUMPRODUCT(($L$2:$L$962=TRUE)*($AJ$2:$AJ$962>AJ7))+COUNTIFS($L$2:L7,L7,$AJ$2:AJ7,AJ7)-1,1+SUMPRODUCT(($L$2:$L$962=TRUE)*($AK$2:$AK$962>AK7))+COUNTIFS($L$2:L7,L7,$AK$2:AK7,AK7)-1,1+SUMPRODUCT(($L$2:$L$962=TRUE)*($AL$2:$AL$962>AL7))+COUNTIFS($L$2:L7,L7,$AL$2:AL7,AL7)-1,1+SUMPRODUCT(($L$2:$L$962=TRUE)*($AM$2:$AM$962>AM7))+COUNTIFS($L$2:L7,L7,$AM$2:AM7,AM7)-1,)),"") -> 78 | D7: Jesus Aguilar | E7: =IFERROR(INDEX('Draft Log'!$D$4:$D$806,MATCH(D7,'Draft Log'!$C$4:$C$806,0)),"") ->  | F7: =IFERROR(INDEX('ADP-Rank'!$C$2:$C$832,MATCH(D7,'ADP-Rank'!$A$2:$A$832,0)),"") -> 1B | G7: =IFERROR(IF(F7=I7,"",IF(INDEX('Your Roto Draft'!$B$11:$B$634,MATCH(D7,'Your Roto Draft'!$C$11:$C$634,0))="",IF(I7<>"",I7,""),INDEX('Your Roto Draft'!$B$11:$B$634,MATCH(D7,'Your Roto Draft'!$C$11:$C$634,0)))),"") ->  | H7: 1B | J7: =INDEX('ADP-Rank'!$AH$2:$AH$832,MATCH(D7,'ADP-Rank'!$A$2:$A$832,0)) -> TRUE | K7: FALSE | L7: =IF(J7=FALSE,FALSE,IF(AND('Your Roto Draft'!$P$6="Hide Drafted Players",K7=TRUE),FALSE,IF(OR('Your Roto Draft'!$P$5="Show All Positions",AND('Your Roto Draft'!$P$5="Only Show: C",H7="C"),AND('Your Roto Draft'!$P$5="Only Show: 1B",H7="1B"),AND('Your Roto Draft'!$P$5="Only Show: 2B",H7="2B"),AND('Your Roto Draft'!$P$5="Only Show: 3B",H7="3B"),AND('Your Roto Draft'!$P$5="Only Show: SS",H7="SS"),AND('Your Roto Draft'!$P$5="Only Show: OF",H7="OF"),AND('Your Roto Draft'!$P$5="Only Show: SP",H7="SP"),AND('Your Roto Draft'!$P$5="Only Show: RP",H7="RP"),AND('Your Roto Draft'!$P$5="Only Show: CI",OR(H7={"1B","3B"})),AND('Your Roto Draft'!$P$5="Only Show: MI",OR(H7={"2B","SS"})),AND('Your Roto Draft'!$P$5="Only Show: IF",OR(H7={"C","1B","2B","3B","SS"})),AND('Your Roto Draft'!$P$5="Only Show: DH",OR(H7={"C","1B","2B","3B","SS","OF","DH"})),AND('Your Roto Draft'!$P$5="Only Show: P",OR(H7={"SP","RP"})),AND('Your Roto Draft'!$P$5="Only Show: LF",ISERROR(SEARCH("LF",VLOOKUP($D7,'ADP-Rank'!$A$2:$D$961,4,FALSE)))=FALSE),AND('Your Roto Draft'!$P$5="Only Show: RF",ISERROR(SEARCH("RF",VLOOKUP($D7,'ADP-Rank'!$A$2:$D$961,4,FALSE)))=FALSE),AND('Your Roto Draft'!$P$5="Only Show: CF",ISERROR(SEARCH("CF",VLOOKUP($D7,'ADP-Rank'!$A$2:$D$961,4,FALSE)))=FALSE)),TRUE,FALSE))) -> TRUE | M7: =IFERROR(IF(VLOOKUP($D7,'ADP-Rank'!$A$2:$AV$961,38,FALSE)="",9999,VLOOKUP($D7,'ADP-Rank'!$A$2:$AV$961,38,FALSE)),9999) -> 79 | N7: =IF(D7="Non-Ranked Player",-1001,IFERROR(VLOOKUP($D7,'All-WERTH'!$C$2:$E$962,3,FALSE),-1000)) -> -0.01881920956 | O7: =IF(D7="Non-Ranked Player",10000,IFERROR(IF(VLOOKUP(D7,'ADP-Rank'!$A$2:$AJ$961,36,FALSE)="",9999,VLOOKUP(D7,'ADP-Rank'!$A$2:$AJ$961,36,FALSE)),9999)) -> 79 | P7: =IF($D7="Unlisted Player",-1001,IFERROR(IF(VLOOKUP($D7,'All-WERTH'!$C$2:$AC$962,4,FALSE)="",-1000,VLOOKUP($D7,'All-WERTH'!$C$2:$AC$962,4,FALSE)),-1000)) -> -1.114700135 | Q7: =IF($D7="Unlisted Player",-1001,IFERROR(IF(VLOOKUP($D7,'All-WERTH'!$C$2:$AC$962,5,FALSE)="",-1000,VLOOKUP($D7,'All-WERTH'!$C$2:$AC$962,5,FALSE)),-1000)) -> 1.036864375 | R7: =IF($D7="Unlisted Player",-1001,IFERROR(IF(VLOOKUP($D7,'All-WERTH'!$C$2:$AC$962,6,FALSE)="",-1000,VLOOKUP($D7,'All-WERTH'!$C$2:$AC$962,6,FALSE)),-1000)) -> -0.01944925547 | S7: =IF($D7="Unlisted Player",-1001,IFERROR(IF(VLOOKUP($D7,'All-WERTH'!$C$2:$AC$962,7,FALSE)="",-1000,VLOOKUP($D7,'All-WERTH'!$C$2:$AC$962,7,FALSE)),-1000)) -> 1.146968431 | T7: =IF($D7="Unlisted Player",-1001,IFERROR(IF(VLOOKUP($D7,'All-WERTH'!$C$2:$AC$962,8,FALSE)="",-1000,VLOOKUP($D7,'All-WERTH'!$C$2:$AC$962,8,FALSE)),-1000)) -> -1.068502624 | U7: =IF($D7="Unlisted Player",-1001,IFERROR(IF(VLOOKUP($D7,'All-WERTH'!$C$2:$AC$962,9,FALSE)="",-1000,VLOOKUP($D7,'All-WERTH'!$C$2:$AC$962,9,FALSE)),-1000)) -> -1000 | V7: =IF($D7="Unlisted Player",-1001,IFERROR(IF(VLOOKUP($D7,'All-WERTH'!$C$2:$AC$962,10,FALSE)="",-1000,VLOOKUP($D7,'All-WERTH'!$C$2:$AC$962,10,FALSE)),-1000)) -> -1000 | W7: =IF($D7="Unlisted Player",-1001,IFERROR(IF(VLOOKUP($D7,'All-WERTH'!$C$2:$AC$962,11,FALSE)="",-1000,VLOOKUP($D7,'All-WERTH'!$C$2:$AC$962,11,FALSE)),-1000)) -> -1000 | X7: =IF($D7="Unlisted Player",-1001,IFERROR(IF(VLOOKUP($D7,'All-WERTH'!$C$2:$AC$962,12,FALSE)="",-1000,VLOOKUP($D7,'All-WERTH'!$C$2:$AC$962,12,FALSE)),-1000)) -> -1000 | Y7: =IF($D7="Unlisted Player",-1001,IFERROR(IF(VLOOKUP($D7,'All-WERTH'!$C$2:$AC$962,13,FALSE)="",-1000,VLOOKUP($D7,'All-WERTH'!$C$2:$AC$962,13,FALSE)),-1000)) -> -1000 | Z7: =IF($D7="Unlisted Player",-1001,IFERROR(IF(VLOOKUP($D7,'All-WERTH'!$C$2:$AC$962,14,FALSE)="",-1000,VLOOKUP($D7,'All-WERTH'!$C$2:$AC$962,14,FALSE)),-1000)) -> -1000 | AA7: =IF($D7="Unlisted Player",-1001,IFERROR(IF(VLOOKUP($D7,'All-WERTH'!$C$2:$AC$962,15,FALSE)="",-1000,VLOOKUP($D7,'All-WERTH'!$C$2:$AC$962,15,FALSE)),-1000)) -> -1000 | AB7: =IF($D7="Unlisted Player",-1001,IFERROR(IF(VLOOKUP($D7,'All-WERTH'!$C$2:$AC$962,16,FALSE)="",-1000,VLOOKUP($D7,'All-WERTH'!$C$2:$AC$962,16,FALSE)),-1000)) -> -1000 | AC7: =IF($D7="Unlisted Player",-1001,IFERROR(IF(VLOOKUP($D7,'All-WERTH'!$C$2:$AC$962,17,FALSE)="",-1000,VLOOKUP($D7,'All-WERTH'!$C$2:$AC$962,17,FALSE)),-1000)) -> -1000 | AD7: =IF($D7="Unlisted Player",-1001,IFERROR(IF(VLOOKUP($D7,'All-WERTH'!$C$2:$AC$962,18,FALSE)="",-1000,VLOOKUP($D7,'All-WERTH'!$C$2:$AC$962,18,FALSE)),-1000)) -> -1000 | AE7: =IF($D7="Unlisted Player",-1001,IFERROR(IF(VLOOKUP($D7,'All-WERTH'!$C$2:$AC$962,19,FALSE)="",-1000,VLOOKUP($D7,'All-WERTH'!$C$2:$AC$962,19,FALSE)),-1000)) -> -1000 | AF7: =IF($D7="Unlisted Player",-1001,IFERROR(IF(VLOOKUP($D7,'All-WERTH'!$C$2:$AC$962,20,FALSE)="",-1000,VLOOKUP($D7,'All-WERTH'!$C$2:$AC$962,20,FALSE)),-1000)) -> -1000 | AG7: =IF($D7="Unlisted Player",-1001,IFERROR(IF(VLOOKUP($D7,'All-WERTH'!$C$2:$AC$962,21,FALSE)="",-1000,VLOOKUP($D7,'All-WERTH'!$C$2:$AC$962,21,FALSE)),-1000)) -> -1000 | AH7: =IF($D7="Unlisted Player",-1001,IFERROR(IF(VLOOKUP($D7,'All-WERTH'!$C$2:$AC$962,22,FALSE)="",-1000,VLOOKUP($D7,'All-WERTH'!$C$2:$AC$962,22,FALSE)),-1000)) -> -1000 | AI7: =IF($D7="Unlisted Player",-1001,IFERROR(IF(VLOOKUP($D7,'All-WERTH'!$C$2:$AC$962,23,FALSE)="",-1000,VLOOKUP($D7,'All-WERTH'!$C$2:$AC$962,23,FALSE)),-1000)) -> -1000 | AJ7: =IF($D7="Unlisted Player",-1001,IFERROR(IF(VLOOKUP($D7,'All-WERTH'!$C$2:$AC$962,24,FALSE)="",-1000,VLOOKUP($D7,'All-WERTH'!$C$2:$AC$962,24,FALSE)),-1000)) -> -1000 | AK7: =IF($D7="Unlisted Player",-1001,IFERROR(IF(VLOOKUP($D7,'All-WERTH'!$C$2:$AC$962,25,FALSE)="",-1000,VLOOKUP($D7,'All-WERTH'!$C$2:$AC$962,25,FALSE)),-1000)) -> -1000 | AL7: =IF($D7="Unlisted Player",-1001,IFERROR(IF(VLOOKUP($D7,'All-WERTH'!$C$2:$AC$962,26,FALSE)="",-1000,VLOOKUP($D7,'All-WERTH'!$C$2:$AC$962,26,FALSE)),-1000)) -> -1000 | AM7: =IF($D7="Unlisted Player",-1001,IFERROR(IF(VLOOKUP($D7,'All-WERTH'!$C$2:$AC$962,27,FALSE)="",-1000,VLOOKUP($D7,'All-WERTH'!$C$2:$AC$962,27,FALSE)),-1000)) -> -1000 | AN7: =IF(ISERROR(VLOOKUP($B6,Keepers!$C$2:$D$450,2,FALSE)),B6,"") -> Nolan Arenado | AO7: =IFERROR(INDEX($AN$1:$AN$961,SMALL(IF($AN$1:$AN$961<>"",ROW($AN$1:$AN$961)),ROW(AN7))),"") -> Christian Yelich
A8: Christian Yelich | B8: =IFERROR(INDEX($A$1:$A$961,SMALL(IF($A$1:$A$961<>"",ROW($A$1:$A$961)),ROW(A8))),"") -> Trea Turner | C8: =IFERROR(IF(L8=FALSE,"",CHOOSE(MATCH(RIGHT('Your Roto Draft'!$P$4,LEN('Your Roto Draft'!$P$4)-8),$M$1:$AM$1,0),1+SUMPRODUCT(($L$2:$L$962=TRUE)*($M$2:$M$962<M8))+COUNTIFS($L$2:L8,L8,$M$2:M8,M8)-1,1+SUMPRODUCT(($L$2:$L$962=TRUE)*($N$2:$N$962>N8))+COUNTIFS($L$2:L8,L8,$N$2:N8,N8)-1,1+SUMPRODUCT(($L$2:$L$962=TRUE)*($O$2:$O$962<O8))+COUNTIFS($L$2:L8,L8,$O$2:O8,O8)-1,1+SUMPRODUCT(($L$2:$L$962=TRUE)*($P$2:$P$962>P8))+COUNTIFS($L$2:L8,L8,$P$2:P8,P8)-1,1+SUMPRODUCT(($L$2:$L$962=TRUE)*($Q$2:$Q$962>Q8))+COUNTIFS($L$2:L8,L8,$Q$2:Q8,Q8)-1,1+SUMPRODUCT(($L$2:$L$962=TRUE)*($R$2:$R$962>R8))+COUNTIFS($L$2:L8,L8,$R$2:R8,R8)-1,1+SUMPRODUCT(($L$2:$L$962=TRUE)*($S$2:$S$962>S8))+COUNTIFS($L$2:L8,L8,$S$2:S8,S8)-1,1+SUMPRODUCT(($L$2:$L$962=TRUE)*($T$2:$T$962>T8))+COUNTIFS($L$2:L8,L8,$T$2:T8,T8)-1,1+SUMPRODUCT(($L$2:$L$962=TRUE)*($U$2:$U$962>U8))+COUNTIFS($L$2:L8,L8,$U$2:U8,U8)-1,1+SUMPRODUCT(($L$2:$L$962=TRUE)*($V$2:$V$962>V8))+COUNTIFS($L$2:L8,L8,$V$2:V8,V8)-1,1+SUMPRODUCT(($L$2:$L$962=TRUE)*($W$2:$W$962>W8))+COUNTIFS($L$2:L8,L8,$W$2:W8,W8)-1,1+SUMPRODUCT(($L$2:$L$962=TRUE)*($X$2:$X$962>X8))+COUNTIFS($L$2:L8,L8,$X$2:X8,X8)-1,1+SUMPRODUCT(($L$2:$L$962=TRUE)*($Y$2:$Y$962>Y8))+COUNTIFS($L$2:L8,L8,$Y$2:Y8,Y8)-1,1+SUMPRODUCT(($L$2:$L$962=TRUE)*($Z$2:$Z$962>Z8))+COUNTIFS($L$2:L8,L8,$Z$2:Z8,Z8)-1,1+SUMPRODUCT(($L$2:$L$962=TRUE)*($AA$2:$AA$962>AA8))+COUNTIFS($L$2:L8,L8,$AA$2:AA8,AA8)-1,1+SUMPRODUCT(($L$2:$L$962=TRUE)*($AB$2:$AB$962>AB8))+COUNTIFS($L$2:L8,L8,$AB$2:AB8,AB8)-1,1+SUMPRODUCT(($L$2:$L$962=TRUE)*($AC$2:$AC$962>AC8))+COUNTIFS($L$2:L8,L8,$AC$2:AC8,AC8)-1,1+SUMPRODUCT(($L$2:$L$962=TRUE)*($AD$2:$AD$962>AD8))+COUNTIFS($L$2:L8,L8,$AD$2:AD8,AD8)-1,1+SUMPRODUCT(($L$2:$L$962=TRUE)*($AE$2:$AE$962>AE8))+COUNTIFS($L$2:L8,L8,$AE$2:AE8,AE8)-1,1+SUMPRODUCT(($L$2:$L$962=TRUE)*($AF$2:$AF$962>AF8))+COUNTIFS($L$2:L8,L8,$AF$2:AF8,AF8)-1,1+SUMPRODUCT(($L$2:$L$962=TRUE)*($AG$2:$AG$962>AG8))+COUNTIFS($L$2:L8,L8,$AG$2:AG8,AG8)-1,1+SUMPRODUCT(($L$2:$L$962=TRUE)*($AH$2:$AH$962>AH8))+COUNTIFS($L$2:L8,L8,$AH$2:AH8,AH8)-1,1+SUMPRODUCT(($L$2:$L$962=TRUE)*($AI$2:$AI$962>AI8))+COUNTIFS($L$2:L8,L8,$AI$2:AI8,AI8)-1,1+SUMPRODUCT(($L$2:$L$962=TRUE)*($AJ$2:$AJ$962>AJ8))+COUNTIFS($L$2:L8,L8,$AJ$2:AJ8,AJ8)-1,1+SUMPRODUCT(($L$2:$L$962=TRUE)*($AK$2:$AK$962>AK8))+COUNTIFS($L$2:L8,L8,$AK$2:AK8,AK8)-1,1+SUMPRODUCT(($L$2:$L$962=TRUE)*($AL$2:$AL$962>AL8))+COUNTIFS($L$2:L8,L8,$AL$2:AL8,AL8)-1,1+SUMPRODUCT(($L$2:$L$962=TRUE)*($AM$2:$AM$962>AM8))+COUNTIFS($L$2:L8,L8,$AM$2:AM8,AM8)-1,)),"") -> 443 | D8: Nick Ahmed | E8: =IFERROR(INDEX('Draft Log'!$D$4:$D$806,MATCH(D8,'Draft Log'!$C$4:$C$806,0)),"") ->  | F8: =IFERROR(INDEX('ADP-Rank'!$C$2:$C$832,MATCH(D8,'ADP-Rank'!$A$2:$A$832,0)),"") -> SS | G8: =IFERROR(IF(F8=I8,"",IF(INDEX('Your Roto Draft'!$B$11:$B$634,MATCH(D8,'Your Roto Draft'!$C$11:$C$634,0))="",IF(I8<>"",I8,""),INDEX('Your Roto Draft'!$B$11:$B$634,MATCH(D8,'Your Roto Draft'!$C$11:$C$634,0)))),"") ->  | H8: SS | J8: =INDEX('ADP-Rank'!$AH$2:$AH$832,MATCH(D8,'ADP-Rank'!$A$2:$A$832,0)) -> TRUE | K8: FALSE | L8: =IF(J8=FALSE,FALSE,IF(AND('Your Roto Draft'!$P$6="Hide Drafted Players",K8=TRUE),FALSE,IF(OR('Your Roto Draft'!$P$5="Show All Positions",AND('Your Roto Draft'!$P$5="Only Show: C",H8="C"),AND('Your Roto Draft'!$P$5="Only Show: 1B",H8="1B"),AND('Your Roto Draft'!$P$5="Only Show: 2B",H8="2B"),AND('Your Roto Draft'!$P$5="Only Show: 3B",H8="3B"),AND('Your Roto Draft'!$P$5="Only Show: SS",H8="SS"),AND('Your Roto Draft'!$P$5="Only Show: OF",H8="OF"),AND('Your Roto Draft'!$P$5="Only Show: SP",H8="SP"),AND('Your Roto Draft'!$P$5="Only Show: RP",H8="RP"),AND('Your Roto Draft'!$P$5="Only Show: CI",OR(H8={"1B","3B"})),AND('Your Roto Draft'!$P$5="Only Show: MI",OR(H8={"2B","SS"})),AND('Your Roto Draft'!$P$5="Only Show: IF",OR(H8={"C","1B","2B","3B","SS"})),AND('Your Roto Draft'!$P$5="Only Show: DH",OR(H8={"C","1B","2B","3B","SS","OF","DH"})),AND('Your Roto Draft'!$P$5="Only Show: P",OR(H8={"SP","RP"})),AND('Your Roto Draft'!$P$5="Only Show: LF",ISERROR(SEARCH("LF",VLOOKUP($D8,'ADP-Rank'!$A$2:$D$961,4,FALSE)))=FALSE),AND('Your Roto Draft'!$P$5="Only Show: RF",ISERROR(SEARCH("RF",VLOOKUP($D8,'ADP-Rank'!$A$2:$D$961,4,FALSE)))=FALSE),AND('Your Roto Draft'!$P$5="Only Show: CF",ISERROR(SEARCH("CF",VLOOKUP($D8,'ADP-Rank'!$A$2:$D$961,4,FALSE)))=FALSE)),TRUE,FALSE))) -> TRUE | M8: =IFERROR(IF(VLOOKUP($D8,'ADP-Rank'!$A$2:$AV$961,38,FALSE)="",9999,VLOOKUP($D8,'ADP-Rank'!$A$2:$AV$961,38,FALSE)),9999) -> 431.5 | N8: =IF(D8="Non-Ranked Player",-1001,IFERROR(VLOOKUP($D8,'All-WERTH'!$C$2:$E$962,3,FALSE),-1000)) -> -5.289059475 | O8: =IF(D8="Non-Ranked Player",10000,IFERROR(IF(VLOOKUP(D8,'ADP-Rank'!$A$2:$AJ$961,36,FALSE)="",9999,VLOOKUP(D8,'ADP-Rank'!$A$2:$AJ$961,36,FALSE)),9999)) -> 406 | P8: =IF($D8="Unlisted Player",-1001,IFERROR(IF(VLOOKUP($D8,'All-WERTH'!$C$2:$AC$962,4,FALSE)="",-1000,VLOOKUP($D8,'All-WERTH'!$C$2:$AC$962,4,FALSE)),-1000)) -> -1.64379368 | Q8: =IF($D8="Unlisted Player",-1001,IFERROR(IF(VLOOKUP($D8,'All-WERTH'!$C$2:$AC$962,5,FALSE)="",-1000,VLOOKUP($D8,'All-WERTH'!$C$2:$AC$962,5,FALSE)),-1000)) -> -0.9988030083 | R8: =IF($D8="Unlisted Player",-1001,IFERROR(IF(VLOOKUP($D8,'All-WERTH'!$C$2:$AC$962,6,FALSE)="",-1000,VLOOKUP($D8,'All-WERTH'!$C$2:$AC$962,6,FALSE)),-1000)) -> -1.271483701 | S8: =IF($D8="Unlisted Player",-1001,IFERROR(IF(VLOOKUP($D8,'All-WERTH'!$C$2:$AC$962,7,FALSE)="",-1000,VLOOKUP($D8,'All-WERTH'!$C$2:$AC$962,7,FALSE)),-1000)) -> -0.9440116825 | T8: =IF($D8="Unlisted Player",-1001,IFERROR(IF(VLOOKUP($D8,'All-WERTH'!$C$2:$AC$962,8,FALSE)="",-1000,VLOOKUP($D8,'All-WERTH'!$C$2:$AC$962,8,FALSE)),-1000)) -> -0.4309674033 | U8: =IF($D8="Unlisted Player",-1001,IFERROR(IF(VLOOKUP($D8,'All-WERTH'!$C$2:$AC$962,9,FALSE)="",-1000,VLOOKUP($D8,'All-WERTH'!$C$2:$AC$962,9,FALSE)),-1000)) -> -1000 | V8: =IF($D8="Unlisted Player",-1001,IFERROR(IF(VLOOKUP($D8,'All-WERTH'!$C$2:$AC$962,10,FALSE)="",-1000,VLOOKUP($D8,'All-WERTH'!$C$2:$AC$962,10,FALSE)),-1000)) -> -1000 | W8: =IF($D8="Unlisted Player",-1001,IFERROR(IF(VLOOKUP($D8,'All-WERTH'!$C$2:$AC$962,11,FALSE)="",-1000,VLOOKUP($D8,'All-WERTH'!$C$2:$AC$962,11,FALSE)),-1000)) -> -1000 | X8: =IF($D8="Unlisted Player",-1001,IFERROR(IF(VLOOKUP($D8,'All-WERTH'!$C$2:$AC$962,12,FALSE)="",-1000,VLOOKUP($D8,'All-WERTH'!$C$2:$AC$962,12,FALSE)),-1000)) -> -1000 | Y8: =IF($D8="Unlisted Player",-1001,IFERROR(IF(VLOOKUP($D8,'All-WERTH'!$C$2:$AC$962,13,FALSE)="",-1000,VLOOKUP($D8,'All-WERTH'!$C$2:$AC$962,13,FALSE)),-1000)) -> -1000 | Z8: =IF($D8="Unlisted Player",-1001,IFERROR(IF(VLOOKUP($D8,'All-WERTH'!$C$2:$AC$962,14,FALSE)="",-1000,VLOOKUP($D8,'All-WERTH'!$C$2:$AC$962,14,FALSE)),-1000)) -> -1000 | AA8: =IF($D8="Unlisted Player",-1001,IFERROR(IF(VLOOKUP($D8,'All-WERTH'!$C$2:$AC$962,15,FALSE)="",-1000,VLOOKUP($D8,'All-WERTH'!$C$2:$AC$962,15,FALSE)),-1000)) -> -1000 | AB8: =IF($D8="Unlisted Player",-1001,IFERROR(IF(VLOOKUP($D8,'All-WERTH'!$C$2:$AC$962,16,FALSE)="",-1000,VLOOKUP($D8,'All-WERTH'!$C$2:$AC$962,16,FALSE)),-1000)) -> -1000 | AC8: =IF($D8="Unlisted Player",-1001,IFERROR(IF(VLOOKUP($D8,'All-WERTH'!$C$2:$AC$962,17,FALSE)="",-1000,VLOOKUP($D8,'All-WERTH'!$C$2:$AC$962,17,FALSE)),-1000)) -> -1000 | AD8: =IF($D8="Unlisted Player",-1001,IFERROR(IF(VLOOKUP($D8,'All-WERTH'!$C$2:$AC$962,18,FALSE)="",-1000,VLOOKUP($D8,'All-WERTH'!$C$2:$AC$962,18,FALSE)),-1000)) -> -1000 | AE8: =IF($D8="Unlisted Player",-1001,IFERROR(IF(VLOOKUP($D8,'All-WERTH'!$C$2:$AC$962,19,FALSE)="",-1000,VLOOKUP($D8,'All-WERTH'!$C$2:$AC$962,19,FALSE)),-1000)) -> -1000 | AF8: =IF($D8="Unlisted Player",-1001,IFERROR(IF(VLOOKUP($D8,'All-WERTH'!$C$2:$AC$962,20,FALSE)="",-1000,VLOOKUP($D8,'All-WERTH'!$C$2:$AC$962,20,FALSE)),-1000)) -> -1000 | AG8: =IF($D8="Unlisted Player",-1001,IFERROR(IF(VLOOKUP($D8,'All-WERTH'!$C$2:$AC$962,21,FALSE)="",-1000,VLOOKUP($D8,'All-WERTH'!$C$2:$AC$962,21,FALSE)),-1000)) -> -1000 | AH8: =IF($D8="Unlisted Player",-1001,IFERROR(IF(VLOOKUP($D8,'All-WERTH'!$C$2:$AC$962,22,FALSE)="",-1000,VLOOKUP($D8,'All-WERTH'!$C$2:$AC$962,22,FALSE)),-1000)) -> -1000 | AI8: =IF($D8="Unlisted Player",-1001,IFERROR(IF(VLOOKUP($D8,'All-WERTH'!$C$2:$AC$962,23,FALSE)="",-1000,VLOOKUP($D8,'All-WERTH'!$C$2:$AC$962,23,FALSE)),-1000)) -> -1000 | AJ8: =IF($D8="Unlisted Player",-1001,IFERROR(IF(VLOOKUP($D8,'All-WERTH'!$C$2:$AC$962,24,FALSE)="",-1000,VLOOKUP($D8,'All-WERTH'!$C$2:$AC$962,24,FALSE)),-1000)) -> -1000 | AK8: =IF($D8="Unlisted Player",-1001,IFERROR(IF(VLOOKUP($D8,'All-WERTH'!$C$2:$AC$962,25,FALSE)="",-1000,VLOOKUP($D8,'All-WERTH'!$C$2:$AC$962,25,FALSE)),-1000)) -> -1000 | AL8: =IF($D8="Unlisted Player",-1001,IFERROR(IF(VLOOKUP($D8,'All-WERTH'!$C$2:$AC$962,26,FALSE)="",-1000,VLOOKUP($D8,'All-WERTH'!$C$2:$AC$962,26,FALSE)),-1000)) -> -1000 | AM8: =IF($D8="Unlisted Player",-1001,IFERROR(IF(VLOOKUP($D8,'All-WERTH'!$C$2:$AC$962,27,FALSE)="",-1000,VLOOKUP($D8,'All-WERTH'!$C$2:$AC$962,27,FALSE)),-1000)) -> -1000 | AN8: =IF(ISERROR(VLOOKUP($B7,Keepers!$C$2:$D$450,2,FALSE)),B7,"") -> Christian Yelich | AO8: =IFERROR(INDEX($AN$1:$AN$961,SMALL(IF($AN$1:$AN$961<>"",ROW($AN$1:$AN$961)),ROW(AN8))),"") -> Trea Turner
A9: Trea Turner | B9: =IFERROR(INDEX($A$1:$A$961,SMALL(IF($A$1:$A$961<>"",ROW($A$1:$A$961)),ROW(A9))),"") -> Chris Sale | C9: =IFERROR(IF(L9=FALSE,"",CHOOSE(MATCH(RIGHT('Your Roto Draft'!$P$4,LEN('Your Roto Draft'!$P$4)-8),$M$1:$AM$1,0),1+SUMPRODUCT(($L$2:$L$962=TRUE)*($M$2:$M$962<M9))+COUNTIFS($L$2:L9,L9,$M$2:M9,M9)-1,1+SUMPRODUCT(($L$2:$L$962=TRUE)*($N$2:$N$962>N9))+COUNTIFS($L$2:L9,L9,$N$2:N9,N9)-1,1+SUMPRODUCT(($L$2:$L$962=TRUE)*($O$2:$O$962<O9))+COUNTIFS($L$2:L9,L9,$O$2:O9,O9)-1,1+SUMPRODUCT(($L$2:$L$962=TRUE)*($P$2:$P$962>P9))+COUNTIFS($L$2:L9,L9,$P$2:P9,P9)-1,1+SUMPRODUCT(($L$2:$L$962=TRUE)*($Q$2:$Q$962>Q9))+COUNTIFS($L$2:L9,L9,$Q$2:Q9,Q9)-1,1+SUMPRODUCT(($L$2:$L$962=TRUE)*($R$2:$R$962>R9))+COUNTIFS($L$2:L9,L9,$R$2:R9,R9)-1,1+SUMPRODUCT(($L$2:$L$962=TRUE)*($S$2:$S$962>S9))+COUNTIFS($L$2:L9,L9,$S$2:S9,S9)-1,1+SUMPRODUCT(($L$2:$L$962=TRUE)*($T$2:$T$962>T9))+COUNTIFS($L$2:L9,L9,$T$2:T9,T9)-1,1+SUMPRODUCT(($L$2:$L$962=TRUE)*($U$2:$U$962>U9))+COUNTIFS($L$2:L9,L9,$U$2:U9,U9)-1,1+SUMPRODUCT(($L$2:$L$962=TRUE)*($V$2:$V$962>V9))+COUNTIFS($L$2:L9,L9,$V$2:V9,V9)-1,1+SUMPRODUCT(($L$2:$L$962=TRUE)*($W$2:$W$962>W9))+COUNTIFS($L$2:L9,L9,$W$2:W9,W9)-1,1+SUMPRODUCT(($L$2:$L$962=TRUE)*($X$2:$X$962>X9))+COUNTIFS($L$2:L9,L9,$X$2:X9,X9)-1,1+SUMPRODUCT(($L$2:$L$962=TRUE)*($Y$2:$Y$962>Y9))+COUNTIFS($L$2:L9,L9,$Y$2:Y9,Y9)-1,1+SUMPRODUCT(($L$2:$L$962=TRUE)*($Z$2:$Z$962>Z9))+COUNTIFS($L$2:L9,L9,$Z$2:Z9,Z9)-1,1+SUMPRODUCT(($L$2:$L$962=TRUE)*($AA$2:$AA$962>AA9))+COUNTIFS($L$2:L9,L9,$AA$2:AA9,AA9)-1,1+SUMPRODUCT(($L$2:$L$962=TRUE)*($AB$2:$AB$962>AB9))+COUNTIFS($L$2:L9,L9,$AB$2:AB9,AB9)-1,1+SUMPRODUCT(($L$2:$L$962=TRUE)*($AC$2:$AC$962>AC9))+COUNTIFS($L$2:L9,L9,$AC$2:AC9,AC9)-1,1+SUMPRODUCT(($L$2:$L$962=TRUE)*($AD$2:$AD$962>AD9))+COUNTIFS($L$2:L9,L9,$AD$2:AD9,AD9)-1,1+SUMPRODUCT(($L$2:$L$962=TRUE)*($AE$2:$AE$962>AE9))+COUNTIFS($L$2:L9,L9,$AE$2:AE9,AE9)-1,1+SUMPRODUCT(($L$2:$L$962=TRUE)*($AF$2:$AF$962>AF9))+COUNTIFS($L$2:L9,L9,$AF$2:AF9,AF9)-1,1+SUMPRODUCT(($L$2:$L$962=TRUE)*($AG$2:$AG$962>AG9))+COUNTIFS($L$2:L9,L9,$AG$2:AG9,AG9)-1,1+SUMPRODUCT(($L$2:$L$962=TRUE)*($AH$2:$AH$962>AH9))+COUNTIFS($L$2:L9,L9,$AH$2:AH9,AH9)-1,1+SUMPRODUCT(($L$2:$L$962=TRUE)*($AI$2:$AI$962>AI9))+COUNTIFS($L$2:L9,L9,$AI$2:AI9,AI9)-1,1+SUMPRODUCT(($L$2:$L$962=TRUE)*($AJ$2:$AJ$962>AJ9))+COUNTIFS($L$2:L9,L9,$AJ$2:AJ9,AJ9)-1,1+SUMPRODUCT(($L$2:$L$962=TRUE)*($AK$2:$AK$962>AK9))+COUNTIFS($L$2:L9,L9,$AK$2:AK9,AK9)-1,1+SUMPRODUCT(($L$2:$L$962=TRUE)*($AL$2:$AL$962>AL9))+COUNTIFS($L$2:L9,L9,$AL$2:AL9,AL9)-1,1+SUMPRODUCT(($L$2:$L$962=TRUE)*($AM$2:$AM$962>AM9))+COUNTIFS($L$2:L9,L9,$AM$2:AM9,AM9)-1,)),"") -> 52 | D9: Ozzie Albies | E9: =IFERROR(INDEX('Draft Log'!$D$4:$D$806,MATCH(D9,'Draft Log'!$C$4:$C$806,0)),"") ->  | F9: =IFERROR(INDEX('ADP-Rank'!$C$2:$C$832,MATCH(D9,'ADP-Rank'!$A$2:$A$832,0)),"") -> 2B | G9: =IFERROR(IF(F9=I9,"",IF(INDEX('Your Roto Draft'!$B$11:$B$634,MATCH(D9,'Your Roto Draft'!$C$11:$C$634,0))="",IF(I9<>"",I9,""),INDEX('Your Roto Draft'!$B$11:$B$634,MATCH(D9,'Your Roto Draft'!$C$11:$C$634,0)))),"") ->  | H9: 2B | J9: =INDEX('ADP-Rank'!$AH$2:$AH$832,MATCH(D9,'ADP-Rank'!$A$2:$A$832,0)) -> TRUE | K9: FALSE | L9: =IF(J9=FALSE,FALSE,IF(AND('Your Roto Draft'!$P$6="Hide Drafted Players",K9=TRUE),FALSE,IF(OR('Your Roto Draft'!$P$5="Show All Positions",AND('Your Roto Draft'!$P$5="Only Show: C",H9="C"),AND('Your Roto Draft'!$P$5="Only Show: 1B",H9="1B"),AND('Your Roto Draft'!$P$5="Only Show: 2B",H9="2B"),AND('Your Roto Draft'!$P$5="Only Show: 3B",H9="3B"),AND('Your Roto Draft'!$P$5="Only Show: SS",H9="SS"),AND('Your Roto Draft'!$P$5="Only Show: OF",H9="OF"),AND('Your Roto Draft'!$P$5="Only Show: SP",H9="SP"),AND('Your Roto Draft'!$P$5="Only Show: RP",H9="RP"),AND('Your Roto Draft'!$P$5="Only Show: CI",OR(H9={"1B","3B"})),AND('Your Roto Draft'!$P$5="Only Show: MI",OR(H9={"2B","SS"})),AND('Your Roto Draft'!$P$5="Only Show: IF",OR(H9={"C","1B","2B","3B","SS"})),AND('Your Roto Draft'!$P$5="Only Show: DH",OR(H9={"C","1B","2B","3B","SS","OF","DH"})),AND('Your Roto Draft'!$P$5="Only Show: P",OR(H9={"SP","RP"})),AND('Your Roto Draft'!$P$5="Only Show: LF",ISERROR(SEARCH("LF",VLOOKUP($D9,'ADP-Rank'!$A$2:$D$961,4,FALSE)))=FALSE),AND('Your Roto Draft'!$P$5="Only Show: RF",ISERROR(SEARCH("RF",VLOOKUP($D9,'ADP-Rank'!$A$2:$D$961,4,FALSE)))=FALSE),AND('Your Roto Draft'!$P$5="Only Show: CF",ISERROR(SEARCH("CF",VLOOKUP($D9,'ADP-Rank'!$A$2:$D$961,4,FALSE)))=FALSE)),TRUE,FALSE))) -> TRUE | M9: =IFERROR(IF(VLOOKUP($D9,'ADP-Rank'!$A$2:$AV$961,38,FALSE)="",9999,VLOOKUP($D9,'ADP-Rank'!$A$2:$AV$961,38,FALSE)),9999) -> 53.3 | N9: =IF(D9="Non-Ranked Player",-1001,IFERROR(VLOOKUP($D9,'All-WERTH'!$C$2:$E$962,3,FALSE),-1000)) -> 2.656360314 | O9: =IF(D9="Non-Ranked Player",10000,IFERROR(IF(VLOOKUP(D9,'ADP-Rank'!$A$2:$AJ$961,36,FALSE)="",9999,VLOOKUP(D9,'ADP-Rank'!$A$2:$AJ$961,36,FALSE)),9999)) -> 51 | P9: =IF($D9="Unlisted Player",-1001,IFERROR(IF(VLOOKUP($D9,'All-WERTH'!$C$2:$AC$962,4,FALSE)="",-1000,VLOOKUP($D9,'All-WERTH'!$C$2:$AC$962,4,FALSE)),-1000)) -> 0.6480566631 | Q9: =IF($D9="Unlisted Player",-1001,IFERROR(IF(VLOOKUP($D9,'All-WERTH'!$C$2:$AC$962,5,FALSE)="",-1000,VLOOKUP($D9,'All-WERTH'!$C$2:$AC$962,5,FALSE)),-1000)) -> -0.07422302937 | R9: =IF($D9="Unlisted Player",-1001,IFERROR(IF(VLOOKUP($D9,'All-WERTH'!$C$2:$AC$962,6,FALSE)="",-1000,VLOOKUP($D9,'All-WERTH'!$C$2:$AC$962,6,FALSE)),-1000)) -> 1.182788239 | S9: =IF($D9="Unlisted Player",-1001,IFERROR(IF(VLOOKUP($D9,'All-WERTH'!$C$2:$AC$962,7,FALSE)="",-1000,VLOOKUP($D9,'All-WERTH'!$C$2:$AC$962,7,FALSE)),-1000)) -> 0.170728246 | T9: =IF($D9="Unlisted Player",-1001,IFERROR(IF(VLOOKUP($D9,'All-WERTH'!$C$2:$AC$962,8,FALSE)="",-1000,VLOOKUP($D9,'All-WERTH'!$C$2:$AC$962,8,FALSE)),-1000)) -> 0.7290101955 | U9: =IF($D9="Unlisted Player",-1001,IFERROR(IF(VLOOKUP($D9,'All-WERTH'!$C$2:$AC$962,9,FALSE)="",-1000,VLOOKUP($D9,'All-WERTH'!$C$2:$AC$962,9,FALSE)),-1000)) -> -1000 | V9: =IF($D9="Unlisted Player",-1001,IFERROR(IF(VLOOKUP($D9,'All-WERTH'!$C$2:$AC$962,10,FALSE)="",-1000,VLOOKUP($D9,'All-WERTH'!$C$2:$AC$962,10,FALSE)),-1000)) -> -1000 | W9: =IF($D9="Unlisted Player",-1001,IFERROR(IF(VLOOKUP($D9,'All-WERTH'!$C$2:$AC$962,11,FALSE)="",-1000,VLOOKUP($D9,'All-WERTH'!$C$2:$AC$962,11,FALSE)),-1000)) -> -1000 | X9: =IF($D9="Unlisted Player",-1001,IFERROR(IF(VLOOKUP($D9,'All-WERTH'!$C$2:$AC$962,12,FALSE)="",-1000,VLOOKUP($D9,'All-WERTH'!$C$2:$AC$962,12,FALSE)),-1000)) -> -1000 | Y9: =IF($D9="Unlisted Player",-1001,IFERROR(IF(VLOOKUP($D9,'All-WERTH'!$C$2:$AC$962,13,FALSE)="",-1000,VLOOKUP($D9,'All-WERTH'!$C$2:$AC$962,13,FALSE)),-1000)) -> -1000 | Z9: =IF($D9="Unlisted Player",-1001,IFERROR(IF(VLOOKUP($D9,'All-WERTH'!$C$2:$AC$962,14,FALSE)="",-1000,VLOOKUP($D9,'All-WERTH'!$C$2:$AC$962,14,FALSE)),-1000)) -> -1000 | AA9: =IF($D9="Unlisted Player",-1001,IFERROR(IF(VLOOKUP($D9,'All-WERTH'!$C$2:$AC$962,15,FALSE)="",-1000,VLOOKUP($D9,'All-WERTH'!$C$2:$AC$962,15,FALSE)),-1000)) -> -1000 | AB9: =IF($D9="Unlisted Player",-1001,IFERROR(IF(VLOOKUP($D9,'All-WERTH'!$C$2:$AC$962,16,FALSE)="",-1000,VLOOKUP($D9,'All-WERTH'!$C$2:$AC$962,16,FALSE)),-1000)) -> -1000 | AC9: =IF($D9="Unlisted Player",-1001,IFERROR(IF(VLOOKUP($D9,'All-WERTH'!$C$2:$AC$962,17,FALSE)="",-1000,VLOOKUP($D9,'All-WERTH'!$C$2:$AC$962,17,FALSE)),-1000)) -> -1000 | AD9: =IF($D9="Unlisted Player",-1001,IFERROR(IF(VLOOKUP($D9,'All-WERTH'!$C$2:$AC$962,18,FALSE)="",-1000,VLOOKUP($D9,'All-WERTH'!$C$2:$AC$962,18,FALSE)),-1000)) -> -1000 | AE9: =IF($D9="Unlisted Player",-1001,IFERROR(IF(VLOOKUP($D9,'All-WERTH'!$C$2:$AC$962,19,FALSE)="",-1000,VLOOKUP($D9,'All-WERTH'!$C$2:$AC$962,19,FALSE)),-1000)) -> -1000 | AF9: =IF($D9="Unlisted Player",-1001,IFERROR(IF(VLOOKUP($D9,'All-WERTH'!$C$2:$AC$962,20,FALSE)="",-1000,VLOOKUP($D9,'All-WERTH'!$C$2:$AC$962,20,FALSE)),-1000)) -> -1000 | AG9: =IF($D9="Unlisted Player",-1001,IFERROR(IF(VLOOKUP($D9,'All-WERTH'!$C$2:$AC$962,21,FALSE)="",-1000,VLOOKUP($D9,'All-WERTH'!$C$2:$AC$962,21,FALSE)),-1000)) -> -1000 | AH9: =IF($D9="Unlisted Player",-1001,IFERROR(IF(VLOOKUP($D9,'All-WERTH'!$C$2:$AC$962,22,FALSE)="",-1000,VLOOKUP($D9,'All-WERTH'!$C$2:$AC$962,22,FALSE)),-1000)) -> -1000 | AI9: =IF($D9="Unlisted Player",-1001,IFERROR(IF(VLOOKUP($D9,'All-WERTH'!$C$2:$AC$962,23,FALSE)="",-1000,VLOOKUP($D9,'All-WERTH'!$C$2:$AC$962,23,FALSE)),-1000)) -> -1000 | AJ9: =IF($D9="Unlisted Player",-1001,IFERROR(IF(VLOOKUP($D9,'All-WERTH'!$C$2:$AC$962,24,FALSE)="",-1000,VLOOKUP($D9,'All-WERTH'!$C$2:$AC$962,24,FALSE)),-1000)) -> -1000 | AK9: =IF($D9="Unlisted Player",-1001,IFERROR(IF(VLOOKUP($D9,'All-WERTH'!$C$2:$AC$962,25,FALSE)="",-1000,VLOOKUP($D9,'All-WERTH'!$C$2:$AC$962,25,FALSE)),-1000)) -> -1000 | AL9: =IF($D9="Unlisted Player",-1001,IFERROR(IF(VLOOKUP($D9,'All-WERTH'!$C$2:$AC$962,26,FALSE)="",-1000,VLOOKUP($D9,'All-WERTH'!$C$2:$AC$962,26,FALSE)),-1000)) -> -1000 | AM9: =IF($D9="Unlisted Player",-1001,IFERROR(IF(VLOOKUP($D9,'All-WERTH'!$C$2:$AC$962,27,FALSE)="",-1000,VLOOKUP($D9,'All-WERTH'!$C$2:$AC$962,27,FALSE)),-1000)) -> -1000 | AN9: =IF(ISERROR(VLOOKUP($B8,Keepers!$C$2:$D$450,2,FALSE)),B8,"") -> Trea Turner | AO9: =IFERROR(INDEX($AN$1:$AN$961,SMALL(IF($AN$1:$AN$961<>"",ROW($AN$1:$AN$961)),ROW(AN9))),"") -> Chris Sale
A10: Chris Sale | B10: =IFERROR(INDEX($A$1:$A$961,SMALL(IF($A$1:$A$961<>"",ROW($A$1:$A$961)),ROW(A10))),"") -> Jacob deGrom | C10: =IFERROR(IF(L10=FALSE,"",CHOOSE(MATCH(RIGHT('Your Roto Draft'!$P$4,LEN('Your Roto Draft'!$P$4)-8),$M$1:$AM$1,0),1+SUMPRODUCT(($L$2:$L$962=TRUE)*($M$2:$M$962<M10))+COUNTIFS($L$2:L10,L10,$M$2:M10,M10)-1,1+SUMPRODUCT(($L$2:$L$962=TRUE)*($N$2:$N$962>N10))+COUNTIFS($L$2:L10,L10,$N$2:N10,N10)-1,1+SUMPRODUCT(($L$2:$L$962=TRUE)*($O$2:$O$962<O10))+COUNTIFS($L$2:L10,L10,$O$2:O10,O10)-1,1+SUMPRODUCT(($L$2:$L$962=TRUE)*($P$2:$P$962>P10))+COUNTIFS($L$2:L10,L10,$P$2:P10,P10)-1,1+SUMPRODUCT(($L$2:$L$962=TRUE)*($Q$2:$Q$962>Q10))+COUNTIFS($L$2:L10,L10,$Q$2:Q10,Q10)-1,1+SUMPRODUCT(($L$2:$L$962=TRUE)*($R$2:$R$962>R10))+COUNTIFS($L$2:L10,L10,$R$2:R10,R10)-1,1+SUMPRODUCT(($L$2:$L$962=TRUE)*($S$2:$S$962>S10))+COUNTIFS($L$2:L10,L10,$S$2:S10,S10)-1,1+SUMPRODUCT(($L$2:$L$962=TRUE)*($T$2:$T$962>T10))+COUNTIFS($L$2:L10,L10,$T$2:T10,T10)-1,1+SUMPRODUCT(($L$2:$L$962=TRUE)*($U$2:$U$962>U10))+COUNTIFS($L$2:L10,L10,$U$2:U10,U10)-1,1+SUMPRODUCT(($L$2:$L$962=TRUE)*($V$2:$V$962>V10))+COUNTIFS($L$2:L10,L10,$V$2:V10,V10)-1,1+SUMPRODUCT(($L$2:$L$962=TRUE)*($W$2:$W$962>W10))+COUNTIFS($L$2:L10,L10,$W$2:W10,W10)-1,1+SUMPRODUCT(($L$2:$L$962=TRUE)*($X$2:$X$962>X10))+COUNTIFS($L$2:L10,L10,$X$2:X10,X10)-1,1+SUMPRODUCT(($L$2:$L$962=TRUE)*($Y$2:$Y$962>Y10))+COUNTIFS($L$2:L10,L10,$Y$2:Y10,Y10)-1,1+SUMPRODUCT(($L$2:$L$962=TRUE)*($Z$2:$Z$962>Z10))+COUNTIFS($L$2:L10,L10,$Z$2:Z10,Z10)-1,1+SUMPRODUCT(($L$2:$L$962=TRUE)*($AA$2:$AA$962>AA10))+COUNTIFS($L$2:L10,L10,$AA$2:AA10,AA10)-1,1+SUMPRODUCT(($L$2:$L$962=TRUE)*($AB$2:$AB$962>AB10))+COUNTIFS($L$2:L10,L10,$AB$2:AB10,AB10)-1,1+SUMPRODUCT(($L$2:$L$962=TRUE)*($AC$2:$AC$962>AC10))+COUNTIFS($L$2:L10,L10,$AC$2:AC10,AC10)-1,1+SUMPRODUCT(($L$2:$L$962=TRUE)*($AD$2:$AD$962>AD10))+COUNTIFS($L$2:L10,L10,$AD$2:AD10,AD10)-1,1+SUMPRODUCT(($L$2:$L$962=TRUE)*($AE$2:$AE$962>AE10))+COUNTIFS($L$2:L10,L10,$AE$2:AE10,AE10)-1,1+SUMPRODUCT(($L$2:$L$962=TRUE)*($AF$2:$AF$962>AF10))+COUNTIFS($L$2:L10,L10,$AF$2:AF10,AF10)-1,1+SUMPRODUCT(($L$2:$L$962=TRUE)*($AG$2:$AG$962>AG10))+COUNTIFS($L$2:L10,L10,$AG$2:AG10,AG10)-1,1+SUMPRODUCT(($L$2:$L$962=TRUE)*($AH$2:$AH$962>AH10))+COUNTIFS($L$2:L10,L10,$AH$2:AH10,AH10)-1,1+SUMPRODUCT(($L$2:$L$962=TRUE)*($AI$2:$AI$962>AI10))+COUNTIFS($L$2:L10,L10,$AI$2:AI10,AI10)-1,1+SUMPRODUCT(($L$2:$L$962=TRUE)*($AJ$2:$AJ$962>AJ10))+COUNTIFS($L$2:L10,L10,$AJ$2:AJ10,AJ10)-1,1+SUMPRODUCT(($L$2:$L$962=TRUE)*($AK$2:$AK$962>AK10))+COUNTIFS($L$2:L10,L10,$AK$2:AK10,AK10)-1,1+SUMPRODUCT(($L$2:$L$962=TRUE)*($AL$2:$AL$962>AL10))+COUNTIFS($L$2:L10,L10,$AL$2:AL10,AL10)-1,1+SUMPRODUCT(($L$2:$L$962=TRUE)*($AM$2:$AM$962>AM10))+COUNTIFS($L$2:L10,L10,$AM$2:AM10,AM10)-1,)),"") -> 447 | D10: Sandy Alcantara | E10: =IFERROR(INDEX('Draft Log'!$D$4:$D$806,MATCH(D10,'Draft Log'!$C$4:$C$806,0)),"") ->  | F10: =IFERROR(INDEX('ADP-Rank'!$C$2:$C$832,MATCH(D10,'ADP-Rank'!$A$2:$A$832,0)),"") -> SP | G10: =IFERROR(IF(F10=I10,"",IF(INDEX('Your Roto Draft'!$B$11:$B$634,MATCH(D10,'Your Roto Draft'!$C$11:$C$634,0))="",IF(I10<>"",I10,""),INDEX('Your Roto Draft'!$B$11:$B$634,MATCH(D10,'Your Roto Draft'!$C$11:$C$634,0)))),"") ->  | H10: SP | J10: =INDEX('ADP-Rank'!$AH$2:$AH$832,MATCH(D10,'ADP-Rank'!$A$2:$A$832,0)) -> TRUE | K10: FALSE | L10: =IF(J10=FALSE,FALSE,IF(AND('Your Roto Draft'!$P$6="Hide Drafted Players",K10=TRUE),FALSE,IF(OR('Your Roto Draft'!$P$5="Show All Positions",AND('Your Roto Draft'!$P$5="Only Show: C",H10="C"),AND('Your Roto Draft'!$P$5="Only Show: 1B",H10="1B"),AND('Your Roto Draft'!$P$5="Only Show: 2B",H10="2B"),AND('Your Roto Draft'!$P$5="Only Show: 3B",H10="3B"),AND('Your Roto Draft'!$P$5="Only Show: SS",H10="SS"),AND('Your Roto Draft'!$P$5="Only Show: OF",H10="OF"),AND('Your Roto Draft'!$P$5="Only Show: SP",H10="SP"),AND('Your Roto Draft'!$P$5="Only Show: RP",H10="RP"),AND('Your Roto Draft'!$P$5="Only Show: CI",OR(H10={"1B","3B"})),AND('Your Roto Draft'!$P$5="Only Show: MI",OR(H10={"2B","SS"})),AND('Your Roto Draft'!$P$5="Only Show: IF",OR(H10={"C","1B","2B","3B","SS"})),AND('Your Roto Draft'!$P$5="Only Show: DH",OR(H10={"C","1B","2B","3B","SS","OF","DH"})),AND('Your Roto Draft'!$P$5="Only Show: P",OR(H10={"SP","RP"})),AND('Your Roto Draft'!$P$5="Only Show: LF",ISERROR(SEARCH("LF",VLOOKUP($D10,'ADP-Rank'!$A$2:$D$961,4,FALSE)))=FALSE),AND('Your Roto Draft'!$P$5="Only Show: RF",ISERROR(SEARCH("RF",VLOOKUP($D10,'ADP-Rank'!$A$2:$D$961,4,FALSE)))=FALSE),AND('Your Roto Draft'!$P$5="Only Show: CF",ISERROR(SEARCH("CF",VLOOKUP($D10,'ADP-Rank'!$A$2:$D$961,4,FALSE)))=FALSE)),TRUE,FALSE))) -> TRUE | M10: =IFERROR(IF(VLOOKUP($D10,'ADP-Rank'!$A$2:$AV$961,38,FALSE)="",9999,VLOOKUP($D10,'ADP-Rank'!$A$2:$AV$961,38,FALSE)),9999) -> 440 | N10: =IF(D10="Non-Ranked Player",-1001,IFERROR(VLOOKUP($D10,'All-WERTH'!$C$2:$E$962,3,FALSE),-1000)) -> -8.399095427 | O10: =IF(D10="Non-Ranked Player",10000,IFERROR(IF(VLOOKUP(D10,'ADP-Rank'!$A$2:$AJ$961,36,FALSE)="",9999,VLOOKUP(D10,'ADP-Rank'!$A$2:$AJ$961,36,FALSE)),9999)) -> 492 | P10: =IF($D10="Unlisted Player",-1001,IFERROR(IF(VLOOKUP($D10,'All-WERTH'!$C$2:$AC$962,4,FALSE)="",-1000,VLOOKUP($D10,'All-WERTH'!$C$2:$AC$962,4,FALSE)),-1000)) -> -1000 | Q10: =IF($D10="Unlisted Player",-1001,IFERROR(IF(VLOOKUP($D10,'All-WERTH'!$C$2:$AC$962,5,FALSE)="",-1000,VLOOKUP($D10,'All-WERTH'!$C$2:$AC$962,5,FALSE)),-1000)) -> -1000 | R10: =IF($D10="Unlisted Player",-1001,IFERROR(IF(VLOOKUP($D10,'All-WERTH'!$C$2:$AC$962,6,FALSE)="",-1000,VLOOKUP($D10,'All-WERTH'!$C$2:$AC$962,6,FALSE)),-1000)) -> -1000 | S10: =IF($D10="Unlisted Player",-1001,IFERROR(IF(VLOOKUP($D10,'All-WERTH'!$C$2:$AC$962,7,FALSE)="",-1000,VLOOKUP($D10,'All-WERTH'!$C$2:$AC$962,7,FALSE)),-1000)) -> -1000 | T10: =IF($D10="Unlisted Player",-1001,IFERROR(IF(VLOOKUP($D10,'All-WERTH'!$C$2:$AC$962,8,FALSE)="",-1000,VLOOKUP($D10,'All-WERTH'!$C$2:$AC$962,8,FALSE)),-1000)) -> -1000 | U10: =IF($D10="Unlisted Player",-1001,IFERROR(IF(VLOOKUP($D10,'All-WERTH'!$C$2:$AC$962,9,FALSE)="",-1000,VLOOKUP($D10,'All-WERTH'!$C$2:$AC$962,9,FALSE)),-1000)) -> -1000 | V10: =IF($D10="Unlisted Player",-1001,IFERROR(IF(VLOOKUP($D10,'All-WERTH'!$C$2:$AC$962,10,FALSE)="",-1000,VLOOKUP($D10,'All-WERTH'!$C$2:$AC$962,10,FALSE)),-1000)) -> -1000 | W10: =IF($D10="Unlisted Player",-1001,IFERROR(IF(VLOOKUP($D10,'All-WERTH'!$C$2:$AC$962,11,FALSE)="",-1000,VLOOKUP($D10,'All-WERTH'!$C$2:$AC$962,11,FALSE)),-1000)) -> -1000 | X10: =IF($D10="Unlisted Player",-1001,IFERROR(IF(VLOOKUP($D10,'All-WERTH'!$C$2:$AC$962,12,FALSE)="",-1000,VLOOKUP($D10,'All-WERTH'!$C$2:$AC$962,12,FALSE)),-1000)) -> -1000 | Y10: =IF($D10="Unlisted Player",-1001,IFERROR(IF(VLOOKUP($D10,'All-WERTH'!$C$2:$AC$962,13,FALSE)="",-1000,VLOOKUP($D10,'All-WERTH'!$C$2:$AC$962,13,FALSE)),-1000)) -> -1000 | Z10: =IF($D10="Unlisted Player",-1001,IFERROR(IF(VLOOKUP($D10,'All-WERTH'!$C$2:$AC$962,14,FALSE)="",-1000,VLOOKUP($D10,'All-WERTH'!$C$2:$AC$962,14,FALSE)),-1000)) -> -1000 | AA10: =IF($D10="Unlisted Player",-1001,IFERROR(IF(VLOOKUP($D10,'All-WERTH'!$C$2:$AC$962,15,FALSE)="",-1000,VLOOKUP($D10,'All-WERTH'!$C$2:$AC$962,15,FALSE)),-1000)) -> -1000 | AB10: =IF($D10="Unlisted Player",-1001,IFERROR(IF(VLOOKUP($D10,'All-WERTH'!$C$2:$AC$962,16,FALSE)="",-1000,VLOOKUP($D10,'All-WERTH'!$C$2:$AC$962,16,FALSE)),-1000)) -> -0.98403835 | AC10: =IF($D10="Unlisted Player",-1001,IFERROR(IF(VLOOKUP($D10,'All-WERTH'!$C$2:$AC$962,17,FALSE)="",-1000,VLOOKUP($D10,'All-WERTH'!$C$2:$AC$962,17,FALSE)),-1000)) -> -0.5767827889 | AD10: =IF($D10="Unlisted Player",-1001,IFERROR(IF(VLOOKUP($D10,'All-WERTH'!$C$2:$AC$962,18,FALSE)="",-1000,VLOOKUP($D10,'All-WERTH'!$C$2:$AC$962,18,FALSE)),-1000)) -> -1.392933229 | AE10: =IF($D10="Unlisted Player",-1001,IFERROR(IF(VLOOKUP($D10,'All-WERTH'!$C$2:$AC$962,19,FALSE)="",-1000,VLOOKUP($D10,'All-WERTH'!$C$2:$AC$962,19,FALSE)),-1000)) -> -2.534269123 | AF10: =IF($D10="Unlisted Player",-1001,IFERROR(IF(VLOOKUP($D10,'All-WERTH'!$C$2:$AC$962,20,FALSE)="",-1000,VLOOKUP($D10,'All-WERTH'!$C$2:$AC$962,20,FALSE)),-1000)) -> -2.911071937 | AG10: =IF($D10="Unlisted Player",-1001,IFERROR(IF(VLOOKUP($D10,'All-WERTH'!$C$2:$AC$962,21,FALSE)="",-1000,VLOOKUP($D10,'All-WERTH'!$C$2:$AC$962,21,FALSE)),-1000)) -> -1000 | AH10: =IF($D10="Unlisted Player",-1001,IFERROR(IF(VLOOKUP($D10,'All-WERTH'!$C$2:$AC$962,22,FALSE)="",-1000,VLOOKUP($D10,'All-WERTH'!$C$2:$AC$962,22,FALSE)),-1000)) -> -1000 | AI10: =IF($D10="Unlisted Player",-1001,IFERROR(IF(VLOOKUP($D10,'All-WERTH'!$C$2:$AC$962,23,FALSE)="",-1000,VLOOKUP($D10,'All-WERTH'!$C$2:$AC$962,23,FALSE)),-1000)) -> -1000 | AJ10: =IF($D10="Unlisted Player",-1001,IFERROR(IF(VLOOKUP($D10,'All-WERTH'!$C$2:$AC$962,24,FALSE)="",-1000,VLOOKUP($D10,'All-WERTH'!$C$2:$AC$962,24,FALSE)),-1000)) -> -1000 | AK10: =IF($D10="Unlisted Player",-1001,IFERROR(IF(VLOOKUP($D10,'All-WERTH'!$C$2:$AC$962,25,FALSE)="",-1000,VLOOKUP($D10,'All-WERTH'!$C$2:$AC$962,25,FALSE)),-1000)) -> -1000 | AL10: =IF($D10="Unlisted Player",-1001,IFERROR(IF(VLOOKUP($D10,'All-WERTH'!$C$2:$AC$962,26,FALSE)="",-1000,VLOOKUP($D10,'All-WERTH'!$C$2:$AC$962,26,FALSE)),-1000)) -> -1000 | AM10: =IF($D10="Unlisted Player",-1001,IFERROR(IF(VLOOKUP($D10,'All-WERTH'!$C$2:$AC$962,27,FALSE)="",-1000,VLOOKUP($D10,'All-WERTH'!$C$2:$AC$962,27,FALSE)),-1000)) -> -1000 | AN10: =IF(ISERROR(VLOOKUP($B9,Keepers!$C$2:$D$450,2,FALSE)),B9,"") -> Chris Sale | AO10: =IFERROR(INDEX($AN$1:$AN$961,SMALL(IF($AN$1:$AN$961<>"",ROW($AN$1:$AN$961)),ROW(AN10))),"") -> Jacob deGrom
A11: Jacob deGrom | B11: =IFERROR(INDEX($A$1:$A$961,SMALL(IF($A$1:$A$961<>"",ROW($A$1:$A$961)),ROW(A11))),"") -> Ronald Acuna | C11: =IFERROR(IF(L11=FALSE,"",CHOOSE(MATCH(RIGHT('Your Roto Draft'!$P$4,LEN('Your Roto Draft'!$P$4)-8),$M$1:$AM$1,0),1+SUMPRODUCT(($L$2:$L$962=TRUE)*($M$2:$M$962<M11))+COUNTIFS($L$2:L11,L11,$M$2:M11,M11)-1,1+SUMPRODUCT(($L$2:$L$962=TRUE)*($N$2:$N$962>N11))+COUNTIFS($L$2:L11,L11,$N$2:N11,N11)-1,1+SUMPRODUCT(($L$2:$L$962=TRUE)*($O$2:$O$962<O11))+COUNTIFS($L$2:L11,L11,$O$2:O11,O11)-1,1+SUMPRODUCT(($L$2:$L$962=TRUE)*($P$2:$P$962>P11))+COUNTIFS($L$2:L11,L11,$P$2:P11,P11)-1,1+SUMPRODUCT(($L$2:$L$962=TRUE)*($Q$2:$Q$962>Q11))+COUNTIFS($L$2:L11,L11,$Q$2:Q11,Q11)-1,1+SUMPRODUCT(($L$2:$L$962=TRUE)*($R$2:$R$962>R11))+COUNTIFS($L$2:L11,L11,$R$2:R11,R11)-1,1+SUMPRODUCT(($L$2:$L$962=TRUE)*($S$2:$S$962>S11))+COUNTIFS($L$2:L11,L11,$S$2:S11,S11)-1,1+SUMPRODUCT(($L$2:$L$962=TRUE)*($T$2:$T$962>T11))+COUNTIFS($L$2:L11,L11,$T$2:T11,T11)-1,1+SUMPRODUCT(($L$2:$L$962=TRUE)*($U$2:$U$962>U11))+COUNTIFS($L$2:L11,L11,$U$2:U11,U11)-1,1+SUMPRODUCT(($L$2:$L$962=TRUE)*($V$2:$V$962>V11))+COUNTIFS($L$2:L11,L11,$V$2:V11,V11)-1,1+SUMPRODUCT(($L$2:$L$962=TRUE)*($W$2:$W$962>W11))+COUNTIFS($L$2:L11,L11,$W$2:W11,W11)-1,1+SUMPRODUCT(($L$2:$L$962=TRUE)*($X$2:$X$962>X11))+COUNTIFS($L$2:L11,L11,$X$2:X11,X11)-1,1+SUMPRODUCT(($L$2:$L$962=TRUE)*($Y$2:$Y$962>Y11))+COUNTIFS($L$2:L11,L11,$Y$2:Y11,Y11)-1,1+SUMPRODUCT(($L$2:$L$962=TRUE)*($Z$2:$Z$962>Z11))+COUNTIFS($L$2:L11,L11,$Z$2:Z11,Z11)-1,1+SUMPRODUCT(($L$2:$L$962=TRUE)*($AA$2:$AA$962>AA11))+COUNTIFS($L$2:L11,L11,$AA$2:AA11,AA11)-1,1+SUMPRODUCT(($L$2:$L$962=TRUE)*($AB$2:$AB$962>AB11))+COUNTIFS($L$2:L11,L11,$AB$2:AB11,AB11)-1,1+SUMPRODUCT(($L$2:$L$962=TRUE)*($AC$2:$AC$962>AC11))+COUNTIFS($L$2:L11,L11,$AC$2:AC11,AC11)-1,1+SUMPRODUCT(($L$2:$L$962=TRUE)*($AD$2:$AD$962>AD11))+COUNTIFS($L$2:L11,L11,$AD$2:AD11,AD11)-1,1+SUMPRODUCT(($L$2:$L$962=TRUE)*($AE$2:$AE$962>AE11))+COUNTIFS($L$2:L11,L11,$AE$2:AE11,AE11)-1,1+SUMPRODUCT(($L$2:$L$962=TRUE)*($AF$2:$AF$962>AF11))+COUNTIFS($L$2:L11,L11,$AF$2:AF11,AF11)-1,1+SUMPRODUCT(($L$2:$L$962=TRUE)*($AG$2:$AG$962>AG11))+COUNTIFS($L$2:L11,L11,$AG$2:AG11,AG11)-1,1+SUMPRODUCT(($L$2:$L$962=TRUE)*($AH$2:$AH$962>AH11))+COUNTIFS($L$2:L11,L11,$AH$2:AH11,AH11)-1,1+SUMPRODUCT(($L$2:$L$962=TRUE)*($AI$2:$AI$962>AI11))+COUNTIFS($L$2:L11,L11,$AI$2:AI11,AI11)-1,1+SUMPRODUCT(($L$2:$L$962=TRUE)*($AJ$2:$AJ$962>AJ11))+COUNTIFS($L$2:L11,L11,$AJ$2:AJ11,AJ11)-1,1+SUMPRODUCT(($L$2:$L$962=TRUE)*($AK$2:$AK$962>AK11))+COUNTIFS($L$2:L11,L11,$AK$2:AK11,AK11)-1,1+SUMPRODUCT(($L$2:$L$962=TRUE)*($AL$2:$AL$962>AL11))+COUNTIFS($L$2:L11,L11,$AL$2:AL11,AL11)-1,1+SUMPRODUCT(($L$2:$L$962=TRUE)*($AM$2:$AM$962>AM11))+COUNTIFS($L$2:L11,L11,$AM$2:AM11,AM11)-1,)),"") -> 248 | D11: Jorge Alfaro | E11: =IFERROR(INDEX('Draft Log'!$D$4:$D$806,MATCH(D11,'Draft Log'!$C$4:$C$806,0)),"") ->  | F11: =IFERROR(INDEX('ADP-Rank'!$C$2:$C$832,MATCH(D11,'ADP-Rank'!$A$2:$A$832,0)),"") -> C | G11: =IFERROR(IF(F11=I11,"",IF(INDEX('Your Roto Draft'!$B$11:$B$634,MATCH(D11,'Your Roto Draft'!$C$11:$C$634,0))="",IF(I11<>"",I11,""),INDEX('Your Roto Draft'!$B$11:$B$634,MATCH(D11,'Your Roto Draft'!$C$11:$C$634,0)))),"") ->  | H11: C | J11: =INDEX('ADP-Rank'!$AH$2:$AH$832,MATCH(D11,'ADP-Rank'!$A$2:$A$832,0)) -> TRUE | K11: FALSE | L11: =IF(J11=FALSE,FALSE,IF(AND('Your Roto Draft'!$P$6="Hide Drafted Players",K11=TRUE),FALSE,IF(OR('Your Roto Draft'!$P$5="Show All Positions",AND('Your Roto Draft'!$P$5="Only Show: C",H11="C"),AND('Your Roto Draft'!$P$5="Only Show: 1B",H11="1B"),AND('Your Roto Draft'!$P$5="Only Show: 2B",H11="2B"),AND('Your Roto Draft'!$P$5="Only Show: 3B",H11="3B"),AND('Your Roto Draft'!$P$5="Only Show: SS",H11="SS"),AND('Your Roto Draft'!$P$5="Only Show: OF",H11="OF"),AND('Your Roto Draft'!$P$5="Only Show: SP",H11="SP"),AND('Your Roto Draft'!$P$5="Only Show: RP",H11="RP"),AND('Your Roto Draft'!$P$5="Only Show: CI",OR(H11={"1B","3B"})),AND('Your Roto Draft'!$P$5="Only Show: MI",OR(H11={"2B","SS"})),AND('Your Roto Draft'!$P$5="Only Show: IF",OR(H11={"C","1B","2B","3B","SS"})),AND('Your Roto Draft'!$P$5="Only Show: DH",OR(H11={"C","1B","2B","3B","SS","OF","DH"})),AND('Your Roto Draft'!$P$5="Only Show: P",OR(H11={"SP","RP"})),AND('Your Roto Draft'!$P$5="Only Show: LF",ISERROR(SEARCH("LF",VLOOKUP($D11,'ADP-Rank'!$A$2:$D$961,4,FALSE)))=FALSE),AND('Your Roto Draft'!$P$5="Only Show: RF",ISERROR(SEARCH("RF",VLOOKUP($D11,'ADP-Rank'!$A$2:$D$961,4,FALSE)))=FALSE),AND('Your Roto Draft'!$P$5="Only Show: CF",ISERROR(SEARCH("CF",VLOOKUP($D11,'ADP-Rank'!$A$2:$D$961,4,FALSE)))=FALSE)),TRUE,FALSE))) -> TRUE | M11: =IFERROR(IF(VLOOKUP($D11,'ADP-Rank'!$A$2:$AV$961,38,FALSE)="",9999,VLOOKUP($D11,'ADP-Rank'!$A$2:$AV$961,38,FALSE)),9999) -> 260 | N11: =IF(D11="Non-Ranked Player",-1001,IFERROR(VLOOKUP($D11,'All-WERTH'!$C$2:$E$962,3,FALSE),-1000)) -> -8.539613744 | O11: =IF(D11="Non-Ranked Player",10000,IFERROR(IF(VLOOKUP(D11,'ADP-Rank'!$A$2:$AJ$961,36,FALSE)="",9999,VLOOKUP(D11,'ADP-Rank'!$A$2:$AJ$961,36,FALSE)),9999)) -> 308 | P11: =IF($D11="Unlisted Player",-1001,IFERROR(IF(VLOOKUP($D11,'All-WERTH'!$C$2:$AC$962,4,FALSE)="",-1000,VLOOKUP($D11,'All-WERTH'!$C$2:$AC$962,4,FALSE)),-1000)) -> -1.812507325 | Q11: =IF($D11="Unlisted Player",-1001,IFERROR(IF(VLOOKUP($D11,'All-WERTH'!$C$2:$AC$962,5,FALSE)="",-1000,VLOOKUP($D11,'All-WERTH'!$C$2:$AC$962,5,FALSE)),-1000)) -> -1.312524308 | R11: =IF($D11="Unlisted Player",-1001,IFERROR(IF(VLOOKUP($D11,'All-WERTH'!$C$2:$AC$962,6,FALSE)="",-1000,VLOOKUP($D11,'All-WERTH'!$C$2:$AC$962,6,FALSE)),-1000)) -> -2.61120425 | S11: =IF($D11="Unlisted Player",-1001,IFERROR(IF(VLOOKUP($D11,'All-WERTH'!$C$2:$AC$962,7,FALSE)="",-1000,VLOOKUP($D11,'All-WERTH'!$C$2:$AC$962,7,FALSE)),-1000)) -> -2.027443183 | T11: =IF($D11="Unlisted Player",-1001,IFERROR(IF(VLOOKUP($D11,'All-WERTH'!$C$2:$AC$962,8,FALSE)="",-1000,VLOOKUP($D11,'All-WERTH'!$C$2:$AC$962,8,FALSE)),-1000)) -> -0.7759346783 | U11: =IF($D11="Unlisted Player",-1001,IFERROR(IF(VLOOKUP($D11,'All-WERTH'!$C$2:$AC$962,9,FALSE)="",-1000,VLOOKUP($D11,'All-WERTH'!$C$2:$AC$962,9,FALSE)),-1000)) -> -1000 | V11: =IF($D11="Unlisted Player",-1001,IFERROR(IF(VLOOKUP($D11,'All-WERTH'!$C$2:$AC$962,10,FALSE)="",-1000,VLOOKUP($D11,'All-WERTH'!$C$2:$AC$962,10,FALSE)),-1000)) -> -1000 | W11: =IF($D11="Unlisted Player",-1001,IFERROR(IF(VLOOKUP($D11,'All-WERTH'!$C$2:$AC$962,11,FALSE)="",-1000,VLOOKUP($D11,'All-WERTH'!$C$2:$AC$962,11,FALSE)),-1000)) -> -1000 | X11: =IF($D11="Unlisted Player",-1001,IFERROR(IF(VLOOKUP($D11,'All-WERTH'!$C$2:$AC$962,12,FALSE)="",-1000,VLOOKUP($D11,'All-WERTH'!$C$2:$AC$962,12,FALSE)),-1000)) -> -1000 | Y11: =IF($D11="Unlisted Player",-1001,IFERROR(IF(VLOOKUP($D11,'All-WERTH'!$C$2:$AC$962,13,FALSE)="",-1000,VLOOKUP($D11,'All-WERTH'!$C$2:$AC$962,13,FALSE)),-1000)) -> -1000 | Z11: =IF($D11="Unlisted Player",-1001,IFERROR(IF(VLOOKUP($D11,'All-WERTH'!$C$2:$AC$962,14,FALSE)="",-1000,VLOOKUP($D11,'All-WERTH'!$C$2:$AC$962,14,FALSE)),-1000)) -> -1000 | AA11: =IF($D11="Unlisted Player",-1001,IFERROR(IF(VLOOKUP($D11,'All-WERTH'!$C$2:$AC$962,15,FALSE)="",-1000,VLOOKUP($D11,'All-WERTH'!$C$2:$AC$962,15,FALSE)),-1000)) -> -1000 | AB11: =IF($D11="Unlisted Player",-1001,IFERROR(IF(VLOOKUP($D11,'All-WERTH'!$C$2:$AC$962,16,FALSE)="",-1000,VLOOKUP($D11,'All-WERTH'!$C$2:$AC$962,16,FALSE)),-1000)) -> -1000 | AC11: =IF($D11="Unlisted Player",-1001,IFERROR(IF(VLOOKUP($D11,'All-WERTH'!$C$2:$AC$962,17,FALSE)="",-1000,VLOOKUP($D11,'All-WERTH'!$C$2:$AC$962,17,FALSE)),-1000)) -> -1000 | AD11: =IF($D11="Unlisted Player",-1001,IFERROR(IF(VLOOKUP($D11,'All-WERTH'!$C$2:$AC$962,18,FALSE)="",-1000,VLOOKUP($D11,'All-WERTH'!$C$2:$AC$962,18,FALSE)),-1000)) -> -1000 | AE11: =IF($D11="Unlisted Player",-1001,IFERROR(IF(VLOOKUP($D11,'All-WERTH'!$C$2:$AC$962,19,FALSE)="",-1000,VLOOKUP($D11,'All-WERTH'!$C$2:$AC$962,19,FALSE)),-1000)) -> -1000 | AF11: =IF($D11="Unlisted Player",-1001,IFERROR(IF(VLOOKUP($D11,'All-WERTH'!$C$2:$AC$962,20,FALSE)="",-1000,VLOOKUP($D11,'All-WERTH'!$C$2:$AC$962,20,FALSE)),-1000)) -> -1000 | AG11: =IF($D11="Unlisted Player",-1001,IFERROR(IF(VLOOKUP($D11,'All-WERTH'!$C$2:$AC$962,21,FALSE)="",-1000,VLOOKUP($D11,'All-WERTH'!$C$2:$AC$962,21,FALSE)),-1000)) -> -1000 | AH11: =IF($D11="Unlisted Player",-1001,IFERROR(IF(VLOOKUP($D11,'All-WERTH'!$C$2:$AC$962,22,FALSE)="",-1000,VLOOKUP($D11,'All-WERTH'!$C$2:$AC$962,22,FALSE)),-1000)) -> -1000 | AI11: =IF($D11="Unlisted Player",-1001,IFERROR(IF(VLOOKUP($D11,'All-WERTH'!$C$2:$AC$962,23,FALSE)="",-1000,VLOOKUP($D11,'All-WERTH'!$C$2:$AC$962,23,FALSE)),-1000)) -> -1000 | AJ11: =IF($D11="Unlisted Player",-1001,IFERROR(IF(VLOOKUP($D11,'All-WERTH'!$C$2:$AC$962,24,FALSE)="",-1000,VLOOKUP($D11,'All-WERTH'!$C$2:$AC$962,24,FALSE)),-1000)) -> -1000 | AK11: =IF($D11="Unlisted Player",-1001,IFERROR(IF(VLOOKUP($D11,'All-WERTH'!$C$2:$AC$962,25,FALSE)="",-1000,VLOOKUP($D11,'All-WERTH'!$C$2:$AC$962,25,FALSE)),-1000)) -> -1000 | AL11: =IF($D11="Unlisted Player",-1001,IFERROR(IF(VLOOKUP($D11,'All-WERTH'!$C$2:$AC$962,26,FALSE)="",-1000,VLOOKUP($D11,'All-WERTH'!$C$2:$AC$962,26,FALSE)),-1000)) -> -1000 | AM11: =IF($D11="Unlisted Player",-1001,IFERROR(IF(VLOOKUP($D11,'All-WERTH'!$C$2:$AC$962,27,FALSE)="",-1000,VLOOKUP($D11,'All-WERTH'!$C$2:$AC$962,27,FALSE)),-1000)) -> -1000 | AN11: =IF(ISERROR(VLOOKUP($B10,Keepers!$C$2:$D$450,2,FALSE)),B10,"") -> Jacob deGrom | AO11: =IFERROR(INDEX($AN$1:$AN$961,SMALL(IF($AN$1:$AN$961<>"",ROW($AN$1:$AN$961)),ROW(AN11))),"") -> Ronald Acuna
A12: Ronald Acuna | B12: =IFERROR(INDEX($A$1:$A$961,SMALL(IF($A$1:$A$961<>"",ROW($A$1:$A$961)),ROW(A12))),"") -> Jose Altuve | C12: =IFERROR(IF(L12=FALSE,"",CHOOSE(MATCH(RIGHT('Your Roto Draft'!$P$4,LEN('Your Roto Draft'!$P$4)-8),$M$1:$AM$1,0),1+SUMPRODUCT(($L$2:$L$962=TRUE)*($M$2:$M$962<M12))+COUNTIFS($L$2:L12,L12,$M$2:M12,M12)-1,1+SUMPRODUCT(($L$2:$L$962=TRUE)*($N$2:$N$962>N12))+COUNTIFS($L$2:L12,L12,$N$2:N12,N12)-1,1+SUMPRODUCT(($L$2:$L$962=TRUE)*($O$2:$O$962<O12))+COUNTIFS($L$2:L12,L12,$O$2:O12,O12)-1,1+SUMPRODUCT(($L$2:$L$962=TRUE)*($P$2:$P$962>P12))+COUNTIFS($L$2:L12,L12,$P$2:P12,P12)-1,1+SUMPRODUCT(($L$2:$L$962=TRUE)*($Q$2:$Q$962>Q12))+COUNTIFS($L$2:L12,L12,$Q$2:Q12,Q12)-1,1+SUMPRODUCT(($L$2:$L$962=TRUE)*($R$2:$R$962>R12))+COUNTIFS($L$2:L12,L12,$R$2:R12,R12)-1,1+SUMPRODUCT(($L$2:$L$962=TRUE)*($S$2:$S$962>S12))+COUNTIFS($L$2:L12,L12,$S$2:S12,S12)-1,1+SUMPRODUCT(($L$2:$L$962=TRUE)*($T$2:$T$962>T12))+COUNTIFS($L$2:L12,L12,$T$2:T12,T12)-1,1+SUMPRODUCT(($L$2:$L$962=TRUE)*($U$2:$U$962>U12))+COUNTIFS($L$2:L12,L12,$U$2:U12,U12)-1,1+SUMPRODUCT(($L$2:$L$962=TRUE)*($V$2:$V$962>V12))+COUNTIFS($L$2:L12,L12,$V$2:V12,V12)-1,1+SUMPRODUCT(($L$2:$L$962=TRUE)*($W$2:$W$962>W12))+COUNTIFS($L$2:L12,L12,$W$2:W12,W12)-1,1+SUMPRODUCT(($L$2:$L$962=TRUE)*($X$2:$X$962>X12))+COUNTIFS($L$2:L12,L12,$X$2:X12,X12)-1,1+SUMPRODUCT(($L$2:$L$962=TRUE)*($Y$2:$Y$962>Y12))+COUNTIFS($L$2:L12,L12,$Y$2:Y12,Y12)-1,1+SUMPRODUCT(($L$2:$L$962=TRUE)*($Z$2:$Z$962>Z12))+COUNTIFS($L$2:L12,L12,$Z$2:Z12,Z12)-1,1+SUMPRODUCT(($L$2:$L$962=TRUE)*($AA$2:$AA$962>AA12))+COUNTIFS($L$2:L12,L12,$AA$2:AA12,AA12)-1,1+SUMPRODUCT(($L$2:$L$962=TRUE)*($AB$2:$AB$962>AB12))+COUNTIFS($L$2:L12,L12,$AB$2:AB12,AB12)-1,1+SUMPRODUCT(($L$2:$L$962=TRUE)*($AC$2:$AC$962>AC12))+COUNTIFS($L$2:L12,L12,$AC$2:AC12,AC12)-1,1+SUMPRODUCT(($L$2:$L$962=TRUE)*($AD$2:$AD$962>AD12))+COUNTIFS($L$2:L12,L12,$AD$2:AD12,AD12)-1,1+SUMPRODUCT(($L$2:$L$962=TRUE)*($AE$2:$AE$962>AE12))+COUNTIFS($L$2:L12,L12,$AE$2:AE12,AE12)-1,1+SUMPRODUCT(($L$2:$L$962=TRUE)*($AF$2:$AF$962>AF12))+COUNTIFS($L$2:L12,L12,$AF$2:AF12,AF12)-1,1+SUMPRODUCT(($L$2:$L$962=TRUE)*($AG$2:$AG$962>AG12))+COUNTIFS($L$2:L12,L12,$AG$2:AG12,AG12)-1,1+SUMPRODUCT(($L$2:$L$962=TRUE)*($AH$2:$AH$962>AH12))+COUNTIFS($L$2:L12,L12,$AH$2:AH12,AH12)-1,1+SUMPRODUCT(($L$2:$L$962=TRUE)*($AI$2:$AI$962>AI12))+COUNTIFS($L$2:L12,L12,$AI$2:AI12,AI12)-1,1+SUMPRODUCT(($L$2:$L$962=TRUE)*($AJ$2:$AJ$962>AJ12))+COUNTIFS($L$2:L12,L12,$AJ$2:AJ12,AJ12)-1,1+SUMPRODUCT(($L$2:$L$962=TRUE)*($AK$2:$AK$962>AK12))+COUNTIFS($L$2:L12,L12,$AK$2:AK12,AK12)-1,1+SUMPRODUCT(($L$2:$L$962=TRUE)*($AL$2:$AL$962>AL12))+COUNTIFS($L$2:L12,L12,$AL$2:AL12,AL12)-1,1+SUMPRODUCT(($L$2:$L$962=TRUE)*($AM$2:$AM$962>AM12))+COUNTIFS($L$2:L12,L12,$AM$2:AM12,AM12)-1,)),"") -> 599 | D12: Anthony Alford | E12: =IFERROR(INDEX('Draft Log'!$D$4:$D$806,MATCH(D12,'Draft Log'!$C$4:$C$806,0)),"") ->  | F12: =IFERROR(INDEX('ADP-Rank'!$C$2:$C$832,MATCH(D12,'ADP-Rank'!$A$2:$A$832,0)),"") -> OF | G12: =IFERROR(IF(F12=I12,"",IF(INDEX('Your Roto Draft'!$B$11:$B$634,MATCH(D12,'Your Roto Draft'!$C$11:$C$634,0))="",IF(I12<>"",I12,""),INDEX('Your Roto Draft'!$B$11:$B$634,MATCH(D12,'Your Roto Draft'!$C$11:$C$634,0)))),"") ->  | H12: OF | J12: =INDEX('ADP-Rank'!$AH$2:$AH$832,MATCH(D12,'ADP-Rank'!$A$2:$A$832,0)) -> TRUE | K12: FALSE | L12: =IF(J12=FALSE,FALSE,IF(AND('Your Roto Draft'!$P$6="Hide Drafted Players",K12=TRUE),FALSE,IF(OR('Your Roto Draft'!$P$5="Show All Positions",AND('Your Roto Draft'!$P$5="Only Show: C",H12="C"),AND('Your Roto Draft'!$P$5="Only Show: 1B",H12="1B"),AND('Your Roto Draft'!$P$5="Only Show: 2B",H12="2B"),AND('Your Roto Draft'!$P$5="Only Show: 3B",H12="3B"),AND('Your Roto Draft'!$P$5="Only Show: SS",H12="SS"),AND('Your Roto Draft'!$P$5="Only Show: OF",H12="OF"),AND('Your Roto Draft'!$P$5="Only Show: SP",H12="SP"),AND('Your Roto Draft'!$P$5="Only Show: RP",H12="RP"),AND('Your Roto Draft'!$P$5="Only Show: CI",OR(H12={"1B","3B"})),AND('Your Roto Draft'!$P$5="Only Show: MI",OR(H12={"2B","SS"})),AND('Your Roto Draft'!$P$5="Only Show: IF",OR(H12={"C","1B","2B","3B","SS"})),AND('Your Roto Draft'!$P$5="Only Show: DH",OR(H12={"C","1B","2B","3B","SS","OF","DH"})),AND('Your Roto Draft'!$P$5="Only Show: P",OR(H12={"SP","RP"})),AND('Your Roto Draft'!$P$5="Only Show: LF",ISERROR(SEARCH("LF",VLOOKUP($D12,'ADP-Rank'!$A$2:$D$961,4,FALSE)))=FALSE),AND('Your Roto Draft'!$P$5="Only Show: RF",ISERROR(SEARCH("RF",VLOOKUP($D12,'ADP-Rank'!$A$2:$D$961,4,FALSE)))=FALSE),AND('Your Roto Draft'!$P$5="Only Show: CF",ISERROR(SEARCH("CF",VLOOKUP($D12,'ADP-Rank'!$A$2:$D$961,4,FALSE)))=FALSE)),TRUE,FALSE))) -> TRUE | M12: =IFERROR(IF(VLOOKUP($D12,'ADP-Rank'!$A$2:$AV$961,38,FALSE)="",9999,VLOOKUP($D12,'ADP-Rank'!$A$2:$AV$961,38,FALSE)),9999) -> 734 | N12: =IF(D12="Non-Ranked Player",-1001,IFERROR(VLOOKUP($D12,'All-WERTH'!$C$2:$E$962,3,FALSE),-1000)) -> -11.37981843 | O12: =IF(D12="Non-Ranked Player",10000,IFERROR(IF(VLOOKUP(D12,'ADP-Rank'!$A$2:$AJ$961,36,FALSE)="",9999,VLOOKUP(D12,'ADP-Rank'!$A$2:$AJ$961,36,FALSE)),9999)) -> 9999 | P12: =IF($D12="Unlisted Player",-1001,IFERROR(IF(VLOOKUP($D12,'All-WERTH'!$C$2:$AC$962,4,FALSE)="",-1000,VLOOKUP($D12,'All-WERTH'!$C$2:$AC$962,4,FALSE)),-1000)) -> -1.265146087 | Q12: =IF($D12="Unlisted Player",-1001,IFERROR(IF(VLOOKUP($D12,'All-WERTH'!$C$2:$AC$962,5,FALSE)="",-1000,VLOOKUP($D12,'All-WERTH'!$C$2:$AC$962,5,FALSE)),-1000)) -> -2.49538167 | R12: =IF($D12="Unlisted Player",-1001,IFERROR(IF(VLOOKUP($D12,'All-WERTH'!$C$2:$AC$962,6,FALSE)="",-1000,VLOOKUP($D12,'All-WERTH'!$C$2:$AC$962,6,FALSE)),-1000)) -> -3.511151884 | S12: =IF($D12="Unlisted Player",-1001,IFERROR(IF(VLOOKUP($D12,'All-WERTH'!$C$2:$AC$962,7,FALSE)="",-1000,VLOOKUP($D12,'All-WERTH'!$C$2:$AC$962,7,FALSE)),-1000)) -> -3.888404087 | T12: =IF($D12="Unlisted Player",-1001,IFERROR(IF(VLOOKUP($D12,'All-WERTH'!$C$2:$AC$962,8,FALSE)="",-1000,VLOOKUP($D12,'All-WERTH'!$C$2:$AC$962,8,FALSE)),-1000)) -> -0.219734697 | U12: =IF($D12="Unlisted Player",-1001,IFERROR(IF(VLOOKUP($D12,'All-WERTH'!$C$2:$AC$962,9,FALSE)="",-1000,VLOOKUP($D12,'All-WERTH'!$C$2:$AC$962,9,FALSE)),-1000)) -> -1000 | V12: =IF($D12="Unlisted Player",-1001,IFERROR(IF(VLOOKUP($D12,'All-WERTH'!$C$2:$AC$962,10,FALSE)="",-1000,VLOOKUP($D12,'All-WERTH'!$C$2:$AC$962,10,FALSE)),-1000)) -> -1000 | W12: =IF($D12="Unlisted Player",-1001,IFERROR(IF(VLOOKUP($D12,'All-WERTH'!$C$2:$AC$962,11,FALSE)="",-1000,VLOOKUP($D12,'All-WERTH'!$C$2:$AC$962,11,FALSE)),-1000)) -> -1000 | X12: =IF($D12="Unlisted Player",-1001,IFERROR(IF(VLOOKUP($D12,'All-WERTH'!$C$2:$AC$962,12,FALSE)="",-1000,VLOOKUP($D12,'All-WERTH'!$C$2:$AC$962,12,FALSE)),-1000)) -> -1000 | Y12: =IF($D12="Unlisted Player",-1001,IFERROR(IF(VLOOKUP($D12,'All-WERTH'!$C$2:$AC$962,13,FALSE)="",-1000,VLOOKUP($D12,'All-WERTH'!$C$2:$AC$962,13,FALSE)),-1000)) -> -1000 | Z12: =IF($D12="Unlisted Player",-1001,IFERROR(IF(VLOOKUP($D12,'All-WERTH'!$C$2:$AC$962,14,FALSE)="",-1000,VLOOKUP($D12,'All-WERTH'!$C$2:$AC$962,14,FALSE)),-1000)) -> -1000 | AA12: =IF($D12="Unlisted Player",-1001,IFERROR(IF(VLOOKUP($D12,'All-WERTH'!$C$2:$AC$962,15,FALSE)="",-1000,VLOOKUP($D12,'All-WERTH'!$C$2:$AC$962,15,FALSE)),-1000)) -> -1000 | AB12: =IF($D12="Unlisted Player",-1001,IFERROR(IF(VLOOKUP($D12,'All-WERTH'!$C$2:$AC$962,16,FALSE)="",-1000,VLOOKUP($D12,'All-WERTH'!$C$2:$AC$962,16,FALSE)),-1000)) -> -1000 | AC12: =IF($D12="Unlisted Player",-1001,IFERROR(IF(VLOOKUP($D12,'All-WERTH'!$C$2:$AC$962,17,FALSE)="",-1000,VLOOKUP($D12,'All-WERTH'!$C$2:$AC$962,17,FALSE)),-1000)) -> -1000 | AD12: =IF($D12="Unlisted Player",-1001,IFERROR(IF(VLOOKUP($D12,'All-WERTH'!$C$2:$AC$962,18,FALSE)="",-1000,VLOOKUP($D12,'All-WERTH'!$C$2:$AC$962,18,FALSE)),-1000)) -> -1000 | AE12: =IF($D12="Unlisted Player",-1001,IFERROR(IF(VLOOKUP($D12,'All-WERTH'!$C$2:$AC$962,19,FALSE)="",-1000,VLOOKUP($D12,'All-WERTH'!$C$2:$AC$962,19,FALSE)),-1000)) -> -1000 | AF12: =IF($D12="Unlisted Player",-1001,IFERROR(IF(VLOOKUP($D12,'All-WERTH'!$C$2:$AC$962,20,FALSE)="",-1000,VLOOKUP($D12,'All-WERTH'!$C$2:$AC$962,20,FALSE)),-1000)) -> -1000 | AG12: =IF($D12="Unlisted Player",-1001,IFERROR(IF(VLOOKUP($D12,'All-WERTH'!$C$2:$AC$962,21,FALSE)="",-1000,VLOOKUP($D12,'All-WERTH'!$C$2:$AC$962,21,FALSE)),-1000)) -> -1000 | AH12: =IF($D12="Unlisted Player",-1001,IFERROR(IF(VLOOKUP($D12,'All-WERTH'!$C$2:$AC$962,22,FALSE)="",-1000,VLOOKUP($D12,'All-WERTH'!$C$2:$AC$962,22,FALSE)),-1000)) -> -1000 | AI12: =IF($D12="Unlisted Player",-1001,IFERROR(IF(VLOOKUP($D12,'All-WERTH'!$C$2:$AC$962,23,FALSE)="",-1000,VLOOKUP($D12,'All-WERTH'!$C$2:$AC$962,23,FALSE)),-1000)) -> -1000 | AJ12: =IF($D12="Unlisted Player",-1001,IFERROR(IF(VLOOKUP($D12,'All-WERTH'!$C$2:$AC$962,24,FALSE)="",-1000,VLOOKUP($D12,'All-WERTH'!$C$2:$AC$962,24,FALSE)),-1000)) -> -1000 | AK12: =IF($D12="Unlisted Player",-1001,IFERROR(IF(VLOOKUP($D12,'All-WERTH'!$C$2:$AC$962,25,FALSE)="",-1000,VLOOKUP($D12,'All-WERTH'!$C$2:$AC$962,25,FALSE)),-1000)) -> -1000 | AL12: =IF($D12="Unlisted Player",-1001,IFERROR(IF(VLOOKUP($D12,'All-WERTH'!$C$2:$AC$962,26,FALSE)="",-1000,VLOOKUP($D12,'All-WERTH'!$C$2:$AC$962,26,FALSE)),-1000)) -> -1000 | AM12: =IF($D12="Unlisted Player",-1001,IFERROR(IF(VLOOKUP($D12,'All-WERTH'!$C$2:$AC$962,27,FALSE)="",-1000,VLOOKUP($D12,'All-WERTH'!$C$2:$AC$962,27,FALSE)),-1000)) -> -1000 | AN12: =IF(ISERROR(VLOOKUP($B11,Keepers!$C$2:$D$450,2,FALSE)),B11,"") -> Ronald Acuna | AO12: =IFERROR(INDEX($AN$1:$AN$961,SMALL(IF($AN$1:$AN$961<>"",ROW($AN$1:$AN$961)),ROW(AN12))),"") -> Jose Altuve
A13: Jose Altuve | B13: =IFERROR(INDEX($A$1:$A$961,SMALL(IF($A$1:$A$961<>"",ROW($A$1:$A$961)),ROW(A13))),"") -> Francisco Lindor | C13: =IFERROR(IF(L13=FALSE,"",CHOOSE(MATCH(RIGHT('Your Roto Draft'!$P$4,LEN('Your Roto Draft'!$P$4)-8),$M$1:$AM$1,0),1+SUMPRODUCT(($L$2:$L$962=TRUE)*($M$2:$M$962<M13))+COUNTIFS($L$2:L13,L13,$M$2:M13,M13)-1,1+SUMPRODUCT(($L$2:$L$962=TRUE)*($N$2:$N$962>N13))+COUNTIFS($L$2:L13,L13,$N$2:N13,N13)-1,1+SUMPRODUCT(($L$2:$L$962=TRUE)*($O$2:$O$962<O13))+COUNTIFS($L$2:L13,L13,$O$2:O13,O13)-1,1+SUMPRODUCT(($L$2:$L$962=TRUE)*($P$2:$P$962>P13))+COUNTIFS($L$2:L13,L13,$P$2:P13,P13)-1,1+SUMPRODUCT(($L$2:$L$962=TRUE)*($Q$2:$Q$962>Q13))+COUNTIFS($L$2:L13,L13,$Q$2:Q13,Q13)-1,1+SUMPRODUCT(($L$2:$L$962=TRUE)*($R$2:$R$962>R13))+COUNTIFS($L$2:L13,L13,$R$2:R13,R13)-1,1+SUMPRODUCT(($L$2:$L$962=TRUE)*($S$2:$S$962>S13))+COUNTIFS($L$2:L13,L13,$S$2:S13,S13)-1,1+SUMPRODUCT(($L$2:$L$962=TRUE)*($T$2:$T$962>T13))+COUNTIFS($L$2:L13,L13,$T$2:T13,T13)-1,1+SUMPRODUCT(($L$2:$L$962=TRUE)*($U$2:$U$962>U13))+COUNTIFS($L$2:L13,L13,$U$2:U13,U13)-1,1+SUMPRODUCT(($L$2:$L$962=TRUE)*($V$2:$V$962>V13))+COUNTIFS($L$2:L13,L13,$V$2:V13,V13)-1,1+SUMPRODUCT(($L$2:$L$962=TRUE)*($W$2:$W$962>W13))+COUNTIFS($L$2:L13,L13,$W$2:W13,W13)-1,1+SUMPRODUCT(($L$2:$L$962=TRUE)*($X$2:$X$962>X13))+COUNTIFS($L$2:L13,L13,$X$2:X13,X13)-1,1+SUMPRODUCT(($L$2:$L$962=TRUE)*($Y$2:$Y$962>Y13))+COUNTIFS($L$2:L13,L13,$Y$2:Y13,Y13)-1,1+SUMPRODUCT(($L$2:$L$962=TRUE)*($Z$2:$Z$962>Z13))+COUNTIFS($L$2:L13,L13,$Z$2:Z13,Z13)-1,1+SUMPRODUCT(($L$2:$L$962=TRUE)*($AA$2:$AA$962>AA13))+COUNTIFS($L$2:L13,L13,$AA$2:AA13,AA13)-1,1+SUMPRODUCT(($L$2:$L$962=TRUE)*($AB$2:$AB$962>AB13))+COUNTIFS($L$2:L13,L13,$AB$2:AB13,AB13)-1,1+SUMPRODUCT(($L$2:$L$962=TRUE)*($AC$2:$AC$962>AC13))+COUNTIFS($L$2:L13,L13,$AC$2:AC13,AC13)-1,1+SUMPRODUCT(($L$2:$L$962=TRUE)*($AD$2:$AD$962>AD13))+COUNTIFS($L$2:L13,L13,$AD$2:AD13,AD13)-1,1+SUMPRODUCT(($L$2:$L$962=TRUE)*($AE$2:$AE$962>AE13))+COUNTIFS($L$2:L13,L13,$AE$2:AE13,AE13)-1,1+SUMPRODUCT(($L$2:$L$962=TRUE)*($AF$2:$AF$962>AF13))+COUNTIFS($L$2:L13,L13,$AF$2:AF13,AF13)-1,1+SUMPRODUCT(($L$2:$L$962=TRUE)*($AG$2:$AG$962>AG13))+COUNTIFS($L$2:L13,L13,$AG$2:AG13,AG13)-1,1+SUMPRODUCT(($L$2:$L$962=TRUE)*($AH$2:$AH$962>AH13))+COUNTIFS($L$2:L13,L13,$AH$2:AH13,AH13)-1,1+SUMPRODUCT(($L$2:$L$962=TRUE)*($AI$2:$AI$962>AI13))+COUNTIFS($L$2:L13,L13,$AI$2:AI13,AI13)-1,1+SUMPRODUCT(($L$2:$L$962=TRUE)*($AJ$2:$AJ$962>AJ13))+COUNTIFS($L$2:L13,L13,$AJ$2:AJ13,AJ13)-1,1+SUMPRODUCT(($L$2:$L$962=TRUE)*($AK$2:$AK$962>AK13))+COUNTIFS($L$2:L13,L13,$AK$2:AK13,AK13)-1,1+SUMPRODUCT(($L$2:$L$962=TRUE)*($AL$2:$AL$962>AL13))+COUNTIFS($L$2:L13,L13,$AL$2:AL13,AL13)-1,1+SUMPRODUCT(($L$2:$L$962=TRUE)*($AM$2:$AM$962>AM13))+COUNTIFS($L$2:L13,L13,$AM$2:AM13,AM13)-1,)),"") -> 638 | D13: Kolby Allard | E13: =IFERROR(INDEX('Draft Log'!$D$4:$D$806,MATCH(D13,'Draft Log'!$C$4:$C$806,0)),"") ->  | F13: =IFERROR(INDEX('ADP-Rank'!$C$2:$C$832,MATCH(D13,'ADP-Rank'!$A$2:$A$832,0)),"") -> SP | G13: =IFERROR(IF(F13=I13,"",IF(INDEX('Your Roto Draft'!$B$11:$B$634,MATCH(D13,'Your Roto Draft'!$C$11:$C$634,0))="",IF(I13<>"",I13,""),INDEX('Your Roto Draft'!$B$11:$B$634,MATCH(D13,'Your Roto Draft'!$C$11:$C$634,0)))),"") ->  | H13: SP | J13: =INDEX('ADP-Rank'!$AH$2:$AH$832,MATCH(D13,'ADP-Rank'!$A$2:$A$832,0)) -> TRUE | K13: FALSE | L13: =IF(J13=FALSE,FALSE,IF(AND('Your Roto Draft'!$P$6="Hide Drafted Players",K13=TRUE),FALSE,IF(OR('Your Roto Draft'!$P$5="Show All Positions",AND('Your Roto Draft'!$P$5="Only Show: C",H13="C"),AND('Your Roto Draft'!$P$5="Only Show: 1B",H13="1B"),AND('Your Roto Draft'!$P$5="Only Show: 2B",H13="2B"),AND('Your Roto Draft'!$P$5="Only Show: 3B",H13="3B"),AND('Your Roto Draft'!$P$5="Only Show: SS",H13="SS"),AND('Your Roto Draft'!$P$5="Only Show: OF",H13="OF"),AND('Your Roto Draft'!$P$5="Only Show: SP",H13="SP"),AND('Your Roto Draft'!$P$5="Only Show: RP",H13="RP"),AND('Your Roto Draft'!$P$5="Only Show: CI",OR(H13={"1B","3B"})),AND('Your Roto Draft'!$P$5="Only Show: MI",OR(H13={"2B","SS"})),AND('Your Roto Draft'!$P$5="Only Show: IF",OR(H13={"C","1B","2B","3B","SS"})),AND('Your Roto Draft'!$P$5="Only Show: DH",OR(H13={"C","1B","2B","3B","SS","OF","DH"})),AND('Your Roto Draft'!$P$5="Only Show: P",OR(H13={"SP","RP"})),AND('Your Roto Draft'!$P$5="Only Show: LF",ISERROR(SEARCH("LF",VLOOKUP($D13,'ADP-Rank'!$A$2:$D$961,4,FALSE)))=FALSE),AND('Your Roto Draft'!$P$5="Only Show: RF",ISERROR(SEARCH("RF",VLOOKUP($D13,'ADP-Rank'!$A$2:$D$961,4,FALSE)))=FALSE),AND('Your Roto Draft'!$P$5="Only Show: CF",ISERROR(SEARCH("CF",VLOOKUP($D13,'ADP-Rank'!$A$2:$D$961,4,FALSE)))=FALSE)),TRUE,FALSE))) -> TRUE | M13: =IFERROR(IF(VLOOKUP($D13,'ADP-Rank'!$A$2:$AV$961,38,FALSE)="",9999,VLOOKUP($D13,'ADP-Rank'!$A$2:$AV$961,38,FALSE)),9999) -> 9999 | N13: =IF(D13="Non-Ranked Player",-1001,IFERROR(VLOOKUP($D13,'All-WERTH'!$C$2:$E$962,3,FALSE),-1000)) -> -1000 | O13: =IF(D13="Non-Ranked Player",10000,IFERROR(IF(VLOOKUP(D13,'ADP-Rank'!$A$2:$AJ$961,36,FALSE)="",9999,VLOOKUP(D13,'ADP-Rank'!$A$2:$AJ$961,36,FALSE)),9999)) -> 700 | P13: =IF($D13="Unlisted Player",-1001,IFERROR(IF(VLOOKUP($D13,'All-WERTH'!$C$2:$AC$962,4,FALSE)="",-1000,VLOOKUP($D13,'All-WERTH'!$C$2:$AC$962,4,FALSE)),-1000)) -> -1000 | Q13: =IF($D13="Unlisted Player",-1001,IFERROR(IF(VLOOKUP($D13,'All-WERTH'!$C$2:$AC$962,5,FALSE)="",-1000,VLOOKUP($D13,'All-WERTH'!$C$2:$AC$962,5,FALSE)),-1000)) -> -1000 | R13: =IF($D13="Unlisted Player",-1001,IFERROR(IF(VLOOKUP($D13,'All-WERTH'!$C$2:$AC$962,6,FALSE)="",-1000,VLOOKUP($D13,'All-WERTH'!$C$2:$AC$962,6,FALSE)),-1000)) -> -1000 | S13: =IF($D13="Unlisted Player",-1001,IFERROR(IF(VLOOKUP($D13,'All-WERTH'!$C$2:$AC$962,7,FALSE)="",-1000,VLOOKUP($D13,'All-WERTH'!$C$2:$AC$962,7,FALSE)),-1000)) -> -1000 | T13: =IF($D13="Unlisted Player",-1001,IFERROR(IF(VLOOKUP($D13,'All-WERTH'!$C$2:$AC$962,8,FALSE)="",-1000,VLOOKUP($D13,'All-WERTH'!$C$2:$AC$962,8,FALSE)),-1000)) -> -1000 | U13: =IF($D13="Unlisted Player",-1001,IFERROR(IF(VLOOKUP($D13,'All-WERTH'!$C$2:$AC$962,9,FALSE)="",-1000,VLOOKUP($D13,'All-WERTH'!$C$2:$AC$962,9,FALSE)),-1000)) -> -1000 | V13: =IF($D13="Unlisted Player",-1001,IFERROR(IF(VLOOKUP($D13,'All-WERTH'!$C$2:$AC$962,10,FALSE)="",-1000,VLOOKUP($D13,'All-WERTH'!$C$2:$AC$962,10,FALSE)),-1000)) -> -1000 | W13: =IF($D13="Unlisted Player",-1001,IFERROR(IF(VLOOKUP($D13,'All-WERTH'!$C$2:$AC$962,11,FALSE)="",-1000,VLOOKUP($D13,'All-WERTH'!$C$2:$AC$962,11,FALSE)),-1000)) -> -1000 | X13: =IF($D13="Unlisted Player",-1001,IFERROR(IF(VLOOKUP($D13,'All-WERTH'!$C$2:$AC$962,12,FALSE)="",-1000,VLOOKUP($D13,'All-WERTH'!$C$2:$AC$962,12,FALSE)),-1000)) -> -1000 | Y13: =IF($D13="Unlisted Player",-1001,IFERROR(IF(VLOOKUP($D13,'All-WERTH'!$C$2:$AC$962,13,FALSE)="",-1000,VLOOKUP($D13,'All-WERTH'!$C$2:$AC$962,13,FALSE)),-1000)) -> -1000 | Z13: =IF($D13="Unlisted Player",-1001,IFERROR(IF(VLOOKUP($D13,'All-WERTH'!$C$2:$AC$962,14,FALSE)="",-1000,VLOOKUP($D13,'All-WERTH'!$C$2:$AC$962,14,FALSE)),-1000)) -> -1000 | AA13: =IF($D13="Unlisted Player",-1001,IFERROR(IF(VLOOKUP($D13,'All-WERTH'!$C$2:$AC$962,15,FALSE)="",-1000,VLOOKUP($D13,'All-WERTH'!$C$2:$AC$962,15,FALSE)),-1000)) -> -1000 | AB13: =IF($D13="Unlisted Player",-1001,IFERROR(IF(VLOOKUP($D13,'All-WERTH'!$C$2:$AC$962,16,FALSE)="",-1000,VLOOKUP($D13,'All-WERTH'!$C$2:$AC$962,16,FALSE)),-1000)) -> -1000 | AC13: =IF($D13="Unlisted Player",-1001,IFERROR(IF(VLOOKUP($D13,'All-WERTH'!$C$2:$AC$962,17,FALSE)="",-1000,VLOOKUP($D13,'All-WERTH'!$C$2:$AC$962,17,FALSE)),-1000)) -> -1000 | AD13: =IF($D13="Unlisted Player",-1001,IFERROR(IF(VLOOKUP($D13,'All-WERTH'!$C$2:$AC$962,18,FALSE)="",-1000,VLOOKUP($D13,'All-WERTH'!$C$2:$AC$962,18,FALSE)),-1000)) -> -1000 | AE13: =IF($D13="Unlisted Player",-1001,IFERROR(IF(VLOOKUP($D13,'All-WERTH'!$C$2:$AC$962,19,FALSE)="",-1000,VLOOKUP($D13,'All-WERTH'!$C$2:$AC$962,19,FALSE)),-1000)) -> -1000 | AF13: =IF($D13="Unlisted Player",-1001,IFERROR(IF(VLOOKUP($D13,'All-WERTH'!$C$2:$AC$962,20,FALSE)="",-1000,VLOOKUP($D13,'All-WERTH'!$C$2:$AC$962,20,FALSE)),-1000)) -> -1000 | AG13: =IF($D13="Unlisted Player",-1001,IFERROR(IF(VLOOKUP($D13,'All-WERTH'!$C$2:$AC$962,21,FALSE)="",-1000,VLOOKUP($D13,'All-WERTH'!$C$2:$AC$962,21,FALSE)),-1000)) -> -1000 | AH13: =IF($D13="Unlisted Player",-1001,IFERROR(IF(VLOOKUP($D13,'All-WERTH'!$C$2:$AC$962,22,FALSE)="",-1000,VLOOKUP($D13,'All-WERTH'!$C$2:$AC$962,22,FALSE)),-1000)) -> -1000 | AI13: =IF($D13="Unlisted Player",-1001,IFERROR(IF(VLOOKUP($D13,'All-WERTH'!$C$2:$AC$962,23,FALSE)="",-1000,VLOOKUP($D13,'All-WERTH'!$C$2:$AC$962,23,FALSE)),-1000)) -> -1000 | AJ13: =IF($D13="Unlisted Player",-1001,IFERROR(IF(VLOOKUP($D13,'All-WERTH'!$C$2:$AC$962,24,FALSE)="",-1000,VLOOKUP($D13,'All-WERTH'!$C$2:$AC$962,24,FALSE)),-1000)) -> -1000 | AK13: =IF($D13="Unlisted Player",-1001,IFERROR(IF(VLOOKUP($D13,'All-WERTH'!$C$2:$AC$962,25,FALSE)="",-1000,VLOOKUP($D13,'All-WERTH'!$C$2:$AC$962,25,FALSE)),-1000)) -> -1000 | AL13: =IF($D13="Unlisted Player",-1001,IFERROR(IF(VLOOKUP($D13,'All-WERTH'!$C$2:$AC$962,26,FALSE)="",-1000,VLOOKUP($D13,'All-WERTH'!$C$2:$AC$962,26,FALSE)),-1000)) -> -1000 | AM13: =IF($D13="Unlisted Player",-1001,IFERROR(IF(VLOOKUP($D13,'All-WERTH'!$C$2:$AC$962,27,FALSE)="",-1000,VLOOKUP($D13,'All-WERTH'!$C$2:$AC$962,27,FALSE)),-1000)) -> -1000 | AN13: =IF(ISERROR(VLOOKUP($B12,Keepers!$C$2:$D$450,2,FALSE)),B12,"") -> Jose Altuve | AO13: =IFERROR(INDEX($AN$1:$AN$961,SMALL(IF($AN$1:$AN$961<>"",ROW($AN$1:$AN$961)),ROW(AN13))),"") -> Francisco Lindor
A14: Francisco Lindor | B14: =IFERROR(INDEX($A$1:$A$961,SMALL(IF($A$1:$A$961<>"",ROW($A$1:$A$961)),ROW(A14))),"") -> Alex Bregman | C14: =IFERROR(IF(L14=FALSE,"",CHOOSE(MATCH(RIGHT('Your Roto Draft'!$P$4,LEN('Your Roto Draft'!$P$4)-8),$M$1:$AM$1,0),1+SUMPRODUCT(($L$2:$L$962=TRUE)*($M$2:$M$962<M14))+COUNTIFS($L$2:L14,L14,$M$2:M14,M14)-1,1+SUMPRODUCT(($L$2:$L$962=TRUE)*($N$2:$N$962>N14))+COUNTIFS($L$2:L14,L14,$N$2:N14,N14)-1,1+SUMPRODUCT(($L$2:$L$962=TRUE)*($O$2:$O$962<O14))+COUNTIFS($L$2:L14,L14,$O$2:O14,O14)-1,1+SUMPRODUCT(($L$2:$L$962=TRUE)*($P$2:$P$962>P14))+COUNTIFS($L$2:L14,L14,$P$2:P14,P14)-1,1+SUMPRODUCT(($L$2:$L$962=TRUE)*($Q$2:$Q$962>Q14))+COUNTIFS($L$2:L14,L14,$Q$2:Q14,Q14)-1,1+SUMPRODUCT(($L$2:$L$962=TRUE)*($R$2:$R$962>R14))+COUNTIFS($L$2:L14,L14,$R$2:R14,R14)-1,1+SUMPRODUCT(($L$2:$L$962=TRUE)*($S$2:$S$962>S14))+COUNTIFS($L$2:L14,L14,$S$2:S14,S14)-1,1+SUMPRODUCT(($L$2:$L$962=TRUE)*($T$2:$T$962>T14))+COUNTIFS($L$2:L14,L14,$T$2:T14,T14)-1,1+SUMPRODUCT(($L$2:$L$962=TRUE)*($U$2:$U$962>U14))+COUNTIFS($L$2:L14,L14,$U$2:U14,U14)-1,1+SUMPRODUCT(($L$2:$L$962=TRUE)*($V$2:$V$962>V14))+COUNTIFS($L$2:L14,L14,$V$2:V14,V14)-1,1+SUMPRODUCT(($L$2:$L$962=TRUE)*($W$2:$W$962>W14))+COUNTIFS($L$2:L14,L14,$W$2:W14,W14)-1,1+SUMPRODUCT(($L$2:$L$962=TRUE)*($X$2:$X$962>X14))+COUNTIFS($L$2:L14,L14,$X$2:X14,X14)-1,1+SUMPRODUCT(($L$2:$L$962=TRUE)*($Y$2:$Y$962>Y14))+COUNTIFS($L$2:L14,L14,$Y$2:Y14,Y14)-1,1+SUMPRODUCT(($L$2:$L$962=TRUE)*($Z$2:$Z$962>Z14))+COUNTIFS($L$2:L14,L14,$Z$2:Z14,Z14)-1,1+SUMPRODUCT(($L$2:$L$962=TRUE)*($AA$2:$AA$962>AA14))+COUNTIFS($L$2:L14,L14,$AA$2:AA14,AA14)-1,1+SUMPRODUCT(($L$2:$L$962=TRUE)*($AB$2:$AB$962>AB14))+COUNTIFS($L$2:L14,L14,$AB$2:AB14,AB14)-1,1+SUMPRODUCT(($L$2:$L$962=TRUE)*($AC$2:$AC$962>AC14))+COUNTIFS($L$2:L14,L14,$AC$2:AC14,AC14)-1,1+SUMPRODUCT(($L$2:$L$962=TRUE)*($AD$2:$AD$962>AD14))+COUNTIFS($L$2:L14,L14,$AD$2:AD14,AD14)-1,1+SUMPRODUCT(($L$2:$L$962=TRUE)*($AE$2:$AE$962>AE14))+COUNTIFS($L$2:L14,L14,$AE$2:AE14,AE14)-1,1+SUMPRODUCT(($L$2:$L$962=TRUE)*($AF$2:$AF$962>AF14))+COUNTIFS($L$2:L14,L14,$AF$2:AF14,AF14)-1,1+SUMPRODUCT(($L$2:$L$962=TRUE)*($AG$2:$AG$962>AG14))+COUNTIFS($L$2:L14,L14,$AG$2:AG14,AG14)-1,1+SUMPRODUCT(($L$2:$L$962=TRUE)*($AH$2:$AH$962>AH14))+COUNTIFS($L$2:L14,L14,$AH$2:AH14,AH14)-1,1+SUMPRODUCT(($L$2:$L$962=TRUE)*($AI$2:$AI$962>AI14))+COUNTIFS($L$2:L14,L14,$AI$2:AI14,AI14)-1,1+SUMPRODUCT(($L$2:$L$962=TRUE)*($AJ$2:$AJ$962>AJ14))+COUNTIFS($L$2:L14,L14,$AJ$2:AJ14,AJ14)-1,1+SUMPRODUCT(($L$2:$L$962=TRUE)*($AK$2:$AK$962>AK14))+COUNTIFS($L$2:L14,L14,$AK$2:AK14,AK14)-1,1+SUMPRODUCT(($L$2:$L$962=TRUE)*($AL$2:$AL$962>AL14))+COUNTIFS($L$2:L14,L14,$AL$2:AL14,AL14)-1,1+SUMPRODUCT(($L$2:$L$962=TRUE)*($AM$2:$AM$962>AM14))+COUNTIFS($L$2:L14,L14,$AM$2:AM14,AM14)-1,)),"") -> 160 | D14: Cody Allen | E14: =IFERROR(INDEX('Draft Log'!$D$4:$D$806,MATCH(D14,'Draft Log'!$C$4:$C$806,0)),"") ->  | F14: =IFERROR(INDEX('ADP-Rank'!$C$2:$C$832,MATCH(D14,'ADP-Rank'!$A$2:$A$832,0)),"") -> RP | G14: =IFERROR(IF(F14=I14,"",IF(INDEX('Your Roto Draft'!$B$11:$B$634,MATCH(D14,'Your Roto Draft'!$C$11:$C$634,0))="",IF(I14<>"",I14,""),INDEX('Your Roto Draft'!$B$11:$B$634,MATCH(D14,'Your Roto Draft'!$C$11:$C$634,0)))),"") ->  | H14: RP | J14: =INDEX('ADP-Rank'!$AH$2:$AH$832,MATCH(D14,'ADP-Rank'!$A$2:$A$832,0)) -> TRUE | K14: FALSE | L14: =IF(J14=FALSE,FALSE,IF(AND('Your Roto Draft'!$P$6="Hide Drafted Players",K14=TRUE),FALSE,IF(OR('Your Roto Draft'!$P$5="Show All Positions",AND('Your Roto Draft'!$P$5="Only Show: C",H14="C"),AND('Your Roto Draft'!$P$5="Only Show: 1B",H14="1B"),AND('Your Roto Draft'!$P$5="Only Show: 2B",H14="2B"),AND('Your Roto Draft'!$P$5="Only Show: 3B",H14="3B"),AND('Your Roto Draft'!$P$5="Only Show: SS",H14="SS"),AND('Your Roto Draft'!$P$5="Only Show: OF",H14="OF"),AND('Your Roto Draft'!$P$5="Only Show: SP",H14="SP"),AND('Your Roto Draft'!$P$5="Only Show: RP",H14="RP"),AND('Your Roto Draft'!$P$5="Only Show: CI",OR(H14={"1B","3B"})),AND('Your Roto Draft'!$P$5="Only Show: MI",OR(H14={"2B","SS"})),AND('Your Roto Draft'!$P$5="Only Show: IF",OR(H14={"C","1B","2B","3B","SS"})),AND('Your Roto Draft'!$P$5="Only Show: DH",OR(H14={"C","1B","2B","3B","SS","OF","DH"})),AND('Your Roto Draft'!$P$5="Only Show: P",OR(H14={"SP","RP"})),AND('Your Roto Draft'!$P$5="Only Show: LF",ISERROR(SEARCH("LF",VLOOKUP($D14,'ADP-Rank'!$A$2:$D$961,4,FALSE)))=FALSE),AND('Your Roto Draft'!$P$5="Only Show: RF",ISERROR(SEARCH("RF",VLOOKUP($D14,'ADP-Rank'!$A$2:$D$961,4,FALSE)))=FALSE),AND('Your Roto Draft'!$P$5="Only Show: CF",ISERROR(SEARCH("CF",VLOOKUP($D14,'ADP-Rank'!$A$2:$D$961,4,FALSE)))=FALSE)),TRUE,FALSE))) -> TRUE | M14: =IFERROR(IF(VLOOKUP($D14,'ADP-Rank'!$A$2:$AV$961,38,FALSE)="",9999,VLOOKUP($D14,'ADP-Rank'!$A$2:$AV$961,38,FALSE)),9999) -> 163 | N14: =IF(D14="Non-Ranked Player",-1001,IFERROR(VLOOKUP($D14,'All-WERTH'!$C$2:$E$962,3,FALSE),-1000)) -> -1.728909754 | O14: =IF(D14="Non-Ranked Player",10000,IFERROR(IF(VLOOKUP(D14,'ADP-Rank'!$A$2:$AJ$961,36,FALSE)="",9999,VLOOKUP(D14,'ADP-Rank'!$A$2:$AJ$961,36,FALSE)),9999)) -> 167 | P14: =IF($D14="Unlisted Player",-1001,IFERROR(IF(VLOOKUP($D14,'All-WERTH'!$C$2:$AC$962,4,FALSE)="",-1000,VLOOKUP($D14,'All-WERTH'!$C$2:$AC$962,4,FALSE)),-1000)) -> -1000 | Q14: =IF($D14="Unlisted Player",-1001,IFERROR(IF(VLOOKUP($D14,'All-WERTH'!$C$2:$AC$962,5,FALSE)="",-1000,VLOOKUP($D14,'All-WERTH'!$C$2:$AC$962,5,FALSE)),-1000)) -> -1000 | R14: =IF($D14="Unlisted Player",-1001,IFERROR(IF(VLOOKUP($D14,'All-WERTH'!$C$2:$AC$962,6,FALSE)="",-1000,VLOOKUP($D14,'All-WERTH'!$C$2:$AC$962,6,FALSE)),-1000)) -> -1000 | S14: =IF($D14="Unlisted Player",-1001,IFERROR(IF(VLOOKUP($D14,'All-WERTH'!$C$2:$AC$962,7,FALSE)="",-1000,VLOOKUP($D14,'All-WERTH'!$C$2:$AC$962,7,FALSE)),-1000)) -> -1000 | T14: =IF($D14="Unlisted Player",-1001,IFERROR(IF(VLOOKUP($D14,'All-WERTH'!$C$2:$AC$962,8,FALSE)="",-1000,VLOOKUP($D14,'All-WERTH'!$C$2:$AC$962,8,FALSE)),-1000)) -> -1000 | U14: =IF($D14="Unlisted Player",-1001,IFERROR(IF(VLOOKUP($D14,'All-WERTH'!$C$2:$AC$962,9,FALSE)="",-1000,VLOOKUP($D14,'All-WERTH'!$C$2:$AC$962,9,FALSE)),-1000)) -> -1000 | V14: =IF($D14="Unlisted Player",-1001,IFERROR(IF(VLOOKUP($D14,'All-WERTH'!$C$2:$AC$962,10,FALSE)="",-1000,VLOOKUP($D14,'All-WERTH'!$C$2:$AC$962,10,FALSE)),-1000)) -> -1000 | W14: =IF($D14="Unlisted Player",-1001,IFERROR(IF(VLOOKUP($D14,'All-WERTH'!$C$2:$AC$962,11,FALSE)="",-1000,VLOOKUP($D14,'All-WERTH'!$C$2:$AC$962,11,FALSE)),-1000)) -> -1000 | X14: =IF($D14="Unlisted Player",-1001,IFERROR(IF(VLOOKUP($D14,'All-WERTH'!$C$2:$AC$962,12,FALSE)="",-1000,VLOOKUP($D14,'All-WERTH'!$C$2:$AC$962,12,FALSE)),-1000)) -> -1000 | Y14: =IF($D14="Unlisted Player",-1001,IFERROR(IF(VLOOKUP($D14,'All-WERTH'!$C$2:$AC$962,13,FALSE)="",-1000,VLOOKUP($D14,'All-WERTH'!$C$2:$AC$962,13,FALSE)),-1000)) -> -1000 | Z14: =IF($D14="Unlisted Player",-1001,IFERROR(IF(VLOOKUP($D14,'All-WERTH'!$C$2:$AC$962,14,FALSE)="",-1000,VLOOKUP($D14,'All-WERTH'!$C$2:$AC$962,14,FALSE)),-1000)) -> -1000 | AA14: =IF($D14="Unlisted Player",-1001,IFERROR(IF(VLOOKUP($D14,'All-WERTH'!$C$2:$AC$962,15,FALSE)="",-1000,VLOOKUP($D14,'All-WERTH'!$C$2:$AC$962,15,FALSE)),-1000)) -> -1000 | AB14: =IF($D14="Unlisted Player",-1001,IFERROR(IF(VLOOKUP($D14,'All-WERTH'!$C$2:$AC$962,16,FALSE)="",-1000,VLOOKUP($D14,'All-WERTH'!$C$2:$AC$962,16,FALSE)),-1000)) -> -1.241623531 | AC14: =IF($D14="Unlisted Player",-1001,IFERROR(IF(VLOOKUP($D14,'All-WERTH'!$C$2:$AC$962,17,FALSE)="",-1000,VLOOKUP($D14,'All-WERTH'!$C$2:$AC$962,17,FALSE)),-1000)) -> 2.038787153 | AD14: =IF($D14="Unlisted Player",-1001,IFERROR(IF(VLOOKUP($D14,'All-WERTH'!$C$2:$AC$962,18,FALSE)="",-1000,VLOOKUP($D14,'All-WERTH'!$C$2:$AC$962,18,FALSE)),-1000)) -> -1.130425082 | AE14: =IF($D14="Unlisted Player",-1001,IFERROR(IF(VLOOKUP($D14,'All-WERTH'!$C$2:$AC$962,19,FALSE)="",-1000,VLOOKUP($D14,'All-WERTH'!$C$2:$AC$962,19,FALSE)),-1000)) -> -0.8136371203 | AF14: =IF($D14="Unlisted Player",-1001,IFERROR(IF(VLOOKUP($D14,'All-WERTH'!$C$2:$AC$962,20,FALSE)="",-1000,VLOOKUP($D14,'All-WERTH'!$C$2:$AC$962,20,FALSE)),-1000)) -> -0.5820111744 | AG14: =IF($D14="Unlisted Player",-1001,IFERROR(IF(VLOOKUP($D14,'All-WERTH'!$C$2:$AC$962,21,FALSE)="",-1000,VLOOKUP($D14,'All-WERTH'!$C$2:$AC$962,21,FALSE)),-1000)) -> -1000 | AH14: =IF($D14="Unlisted Player",-1001,IFERROR(IF(VLOOKUP($D14,'All-WERTH'!$C$2:$AC$962,22,FALSE)="",-1000,VLOOKUP($D14,'All-WERTH'!$C$2:$AC$962,22,FALSE)),-1000)) -> -1000 | AI14: =IF($D14="Unlisted Player",-1001,IFERROR(IF(VLOOKUP($D14,'All-WERTH'!$C$2:$AC$962,23,FALSE)="",-1000,VLOOKUP($D14,'All-WERTH'!$C$2:$AC$962,23,FALSE)),-1000)) -> -1000 | AJ14: =IF($D14="Unlisted Player",-1001,IFERROR(IF(VLOOKUP($D14,'All-WERTH'!$C$2:$AC$962,24,FALSE)="",-1000,VLOOKUP($D14,'All-WERTH'!$C$2:$AC$962,24,FALSE)),-1000)) -> -1000 | AK14: =IF($D14="Unlisted Player",-1001,IFERROR(IF(VLOOKUP($D14,'All-WERTH'!$C$2:$AC$962,25,FALSE)="",-1000,VLOOKUP($D14,'All-WERTH'!$C$2:$AC$962,25,FALSE)),-1000)) -> -1000 | AL14: =IF($D14="Unlisted Player",-1001,IFERROR(IF(VLOOKUP($D14,'All-WERTH'!$C$2:$AC$962,26,FALSE)="",-1000,VLOOKUP($D14,'All-WERTH'!$C$2:$AC$962,26,FALSE)),-1000)) -> -1000 | AM14: =IF($D14="Unlisted Player",-1001,IFERROR(IF(VLOOKUP($D14,'All-WERTH'!$C$2:$AC$962,27,FALSE)="",-1000,VLOOKUP($D14,'All-WERTH'!$C$2:$AC$962,27,FALSE)),-1000)) -> -1000 | AN14: =IF(ISERROR(VLOOKUP($B13,Keepers!$C$2:$D$450,2,FALSE)),B13,"") -> Francisco Lindor | AO14: =IFERROR(INDEX($AN$1:$AN$961,SMALL(IF($AN$1:$AN$961<>"",ROW($AN$1:$AN$961)),ROW(AN14))),"") -> Alex Bregman
A15: Alex Bregman | B15: =IFERROR(INDEX($A$1:$A$961,SMALL(IF($A$1:$A$961<>"",ROW($A$1:$A$961)),ROW(A15))),"") -> Manny Machado | C15: =IFERROR(IF(L15=FALSE,"",CHOOSE(MATCH(RIGHT('Your Roto Draft'!$P$4,LEN('Your Roto Draft'!$P$4)-8),$M$1:$AM$1,0),1+SUMPRODUCT(($L$2:$L$962=TRUE)*($M$2:$M$962<M15))+COUNTIFS($L$2:L15,L15,$M$2:M15,M15)-1,1+SUMPRODUCT(($L$2:$L$962=TRUE)*($N$2:$N$962>N15))+COUNTIFS($L$2:L15,L15,$N$2:N15,N15)-1,1+SUMPRODUCT(($L$2:$L$962=TRUE)*($O$2:$O$962<O15))+COUNTIFS($L$2:L15,L15,$O$2:O15,O15)-1,1+SUMPRODUCT(($L$2:$L$962=TRUE)*($P$2:$P$962>P15))+COUNTIFS($L$2:L15,L15,$P$2:P15,P15)-1,1+SUMPRODUCT(($L$2:$L$962=TRUE)*($Q$2:$Q$962>Q15))+COUNTIFS($L$2:L15,L15,$Q$2:Q15,Q15)-1,1+SUMPRODUCT(($L$2:$L$962=TRUE)*($R$2:$R$962>R15))+COUNTIFS($L$2:L15,L15,$R$2:R15,R15)-1,1+SUMPRODUCT(($L$2:$L$962=TRUE)*($S$2:$S$962>S15))+COUNTIFS($L$2:L15,L15,$S$2:S15,S15)-1,1+SUMPRODUCT(($L$2:$L$962=TRUE)*($T$2:$T$962>T15))+COUNTIFS($L$2:L15,L15,$T$2:T15,T15)-1,1+SUMPRODUCT(($L$2:$L$962=TRUE)*($U$2:$U$962>U15))+COUNTIFS($L$2:L15,L15,$U$2:U15,U15)-1,1+SUMPRODUCT(($L$2:$L$962=TRUE)*($V$2:$V$962>V15))+COUNTIFS($L$2:L15,L15,$V$2:V15,V15)-1,1+SUMPRODUCT(($L$2:$L$962=TRUE)*($W$2:$W$962>W15))+COUNTIFS($L$2:L15,L15,$W$2:W15,W15)-1,1+SUMPRODUCT(($L$2:$L$962=TRUE)*($X$2:$X$962>X15))+COUNTIFS($L$2:L15,L15,$X$2:X15,X15)-1,1+SUMPRODUCT(($L$2:$L$962=TRUE)*($Y$2:$Y$962>Y15))+COUNTIFS($L$2:L15,L15,$Y$2:Y15,Y15)-1,1+SUMPRODUCT(($L$2:$L$962=TRUE)*($Z$2:$Z$962>Z15))+COUNTIFS($L$2:L15,L15,$Z$2:Z15,Z15)-1,1+SUMPRODUCT(($L$2:$L$962=TRUE)*($AA$2:$AA$962>AA15))+COUNTIFS($L$2:L15,L15,$AA$2:AA15,AA15)-1,1+SUMPRODUCT(($L$2:$L$962=TRUE)*($AB$2:$AB$962>AB15))+COUNTIFS($L$2:L15,L15,$AB$2:AB15,AB15)-1,1+SUMPRODUCT(($L$2:$L$962=TRUE)*($AC$2:$AC$962>AC15))+COUNTIFS($L$2:L15,L15,$AC$2:AC15,AC15)-1,1+SUMPRODUCT(($L$2:$L$962=TRUE)*($AD$2:$AD$962>AD15))+COUNTIFS($L$2:L15,L15,$AD$2:AD15,AD15)-1,1+SUMPRODUCT(($L$2:$L$962=TRUE)*($AE$2:$AE$962>AE15))+COUNTIFS($L$2:L15,L15,$AE$2:AE15,AE15)-1,1+SUMPRODUCT(($L$2:$L$962=TRUE)*($AF$2:$AF$962>AF15))+COUNTIFS($L$2:L15,L15,$AF$2:AF15,AF15)-1,1+SUMPRODUCT(($L$2:$L$962=TRUE)*($AG$2:$AG$962>AG15))+COUNTIFS($L$2:L15,L15,$AG$2:AG15,AG15)-1,1+SUMPRODUCT(($L$2:$L$962=TRUE)*($AH$2:$AH$962>AH15))+COUNTIFS($L$2:L15,L15,$AH$2:AH15,AH15)-1,1+SUMPRODUCT(($L$2:$L$962=TRUE)*($AI$2:$AI$962>AI15))+COUNTIFS($L$2:L15,L15,$AI$2:AI15,AI15)-1,1+SUMPRODUCT(($L$2:$L$962=TRUE)*($AJ$2:$AJ$962>AJ15))+COUNTIFS($L$2:L15,L15,$AJ$2:AJ15,AJ15)-1,1+SUMPRODUCT(($L$2:$L$962=TRUE)*($AK$2:$AK$962>AK15))+COUNTIFS($L$2:L15,L15,$AK$2:AK15,AK15)-1,1+SUMPRODUCT(($L$2:$L$962=TRUE)*($AL$2:$AL$962>AL15))+COUNTIFS($L$2:L15,L15,$AL$2:AL15,AL15)-1,1+SUMPRODUCT(($L$2:$L$962=TRUE)*($AM$2:$AM$962>AM15))+COUNTIFS($L$2:L15,L15,$AM$2:AM15,AM15)-1,)),"") -> 352 | D15: Greg Allen | E15: =IFERROR(INDEX('Draft Log'!$D$4:$D$806,MATCH(D15,'Draft Log'!$C$4:$C$806,0)),"") ->  | F15: =IFERROR(INDEX('ADP-Rank'!$C$2:$C$832,MATCH(D15,'ADP-Rank'!$A$2:$A$832,0)),"") -> OF | G15: =IFERROR(IF(F15=I15,"",IF(INDEX('Your Roto Draft'!$B$11:$B$634,MATCH(D15,'Your Roto Draft'!$C$11:$C$634,0))="",IF(I15<>"",I15,""),INDEX('Your Roto Draft'!$B$11:$B$634,MATCH(D15,'Your Roto Draft'!$C$11:$C$634,0)))),"") ->  | H15: OF | J15: =INDEX('ADP-Rank'!$AH$2:$AH$832,MATCH(D15,'ADP-Rank'!$A$2:$A$832,0)) -> TRUE | K15: FALSE | L15: =IF(J15=FALSE,FALSE,IF(AND('Your Roto Draft'!$P$6="Hide Drafted Players",K15=TRUE),FALSE,IF(OR('Your Roto Draft'!$P$5="Show All Positions",AND('Your Roto Draft'!$P$5="Only Show: C",H15="C"),AND('Your Roto Draft'!$P$5="Only Show: 1B",H15="1B"),AND('Your Roto Draft'!$P$5="Only Show: 2B",H15="2B"),AND('Your Roto Draft'!$P$5="Only Show: 3B",H15="3B"),AND('Your Roto Draft'!$P$5="Only Show: SS",H15="SS"),AND('Your Roto Draft'!$P$5="Only Show: OF",H15="OF"),AND('Your Roto Draft'!$P$5="Only Show: SP",H15="SP"),AND('Your Roto Draft'!$P$5="Only Show: RP",H15="RP"),AND('Your Roto Draft'!$P$5="Only Show: CI",OR(H15={"1B","3B"})),AND('Your Roto Draft'!$P$5="Only Show: MI",OR(H15={"2B","SS"})),AND('Your Roto Draft'!$P$5="Only Show: IF",OR(H15={"C","1B","2B","3B","SS"})),AND('Your Roto Draft'!$P$5="Only Show: DH",OR(H15={"C","1B","2B","3B","SS","OF","DH"})),AND('Your Roto Draft'!$P$5="Only Show: P",OR(H15={"SP","RP"})),AND('Your Roto Draft'!$P$5="Only Show: LF",ISERROR(SEARCH("LF",VLOOKUP($D15,'ADP-Rank'!$A$2:$D$961,4,FALSE)))=FALSE),AND('Your Roto Draft'!$P$5="Only Show: RF",ISERROR(SEARCH("RF",VLOOKUP($D15,'ADP-Rank'!$A$2:$D$961,4,FALSE)))=FALSE),AND('Your Roto Draft'!$P$5="Only Show: CF",ISERROR(SEARCH("CF",VLOOKUP($D15,'ADP-Rank'!$A$2:$D$961,4,FALSE)))=FALSE)),TRUE,FALSE))) -> TRUE | M15: =IFERROR(IF(VLOOKUP($D15,'ADP-Rank'!$A$2:$AV$961,38,FALSE)="",9999,VLOOKUP($D15,'ADP-Rank'!$A$2:$AV$961,38,FALSE)),9999) -> 342.3 | N15: =IF(D15="Non-Ranked Player",-1001,IFERROR(VLOOKUP($D15,'All-WERTH'!$C$2:$E$962,3,FALSE),-1000)) -> -6.276784965 | O15: =IF(D15="Non-Ranked Player",10000,IFERROR(IF(VLOOKUP(D15,'ADP-Rank'!$A$2:$AJ$961,36,FALSE)="",9999,VLOOKUP(D15,'ADP-Rank'!$A$2:$AJ$961,36,FALSE)),9999)) -> 358 | P15: =IF($D15="Unlisted Player",-1001,IFERROR(IF(VLOOKUP($D15,'All-WERTH'!$C$2:$AC$962,4,FALSE)="",-1000,VLOOKUP($D15,'All-WERTH'!$C$2:$AC$962,4,FALSE)),-1000)) -> -0.8741703574 | Q15: =IF($D15="Unlisted Player",-1001,IFERROR(IF(VLOOKUP($D15,'All-WERTH'!$C$2:$AC$962,5,FALSE)="",-1000,VLOOKUP($D15,'All-WERTH'!$C$2:$AC$962,5,FALSE)),-1000)) -> -2.294968431 | R15: =IF($D15="Unlisted Player",-1001,IFERROR(IF(VLOOKUP($D15,'All-WERTH'!$C$2:$AC$962,6,FALSE)="",-1000,VLOOKUP($D15,'All-WERTH'!$C$2:$AC$962,6,FALSE)),-1000)) -> -1.88697334 | S15: =IF($D15="Unlisted Player",-1001,IFERROR(IF(VLOOKUP($D15,'All-WERTH'!$C$2:$AC$962,7,FALSE)="",-1000,VLOOKUP($D15,'All-WERTH'!$C$2:$AC$962,7,FALSE)),-1000)) -> -2.60741117 | T15: =IF($D15="Unlisted Player",-1001,IFERROR(IF(VLOOKUP($D15,'All-WERTH'!$C$2:$AC$962,8,FALSE)="",-1000,VLOOKUP($D15,'All-WERTH'!$C$2:$AC$962,8,FALSE)),-1000)) -> 1.386738333 | U15: =IF($D15="Unlisted Player",-1001,IFERROR(IF(VLOOKUP($D15,'All-WERTH'!$C$2:$AC$962,9,FALSE)="",-1000,VLOOKUP($D15,'All-WERTH'!$C$2:$AC$962,9,FALSE)),-1000)) -> -1000 | V15: =IF($D15="Unlisted Player",-1001,IFERROR(IF(VLOOKUP($D15,'All-WERTH'!$C$2:$AC$962,10,FALSE)="",-1000,VLOOKUP($D15,'All-WERTH'!$C$2:$AC$962,10,FALSE)),-1000)) -> -1000 | W15: =IF($D15="Unlisted Player",-1001,IFERROR(IF(VLOOKUP($D15,'All-WERTH'!$C$2:$AC$962,11,FALSE)="",-1000,VLOOKUP($D15,'All-WERTH'!$C$2:$AC$962,11,FALSE)),-1000)) -> -1000 | X15: =IF($D15="Unlisted Player",-1001,IFERROR(IF(VLOOKUP($D15,'All-WERTH'!$C$2:$AC$962,12,FALSE)="",-1000,VLOOKUP($D15,'All-WERTH'!$C$2:$AC$962,12,FALSE)),-1000)) -> -1000 | Y15: =IF($D15="Unlisted Player",-1001,IFERROR(IF(VLOOKUP($D15,'All-WERTH'!$C$2:$AC$962,13,FALSE)="",-1000,VLOOKUP($D15,'All-WERTH'!$C$2:$AC$962,13,FALSE)),-1000)) -> -1000 | Z15: =IF($D15="Unlisted Player",-1001,IFERROR(IF(VLOOKUP($D15,'All-WERTH'!$C$2:$AC$962,14,FALSE)="",-1000,VLOOKUP($D15,'All-WERTH'!$C$2:$AC$962,14,FALSE)),-1000)) -> -1000 | AA15: =IF($D15="Unlisted Player",-1001,IFERROR(IF(VLOOKUP($D15,'All-WERTH'!$C$2:$AC$962,15,FALSE)="",-1000,VLOOKUP($D15,'All-WERTH'!$C$2:$AC$962,15,FALSE)),-1000)) -> -1000 | AB15: =IF($D15="Unlisted Player",-1001,IFERROR(IF(VLOOKUP($D15,'All-WERTH'!$C$2:$AC$962,16,FALSE)="",-1000,VLOOKUP($D15,'All-WERTH'!$C$2:$AC$962,16,FALSE)),-1000)) -> -1000 | AC15: =IF($D15="Unlisted Player",-1001,IFERROR(IF(VLOOKUP($D15,'All-WERTH'!$C$2:$AC$962,17,FALSE)="",-1000,VLOOKUP($D15,'All-WERTH'!$C$2:$AC$962,17,FALSE)),-1000)) -> -1000 | AD15: =IF($D15="Unlisted Player",-1001,IFERROR(IF(VLOOKUP($D15,'All-WERTH'!$C$2:$AC$962,18,FALSE)="",-1000,VLOOKUP($D15,'All-WERTH'!$C$2:$AC$962,18,FALSE)),-1000)) -> -1000 | AE15: =IF($D15="Unlisted Player",-1001,IFERROR(IF(VLOOKUP($D15,'All-WERTH'!$C$2:$AC$962,19,FALSE)="",-1000,VLOOKUP($D15,'All-WERTH'!$C$2:$AC$962,19,FALSE)),-1000)) -> -1000 | AF15: =IF($D15="Unlisted Player",-1001,IFERROR(IF(VLOOKUP($D15,'All-WERTH'!$C$2:$AC$962,20,FALSE)="",-1000,VLOOKUP($D15,'All-WERTH'!$C$2:$AC$962,20,FALSE)),-1000)) -> -1000 | AG15: =IF($D15="Unlisted Player",-1001,IFERROR(IF(VLOOKUP($D15,'All-WERTH'!$C$2:$AC$962,21,FALSE)="",-1000,VLOOKUP($D15,'All-WERTH'!$C$2:$AC$962,21,FALSE)),-1000)) -> -1000 | AH15: =IF($D15="Unlisted Player",-1001,IFERROR(IF(VLOOKUP($D15,'All-WERTH'!$C$2:$AC$962,22,FALSE)="",-1000,VLOOKUP($D15,'All-WERTH'!$C$2:$AC$962,22,FALSE)),-1000)) -> -1000 | AI15: =IF($D15="Unlisted Player",-1001,IFERROR(IF(VLOOKUP($D15,'All-WERTH'!$C$2:$AC$962,23,FALSE)="",-1000,VLOOKUP($D15,'All-WERTH'!$C$2:$AC$962,23,FALSE)),-1000)) -> -1000 | AJ15: =IF($D15="Unlisted Player",-1001,IFERROR(IF(VLOOKUP($D15,'All-WERTH'!$C$2:$AC$962,24,FALSE)="",-1000,VLOOKUP($D15,'All-WERTH'!$C$2:$AC$962,24,FALSE)),-1000)) -> -1000 | AK15: =IF($D15="Unlisted Player",-1001,IFERROR(IF(VLOOKUP($D15,'All-WERTH'!$C$2:$AC$962,25,FALSE)="",-1000,VLOOKUP($D15,'All-WERTH'!$C$2:$AC$962,25,FALSE)),-1000)) -> -1000 | AL15: =IF($D15="Unlisted Player",-1001,IFERROR(IF(VLOOKUP($D15,'All-WERTH'!$C$2:$AC$962,26,FALSE)="",-1000,VLOOKUP($D15,'All-WERTH'!$C$2:$AC$962,26,FALSE)),-1000)) -> -1000 | AM15: =IF($D15="Unlisted Player",-1001,IFERROR(IF(VLOOKUP($D15,'All-WERTH'!$C$2:$AC$962,27,FALSE)="",-1000,VLOOKUP($D15,'All-WERTH'!$C$2:$AC$962,27,FALSE)),-1000)) -> -1000 | AN15: =IF(ISERROR(VLOOKUP($B14,Keepers!$C$2:$D$450,2,FALSE)),B14,"") -> Alex Bregman | AO15: =IFERROR(INDEX($AN$1:$AN$961,SMALL(IF($AN$1:$AN$961<>"",ROW($AN$1:$AN$961)),ROW(AN15))),"") -> Manny Machado
A16: Manny Machado | B16: =IFERROR(INDEX($A$1:$A$961,SMALL(IF($A$1:$A$961<>"",ROW($A$1:$A$961)),ROW(A16))),"") -> Javier Baez | C16: =IFERROR(IF(L16=FALSE,"",CHOOSE(MATCH(RIGHT('Your Roto Draft'!$P$4,LEN('Your Roto Draft'!$P$4)-8),$M$1:$AM$1,0),1+SUMPRODUCT(($L$2:$L$962=TRUE)*($M$2:$M$962<M16))+COUNTIFS($L$2:L16,L16,$M$2:M16,M16)-1,1+SUMPRODUCT(($L$2:$L$962=TRUE)*($N$2:$N$962>N16))+COUNTIFS($L$2:L16,L16,$N$2:N16,N16)-1,1+SUMPRODUCT(($L$2:$L$962=TRUE)*($O$2:$O$962<O16))+COUNTIFS($L$2:L16,L16,$O$2:O16,O16)-1,1+SUMPRODUCT(($L$2:$L$962=TRUE)*($P$2:$P$962>P16))+COUNTIFS($L$2:L16,L16,$P$2:P16,P16)-1,1+SUMPRODUCT(($L$2:$L$962=TRUE)*($Q$2:$Q$962>Q16))+COUNTIFS($L$2:L16,L16,$Q$2:Q16,Q16)-1,1+SUMPRODUCT(($L$2:$L$962=TRUE)*($R$2:$R$962>R16))+COUNTIFS($L$2:L16,L16,$R$2:R16,R16)-1,1+SUMPRODUCT(($L$2:$L$962=TRUE)*($S$2:$S$962>S16))+COUNTIFS($L$2:L16,L16,$S$2:S16,S16)-1,1+SUMPRODUCT(($L$2:$L$962=TRUE)*($T$2:$T$962>T16))+COUNTIFS($L$2:L16,L16,$T$2:T16,T16)-1,1+SUMPRODUCT(($L$2:$L$962=TRUE)*($U$2:$U$962>U16))+COUNTIFS($L$2:L16,L16,$U$2:U16,U16)-1,1+SUMPRODUCT(($L$2:$L$962=TRUE)*($V$2:$V$962>V16))+COUNTIFS($L$2:L16,L16,$V$2:V16,V16)-1,1+SUMPRODUCT(($L$2:$L$962=TRUE)*($W$2:$W$962>W16))+COUNTIFS($L$2:L16,L16,$W$2:W16,W16)-1,1+SUMPRODUCT(($L$2:$L$962=TRUE)*($X$2:$X$962>X16))+COUNTIFS($L$2:L16,L16,$X$2:X16,X16)-1,1+SUMPRODUCT(($L$2:$L$962=TRUE)*($Y$2:$Y$962>Y16))+COUNTIFS($L$2:L16,L16,$Y$2:Y16,Y16)-1,1+SUMPRODUCT(($L$2:$L$962=TRUE)*($Z$2:$Z$962>Z16))+COUNTIFS($L$2:L16,L16,$Z$2:Z16,Z16)-1,1+SUMPRODUCT(($L$2:$L$962=TRUE)*($AA$2:$AA$962>AA16))+COUNTIFS($L$2:L16,L16,$AA$2:AA16,AA16)-1,1+SUMPRODUCT(($L$2:$L$962=TRUE)*($AB$2:$AB$962>AB16))+COUNTIFS($L$2:L16,L16,$AB$2:AB16,AB16)-1,1+SUMPRODUCT(($L$2:$L$962=TRUE)*($AC$2:$AC$962>AC16))+COUNTIFS($L$2:L16,L16,$AC$2:AC16,AC16)-1,1+SUMPRODUCT(($L$2:$L$962=TRUE)*($AD$2:$AD$962>AD16))+COUNTIFS($L$2:L16,L16,$AD$2:AD16,AD16)-1,1+SUMPRODUCT(($L$2:$L$962=TRUE)*($AE$2:$AE$962>AE16))+COUNTIFS($L$2:L16,L16,$AE$2:AE16,AE16)-1,1+SUMPRODUCT(($L$2:$L$962=TRUE)*($AF$2:$AF$962>AF16))+COUNTIFS($L$2:L16,L16,$AF$2:AF16,AF16)-1,1+SUMPRODUCT(($L$2:$L$962=TRUE)*($AG$2:$AG$962>AG16))+COUNTIFS($L$2:L16,L16,$AG$2:AG16,AG16)-1,1+SUMPRODUCT(($L$2:$L$962=TRUE)*($AH$2:$AH$962>AH16))+COUNTIFS($L$2:L16,L16,$AH$2:AH16,AH16)-1,1+SUMPRODUCT(($L$2:$L$962=TRUE)*($AI$2:$AI$962>AI16))+COUNTIFS($L$2:L16,L16,$AI$2:AI16,AI16)-1,1+SUMPRODUCT(($L$2:$L$962=TRUE)*($AJ$2:$AJ$962>AJ16))+COUNTIFS($L$2:L16,L16,$AJ$2:AJ16,AJ16)-1,1+SUMPRODUCT(($L$2:$L$962=TRUE)*($AK$2:$AK$962>AK16))+COUNTIFS($L$2:L16,L16,$AK$2:AK16,AK16)-1,1+SUMPRODUCT(($L$2:$L$962=TRUE)*($AL$2:$AL$962>AL16))+COUNTIFS($L$2:L16,L16,$AL$2:AL16,AL16)-1,1+SUMPRODUCT(($L$2:$L$962=TRUE)*($AM$2:$AM$962>AM16))+COUNTIFS($L$2:L16,L16,$AM$2:AM16,AM16)-1,)),"") -> 451 | D16: Albert Almora | E16: =IFERROR(INDEX('Draft Log'!$D$4:$D$806,MATCH(D16,'Draft Log'!$C$4:$C$806,0)),"") ->  | F16: =IFERROR(INDEX('ADP-Rank'!$C$2:$C$832,MATCH(D16,'ADP-Rank'!$A$2:$A$832,0)),"") -> OF | G16: =IFERROR(IF(F16=I16,"",IF(INDEX('Your Roto Draft'!$B$11:$B$634,MATCH(D16,'Your Roto Draft'!$C$11:$C$634,0))="",IF(I16<>"",I16,""),INDEX('Your Roto Draft'!$B$11:$B$634,MATCH(D16,'Your Roto Draft'!$C$11:$C$634,0)))),"") ->  | H16: OF | J16: =INDEX('ADP-Rank'!$AH$2:$AH$832,MATCH(D16,'ADP-Rank'!$A$2:$A$832,0)) -> TRUE | K16: FALSE | L16: =IF(J16=FALSE,FALSE,IF(AND('Your Roto Draft'!$P$6="Hide Drafted Players",K16=TRUE),FALSE,IF(OR('Your Roto Draft'!$P$5="Show All Positions",AND('Your Roto Draft'!$P$5="Only Show: C",H16="C"),AND('Your Roto Draft'!$P$5="Only Show: 1B",H16="1B"),AND('Your Roto Draft'!$P$5="Only Show: 2B",H16="2B"),AND('Your Roto Draft'!$P$5="Only Show: 3B",H16="3B"),AND('Your Roto Draft'!$P$5="Only Show: SS",H16="SS"),AND('Your Roto Draft'!$P$5="Only Show: OF",H16="OF"),AND('Your Roto Draft'!$P$5="Only Show: SP",H16="SP"),AND('Your Roto Draft'!$P$5="Only Show: RP",H16="RP"),AND('Your Roto Draft'!$P$5="Only Show: CI",OR(H16={"1B","3B"})),AND('Your Roto Draft'!$P$5="Only Show: MI",OR(H16={"2B","SS"})),AND('Your Roto Draft'!$P$5="Only Show: IF",OR(H16={"C","1B","2B","3B","SS"})),AND('Your Roto Draft'!$P$5="Only Show: DH",OR(H16={"C","1B","2B","3B","SS","OF","DH"})),AND('Your Roto Draft'!$P$5="Only Show: P",OR(H16={"SP","RP"})),AND('Your Roto Draft'!$P$5="Only Show: LF",ISERROR(SEARCH("LF",VLOOKUP($D16,'ADP-Rank'!$A$2:$D$961,4,FALSE)))=FALSE),AND('Your Roto Draft'!$P$5="Only Show: RF",ISERROR(SEARCH("RF",VLOOKUP($D16,'ADP-Rank'!$A$2:$D$961,4,FALSE)))=FALSE),AND('Your Roto Draft'!$P$5="Only Show: CF",ISERROR(SEARCH("CF",VLOOKUP($D16,'ADP-Rank'!$A$2:$D$961,4,FALSE)))=FALSE)),TRUE,FALSE))) -> TRUE | M16: =IFERROR(IF(VLOOKUP($D16,'ADP-Rank'!$A$2:$AV$961,38,FALSE)="",9999,VLOOKUP($D16,'ADP-Rank'!$A$2:$AV$961,38,FALSE)),9999) -> 445 | N16: =IF(D16="Non-Ranked Player",-1001,IFERROR(VLOOKUP($D16,'All-WERTH'!$C$2:$E$962,3,FALSE),-1000)) -> -5.863153814 | O16: =IF(D16="Non-Ranked Player",10000,IFERROR(IF(VLOOKUP(D16,'ADP-Rank'!$A$2:$AJ$961,36,FALSE)="",9999,VLOOKUP(D16,'ADP-Rank'!$A$2:$AJ$961,36,FALSE)),9999)) -> 436 | P16: =IF($D16="Unlisted Player",-1001,IFERROR(IF(VLOOKUP($D16,'All-WERTH'!$C$2:$AC$962,4,FALSE)="",-1000,VLOOKUP($D16,'All-WERTH'!$C$2:$AC$962,4,FALSE)),-1000)) -> 0.01299108838 | Q16: =IF($D16="Unlisted Player",-1001,IFERROR(IF(VLOOKUP($D16,'All-WERTH'!$C$2:$AC$962,5,FALSE)="",-1000,VLOOKUP($D16,'All-WERTH'!$C$2:$AC$962,5,FALSE)),-1000)) -> -1.833302977 | R16: =IF($D16="Unlisted Player",-1001,IFERROR(IF(VLOOKUP($D16,'All-WERTH'!$C$2:$AC$962,6,FALSE)="",-1000,VLOOKUP($D16,'All-WERTH'!$C$2:$AC$962,6,FALSE)),-1000)) -> -1.424074099 | S16: =IF($D16="Unlisted Player",-1001,IFERROR(IF(VLOOKUP($D16,'All-WERTH'!$C$2:$AC$962,7,FALSE)="",-1000,VLOOKUP($D16,'All-WERTH'!$C$2:$AC$962,7,FALSE)),-1000)) -> -1.858956749 | T16: =IF($D16="Unlisted Player",-1001,IFERROR(IF(VLOOKUP($D16,'All-WERTH'!$C$2:$AC$962,8,FALSE)="",-1000,VLOOKUP($D16,'All-WERTH'!$C$2:$AC$962,8,FALSE)),-1000)) -> -0.7598110764 | U16: =IF($D16="Unlisted Player",-1001,IFERROR(IF(VLOOKUP($D16,'All-WERTH'!$C$2:$AC$962,9,FALSE)="",-1000,VLOOKUP($D16,'All-WERTH'!$C$2:$AC$962,9,FALSE)),-1000)) -> -1000 | V16: =IF($D16="Unlisted Player",-1001,IFERROR(IF(VLOOKUP($D16,'All-WERTH'!$C$2:$AC$962,10,FALSE)="",-1000,VLOOKUP($D16,'All-WERTH'!$C$2:$AC$962,10,FALSE)),-1000)) -> -1000 | W16: =IF($D16="Unlisted Player",-1001,IFERROR(IF(VLOOKUP($D16,'All-WERTH'!$C$2:$AC$962,11,FALSE)="",-1000,VLOOKUP($D16,'All-WERTH'!$C$2:$AC$962,11,FALSE)),-1000)) -> -1000 | X16: =IF($D16="Unlisted Player",-1001,IFERROR(IF(VLOOKUP($D16,'All-WERTH'!$C$2:$AC$962,12,FALSE)="",-1000,VLOOKUP($D16,'All-WERTH'!$C$2:$AC$962,12,FALSE)),-1000)) -> -1000 | Y16: =IF($D16="Unlisted Player",-1001,IFERROR(IF(VLOOKUP($D16,'All-WERTH'!$C$2:$AC$962,13,FALSE)="",-1000,VLOOKUP($D16,'All-WERTH'!$C$2:$AC$962,13,FALSE)),-1000)) -> -1000 | Z16: =IF($D16="Unlisted Player",-1001,IFERROR(IF(VLOOKUP($D16,'All-WERTH'!$C$2:$AC$962,14,FALSE)="",-1000,VLOOKUP($D16,'All-WERTH'!$C$2:$AC$962,14,FALSE)),-1000)) -> -1000 | AA16: =IF($D16="Unlisted Player",-1001,IFERROR(IF(VLOOKUP($D16,'All-WERTH'!$C$2:$AC$962,15,FALSE)="",-1000,VLOOKUP($D16,'All-WERTH'!$C$2:$AC$962,15,FALSE)),-1000)) -> -1000 | AB16: =IF($D16="Unlisted Player",-1001,IFERROR(IF(VLOOKUP($D16,'All-WERTH'!$C$2:$AC$962,16,FALSE)="",-1000,VLOOKUP($D16,'All-WERTH'!$C$2:$AC$962,16,FALSE)),-1000)) -> -1000 | AC16: =IF($D16="Unlisted Player",-1001,IFERROR(IF(VLOOKUP($D16,'All-WERTH'!$C$2:$AC$962,17,FALSE)="",-1000,VLOOKUP($D16,'All-WERTH'!$C$2:$AC$962,17,FALSE)),-1000)) -> -1000 | AD16: =IF($D16="Unlisted Player",-1001,IFERROR(IF(VLOOKUP($D16,'All-WERTH'!$C$2:$AC$962,18,FALSE)="",-1000,VLOOKUP($D16,'All-WERTH'!$C$2:$AC$962,18,FALSE)),-1000)) -> -1000 | AE16: =IF($D16="Unlisted Player",-1001,IFERROR(IF(VLOOKUP($D16,'All-WERTH'!$C$2:$AC$962,19,FALSE)="",-1000,VLOOKUP($D16,'All-WERTH'!$C$2:$AC$962,19,FALSE)),-1000)) -> -1000 | AF16: =IF($D16="Unlisted Player",-1001,IFERROR(IF(VLOOKUP($D16,'All-WERTH'!$C$2:$AC$962,20,FALSE)="",-1000,VLOOKUP($D16,'All-WERTH'!$C$2:$AC$962,20,FALSE)),-1000)) -> -1000 | AG16: =IF($D16="Unlisted Player",-1001,IFERROR(IF(VLOOKUP($D16,'All-WERTH'!$C$2:$AC$962,21,FALSE)="",-1000,VLOOKUP($D16,'All-WERTH'!$C$2:$AC$962,21,FALSE)),-1000)) -> -1000 | AH16: =IF($D16="Unlisted Player",-1001,IFERROR(IF(VLOOKUP($D16,'All-WERTH'!$C$2:$AC$962,22,FALSE)="",-1000,VLOOKUP($D16,'All-WERTH'!$C$2:$AC$962,22,FALSE)),-1000)) -> -1000 | AI16: =IF($D16="Unlisted Player",-1001,IFERROR(IF(VLOOKUP($D16,'All-WERTH'!$C$2:$AC$962,23,FALSE)="",-1000,VLOOKUP($D16,'All-WERTH'!$C$2:$AC$962,23,FALSE)),-1000)) -> -1000 | AJ16: =IF($D16="Unlisted Player",-1001,IFERROR(IF(VLOOKUP($D16,'All-WERTH'!$C$2:$AC$962,24,FALSE)="",-1000,VLOOKUP($D16,'All-WERTH'!$C$2:$AC$962,24,FALSE)),-1000)) -> -1000 | AK16: =IF($D16="Unlisted Player",-1001,IFERROR(IF(VLOOKUP($D16,'All-WERTH'!$C$2:$AC$962,25,FALSE)="",-1000,VLOOKUP($D16,'All-WERTH'!$C$2:$AC$962,25,FALSE)),-1000)) -> -1000 | AL16: =IF($D16="Unlisted Player",-1001,IFERROR(IF(VLOOKUP($D16,'All-WERTH'!$C$2:$AC$962,26,FALSE)="",-1000,VLOOKUP($D16,'All-WERTH'!$C$2:$AC$962,26,FALSE)),-1000)) -> -1000 | AM16: =IF($D16="Unlisted Player",-1001,IFERROR(IF(VLOOKUP($D16,'All-WERTH'!$C$2:$AC$962,27,FALSE)="",-1000,VLOOKUP($D16,'All-WERTH'!$C$2:$AC$962,27,FALSE)),-1000)) -> -1000 | AN16: =IF(ISERROR(VLOOKUP($B15,Keepers!$C$2:$D$450,2,FALSE)),B15,"") -> Manny Machado | AO16: =IFERROR(INDEX($AN$1:$AN$961,SMALL(IF($AN$1:$AN$961<>"",ROW($AN$1:$AN$961)),ROW(AN16))),"") -> Javier Baez
A17: Javier Baez | B17: =IFERROR(INDEX($A$1:$A$961,SMALL(IF($A$1:$A$961<>"",ROW($A$1:$A$961)),ROW(A17))),"") -> Bryce Harper | C17: =IFERROR(IF(L17=FALSE,"",CHOOSE(MATCH(RIGHT('Your Roto Draft'!$P$4,LEN('Your Roto Draft'!$P$4)-8),$M$1:$AM$1,0),1+SUMPRODUCT(($L$2:$L$962=TRUE)*($M$2:$M$962<M17))+COUNTIFS($L$2:L17,L17,$M$2:M17,M17)-1,1+SUMPRODUCT(($L$2:$L$962=TRUE)*($N$2:$N$962>N17))+COUNTIFS($L$2:L17,L17,$N$2:N17,N17)-1,1+SUMPRODUCT(($L$2:$L$962=TRUE)*($O$2:$O$962<O17))+COUNTIFS($L$2:L17,L17,$O$2:O17,O17)-1,1+SUMPRODUCT(($L$2:$L$962=TRUE)*($P$2:$P$962>P17))+COUNTIFS($L$2:L17,L17,$P$2:P17,P17)-1,1+SUMPRODUCT(($L$2:$L$962=TRUE)*($Q$2:$Q$962>Q17))+COUNTIFS($L$2:L17,L17,$Q$2:Q17,Q17)-1,1+SUMPRODUCT(($L$2:$L$962=TRUE)*($R$2:$R$962>R17))+COUNTIFS($L$2:L17,L17,$R$2:R17,R17)-1,1+SUMPRODUCT(($L$2:$L$962=TRUE)*($S$2:$S$962>S17))+COUNTIFS($L$2:L17,L17,$S$2:S17,S17)-1,1+SUMPRODUCT(($L$2:$L$962=TRUE)*($T$2:$T$962>T17))+COUNTIFS($L$2:L17,L17,$T$2:T17,T17)-1,1+SUMPRODUCT(($L$2:$L$962=TRUE)*($U$2:$U$962>U17))+COUNTIFS($L$2:L17,L17,$U$2:U17,U17)-1,1+SUMPRODUCT(($L$2:$L$962=TRUE)*($V$2:$V$962>V17))+COUNTIFS($L$2:L17,L17,$V$2:V17,V17)-1,1+SUMPRODUCT(($L$2:$L$962=TRUE)*($W$2:$W$962>W17))+COUNTIFS($L$2:L17,L17,$W$2:W17,W17)-1,1+SUMPRODUCT(($L$2:$L$962=TRUE)*($X$2:$X$962>X17))+COUNTIFS($L$2:L17,L17,$X$2:X17,X17)-1,1+SUMPRODUCT(($L$2:$L$962=TRUE)*($Y$2:$Y$962>Y17))+COUNTIFS($L$2:L17,L17,$Y$2:Y17,Y17)-1,1+SUMPRODUCT(($L$2:$L$962=TRUE)*($Z$2:$Z$962>Z17))+COUNTIFS($L$2:L17,L17,$Z$2:Z17,Z17)-1,1+SUMPRODUCT(($L$2:$L$962=TRUE)*($AA$2:$AA$962>AA17))+COUNTIFS($L$2:L17,L17,$AA$2:AA17,AA17)-1,1+SUMPRODUCT(($L$2:$L$962=TRUE)*($AB$2:$AB$962>AB17))+COUNTIFS($L$2:L17,L17,$AB$2:AB17,AB17)-1,1+SUMPRODUCT(($L$2:$L$962=TRUE)*($AC$2:$AC$962>AC17))+COUNTIFS($L$2:L17,L17,$AC$2:AC17,AC17)-1,1+SUMPRODUCT(($L$2:$L$962=TRUE)*($AD$2:$AD$962>AD17))+COUNTIFS($L$2:L17,L17,$AD$2:AD17,AD17)-1,1+SUMPRODUCT(($L$2:$L$962=TRUE)*($AE$2:$AE$962>AE17))+COUNTIFS($L$2:L17,L17,$AE$2:AE17,AE17)-1,1+SUMPRODUCT(($L$2:$L$962=TRUE)*($AF$2:$AF$962>AF17))+COUNTIFS($L$2:L17,L17,$AF$2:AF17,AF17)-1,1+SUMPRODUCT(($L$2:$L$962=TRUE)*($AG$2:$AG$962>AG17))+COUNTIFS($L$2:L17,L17,$AG$2:AG17,AG17)-1,1+SUMPRODUCT(($L$2:$L$962=TRUE)*($AH$2:$AH$962>AH17))+COUNTIFS($L$2:L17,L17,$AH$2:AH17,AH17)-1,1+SUMPRODUCT(($L$2:$L$962=TRUE)*($AI$2:$AI$962>AI17))+COUNTIFS($L$2:L17,L17,$AI$2:AI17,AI17)-1,1+SUMPRODUCT(($L$2:$L$962=TRUE)*($AJ$2:$AJ$962>AJ17))+COUNTIFS($L$2:L17,L17,$AJ$2:AJ17,AJ17)-1,1+SUMPRODUCT(($L$2:$L$962=TRUE)*($AK$2:$AK$962>AK17))+COUNTIFS($L$2:L17,L17,$AK$2:AK17,AK17)-1,1+SUMPRODUCT(($L$2:$L$962=TRUE)*($AL$2:$AL$962>AL17))+COUNTIFS($L$2:L17,L17,$AL$2:AL17,AL17)-1,1+SUMPRODUCT(($L$2:$L$962=TRUE)*($AM$2:$AM$962>AM17))+COUNTIFS($L$2:L17,L17,$AM$2:AM17,AM17)-1,)),"") -> 273 | D17: Peter Alonso | E17: =IFERROR(INDEX('Draft Log'!$D$4:$D$806,MATCH(D17,'Draft Log'!$C$4:$C$806,0)),"") ->  | F17: =IFERROR(INDEX('ADP-Rank'!$C$2:$C$832,MATCH(D17,'ADP-Rank'!$A$2:$A$832,0)),"") -> 1B | G17: =IFERROR(IF(F17=I17,"",IF(INDEX('Your Roto Draft'!$B$11:$B$634,MATCH(D17,'Your Roto Draft'!$C$11:$C$634,0))="",IF(I17<>"",I17,""),INDEX('Your Roto Draft'!$B$11:$B$634,MATCH(D17,'Your Roto Draft'!$C$11:$C$634,0)))),"") ->  | H17: 1B | J17: =INDEX('ADP-Rank'!$AH$2:$AH$832,MATCH(D17,'ADP-Rank'!$A$2:$A$832,0)) -> TRUE | K17: FALSE | L17: =IF(J17=FALSE,FALSE,IF(AND('Your Roto Draft'!$P$6="Hide Drafted Players",K17=TRUE),FALSE,IF(OR('Your Roto Draft'!$P$5="Show All Positions",AND('Your Roto Draft'!$P$5="Only Show: C",H17="C"),AND('Your Roto Draft'!$P$5="Only Show: 1B",H17="1B"),AND('Your Roto Draft'!$P$5="Only Show: 2B",H17="2B"),AND('Your Roto Draft'!$P$5="Only Show: 3B",H17="3B"),AND('Your Roto Draft'!$P$5="Only Show: SS",H17="SS"),AND('Your Roto Draft'!$P$5="Only Show: OF",H17="OF"),AND('Your Roto Draft'!$P$5="Only Show: SP",H17="SP"),AND('Your Roto Draft'!$P$5="Only Show: RP",H17="RP"),AND('Your Roto Draft'!$P$5="Only Show: CI",OR(H17={"1B","3B"})),AND('Your Roto Draft'!$P$5="Only Show: MI",OR(H17={"2B","SS"})),AND('Your Roto Draft'!$P$5="Only Show: IF",OR(H17={"C","1B","2B","3B","SS"})),AND('Your Roto Draft'!$P$5="Only Show: DH",OR(H17={"C","1B","2B","3B","SS","OF","DH"})),AND('Your Roto Draft'!$P$5="Only Show: P",OR(H17={"SP","RP"})),AND('Your Roto Draft'!$P$5="Only Show: LF",ISERROR(SEARCH("LF",VLOOKUP($D17,'ADP-Rank'!$A$2:$D$961,4,FALSE)))=FALSE),AND('Your Roto Draft'!$P$5="Only Show: RF",ISERROR(SEARCH("RF",VLOOKUP($D17,'ADP-Rank'!$A$2:$D$961,4,FALSE)))=FALSE),AND('Your Roto Draft'!$P$5="Only Show: CF",ISERROR(SEARCH("CF",VLOOKUP($D17,'ADP-Rank'!$A$2:$D$961,4,FALSE)))=FALSE)),TRUE,FALSE))) -> TRUE | M17: =IFERROR(IF(VLOOKUP($D17,'ADP-Rank'!$A$2:$AV$961,38,FALSE)="",9999,VLOOKUP($D17,'ADP-Rank'!$A$2:$AV$961,38,FALSE)),9999) -> 287.5 | N17: =IF(D17="Non-Ranked Player",-1001,IFERROR(VLOOKUP($D17,'All-WERTH'!$C$2:$E$962,3,FALSE),-1000)) -> -3.875482489 | O17: =IF(D17="Non-Ranked Player",10000,IFERROR(IF(VLOOKUP(D17,'ADP-Rank'!$A$2:$AJ$961,36,FALSE)="",9999,VLOOKUP(D17,'ADP-Rank'!$A$2:$AJ$961,36,FALSE)),9999)) -> 266 | P17: =IF($D17="Unlisted Player",-1001,IFERROR(IF(VLOOKUP($D17,'All-WERTH'!$C$2:$AC$962,4,FALSE)="",-1000,VLOOKUP($D17,'All-WERTH'!$C$2:$AC$962,4,FALSE)),-1000)) -> -1.621817524 | Q17: =IF($D17="Unlisted Player",-1001,IFERROR(IF(VLOOKUP($D17,'All-WERTH'!$C$2:$AC$962,5,FALSE)="",-1000,VLOOKUP($D17,'All-WERTH'!$C$2:$AC$962,5,FALSE)),-1000)) -> 0.209282493 | R17: =IF($D17="Unlisted Player",-1001,IFERROR(IF(VLOOKUP($D17,'All-WERTH'!$C$2:$AC$962,6,FALSE)="",-1000,VLOOKUP($D17,'All-WERTH'!$C$2:$AC$962,6,FALSE)),-1000)) -> -1.035200362 | S17: =IF($D17="Unlisted Player",-1001,IFERROR(IF(VLOOKUP($D17,'All-WERTH'!$C$2:$AC$962,7,FALSE)="",-1000,VLOOKUP($D17,'All-WERTH'!$C$2:$AC$962,7,FALSE)),-1000)) -> -0.4701466508 | T17: =IF($D17="Unlisted Player",-1001,IFERROR(IF(VLOOKUP($D17,'All-WERTH'!$C$2:$AC$962,8,FALSE)="",-1000,VLOOKUP($D17,'All-WERTH'!$C$2:$AC$962,8,FALSE)),-1000)) -> -0.9576004459 | U17: =IF($D17="Unlisted Player",-1001,IFERROR(IF(VLOOKUP($D17,'All-WERTH'!$C$2:$AC$962,9,FALSE)="",-1000,VLOOKUP($D17,'All-WERTH'!$C$2:$AC$962,9,FALSE)),-1000)) -> -1000 | V17: =IF($D17="Unlisted Player",-1001,IFERROR(IF(VLOOKUP($D17,'All-WERTH'!$C$2:$AC$962,10,FALSE)="",-1000,VLOOKUP($D17,'All-WERTH'!$C$2:$AC$962,10,FALSE)),-1000)) -> -1000 | W17: =IF($D17="Unlisted Player",-1001,IFERROR(IF(VLOOKUP($D17,'All-WERTH'!$C$2:$AC$962,11,FALSE)="",-1000,VLOOKUP($D17,'All-WERTH'!$C$2:$AC$962,11,FALSE)),-1000)) -> -1000 | X17: =IF($D17="Unlisted Player",-1001,IFERROR(IF(VLOOKUP($D17,'All-WERTH'!$C$2:$AC$962,12,FALSE)="",-1000,VLOOKUP($D17,'All-WERTH'!$C$2:$AC$962,12,FALSE)),-1000)) -> -1000 | Y17: =IF($D17="Unlisted Player",-1001,IFERROR(IF(VLOOKUP($D17,'All-WERTH'!$C$2:$AC$962,13,FALSE)="",-1000,VLOOKUP($D17,'All-WERTH'!$C$2:$AC$962,13,FALSE)),-1000)) -> -1000 | Z17: =IF($D17="Unlisted Player",-1001,IFERROR(IF(VLOOKUP($D17,'All-WERTH'!$C$2:$AC$962,14,FALSE)="",-1000,VLOOKUP($D17,'All-WERTH'!$C$2:$AC$962,14,FALSE)),-1000)) -> -1000 | AA17: =IF($D17="Unlisted Player",-1001,IFERROR(IF(VLOOKUP($D17,'All-WERTH'!$C$2:$AC$962,15,FALSE)="",-1000,VLOOKUP($D17,'All-WERTH'!$C$2:$AC$962,15,FALSE)),-1000)) -> -1000 | AB17: =IF($D17="Unlisted Player",-1001,IFERROR(IF(VLOOKUP($D17,'All-WERTH'!$C$2:$AC$962,16,FALSE)="",-1000,VLOOKUP($D17,'All-WERTH'!$C$2:$AC$962,16,FALSE)),-1000)) -> -1000 | AC17: =IF($D17="Unlisted Player",-1001,IFERROR(IF(VLOOKUP($D17,'All-WERTH'!$C$2:$AC$962,17,FALSE)="",-1000,VLOOKUP($D17,'All-WERTH'!$C$2:$AC$962,17,FALSE)),-1000)) -> -1000 | AD17: =IF($D17="Unlisted Player",-1001,IFERROR(IF(VLOOKUP($D17,'All-WERTH'!$C$2:$AC$962,18,FALSE)="",-1000,VLOOKUP($D17,'All-WERTH'!$C$2:$AC$962,18,FALSE)),-1000)) -> -1000 | AE17: =IF($D17="Unlisted Player",-1001,IFERROR(IF(VLOOKUP($D17,'All-WERTH'!$C$2:$AC$962,19,FALSE)="",-1000,VLOOKUP($D17,'All-WERTH'!$C$2:$AC$962,19,FALSE)),-1000)) -> -1000 | AF17: =IF($D17="Unlisted Player",-1001,IFERROR(IF(VLOOKUP($D17,'All-WERTH'!$C$2:$AC$962,20,FALSE)="",-1000,VLOOKUP($D17,'All-WERTH'!$C$2:$AC$962,20,FALSE)),-1000)) -> -1000 | AG17: =IF($D17="Unlisted Player",-1001,IFERROR(IF(VLOOKUP($D17,'All-WERTH'!$C$2:$AC$962,21,FALSE)="",-1000,VLOOKUP($D17,'All-WERTH'!$C$2:$AC$962,21,FALSE)),-1000)) -> -1000 | AH17: =IF($D17="Unlisted Player",-1001,IFERROR(IF(VLOOKUP($D17,'All-WERTH'!$C$2:$AC$962,22,FALSE)="",-1000,VLOOKUP($D17,'All-WERTH'!$C$2:$AC$962,22,FALSE)),-1000)) -> -1000 | AI17: =IF($D17="Unlisted Player",-1001,IFERROR(IF(VLOOKUP($D17,'All-WERTH'!$C$2:$AC$962,23,FALSE)="",-1000,VLOOKUP($D17,'All-WERTH'!$C$2:$AC$962,23,FALSE)),-1000)) -> -1000 | AJ17: =IF($D17="Unlisted Player",-1001,IFERROR(IF(VLOOKUP($D17,'All-WERTH'!$C$2:$AC$962,24,FALSE)="",-1000,VLOOKUP($D17,'All-WERTH'!$C$2:$AC$962,24,FALSE)),-1000)) -> -1000 | AK17: =IF($D17="Unlisted Player",-1001,IFERROR(IF(VLOOKUP($D17,'All-WERTH'!$C$2:$AC$962,25,FALSE)="",-1000,VLOOKUP($D17,'All-WERTH'!$C$2:$AC$962,25,FALSE)),-1000)) -> -1000 | AL17: =IF($D17="Unlisted Player",-1001,IFERROR(IF(VLOOKUP($D17,'All-WERTH'!$C$2:$AC$962,26,FALSE)="",-1000,VLOOKUP($D17,'All-WERTH'!$C$2:$AC$962,26,FALSE)),-1000)) -> -1000 | AM17: =IF($D17="Unlisted Player",-1001,IFERROR(IF(VLOOKUP($D17,'All-WERTH'!$C$2:$AC$962,27,FALSE)="",-1000,VLOOKUP($D17,'All-WERTH'!$C$2:$AC$962,27,FALSE)),-1000)) -> -1000 | AN17: =IF(ISERROR(VLOOKUP($B16,Keepers!$C$2:$D$450,2,FALSE)),B16,"") -> Javier Baez | AO17: =IFERROR(INDEX($AN$1:$AN$961,SMALL(IF($AN$1:$AN$961<>"",ROW($AN$1:$AN$961)),ROW(AN17))),"") -> Bryce Harper
A18: Bryce Harper | B18: =IFERROR(INDEX($A$1:$A$961,SMALL(IF($A$1:$A$961<>"",ROW($A$1:$A$961)),ROW(A18))),"") -> Aaron Judge | C18: =IFERROR(IF(L18=FALSE,"",CHOOSE(MATCH(RIGHT('Your Roto Draft'!$P$4,LEN('Your Roto Draft'!$P$4)-8),$M$1:$AM$1,0),1+SUMPRODUCT(($L$2:$L$962=TRUE)*($M$2:$M$962<M18))+COUNTIFS($L$2:L18,L18,$M$2:M18,M18)-1,1+SUMPRODUCT(($L$2:$L$962=TRUE)*($N$2:$N$962>N18))+COUNTIFS($L$2:L18,L18,$N$2:N18,N18)-1,1+SUMPRODUCT(($L$2:$L$962=TRUE)*($O$2:$O$962<O18))+COUNTIFS($L$2:L18,L18,$O$2:O18,O18)-1,1+SUMPRODUCT(($L$2:$L$962=TRUE)*($P$2:$P$962>P18))+COUNTIFS($L$2:L18,L18,$P$2:P18,P18)-1,1+SUMPRODUCT(($L$2:$L$962=TRUE)*($Q$2:$Q$962>Q18))+COUNTIFS($L$2:L18,L18,$Q$2:Q18,Q18)-1,1+SUMPRODUCT(($L$2:$L$962=TRUE)*($R$2:$R$962>R18))+COUNTIFS($L$2:L18,L18,$R$2:R18,R18)-1,1+SUMPRODUCT(($L$2:$L$962=TRUE)*($S$2:$S$962>S18))+COUNTIFS($L$2:L18,L18,$S$2:S18,S18)-1,1+SUMPRODUCT(($L$2:$L$962=TRUE)*($T$2:$T$962>T18))+COUNTIFS($L$2:L18,L18,$T$2:T18,T18)-1,1+SUMPRODUCT(($L$2:$L$962=TRUE)*($U$2:$U$962>U18))+COUNTIFS($L$2:L18,L18,$U$2:U18,U18)-1,1+SUMPRODUCT(($L$2:$L$962=TRUE)*($V$2:$V$962>V18))+COUNTIFS($L$2:L18,L18,$V$2:V18,V18)-1,1+SUMPRODUCT(($L$2:$L$962=TRUE)*($W$2:$W$962>W18))+COUNTIFS($L$2:L18,L18,$W$2:W18,W18)-1,1+SUMPRODUCT(($L$2:$L$962=TRUE)*($X$2:$X$962>X18))+COUNTIFS($L$2:L18,L18,$X$2:X18,X18)-1,1+SUMPRODUCT(($L$2:$L$962=TRUE)*($Y$2:$Y$962>Y18))+COUNTIFS($L$2:L18,L18,$Y$2:Y18,Y18)-1,1+SUMPRODUCT(($L$2:$L$962=TRUE)*($Z$2:$Z$962>Z18))+COUNTIFS($L$2:L18,L18,$Z$2:Z18,Z18)-1,1+SUMPRODUCT(($L$2:$L$962=TRUE)*($AA$2:$AA$962>AA18))+COUNTIFS($L$2:L18,L18,$AA$2:AA18,AA18)-1,1+SUMPRODUCT(($L$2:$L$962=TRUE)*($AB$2:$AB$962>AB18))+COUNTIFS($L$2:L18,L18,$AB$2:AB18,AB18)-1,1+SUMPRODUCT(($L$2:$L$962=TRUE)*($AC$2:$AC$962>AC18))+COUNTIFS($L$2:L18,L18,$AC$2:AC18,AC18)-1,1+SUMPRODUCT(($L$2:$L$962=TRUE)*($AD$2:$AD$962>AD18))+COUNTIFS($L$2:L18,L18,$AD$2:AD18,AD18)-1,1+SUMPRODUCT(($L$2:$L$962=TRUE)*($AE$2:$AE$962>AE18))+COUNTIFS($L$2:L18,L18,$AE$2:AE18,AE18)-1,1+SUMPRODUCT(($L$2:$L$962=TRUE)*($AF$2:$AF$962>AF18))+COUNTIFS($L$2:L18,L18,$AF$2:AF18,AF18)-1,1+SUMPRODUCT(($L$2:$L$962=TRUE)*($AG$2:$AG$962>AG18))+COUNTIFS($L$2:L18,L18,$AG$2:AG18,AG18)-1,1+SUMPRODUCT(($L$2:$L$962=TRUE)*($AH$2:$AH$962>AH18))+COUNTIFS($L$2:L18,L18,$AH$2:AH18,AH18)-1,1+SUMPRODUCT(($L$2:$L$962=TRUE)*($AI$2:$AI$962>AI18))+COUNTIFS($L$2:L18,L18,$AI$2:AI18,AI18)-1,1+SUMPRODUCT(($L$2:$L$962=TRUE)*($AJ$2:$AJ$962>AJ18))+COUNTIFS($L$2:L18,L18,$AJ$2:AJ18,AJ18)-1,1+SUMPRODUCT(($L$2:$L$962=TRUE)*($AK$2:$AK$962>AK18))+COUNTIFS($L$2:L18,L18,$AK$2:AK18,AK18)-1,1+SUMPRODUCT(($L$2:$L$962=TRUE)*($AL$2:$AL$962>AL18))+COUNTIFS($L$2:L18,L18,$AL$2:AL18,AL18)-1,1+SUMPRODUCT(($L$2:$L$962=TRUE)*($AM$2:$AM$962>AM18))+COUNTIFS($L$2:L18,L18,$AM$2:AM18,AM18)-1,)),"") -> 333 | D18: Yonder Alonso | E18: =IFERROR(INDEX('Draft Log'!$D$4:$D$806,MATCH(D18,'Draft Log'!$C$4:$C$806,0)),"") ->  | F18: =IFERROR(INDEX('ADP-Rank'!$C$2:$C$832,MATCH(D18,'ADP-Rank'!$A$2:$A$832,0)),"") -> 1B | G18: =IFERROR(IF(F18=I18,"",IF(INDEX('Your Roto Draft'!$B$11:$B$634,MATCH(D18,'Your Roto Draft'!$C$11:$C$634,0))="",IF(I18<>"",I18,""),INDEX('Your Roto Draft'!$B$11:$B$634,MATCH(D18,'Your Roto Draft'!$C$11:$C$634,0)))),"") ->  | H18: 1B | J18: =INDEX('ADP-Rank'!$AH$2:$AH$832,MATCH(D18,'ADP-Rank'!$A$2:$A$832,0)) -> TRUE | K18: FALSE | L18: =IF(J18=FALSE,FALSE,IF(AND('Your Roto Draft'!$P$6="Hide Drafted Players",K18=TRUE),FALSE,IF(OR('Your Roto Draft'!$P$5="Show All Positions",AND('Your Roto Draft'!$P$5="Only Show: C",H18="C"),AND('Your Roto Draft'!$P$5="Only Show: 1B",H18="1B"),AND('Your Roto Draft'!$P$5="Only Show: 2B",H18="2B"),AND('Your Roto Draft'!$P$5="Only Show: 3B",H18="3B"),AND('Your Roto Draft'!$P$5="Only Show: SS",H18="SS"),AND('Your Roto Draft'!$P$5="Only Show: OF",H18="OF"),AND('Your Roto Draft'!$P$5="Only Show: SP",H18="SP"),AND('Your Roto Draft'!$P$5="Only Show: RP",H18="RP"),AND('Your Roto Draft'!$P$5="Only Show: CI",OR(H18={"1B","3B"})),AND('Your Roto Draft'!$P$5="Only Show: MI",OR(H18={"2B","SS"})),AND('Your Roto Draft'!$P$5="Only Show: IF",OR(H18={"C","1B","2B","3B","SS"})),AND('Your Roto Draft'!$P$5="Only Show: DH",OR(H18={"C","1B","2B","3B","SS","OF","DH"})),AND('Your Roto Draft'!$P$5="Only Show: P",OR(H18={"SP","RP"})),AND('Your Roto Draft'!$P$5="Only Show: LF",ISERROR(SEARCH("LF",VLOOKUP($D18,'ADP-Rank'!$A$2:$D$961,4,FALSE)))=FALSE),AND('Your Roto Draft'!$P$5="Only Show: RF",ISERROR(SEARCH("RF",VLOOKUP($D18,'ADP-Rank'!$A$2:$D$961,4,FALSE)))=FALSE),AND('Your Roto Draft'!$P$5="Only Show: CF",ISERROR(SEARCH("CF",VLOOKUP($D18,'ADP-Rank'!$A$2:$D$961,4,FALSE)))=FALSE)),TRUE,FALSE))) -> TRUE | M18: =IFERROR(IF(VLOOKUP($D18,'ADP-Rank'!$A$2:$AV$961,38,FALSE)="",9999,VLOOKUP($D18,'ADP-Rank'!$A$2:$AV$961,38,FALSE)),9999) -> 334 | N18: =IF(D18="Non-Ranked Player",-1001,IFERROR(VLOOKUP($D18,'All-WERTH'!$C$2:$E$962,3,FALSE),-1000)) -> -2.961687925 | O18: =IF(D18="Non-Ranked Player",10000,IFERROR(IF(VLOOKUP(D18,'ADP-Rank'!$A$2:$AJ$961,36,FALSE)="",9999,VLOOKUP(D18,'ADP-Rank'!$A$2:$AJ$961,36,FALSE)),9999)) -> 277 | P18: =IF($D18="Unlisted Player",-1001,IFERROR(IF(VLOOKUP($D18,'All-WERTH'!$C$2:$AC$962,4,FALSE)="",-1000,VLOOKUP($D18,'All-WERTH'!$C$2:$AC$962,4,FALSE)),-1000)) -> -1.319728894 | Q18: =IF($D18="Unlisted Player",-1001,IFERROR(IF(VLOOKUP($D18,'All-WERTH'!$C$2:$AC$962,5,FALSE)="",-1000,VLOOKUP($D18,'All-WERTH'!$C$2:$AC$962,5,FALSE)),-1000)) -> 0.1777039452 | R18: =IF($D18="Unlisted Player",-1001,IFERROR(IF(VLOOKUP($D18,'All-WERTH'!$C$2:$AC$962,6,FALSE)="",-1000,VLOOKUP($D18,'All-WERTH'!$C$2:$AC$962,6,FALSE)),-1000)) -> -0.7138826764 | S18: =IF($D18="Unlisted Player",-1001,IFERROR(IF(VLOOKUP($D18,'All-WERTH'!$C$2:$AC$962,7,FALSE)="",-1000,VLOOKUP($D18,'All-WERTH'!$C$2:$AC$962,7,FALSE)),-1000)) -> -0.1272690871 | T18: =IF($D18="Unlisted Player",-1001,IFERROR(IF(VLOOKUP($D18,'All-WERTH'!$C$2:$AC$962,8,FALSE)="",-1000,VLOOKUP($D18,'All-WERTH'!$C$2:$AC$962,8,FALSE)),-1000)) -> -0.9785112124 | U18: =IF($D18="Unlisted Player",-1001,IFERROR(IF(VLOOKUP($D18,'All-WERTH'!$C$2:$AC$962,9,FALSE)="",-1000,VLOOKUP($D18,'All-WERTH'!$C$2:$AC$962,9,FALSE)),-1000)) -> -1000 | V18: =IF($D18="Unlisted Player",-1001,IFERROR(IF(VLOOKUP($D18,'All-WERTH'!$C$2:$AC$962,10,FALSE)="",-1000,VLOOKUP($D18,'All-WERTH'!$C$2:$AC$962,10,FALSE)),-1000)) -> -1000 | W18: =IF($D18="Unlisted Player",-1001,IFERROR(IF(VLOOKUP($D18,'All-WERTH'!$C$2:$AC$962,11,FALSE)="",-1000,VLOOKUP($D18,'All-WERTH'!$C$2:$AC$962,11,FALSE)),-1000)) -> -1000 | X18: =IF($D18="Unlisted Player",-1001,IFERROR(IF(VLOOKUP($D18,'All-WERTH'!$C$2:$AC$962,12,FALSE)="",-1000,VLOOKUP($D18,'All-WERTH'!$C$2:$AC$962,12,FALSE)),-1000)) -> -1000 | Y18: =IF($D18="Unlisted Player",-1001,IFERROR(IF(VLOOKUP($D18,'All-WERTH'!$C$2:$AC$962,13,FALSE)="",-1000,VLOOKUP($D18,'All-WERTH'!$C$2:$AC$962,13,FALSE)),-1000)) -> -1000 | Z18: =IF($D18="Unlisted Player",-1001,IFERROR(IF(VLOOKUP($D18,'All-WERTH'!$C$2:$AC$962,14,FALSE)="",-1000,VLOOKUP($D18,'All-WERTH'!$C$2:$AC$962,14,FALSE)),-1000)) -> -1000 | AA18: =IF($D18="Unlisted Player",-1001,IFERROR(IF(VLOOKUP($D18,'All-WERTH'!$C$2:$AC$962,15,FALSE)="",-1000,VLOOKUP($D18,'All-WERTH'!$C$2:$AC$962,15,FALSE)),-1000)) -> -1000 | AB18: =IF($D18="Unlisted Player",-1001,IFERROR(IF(VLOOKUP($D18,'All-WERTH'!$C$2:$AC$962,16,FALSE)="",-1000,VLOOKUP($D18,'All-WERTH'!$C$2:$AC$962,16,FALSE)),-1000)) -> -1000 | AC18: =IF($D18="Unlisted Player",-1001,IFERROR(IF(VLOOKUP($D18,'All-WERTH'!$C$2:$AC$962,17,FALSE)="",-1000,VLOOKUP($D18,'All-WERTH'!$C$2:$AC$962,17,FALSE)),-1000)) -> -1000 | AD18: =IF($D18="Unlisted Player",-1001,IFERROR(IF(VLOOKUP($D18,'All-WERTH'!$C$2:$AC$962,18,FALSE)="",-1000,VLOOKUP($D18,'All-WERTH'!$C$2:$AC$962,18,FALSE)),-1000)) -> -1000 | AE18: =IF($D18="Unlisted Player",-1001,IFERROR(IF(VLOOKUP($D18,'All-WERTH'!$C$2:$AC$962,19,FALSE)="",-1000,VLOOKUP($D18,'All-WERTH'!$C$2:$AC$962,19,FALSE)),-1000)) -> -1000 | AF18: =IF($D18="Unlisted Player",-1001,IFERROR(IF(VLOOKUP($D18,'All-WERTH'!$C$2:$AC$962,20,FALSE)="",-1000,VLOOKUP($D18,'All-WERTH'!$C$2:$AC$962,20,FALSE)),-1000)) -> -1000 | AG18: =IF($D18="Unlisted Player",-1001,IFERROR(IF(VLOOKUP($D18,'All-WERTH'!$C$2:$AC$962,21,FALSE)="",-1000,VLOOKUP($D18,'All-WERTH'!$C$2:$AC$962,21,FALSE)),-1000)) -> -1000 | AH18: =IF($D18="Unlisted Player",-1001,IFERROR(IF(VLOOKUP($D18,'All-WERTH'!$C$2:$AC$962,22,FALSE)="",-1000,VLOOKUP($D18,'All-WERTH'!$C$2:$AC$962,22,FALSE)),-1000)) -> -1000 | AI18: =IF($D18="Unlisted Player",-1001,IFERROR(IF(VLOOKUP($D18,'All-WERTH'!$C$2:$AC$962,23,FALSE)="",-1000,VLOOKUP($D18,'All-WERTH'!$C$2:$AC$962,23,FALSE)),-1000)) -> -1000 | AJ18: =IF($D18="Unlisted Player",-1001,IFERROR(IF(VLOOKUP($D18,'All-WERTH'!$C$2:$AC$962,24,FALSE)="",-1000,VLOOKUP($D18,'All-WERTH'!$C$2:$AC$962,24,FALSE)),-1000)) -> -1000 | AK18: =IF($D18="Unlisted Player",-1001,IFERROR(IF(VLOOKUP($D18,'All-WERTH'!$C$2:$AC$962,25,FALSE)="",-1000,VLOOKUP($D18,'All-WERTH'!$C$2:$AC$962,25,FALSE)),-1000)) -> -1000 | AL18: =IF($D18="Unlisted Player",-1001,IFERROR(IF(VLOOKUP($D18,'All-WERTH'!$C$2:$AC$962,26,FALSE)="",-1000,VLOOKUP($D18,'All-WERTH'!$C$2:$AC$962,26,FALSE)),-1000)) -> -1000 | AM18: =IF($D18="Unlisted Player",-1001,IFERROR(IF(VLOOKUP($D18,'All-WERTH'!$C$2:$AC$962,27,FALSE)="",-1000,VLOOKUP($D18,'All-WERTH'!$C$2:$AC$962,27,FALSE)),-1000)) -> -1000 | AN18: =IF(ISERROR(VLOOKUP($B17,Keepers!$C$2:$D$450,2,FALSE)),B17,"") -> Bryce Harper | AO18: =IFERROR(INDEX($AN$1:$AN$961,SMALL(IF($AN$1:$AN$961<>"",ROW($AN$1:$AN$961)),ROW(AN18))),"") -> Aaron Judge
A19: Aaron Judge | B19: =IFERROR(INDEX($A$1:$A$961,SMALL(IF($A$1:$A$961<>"",ROW($A$1:$A$961)),ROW(A19))),"") -> Paul Goldschmidt | C19: =IFERROR(IF(L19=FALSE,"",CHOOSE(MATCH(RIGHT('Your Roto Draft'!$P$4,LEN('Your Roto Draft'!$P$4)-8),$M$1:$AM$1,0),1+SUMPRODUCT(($L$2:$L$962=TRUE)*($M$2:$M$962<M19))+COUNTIFS($L$2:L19,L19,$M$2:M19,M19)-1,1+SUMPRODUCT(($L$2:$L$962=TRUE)*($N$2:$N$962>N19))+COUNTIFS($L$2:L19,L19,$N$2:N19,N19)-1,1+SUMPRODUCT(($L$2:$L$962=TRUE)*($O$2:$O$962<O19))+COUNTIFS($L$2:L19,L19,$O$2:O19,O19)-1,1+SUMPRODUCT(($L$2:$L$962=TRUE)*($P$2:$P$962>P19))+COUNTIFS($L$2:L19,L19,$P$2:P19,P19)-1,1+SUMPRODUCT(($L$2:$L$962=TRUE)*($Q$2:$Q$962>Q19))+COUNTIFS($L$2:L19,L19,$Q$2:Q19,Q19)-1,1+SUMPRODUCT(($L$2:$L$962=TRUE)*($R$2:$R$962>R19))+COUNTIFS($L$2:L19,L19,$R$2:R19,R19)-1,1+SUMPRODUCT(($L$2:$L$962=TRUE)*($S$2:$S$962>S19))+COUNTIFS($L$2:L19,L19,$S$2:S19,S19)-1,1+SUMPRODUCT(($L$2:$L$962=TRUE)*($T$2:$T$962>T19))+COUNTIFS($L$2:L19,L19,$T$2:T19,T19)-1,1+SUMPRODUCT(($L$2:$L$962=TRUE)*($U$2:$U$962>U19))+COUNTIFS($L$2:L19,L19,$U$2:U19,U19)-1,1+SUMPRODUCT(($L$2:$L$962=TRUE)*($V$2:$V$962>V19))+COUNTIFS($L$2:L19,L19,$V$2:V19,V19)-1,1+SUMPRODUCT(($L$2:$L$962=TRUE)*($W$2:$W$962>W19))+COUNTIFS($L$2:L19,L19,$W$2:W19,W19)-1,1+SUMPRODUCT(($L$2:$L$962=TRUE)*($X$2:$X$962>X19))+COUNTIFS($L$2:L19,L19,$X$2:X19,X19)-1,1+SUMPRODUCT(($L$2:$L$962=TRUE)*($Y$2:$Y$962>Y19))+COUNTIFS($L$2:L19,L19,$Y$2:Y19,Y19)-1,1+SUMPRODUCT(($L$2:$L$962=TRUE)*($Z$2:$Z$962>Z19))+COUNTIFS($L$2:L19,L19,$Z$2:Z19,Z19)-1,1+SUMPRODUCT(($L$2:$L$962=TRUE)*($AA$2:$AA$962>AA19))+COUNTIFS($L$2:L19,L19,$AA$2:AA19,AA19)-1,1+SUMPRODUCT(($L$2:$L$962=TRUE)*($AB$2:$AB$962>AB19))+COUNTIFS($L$2:L19,L19,$AB$2:AB19,AB19)-1,1+SUMPRODUCT(($L$2:$L$962=TRUE)*($AC$2:$AC$962>AC19))+COUNTIFS($L$2:L19,L19,$AC$2:AC19,AC19)-1,1+SUMPRODUCT(($L$2:$L$962=TRUE)*($AD$2:$AD$962>AD19))+COUNTIFS($L$2:L19,L19,$AD$2:AD19,AD19)-1,1+SUMPRODUCT(($L$2:$L$962=TRUE)*($AE$2:$AE$962>AE19))+COUNTIFS($L$2:L19,L19,$AE$2:AE19,AE19)-1,1+SUMPRODUCT(($L$2:$L$962=TRUE)*($AF$2:$AF$962>AF19))+COUNTIFS($L$2:L19,L19,$AF$2:AF19,AF19)-1,1+SUMPRODUCT(($L$2:$L$962=TRUE)*($AG$2:$AG$962>AG19))+COUNTIFS($L$2:L19,L19,$AG$2:AG19,AG19)-1,1+SUMPRODUCT(($L$2:$L$962=TRUE)*($AH$2:$AH$962>AH19))+COUNTIFS($L$2:L19,L19,$AH$2:AH19,AH19)-1,1+SUMPRODUCT(($L$2:$L$962=TRUE)*($AI$2:$AI$962>AI19))+COUNTIFS($L$2:L19,L19,$AI$2:AI19,AI19)-1,1+SUMPRODUCT(($L$2:$L$962=TRUE)*($AJ$2:$AJ$962>AJ19))+COUNTIFS($L$2:L19,L19,$AJ$2:AJ19,AJ19)-1,1+SUMPRODUCT(($L$2:$L$962=TRUE)*($AK$2:$AK$962>AK19))+COUNTIFS($L$2:L19,L19,$AK$2:AK19,AK19)-1,1+SUMPRODUCT(($L$2:$L$962=TRUE)*($AL$2:$AL$962>AL19))+COUNTIFS($L$2:L19,L19,$AL$2:AL19,AL19)-1,1+SUMPRODUCT(($L$2:$L$962=TRUE)*($AM$2:$AM$962>AM19))+COUNTIFS($L$2:L19,L19,$AM$2:AM19,AM19)-1,)),"") -> 570 | D19: Aaron Altherr | E19: =IFERROR(INDEX('Draft Log'!$D$4:$D$806,MATCH(D19,'Draft Log'!$C$4:$C$806,0)),"") ->  | F19: =IFERROR(INDEX('ADP-Rank'!$C$2:$C$832,MATCH(D19,'ADP-Rank'!$A$2:$A$832,0)),"") -> OF | G19: =IFERROR(IF(F19=I19,"",IF(INDEX('Your Roto Draft'!$B$11:$B$634,MATCH(D19,'Your Roto Draft'!$C$11:$C$634,0))="",IF(I19<>"",I19,""),INDEX('Your Roto Draft'!$B$11:$B$634,MATCH(D19,'Your Roto Draft'!$C$11:$C$634,0)))),"") ->  | H19: OF | J19: =INDEX('ADP-Rank'!$AH$2:$AH$832,MATCH(D19,'ADP-Rank'!$A$2:$A$832,0)) -> TRUE | K19: FALSE | L19: =IF(J19=FALSE,FALSE,IF(AND('Your Roto Draft'!$P$6="Hide Drafted Players",K19=TRUE),FALSE,IF(OR('Your Roto Draft'!$P$5="Show All Positions",AND('Your Roto Draft'!$P$5="Only Show: C",H19="C"),AND('Your Roto Draft'!$P$5="Only Show: 1B",H19="1B"),AND('Your Roto Draft'!$P$5="Only Show: 2B",H19="2B"),AND('Your Roto Draft'!$P$5="Only Show: 3B",H19="3B"),AND('Your Roto Draft'!$P$5="Only Show: SS",H19="SS"),AND('Your Roto Draft'!$P$5="Only Show: OF",H19="OF"),AND('Your Roto Draft'!$P$5="Only Show: SP",H19="SP"),AND('Your Roto Draft'!$P$5="Only Show: RP",H19="RP"),AND('Your Roto Draft'!$P$5="Only Show: CI",OR(H19={"1B","3B"})),AND('Your Roto Draft'!$P$5="Only Show: MI",OR(H19={"2B","SS"})),AND('Your Roto Draft'!$P$5="Only Show: IF",OR(H19={"C","1B","2B","3B","SS"})),AND('Your Roto Draft'!$P$5="Only Show: DH",OR(H19={"C","1B","2B","3B","SS","OF","DH"})),AND('Your Roto Draft'!$P$5="Only Show: P",OR(H19={"SP","RP"})),AND('Your Roto Draft'!$P$5="Only Show: LF",ISERROR(SEARCH("LF",VLOOKUP($D19,'ADP-Rank'!$A$2:$D$961,4,FALSE)))=FALSE),AND('Your Roto Draft'!$P$5="Only Show: RF",ISERROR(SEARCH("RF",VLOOKUP($D19,'ADP-Rank'!$A$2:$D$961,4,FALSE)))=FALSE),AND('Your Roto Draft'!$P$5="Only Show: CF",ISERROR(SEARCH("CF",VLOOKUP($D19,'ADP-Rank'!$A$2:$D$961,4,FALSE)))=FALSE)),TRUE,FALSE))) -> TRUE | M19: =IFERROR(IF(VLOOKUP($D19,'ADP-Rank'!$A$2:$AV$961,38,FALSE)="",9999,VLOOKUP($D19,'ADP-Rank'!$A$2:$AV$961,38,FALSE)),9999) -> 652.3 | N19: =IF(D19="Non-Ranked Player",-1001,IFERROR(VLOOKUP($D19,'All-WERTH'!$C$2:$E$962,3,FALSE),-1000)) -> -9.703374466 | O19: =IF(D19="Non-Ranked Player",10000,IFERROR(IF(VLOOKUP(D19,'ADP-Rank'!$A$2:$AJ$961,36,FALSE)="",9999,VLOOKUP(D19,'ADP-Rank'!$A$2:$AJ$961,36,FALSE)),9999)) -> 538 | P19: =IF($D19="Unlisted Player",-1001,IFERROR(IF(VLOOKUP($D19,'All-WERTH'!$C$2:$AC$962,4,FALSE)="",-1000,VLOOKUP($D19,'All-WERTH'!$C$2:$AC$962,4,FALSE)),-1000)) -> -1.35102078 | Q19: =IF($D19="Unlisted Player",-1001,IFERROR(IF(VLOOKUP($D19,'All-WERTH'!$C$2:$AC$962,5,FALSE)="",-1000,VLOOKUP($D19,'All-WERTH'!$C$2:$AC$962,5,FALSE)),-1000)) -> -1.781015468 | R19: =IF($D19="Unlisted Player",-1001,IFERROR(IF(VLOOKUP($D19,'All-WERTH'!$C$2:$AC$962,6,FALSE)="",-1000,VLOOKUP($D19,'All-WERTH'!$C$2:$AC$962,6,FALSE)),-1000)) -> -2.964976657 | S19: =IF($D19="Unlisted Player",-1001,IFERROR(IF(VLOOKUP($D19,'All-WERTH'!$C$2:$AC$962,7,FALSE)="",-1000,VLOOKUP($D19,'All-WERTH'!$C$2:$AC$962,7,FALSE)),-1000)) -> -3.026844562 | T19: =IF($D19="Unlisted Player",-1001,IFERROR(IF(VLOOKUP($D19,'All-WERTH'!$C$2:$AC$962,8,FALSE)="",-1000,VLOOKUP($D19,'All-WERTH'!$C$2:$AC$962,8,FALSE)),-1000)) -> -0.5795169976 | U19: =IF($D19="Unlisted Player",-1001,IFERROR(IF(VLOOKUP($D19,'All-WERTH'!$C$2:$AC$962,9,FALSE)="",-1000,VLOOKUP($D19,'All-WERTH'!$C$2:$AC$962,9,FALSE)),-1000)) -> -1000 | V19: =IF($D19="Unlisted Player",-1001,IFERROR(IF(VLOOKUP($D19,'All-WERTH'!$C$2:$AC$962,10,FALSE)="",-1000,VLOOKUP($D19,'All-WERTH'!$C$2:$AC$962,10,FALSE)),-1000)) -> -1000 | W19: =IF($D19="Unlisted Player",-1001,IFERROR(IF(VLOOKUP($D19,'All-WERTH'!$C$2:$AC$962,11,FALSE)="",-1000,VLOOKUP($D19,'All-WERTH'!$C$2:$AC$962,11,FALSE)),-1000)) -> -1000 | X19: =IF($D19="Unlisted Player",-1001,IFERROR(IF(VLOOKUP($D19,'All-WERTH'!$C$2:$AC$962,12,FALSE)="",-1000,VLOOKUP($D19,'All-WERTH'!$C$2:$AC$962,12,FALSE)),-1000)) -> -1000 | Y19: =IF($D19="Unlisted Player",-1001,IFERROR(IF(VLOOKUP($D19,'All-WERTH'!$C$2:$AC$962,13,FALSE)="",-1000,VLOOKUP($D19,'All-WERTH'!$C$2:$AC$962,13,FALSE)),-1000)) -> -1000 | Z19: =IF($D19="Unlisted Player",-1001,IFERROR(IF(VLOOKUP($D19,'All-WERTH'!$C$2:$AC$962,14,FALSE)="",-1000,VLOOKUP($D19,'All-WERTH'!$C$2:$AC$962,14,FALSE)),-1000)) -> -1000 | AA19: =IF($D19="Unlisted Player",-1001,IFERROR(IF(VLOOKUP($D19,'All-WERTH'!$C$2:$AC$962,15,FALSE)="",-1000,VLOOKUP($D19,'All-WERTH'!$C$2:$AC$962,15,FALSE)),-1000)) -> -1000 | AB19: =IF($D19="Unlisted Player",-1001,IFERROR(IF(VLOOKUP($D19,'All-WERTH'!$C$2:$AC$962,16,FALSE)="",-1000,VLOOKUP($D19,'All-WERTH'!$C$2:$AC$962,16,FALSE)),-1000)) -> -1000 | AC19: =IF($D19="Unlisted Player",-1001,IFERROR(IF(VLOOKUP($D19,'All-WERTH'!$C$2:$AC$962,17,FALSE)="",-1000,VLOOKUP($D19,'All-WERTH'!$C$2:$AC$962,17,FALSE)),-1000)) -> -1000 | AD19: =IF($D19="Unlisted Player",-1001,IFERROR(IF(VLOOKUP($D19,'All-WERTH'!$C$2:$AC$962,18,FALSE)="",-1000,VLOOKUP($D19,'All-WERTH'!$C$2:$AC$962,18,FALSE)),-1000)) -> -1000 | AE19: =IF($D19="Unlisted Player",-1001,IFERROR(IF(VLOOKUP($D19,'All-WERTH'!$C$2:$AC$962,19,FALSE)="",-1000,VLOOKUP($D19,'All-WERTH'!$C$2:$AC$962,19,FALSE)),-1000)) -> -1000 | AF19: =IF($D19="Unlisted Player",-1001,IFERROR(IF(VLOOKUP($D19,'All-WERTH'!$C$2:$AC$962,20,FALSE)="",-1000,VLOOKUP($D19,'All-WERTH'!$C$2:$AC$962,20,FALSE)),-1000)) -> -1000 | AG19: =IF($D19="Unlisted Player",-1001,IFERROR(IF(VLOOKUP($D19,'All-WERTH'!$C$2:$AC$962,21,FALSE)="",-1000,VLOOKUP($D19,'All-WERTH'!$C$2:$AC$962,21,FALSE)),-1000)) -> -1000 | AH19: =IF($D19="Unlisted Player",-1001,IFERROR(IF(VLOOKUP($D19,'All-WERTH'!$C$2:$AC$962,22,FALSE)="",-1000,VLOOKUP($D19,'All-WERTH'!$C$2:$AC$962,22,FALSE)),-1000)) -> -1000 | AI19: =IF($D19="Unlisted Player",-1001,IFERROR(IF(VLOOKUP($D19,'All-WERTH'!$C$2:$AC$962,23,FALSE)="",-1000,VLOOKUP($D19,'All-WERTH'!$C$2:$AC$962,23,FALSE)),-1000)) -> -1000 | AJ19: =IF($D19="Unlisted Player",-1001,IFERROR(IF(VLOOKUP($D19,'All-WERTH'!$C$2:$AC$962,24,FALSE)="",-1000,VLOOKUP($D19,'All-WERTH'!$C$2:$AC$962,24,FALSE)),-1000)) -> -1000 | AK19: =IF($D19="Unlisted Player",-1001,IFERROR(IF(VLOOKUP($D19,'All-WERTH'!$C$2:$AC$962,25,FALSE)="",-1000,VLOOKUP($D19,'All-WERTH'!$C$2:$AC$962,25,FALSE)),-1000)) -> -1000 | AL19: =IF($D19="Unlisted Player",-1001,IFERROR(IF(VLOOKUP($D19,'All-WERTH'!$C$2:$AC$962,26,FALSE)="",-1000,VLOOKUP($D19,'All-WERTH'!$C$2:$AC$962,26,FALSE)),-1000)) -> -1000 | AM19: =IF($D19="Unlisted Player",-1001,IFERROR(IF(VLOOKUP($D19,'All-WERTH'!$C$2:$AC$962,27,FALSE)="",-1000,VLOOKUP($D19,'All-WERTH'!$C$2:$AC$962,27,FALSE)),-1000)) -> -1000 | AN19: =IF(ISERROR(VLOOKUP($B18,Keepers!$C$2:$D$450,2,FALSE)),B18,"") -> Aaron Judge | AO19: =IFERROR(INDEX($AN$1:$AN$961,SMALL(IF($AN$1:$AN$961<>"",ROW($AN$1:$AN$961)),ROW(AN19))),"") -> Paul Goldschmidt
A20: Paul Goldschmidt | B20: =IFERROR(INDEX($A$1:$A$961,SMALL(IF($A$1:$A$961<>"",ROW($A$1:$A$961)),ROW(A20))),"") -> Giancarlo Stanton | C20: =IFERROR(IF(L20=FALSE,"",CHOOSE(MATCH(RIGHT('Your Roto Draft'!$P$4,LEN('Your Roto Draft'!$P$4)-8),$M$1:$AM$1,0),1+SUMPRODUCT(($L$2:$L$962=TRUE)*($M$2:$M$962<M20))+COUNTIFS($L$2:L20,L20,$M$2:M20,M20)-1,1+SUMPRODUCT(($L$2:$L$962=TRUE)*($N$2:$N$962>N20))+COUNTIFS($L$2:L20,L20,$N$2:N20,N20)-1,1+SUMPRODUCT(($L$2:$L$962=TRUE)*($O$2:$O$962<O20))+COUNTIFS($L$2:L20,L20,$O$2:O20,O20)-1,1+SUMPRODUCT(($L$2:$L$962=TRUE)*($P$2:$P$962>P20))+COUNTIFS($L$2:L20,L20,$P$2:P20,P20)-1,1+SUMPRODUCT(($L$2:$L$962=TRUE)*($Q$2:$Q$962>Q20))+COUNTIFS($L$2:L20,L20,$Q$2:Q20,Q20)-1,1+SUMPRODUCT(($L$2:$L$962=TRUE)*($R$2:$R$962>R20))+COUNTIFS($L$2:L20,L20,$R$2:R20,R20)-1,1+SUMPRODUCT(($L$2:$L$962=TRUE)*($S$2:$S$962>S20))+COUNTIFS($L$2:L20,L20,$S$2:S20,S20)-1,1+SUMPRODUCT(($L$2:$L$962=TRUE)*($T$2:$T$962>T20))+COUNTIFS($L$2:L20,L20,$T$2:T20,T20)-1,1+SUMPRODUCT(($L$2:$L$962=TRUE)*($U$2:$U$962>U20))+COUNTIFS($L$2:L20,L20,$U$2:U20,U20)-1,1+SUMPRODUCT(($L$2:$L$962=TRUE)*($V$2:$V$962>V20))+COUNTIFS($L$2:L20,L20,$V$2:V20,V20)-1,1+SUMPRODUCT(($L$2:$L$962=TRUE)*($W$2:$W$962>W20))+COUNTIFS($L$2:L20,L20,$W$2:W20,W20)-1,1+SUMPRODUCT(($L$2:$L$962=TRUE)*($X$2:$X$962>X20))+COUNTIFS($L$2:L20,L20,$X$2:X20,X20)-1,1+SUMPRODUCT(($L$2:$L$962=TRUE)*($Y$2:$Y$962>Y20))+COUNTIFS($L$2:L20,L20,$Y$2:Y20,Y20)-1,1+SUMPRODUCT(($L$2:$L$962=TRUE)*($Z$2:$Z$962>Z20))+COUNTIFS($L$2:L20,L20,$Z$2:Z20,Z20)-1,1+SUMPRODUCT(($L$2:$L$962=TRUE)*($AA$2:$AA$962>AA20))+COUNTIFS($L$2:L20,L20,$AA$2:AA20,AA20)-1,1+SUMPRODUCT(($L$2:$L$962=TRUE)*($AB$2:$AB$962>AB20))+COUNTIFS($L$2:L20,L20,$AB$2:AB20,AB20)-1,1+SUMPRODUCT(($L$2:$L$962=TRUE)*($AC$2:$AC$962>AC20))+COUNTIFS($L$2:L20,L20,$AC$2:AC20,AC20)-1,1+SUMPRODUCT(($L$2:$L$962=TRUE)*($AD$2:$AD$962>AD20))+COUNTIFS($L$2:L20,L20,$AD$2:AD20,AD20)-1,1+SUMPRODUCT(($L$2:$L$962=TRUE)*($AE$2:$AE$962>AE20))+COUNTIFS($L$2:L20,L20,$AE$2:AE20,AE20)-1,1+SUMPRODUCT(($L$2:$L$962=TRUE)*($AF$2:$AF$962>AF20))+COUNTIFS($L$2:L20,L20,$AF$2:AF20,AF20)-1,1+SUMPRODUCT(($L$2:$L$962=TRUE)*($AG$2:$AG$962>AG20))+COUNTIFS($L$2:L20,L20,$AG$2:AG20,AG20)-1,1+SUMPRODUCT(($L$2:$L$962=TRUE)*($AH$2:$AH$962>AH20))+COUNTIFS($L$2:L20,L20,$AH$2:AH20,AH20)-1,1+SUMPRODUCT(($L$2:$L$962=TRUE)*($AI$2:$AI$962>AI20))+COUNTIFS($L$2:L20,L20,$AI$2:AI20,AI20)-1,1+SUMPRODUCT(($L$2:$L$962=TRUE)*($AJ$2:$AJ$962>AJ20))+COUNTIFS($L$2:L20,L20,$AJ$2:AJ20,AJ20)-1,1+SUMPRODUCT(($L$2:$L$962=TRUE)*($AK$2:$AK$962>AK20))+COUNTIFS($L$2:L20,L20,$AK$2:AK20,AK20)-1,1+SUMPRODUCT(($L$2:$L$962=TRUE)*($AL$2:$AL$962>AL20))+COUNTIFS($L$2:L20,L20,$AL$2:AL20,AL20)-1,1+SUMPRODUCT(($L$2:$L$962=TRUE)*($AM$2:$AM$962>AM20))+COUNTIFS($L$2:L20,L20,$AM$2:AM20,AM20)-1,)),"") -> 12 | D20: Jose Altuve | E20: =IFERROR(INDEX('Draft Log'!$D$4:$D$806,MATCH(D20,'Draft Log'!$C$4:$C$806,0)),"") ->  | F20: =IFERROR(INDEX('ADP-Rank'!$C$2:$C$832,MATCH(D20,'ADP-Rank'!$A$2:$A$832,0)),"") -> 2B | G20: =IFERROR(IF(F20=I20,"",IF(INDEX('Your Roto Draft'!$B$11:$B$634,MATCH(D20,'Your Roto Draft'!$C$11:$C$634,0))="",IF(I20<>"",I20,""),INDEX('Your Roto Draft'!$B$11:$B$634,MATCH(D20,'Your Roto Draft'!$C$11:$C$634,0)))),"") ->  | H20: 2B | J20: =INDEX('ADP-Rank'!$AH$2:$AH$832,MATCH(D20,'ADP-Rank'!$A$2:$A$832,0)) -> TRUE | K20: FALSE | L20: =IF(J20=FALSE,FALSE,IF(AND('Your Roto Draft'!$P$6="Hide Drafted Players",K20=TRUE),FALSE,IF(OR('Your Roto Draft'!$P$5="Show All Positions",AND('Your Roto Draft'!$P$5="Only Show: C",H20="C"),AND('Your Roto Draft'!$P$5="Only Show: 1B",H20="1B"),AND('Your Roto Draft'!$P$5="Only Show: 2B",H20="2B"),AND('Your Roto Draft'!$P$5="Only Show: 3B",H20="3B"),AND('Your Roto Draft'!$P$5="Only Show: SS",H20="SS"),AND('Your Roto Draft'!$P$5="Only Show: OF",H20="OF"),AND('Your Roto Draft'!$P$5="Only Show: SP",H20="SP"),AND('Your Roto Draft'!$P$5="Only Show: RP",H20="RP"),AND('Your Roto Draft'!$P$5="Only Show: CI",OR(H20={"1B","3B"})),AND('Your Roto Draft'!$P$5="Only Show: MI",OR(H20={"2B","SS"})),AND('Your Roto Draft'!$P$5="Only Show: IF",OR(H20={"C","1B","2B","3B","SS"})),AND('Your Roto Draft'!$P$5="Only Show: DH",OR(H20={"C","1B","2B","3B","SS","OF","DH"})),AND('Your Roto Draft'!$P$5="Only Show: P",OR(H20={"SP","RP"})),AND('Your Roto Draft'!$P$5="Only Show: LF",ISERROR(SEARCH("LF",VLOOKUP($D20,'ADP-Rank'!$A$2:$D$961,4,FALSE)))=FALSE),AND('Your Roto Draft'!$P$5="Only Show: RF",ISERROR(SEARCH("RF",VLOOKUP($D20,'ADP-Rank'!$A$2:$D$961,4,FALSE)))=FALSE),AND('Your Roto Draft'!$P$5="Only Show: CF",ISERROR(SEARCH("CF",VLOOKUP($D20,'ADP-Rank'!$A$2:$D$961,4,FALSE)))=FALSE)),TRUE,FALSE))) -> TRUE | M20: =IFERROR(IF(VLOOKUP($D20,'ADP-Rank'!$A$2:$AV$961,38,FALSE)="",9999,VLOOKUP($D20,'ADP-Rank'!$A$2:$AV$961,38,FALSE)),9999) -> 12.5 | N20: =IF(D20="Non-Ranked Player",-1001,IFERROR(VLOOKUP($D20,'All-WERTH'!$C$2:$E$962,3,FALSE),-1000)) -> 4.906743817 | O20: =IF(D20="Non-Ranked Player",10000,IFERROR(IF(VLOOKUP(D20,'ADP-Rank'!$A$2:$AJ$961,36,FALSE)="",9999,VLOOKUP(D20,'ADP-Rank'!$A$2:$AJ$961,36,FALSE)),9999)) -> 14 | P20: =IF($D20="Unlisted Player",-1001,IFERROR(IF(VLOOKUP($D20,'All-WERTH'!$C$2:$AC$962,4,FALSE)="",-1000,VLOOKUP($D20,'All-WERTH'!$C$2:$AC$962,4,FALSE)),-1000)) -> 2.559774881 | Q20: =IF($D20="Unlisted Player",-1001,IFERROR(IF(VLOOKUP($D20,'All-WERTH'!$C$2:$AC$962,5,FALSE)="",-1000,VLOOKUP($D20,'All-WERTH'!$C$2:$AC$962,5,FALSE)),-1000)) -> -0.6087991249 | R20: =IF($D20="Unlisted Player",-1001,IFERROR(IF(VLOOKUP($D20,'All-WERTH'!$C$2:$AC$962,6,FALSE)="",-1000,VLOOKUP($D20,'All-WERTH'!$C$2:$AC$962,6,FALSE)),-1000)) -> 1.186927811 | S20: =IF($D20="Unlisted Player",-1001,IFERROR(IF(VLOOKUP($D20,'All-WERTH'!$C$2:$AC$962,7,FALSE)="",-1000,VLOOKUP($D20,'All-WERTH'!$C$2:$AC$962,7,FALSE)),-1000)) -> 0.3353497606 | T20: =IF($D20="Unlisted Player",-1001,IFERROR(IF(VLOOKUP($D20,'All-WERTH'!$C$2:$AC$962,8,FALSE)="",-1000,VLOOKUP($D20,'All-WERTH'!$C$2:$AC$962,8,FALSE)),-1000)) -> 1.433490489 | U20: =IF($D20="Unlisted Player",-1001,IFERROR(IF(VLOOKUP($D20,'All-WERTH'!$C$2:$AC$962,9,FALSE)="",-1000,VLOOKUP($D20,'All-WERTH'!$C$2:$AC$962,9,FALSE)),-1000)) -> -1000 | V20: =IF($D20="Unlisted Player",-1001,IFERROR(IF(VLOOKUP($D20,'All-WERTH'!$C$2:$AC$962,10,FALSE)="",-1000,VLOOKUP($D20,'All-WERTH'!$C$2:$AC$962,10,FALSE)),-1000)) -> -1000 | W20: =IF($D20="Unlisted Player",-1001,IFERROR(IF(VLOOKUP($D20,'All-WERTH'!$C$2:$AC$962,11,FALSE)="",-1000,VLOOKUP($D20,'All-WERTH'!$C$2:$AC$962,11,FALSE)),-1000)) -> -1000 | X20: =IF($D20="Unlisted Player",-1001,IFERROR(IF(VLOOKUP($D20,'All-WERTH'!$C$2:$AC$962,12,FALSE)="",-1000,VLOOKUP($D20,'All-WERTH'!$C$2:$AC$962,12,FALSE)),-1000)) -> -1000 | Y20: =IF($D20="Unlisted Player",-1001,IFERROR(IF(VLOOKUP($D20,'All-WERTH'!$C$2:$AC$962,13,FALSE)="",-1000,VLOOKUP($D20,'All-WERTH'!$C$2:$AC$962,13,FALSE)),-1000)) -> -1000 | Z20: =IF($D20="Unlisted Player",-1001,IFERROR(IF(VLOOKUP($D20,'All-WERTH'!$C$2:$AC$962,14,FALSE)="",-1000,VLOOKUP($D20,'All-WERTH'!$C$2:$AC$962,14,FALSE)),-1000)) -> -1000 | AA20: =IF($D20="Unlisted Player",-1001,IFERROR(IF(VLOOKUP($D20,'All-WERTH'!$C$2:$AC$962,15,FALSE)="",-1000,VLOOKUP($D20,'All-WERTH'!$C$2:$AC$962,15,FALSE)),-1000)) -> -1000 | AB20: =IF($D20="Unlisted Player",-1001,IFERROR(IF(VLOOKUP($D20,'All-WERTH'!$C$2:$AC$962,16,FALSE)="",-1000,VLOOKUP($D20,'All-WERTH'!$C$2:$AC$962,16,FALSE)),-1000)) -> -1000 | AC20: =IF($D20="Unlisted Player",-1001,IFERROR(IF(VLOOKUP($D20,'All-WERTH'!$C$2:$AC$962,17,FALSE)="",-1000,VLOOKUP($D20,'All-WERTH'!$C$2:$AC$962,17,FALSE)),-1000)) -> -1000 | AD20: =IF($D20="Unlisted Player",-1001,IFERROR(IF(VLOOKUP($D20,'All-WERTH'!$C$2:$AC$962,18,FALSE)="",-1000,VLOOKUP($D20,'All-WERTH'!$C$2:$AC$962,18,FALSE)),-1000)) -> -1000 | AE20: =IF($D20="Unlisted Player",-1001,IFERROR(IF(VLOOKUP($D20,'All-WERTH'!$C$2:$AC$962,19,FALSE)="",-1000,VLOOKUP($D20,'All-WERTH'!$C$2:$AC$962,19,FALSE)),-1000)) -> -1000 | AF20: =IF($D20="Unlisted Player",-1001,IFERROR(IF(VLOOKUP($D20,'All-WERTH'!$C$2:$AC$962,20,FALSE)="",-1000,VLOOKUP($D20,'All-WERTH'!$C$2:$AC$962,20,FALSE)),-1000)) -> -1000 | AG20: =IF($D20="Unlisted Player",-1001,IFERROR(IF(VLOOKUP($D20,'All-WERTH'!$C$2:$AC$962,21,FALSE)="",-1000,VLOOKUP($D20,'All-WERTH'!$C$2:$AC$962,21,FALSE)),-1000)) -> -1000 | AH20: =IF($D20="Unlisted Player",-1001,IFERROR(IF(VLOOKUP($D20,'All-WERTH'!$C$2:$AC$962,22,FALSE)="",-1000,VLOOKUP($D20,'All-WERTH'!$C$2:$AC$962,22,FALSE)),-1000)) -> -1000 | AI20: =IF($D20="Unlisted Player",-1001,IFERROR(IF(VLOOKUP($D20,'All-WERTH'!$C$2:$AC$962,23,FALSE)="",-1000,VLOOKUP($D20,'All-WERTH'!$C$2:$AC$962,23,FALSE)),-1000)) -> -1000 | AJ20: =IF($D20="Unlisted Player",-1001,IFERROR(IF(VLOOKUP($D20,'All-WERTH'!$C$2:$AC$962,24,FALSE)="",-1000,VLOOKUP($D20,'All-WERTH'!$C$2:$AC$962,24,FALSE)),-1000)) -> -1000 | AK20: =IF($D20="Unlisted Player",-1001,IFERROR(IF(VLOOKUP($D20,'All-WERTH'!$C$2:$AC$962,25,FALSE)="",-1000,VLOOKUP($D20,'All-WERTH'!$C$2:$AC$962,25,FALSE)),-1000)) -> -1000 | AL20: =IF($D20="Unlisted Player",-1001,IFERROR(IF(VLOOKUP($D20,'All-WERTH'!$C$2:$AC$962,26,FALSE)="",-1000,VLOOKUP($D20,'All-WERTH'!$C$2:$AC$962,26,FALSE)),-1000)) -> -1000 | AM20: =IF($D20="Unlisted Player",-1001,IFERROR(IF(VLOOKUP($D20,'All-WERTH'!$C$2:$AC$962,27,FALSE)="",-1000,VLOOKUP($D20,'All-WERTH'!$C$2:$AC$962,27,FALSE)),-1000)) -> -1000 | AN20: =IF(ISERROR(VLOOKUP($B19,Keepers!$C$2:$D$450,2,FALSE)),B19,"") -> Paul Goldschmidt | AO20: =IFERROR(INDEX($AN$1:$AN$961,SMALL(IF($AN$1:$AN$961<>"",ROW($AN$1:$AN$961)),ROW(AN20))),"") -> Giancarlo Stanton
A21: Giancarlo Stanton | B21: =IFERROR(INDEX($A$1:$A$961,SMALL(IF($A$1:$A$961<>"",ROW($A$1:$A$961)),ROW(A21))),"") -> Freddie Freeman | C21: =IFERROR(IF(L21=FALSE,"",CHOOSE(MATCH(RIGHT('Your Roto Draft'!$P$4,LEN('Your Roto Draft'!$P$4)-8),$M$1:$AM$1,0),1+SUMPRODUCT(($L$2:$L$962=TRUE)*($M$2:$M$962<M21))+COUNTIFS($L$2:L21,L21,$M$2:M21,M21)-1,1+SUMPRODUCT(($L$2:$L$962=TRUE)*($N$2:$N$962>N21))+COUNTIFS($L$2:L21,L21,$N$2:N21,N21)-1,1+SUMPRODUCT(($L$2:$L$962=TRUE)*($O$2:$O$962<O21))+COUNTIFS($L$2:L21,L21,$O$2:O21,O21)-1,1+SUMPRODUCT(($L$2:$L$962=TRUE)*($P$2:$P$962>P21))+COUNTIFS($L$2:L21,L21,$P$2:P21,P21)-1,1+SUMPRODUCT(($L$2:$L$962=TRUE)*($Q$2:$Q$962>Q21))+COUNTIFS($L$2:L21,L21,$Q$2:Q21,Q21)-1,1+SUMPRODUCT(($L$2:$L$962=TRUE)*($R$2:$R$962>R21))+COUNTIFS($L$2:L21,L21,$R$2:R21,R21)-1,1+SUMPRODUCT(($L$2:$L$962=TRUE)*($S$2:$S$962>S21))+COUNTIFS($L$2:L21,L21,$S$2:S21,S21)-1,1+SUMPRODUCT(($L$2:$L$962=TRUE)*($T$2:$T$962>T21))+COUNTIFS($L$2:L21,L21,$T$2:T21,T21)-1,1+SUMPRODUCT(($L$2:$L$962=TRUE)*($U$2:$U$962>U21))+COUNTIFS($L$2:L21,L21,$U$2:U21,U21)-1,1+SUMPRODUCT(($L$2:$L$962=TRUE)*($V$2:$V$962>V21))+COUNTIFS($L$2:L21,L21,$V$2:V21,V21)-1,1+SUMPRODUCT(($L$2:$L$962=TRUE)*($W$2:$W$962>W21))+COUNTIFS($L$2:L21,L21,$W$2:W21,W21)-1,1+SUMPRODUCT(($L$2:$L$962=TRUE)*($X$2:$X$962>X21))+COUNTIFS($L$2:L21,L21,$X$2:X21,X21)-1,1+SUMPRODUCT(($L$2:$L$962=TRUE)*($Y$2:$Y$962>Y21))+COUNTIFS($L$2:L21,L21,$Y$2:Y21,Y21)-1,1+SUMPRODUCT(($L$2:$L$962=TRUE)*($Z$2:$Z$962>Z21))+COUNTIFS($L$2:L21,L21,$Z$2:Z21,Z21)-1,1+SUMPRODUCT(($L$2:$L$962=TRUE)*($AA$2:$AA$962>AA21))+COUNTIFS($L$2:L21,L21,$AA$2:AA21,AA21)-1,1+SUMPRODUCT(($L$2:$L$962=TRUE)*($AB$2:$AB$962>AB21))+COUNTIFS($L$2:L21,L21,$AB$2:AB21,AB21)-1,1+SUMPRODUCT(($L$2:$L$962=TRUE)*($AC$2:$AC$962>AC21))+COUNTIFS($L$2:L21,L21,$AC$2:AC21,AC21)-1,1+SUMPRODUCT(($L$2:$L$962=TRUE)*($AD$2:$AD$962>AD21))+COUNTIFS($L$2:L21,L21,$AD$2:AD21,AD21)-1,1+SUMPRODUCT(($L$2:$L$962=TRUE)*($AE$2:$AE$962>AE21))+COUNTIFS($L$2:L21,L21,$AE$2:AE21,AE21)-1,1+SUMPRODUCT(($L$2:$L$962=TRUE)*($AF$2:$AF$962>AF21))+COUNTIFS($L$2:L21,L21,$AF$2:AF21,AF21)-1,1+SUMPRODUCT(($L$2:$L$962=TRUE)*($AG$2:$AG$962>AG21))+COUNTIFS($L$2:L21,L21,$AG$2:AG21,AG21)-1,1+SUMPRODUCT(($L$2:$L$962=TRUE)*($AH$2:$AH$962>AH21))+COUNTIFS($L$2:L21,L21,$AH$2:AH21,AH21)-1,1+SUMPRODUCT(($L$2:$L$962=TRUE)*($AI$2:$AI$962>AI21))+COUNTIFS($L$2:L21,L21,$AI$2:AI21,AI21)-1,1+SUMPRODUCT(($L$2:$L$962=TRUE)*($AJ$2:$AJ$962>AJ21))+COUNTIFS($L$2:L21,L21,$AJ$2:AJ21,AJ21)-1,1+SUMPRODUCT(($L$2:$L$962=TRUE)*($AK$2:$AK$962>AK21))+COUNTIFS($L$2:L21,L21,$AK$2:AK21,AK21)-1,1+SUMPRODUCT(($L$2:$L$962=TRUE)*($AL$2:$AL$962>AL21))+COUNTIFS($L$2:L21,L21,$AL$2:AL21,AL21)-1,1+SUMPRODUCT(($L$2:$L$962=TRUE)*($AM$2:$AM$962>AM21))+COUNTIFS($L$2:L21,L21,$AM$2:AM21,AM21)-1,)),"") -> 174 | D21: Jose Alvarado | E21: =IFERROR(INDEX('Draft Log'!$D$4:$D$806,MATCH(D21,'Draft Log'!$C$4:$C$806,0)),"") ->  | F21: =IFERROR(INDEX('ADP-Rank'!$C$2:$C$832,MATCH(D21,'ADP-Rank'!$A$2:$A$832,0)),"") -> RP | G21: =IFERROR(IF(F21=I21,"",IF(INDEX('Your Roto Draft'!$B$11:$B$634,MATCH(D21,'Your Roto Draft'!$C$11:$C$634,0))="",IF(I21<>"",I21,""),INDEX('Your Roto Draft'!$B$11:$B$634,MATCH(D21,'Your Roto Draft'!$C$11:$C$634,0)))),"") ->  | H21: RP | J21: =INDEX('ADP-Rank'!$AH$2:$AH$832,MATCH(D21,'ADP-Rank'!$A$2:$A$832,0)) -> TRUE | K21: FALSE | L21: =IF(J21=FALSE,FALSE,IF(AND('Your Roto Draft'!$P$6="Hide Drafted Players",K21=TRUE),FALSE,IF(OR('Your Roto Draft'!$P$5="Show All Positions",AND('Your Roto Draft'!$P$5="Only Show: C",H21="C"),AND('Your Roto Draft'!$P$5="Only Show: 1B",H21="1B"),AND('Your Roto Draft'!$P$5="Only Show: 2B",H21="2B"),AND('Your Roto Draft'!$P$5="Only Show: 3B",H21="3B"),AND('Your Roto Draft'!$P$5="Only Show: SS",H21="SS"),AND('Your Roto Draft'!$P$5="Only Show: OF",H21="OF"),AND('Your Roto Draft'!$P$5="Only Show: SP",H21="SP"),AND('Your Roto Draft'!$P$5="Only Show: RP",H21="RP"),AND('Your Roto Draft'!$P$5="Only Show: CI",OR(H21={"1B","3B"})),AND('Your Roto Draft'!$P$5="Only Show: MI",OR(H21={"2B","SS"})),AND('Your Roto Draft'!$P$5="Only Show: IF",OR(H21={"C","1B","2B","3B","SS"})),AND('Your Roto Draft'!$P$5="Only Show: DH",OR(H21={"C","1B","2B","3B","SS","OF","DH"})),AND('Your Roto Draft'!$P$5="Only Show: P",OR(H21={"SP","RP"})),AND('Your Roto Draft'!$P$5="Only Show: LF",ISERROR(SEARCH("LF",VLOOKUP($D21,'ADP-Rank'!$A$2:$D$961,4,FALSE)))=FALSE),AND('Your Roto Draft'!$P$5="Only Show: RF",ISERROR(SEARCH("RF",VLOOKUP($D21,'ADP-Rank'!$A$2:$D$961,4,FALSE)))=FALSE),AND('Your Roto Draft'!$P$5="Only Show: CF",ISERROR(SEARCH("CF",VLOOKUP($D21,'ADP-Rank'!$A$2:$D$961,4,FALSE)))=FALSE)),TRUE,FALSE))) -> TRUE | M21: =IFERROR(IF(VLOOKUP($D21,'ADP-Rank'!$A$2:$AV$961,38,FALSE)="",9999,VLOOKUP($D21,'ADP-Rank'!$A$2:$AV$961,38,FALSE)),9999) -> 179 | N21: =IF(D21="Non-Ranked Player",-1001,IFERROR(VLOOKUP($D21,'All-WERTH'!$C$2:$E$962,3,FALSE),-1000)) -> -1.428297552 | O21: =IF(D21="Non-Ranked Player",10000,IFERROR(IF(VLOOKUP(D21,'ADP-Rank'!$A$2:$AJ$961,36,FALSE)="",9999,VLOOKUP(D21,'ADP-Rank'!$A$2:$AJ$961,36,FALSE)),9999)) -> 194 | P21: =IF($D21="Unlisted Player",-1001,IFERROR(IF(VLOOKUP($D21,'All-WERTH'!$C$2:$AC$962,4,FALSE)="",-1000,VLOOKUP($D21,'All-WERTH'!$C$2:$AC$962,4,FALSE)),-1000)) -> -1000 | Q21: =IF($D21="Unlisted Player",-1001,IFERROR(IF(VLOOKUP($D21,'All-WERTH'!$C$2:$AC$962,5,FALSE)="",-1000,VLOOKUP($D21,'All-WERTH'!$C$2:$AC$962,5,FALSE)),-1000)) -> -1000 | R21: =IF($D21="Unlisted Player",-1001,IFERROR(IF(VLOOKUP($D21,'All-WERTH'!$C$2:$AC$962,6,FALSE)="",-1000,VLOOKUP($D21,'All-WERTH'!$C$2:$AC$962,6,FALSE)),-1000)) -> -1000 | S21: =IF($D21="Unlisted Player",-1001,IFERROR(IF(VLOOKUP($D21,'All-WERTH'!$C$2:$AC$962,7,FALSE)="",-1000,VLOOKUP($D21,'All-WERTH'!$C$2:$AC$962,7,FALSE)),-1000)) -> -1000 | T21: =IF($D21="Unlisted Player",-1001,IFERROR(IF(VLOOKUP($D21,'All-WERTH'!$C$2:$AC$962,8,FALSE)="",-1000,VLOOKUP($D21,'All-WERTH'!$C$2:$AC$962,8,FALSE)),-1000)) -> -1000 | U21: =IF($D21="Unlisted Player",-1001,IFERROR(IF(VLOOKUP($D21,'All-WERTH'!$C$2:$AC$962,9,FALSE)="",-1000,VLOOKUP($D21,'All-WERTH'!$C$2:$AC$962,9,FALSE)),-1000)) -> -1000 | V21: =IF($D21="Unlisted Player",-1001,IFERROR(IF(VLOOKUP($D21,'All-WERTH'!$C$2:$AC$962,10,FALSE)="",-1000,VLOOKUP($D21,'All-WERTH'!$C$2:$AC$962,10,FALSE)),-1000)) -> -1000 | W21: =IF($D21="Unlisted Player",-1001,IFERROR(IF(VLOOKUP($D21,'All-WERTH'!$C$2:$AC$962,11,FALSE)="",-1000,VLOOKUP($D21,'All-WERTH'!$C$2:$AC$962,11,FALSE)),-1000)) -> -1000 | X21: =IF($D21="Unlisted Player",-1001,IFERROR(IF(VLOOKUP($D21,'All-WERTH'!$C$2:$AC$962,12,FALSE)="",-1000,VLOOKUP($D21,'All-WERTH'!$C$2:$AC$962,12,FALSE)),-1000)) -> -1000 | Y21: =IF($D21="Unlisted Player",-1001,IFERROR(IF(VLOOKUP($D21,'All-WERTH'!$C$2:$AC$962,13,FALSE)="",-1000,VLOOKUP($D21,'All-WERTH'!$C$2:$AC$962,13,FALSE)),-1000)) -> -1000 | Z21: =IF($D21="Unlisted Player",-1001,IFERROR(IF(VLOOKUP($D21,'All-WERTH'!$C$2:$AC$962,14,FALSE)="",-1000,VLOOKUP($D21,'All-WERTH'!$C$2:$AC$962,14,FALSE)),-1000)) -> -1000 | AA21: =IF($D21="Unlisted Player",-1001,IFERROR(IF(VLOOKUP($D21,'All-WERTH'!$C$2:$AC$962,15,FALSE)="",-1000,VLOOKUP($D21,'All-WERTH'!$C$2:$AC$962,15,FALSE)),-1000)) -> -1000 | AB21: =IF($D21="Unlisted Player",-1001,IFERROR(IF(VLOOKUP($D21,'All-WERTH'!$C$2:$AC$962,16,FALSE)="",-1000,VLOOKUP($D21,'All-WERTH'!$C$2:$AC$962,16,FALSE)),-1000)) -> -1.279055463 | AC21: =IF($D21="Unlisted Player",-1001,IFERROR(IF(VLOOKUP($D21,'All-WERTH'!$C$2:$AC$962,17,FALSE)="",-1000,VLOOKUP($D21,'All-WERTH'!$C$2:$AC$962,17,FALSE)),-1000)) -> 1.678852668 | AD21: =IF($D21="Unlisted Player",-1001,IFERROR(IF(VLOOKUP($D21,'All-WERTH'!$C$2:$AC$962,18,FALSE)="",-1000,VLOOKUP($D21,'All-WERTH'!$C$2:$AC$962,18,FALSE)),-1000)) -> -1.079717521 | AE21: =IF($D21="Unlisted Player",-1001,IFERROR(IF(VLOOKUP($D21,'All-WERTH'!$C$2:$AC$962,19,FALSE)="",-1000,VLOOKUP($D21,'All-WERTH'!$C$2:$AC$962,19,FALSE)),-1000)) -> -0.02647087186 | AF21: =IF($D21="Unlisted Player",-1001,IFERROR(IF(VLOOKUP($D21,'All-WERTH'!$C$2:$AC$962,20,FALSE)="",-1000,VLOOKUP($D21,'All-WERTH'!$C$2:$AC$962,20,FALSE)),-1000)) -> -0.7219063634 | AG21: =IF($D21="Unlisted Player",-1001,IFERROR(IF(VLOOKUP($D21,'All-WERTH'!$C$2:$AC$962,21,FALSE)="",-1000,VLOOKUP($D21,'All-WERTH'!$C$2:$AC$962,21,FALSE)),-1000)) -> -1000 | AH21: =IF($D21="Unlisted Player",-1001,IFERROR(IF(VLOOKUP($D21,'All-WERTH'!$C$2:$AC$962,22,FALSE)="",-1000,VLOOKUP($D21,'All-WERTH'!$C$2:$AC$962,22,FALSE)),-1000)) -> -1000 | AI21: =IF($D21="Unlisted Player",-1001,IFERROR(IF(VLOOKUP($D21,'All-WERTH'!$C$2:$AC$962,23,FALSE)="",-1000,VLOOKUP($D21,'All-WERTH'!$C$2:$AC$962,23,FALSE)),-1000)) -> -1000 | AJ21: =IF($D21="Unlisted Player",-1001,IFERROR(IF(VLOOKUP($D21,'All-WERTH'!$C$2:$AC$962,24,FALSE)="",-1000,VLOOKUP($D21,'All-WERTH'!$C$2:$AC$962,24,FALSE)),-1000)) -> -1000 | AK21: =IF($D21="Unlisted Player",-1001,IFERROR(IF(VLOOKUP($D21,'All-WERTH'!$C$2:$AC$962,25,FALSE)="",-1000,VLOOKUP($D21,'All-WERTH'!$C$2:$AC$962,25,FALSE)),-1000)) -> -1000 | AL21: =IF($D21="Unlisted Player",-1001,IFERROR(IF(VLOOKUP($D21,'All-WERTH'!$C$2:$AC$962,26,FALSE)="",-1000,VLOOKUP($D21,'All-WERTH'!$C$2:$AC$962,26,FALSE)),-1000)) -> -1000 | AM21: =IF($D21="Unlisted Player",-1001,IFERROR(IF(VLOOKUP($D21,'All-WERTH'!$C$2:$AC$962,27,FALSE)="",-1000,VLOOKUP($D21,'All-WERTH'!$C$2:$AC$962,27,FALSE)),-1000)) -> -1000 | AN21: =IF(ISERROR(VLOOKUP($B20,Keepers!$C$2:$D$450,2,FALSE)),B20,"") -> Giancarlo Stanton | AO21: =IFERROR(INDEX($AN$1:$AN$961,SMALL(IF($AN$1:$AN$961<>"",ROW($AN$1:$AN$961)),ROW(AN21))),"") -> Freddie Freeman
A22: Freddie Freeman | B22: =IFERROR(INDEX($A$1:$A$961,SMALL(IF($A$1:$A$961<>"",ROW($A$1:$A$961)),ROW(A22))),"") -> Justin Verlander | C22: =IFERROR(IF(L22=FALSE,"",CHOOSE(MATCH(RIGHT('Your Roto Draft'!$P$4,LEN('Your Roto Draft'!$P$4)-8),$M$1:$AM$1,0),1+SUMPRODUCT(($L$2:$L$962=TRUE)*($M$2:$M$962<M22))+COUNTIFS($L$2:L22,L22,$M$2:M22,M22)-1,1+SUMPRODUCT(($L$2:$L$962=TRUE)*($N$2:$N$962>N22))+COUNTIFS($L$2:L22,L22,$N$2:N22,N22)-1,1+SUMPRODUCT(($L$2:$L$962=TRUE)*($O$2:$O$962<O22))+COUNTIFS($L$2:L22,L22,$O$2:O22,O22)-1,1+SUMPRODUCT(($L$2:$L$962=TRUE)*($P$2:$P$962>P22))+COUNTIFS($L$2:L22,L22,$P$2:P22,P22)-1,1+SUMPRODUCT(($L$2:$L$962=TRUE)*($Q$2:$Q$962>Q22))+COUNTIFS($L$2:L22,L22,$Q$2:Q22,Q22)-1,1+SUMPRODUCT(($L$2:$L$962=TRUE)*($R$2:$R$962>R22))+COUNTIFS($L$2:L22,L22,$R$2:R22,R22)-1,1+SUMPRODUCT(($L$2:$L$962=TRUE)*($S$2:$S$962>S22))+COUNTIFS($L$2:L22,L22,$S$2:S22,S22)-1,1+SUMPRODUCT(($L$2:$L$962=TRUE)*($T$2:$T$962>T22))+COUNTIFS($L$2:L22,L22,$T$2:T22,T22)-1,1+SUMPRODUCT(($L$2:$L$962=TRUE)*($U$2:$U$962>U22))+COUNTIFS($L$2:L22,L22,$U$2:U22,U22)-1,1+SUMPRODUCT(($L$2:$L$962=TRUE)*($V$2:$V$962>V22))+COUNTIFS($L$2:L22,L22,$V$2:V22,V22)-1,1+SUMPRODUCT(($L$2:$L$962=TRUE)*($W$2:$W$962>W22))+COUNTIFS($L$2:L22,L22,$W$2:W22,W22)-1,1+SUMPRODUCT(($L$2:$L$962=TRUE)*($X$2:$X$962>X22))+COUNTIFS($L$2:L22,L22,$X$2:X22,X22)-1,1+SUMPRODUCT(($L$2:$L$962=TRUE)*($Y$2:$Y$962>Y22))+COUNTIFS($L$2:L22,L22,$Y$2:Y22,Y22)-1,1+SUMPRODUCT(($L$2:$L$962=TRUE)*($Z$2:$Z$962>Z22))+COUNTIFS($L$2:L22,L22,$Z$2:Z22,Z22)-1,1+SUMPRODUCT(($L$2:$L$962=TRUE)*($AA$2:$AA$962>AA22))+COUNTIFS($L$2:L22,L22,$AA$2:AA22,AA22)-1,1+SUMPRODUCT(($L$2:$L$962=TRUE)*($AB$2:$AB$962>AB22))+COUNTIFS($L$2:L22,L22,$AB$2:AB22,AB22)-1,1+SUMPRODUCT(($L$2:$L$962=TRUE)*($AC$2:$AC$962>AC22))+COUNTIFS($L$2:L22,L22,$AC$2:AC22,AC22)-1,1+SUMPRODUCT(($L$2:$L$962=TRUE)*($AD$2:$AD$962>AD22))+COUNTIFS($L$2:L22,L22,$AD$2:AD22,AD22)-1,1+SUMPRODUCT(($L$2:$L$962=TRUE)*($AE$2:$AE$962>AE22))+COUNTIFS($L$2:L22,L22,$AE$2:AE22,AE22)-1,1+SUMPRODUCT(($L$2:$L$962=TRUE)*($AF$2:$AF$962>AF22))+COUNTIFS($L$2:L22,L22,$AF$2:AF22,AF22)-1,1+SUMPRODUCT(($L$2:$L$962=TRUE)*($AG$2:$AG$962>AG22))+COUNTIFS($L$2:L22,L22,$AG$2:AG22,AG22)-1,1+SUMPRODUCT(($L$2:$L$962=TRUE)*($AH$2:$AH$962>AH22))+COUNTIFS($L$2:L22,L22,$AH$2:AH22,AH22)-1,1+SUMPRODUCT(($L$2:$L$962=TRUE)*($AI$2:$AI$962>AI22))+COUNTIFS($L$2:L22,L22,$AI$2:AI22,AI22)-1,1+SUMPRODUCT(($L$2:$L$962=TRUE)*($AJ$2:$AJ$962>AJ22))+COUNTIFS($L$2:L22,L22,$AJ$2:AJ22,AJ22)-1,1+SUMPRODUCT(($L$2:$L$962=TRUE)*($AK$2:$AK$962>AK22))+COUNTIFS($L$2:L22,L22,$AK$2:AK22,AK22)-1,1+SUMPRODUCT(($L$2:$L$962=TRUE)*($AL$2:$AL$962>AL22))+COUNTIFS($L$2:L22,L22,$AL$2:AL22,AL22)-1,1+SUMPRODUCT(($L$2:$L$962=TRUE)*($AM$2:$AM$962>AM22))+COUNTIFS($L$2:L22,L22,$AM$2:AM22,AM22)-1,)),"") -> 569 | D22: Brett Anderson | E22: =IFERROR(INDEX('Draft Log'!$D$4:$D$806,MATCH(D22,'Draft Log'!$C$4:$C$806,0)),"") ->  | F22: =IFERROR(INDEX('ADP-Rank'!$C$2:$C$832,MATCH(D22,'ADP-Rank'!$A$2:$A$832,0)),"") -> SP | G22: =IFERROR(IF(F22=I22,"",IF(INDEX('Your Roto Draft'!$B$11:$B$634,MATCH(D22,'Your Roto Draft'!$C$11:$C$634,0))="",IF(I22<>"",I22,""),INDEX('Your Roto Draft'!$B$11:$B$634,MATCH(D22,'Your Roto Draft'!$C$11:$C$634,0)))),"") ->  | H22: SP | J22: =INDEX('ADP-Rank'!$AH$2:$AH$832,MATCH(D22,'ADP-Rank'!$A$2:$A$832,0)) -> TRUE | K22: FALSE | L22: =IF(J22=FALSE,FALSE,IF(AND('Your Roto Draft'!$P$6="Hide Drafted Players",K22=TRUE),FALSE,IF(OR('Your Roto Draft'!$P$5="Show All Positions",AND('Your Roto Draft'!$P$5="Only Show: C",H22="C"),AND('Your Roto Draft'!$P$5="Only Show: 1B",H22="1B"),AND('Your Roto Draft'!$P$5="Only Show: 2B",H22="2B"),AND('Your Roto Draft'!$P$5="Only Show: 3B",H22="3B"),AND('Your Roto Draft'!$P$5="Only Show: SS",H22="SS"),AND('Your Roto Draft'!$P$5="Only Show: OF",H22="OF"),AND('Your Roto Draft'!$P$5="Only Show: SP",H22="SP"),AND('Your Roto Draft'!$P$5="Only Show: RP",H22="RP"),AND('Your Roto Draft'!$P$5="Only Show: CI",OR(H22={"1B","3B"})),AND('Your Roto Draft'!$P$5="Only Show: MI",OR(H22={"2B","SS"})),AND('Your Roto Draft'!$P$5="Only Show: IF",OR(H22={"C","1B","2B","3B","SS"})),AND('Your Roto Draft'!$P$5="Only Show: DH",OR(H22={"C","1B","2B","3B","SS","OF","DH"})),AND('Your Roto Draft'!$P$5="Only Show: P",OR(H22={"SP","RP"})),AND('Your Roto Draft'!$P$5="Only Show: LF",ISERROR(SEARCH("LF",VLOOKUP($D22,'ADP-Rank'!$A$2:$D$961,4,FALSE)))=FALSE),AND('Your Roto Draft'!$P$5="Only Show: RF",ISERROR(SEARCH("RF",VLOOKUP($D22,'ADP-Rank'!$A$2:$D$961,4,FALSE)))=FALSE),AND('Your Roto Draft'!$P$5="Only Show: CF",ISERROR(SEARCH("CF",VLOOKUP($D22,'ADP-Rank'!$A$2:$D$961,4,FALSE)))=FALSE)),TRUE,FALSE))) -> TRUE | M22: =IFERROR(IF(VLOOKUP($D22,'ADP-Rank'!$A$2:$AV$961,38,FALSE)="",9999,VLOOKUP($D22,'ADP-Rank'!$A$2:$AV$961,38,FALSE)),9999) -> 649.5 | N22: =IF(D22="Non-Ranked Player",-1001,IFERROR(VLOOKUP($D22,'All-WERTH'!$C$2:$E$962,3,FALSE),-1000)) -> -5.586729164 | O22: =IF(D22="Non-Ranked Player",10000,IFERROR(IF(VLOOKUP(D22,'ADP-Rank'!$A$2:$AJ$961,36,FALSE)="",9999,VLOOKUP(D22,'ADP-Rank'!$A$2:$AJ$961,36,FALSE)),9999)) -> 9999 | P22: =IF($D22="Unlisted Player",-1001,IFERROR(IF(VLOOKUP($D22,'All-WERTH'!$C$2:$AC$962,4,FALSE)="",-1000,VLOOKUP($D22,'All-WERTH'!$C$2:$AC$962,4,FALSE)),-1000)) -> -1000 | Q22: =IF($D22="Unlisted Player",-1001,IFERROR(IF(VLOOKUP($D22,'All-WERTH'!$C$2:$AC$962,5,FALSE)="",-1000,VLOOKUP($D22,'All-WERTH'!$C$2:$AC$962,5,FALSE)),-1000)) -> -1000 | R22: =IF($D22="Unlisted Player",-1001,IFERROR(IF(VLOOKUP($D22,'All-WERTH'!$C$2:$AC$962,6,FALSE)="",-1000,VLOOKUP($D22,'All-WERTH'!$C$2:$AC$962,6,FALSE)),-1000)) -> -1000 | S22: =IF($D22="Unlisted Player",-1001,IFERROR(IF(VLOOKUP($D22,'All-WERTH'!$C$2:$AC$962,7,FALSE)="",-1000,VLOOKUP($D22,'All-WERTH'!$C$2:$AC$962,7,FALSE)),-1000)) -> -1000 | T22: =IF($D22="Unlisted Player",-1001,IFERROR(IF(VLOOKUP($D22,'All-WERTH'!$C$2:$AC$962,8,FALSE)="",-1000,VLOOKUP($D22,'All-WERTH'!$C$2:$AC$962,8,FALSE)),-1000)) -> -1000 | U22: =IF($D22="Unlisted Player",-1001,IFERROR(IF(VLOOKUP($D22,'All-WERTH'!$C$2:$AC$962,9,FALSE)="",-1000,VLOOKUP($D22,'All-WERTH'!$C$2:$AC$962,9,FALSE)),-1000)) -> -1000 | V22: =IF($D22="Unlisted Player",-1001,IFERROR(IF(VLOOKUP($D22,'All-WERTH'!$C$2:$AC$962,10,FALSE)="",-1000,VLOOKUP($D22,'All-WERTH'!$C$2:$AC$962,10,FALSE)),-1000)) -> -1000 | W22: =IF($D22="Unlisted Player",-1001,IFERROR(IF(VLOOKUP($D22,'All-WERTH'!$C$2:$AC$962,11,FALSE)="",-1000,VLOOKUP($D22,'All-WERTH'!$C$2:$AC$962,11,FALSE)),-1000)) -> -1000 | X22: =IF($D22="Unlisted Player",-1001,IFERROR(IF(VLOOKUP($D22,'All-WERTH'!$C$2:$AC$962,12,FALSE)="",-1000,VLOOKUP($D22,'All-WERTH'!$C$2:$AC$962,12,FALSE)),-1000)) -> -1000 | Y22: =IF($D22="Unlisted Player",-1001,IFERROR(IF(VLOOKUP($D22,'All-WERTH'!$C$2:$AC$962,13,FALSE)="",-1000,VLOOKUP($D22,'All-WERTH'!$C$2:$AC$962,13,FALSE)),-1000)) -> -1000 | Z22: =IF($D22="Unlisted Player",-1001,IFERROR(IF(VLOOKUP($D22,'All-WERTH'!$C$2:$AC$962,14,FALSE)="",-1000,VLOOKUP($D22,'All-WERTH'!$C$2:$AC$962,14,FALSE)),-1000)) -> -1000 | AA22: =IF($D22="Unlisted Player",-1001,IFERROR(IF(VLOOKUP($D22,'All-WERTH'!$C$2:$AC$962,15,FALSE)="",-1000,VLOOKUP($D22,'All-WERTH'!$C$2:$AC$962,15,FALSE)),-1000)) -> -1000 | AB22: =IF($D22="Unlisted Player",-1001,IFERROR(IF(VLOOKUP($D22,'All-WERTH'!$C$2:$AC$962,16,FALSE)="",-1000,VLOOKUP($D22,'All-WERTH'!$C$2:$AC$962,16,FALSE)),-1000)) -> -0.6680195764 | AC22: =IF($D22="Unlisted Player",-1001,IFERROR(IF(VLOOKUP($D22,'All-WERTH'!$C$2:$AC$962,17,FALSE)="",-1000,VLOOKUP($D22,'All-WERTH'!$C$2:$AC$962,17,FALSE)),-1000)) -> -0.6022607912 | AD22: =IF($D22="Unlisted Player",-1001,IFERROR(IF(VLOOKUP($D22,'All-WERTH'!$C$2:$AC$962,18,FALSE)="",-1000,VLOOKUP($D22,'All-WERTH'!$C$2:$AC$962,18,FALSE)),-1000)) -> -1.579111771 | AE22: =IF($D22="Unlisted Player",-1001,IFERROR(IF(VLOOKUP($D22,'All-WERTH'!$C$2:$AC$962,19,FALSE)="",-1000,VLOOKUP($D22,'All-WERTH'!$C$2:$AC$962,19,FALSE)),-1000)) -> -1.289314843 | AF22: =IF($D22="Unlisted Player",-1001,IFERROR(IF(VLOOKUP($D22,'All-WERTH'!$C$2:$AC$962,20,FALSE)="",-1000,VLOOKUP($D22,'All-WERTH'!$C$2:$AC$962,20,FALSE)),-1000)) -> -1.448022182 | AG22: =IF($D22="Unlisted Player",-1001,IFERROR(IF(VLOOKUP($D22,'All-WERTH'!$C$2:$AC$962,21,FALSE)="",-1000,VLOOKUP($D22,'All-WERTH'!$C$2:$AC$962,21,FALSE)),-1000)) -> -1000 | AH22: =IF($D22="Unlisted Player",-1001,IFERROR(IF(VLOOKUP($D22,'All-WERTH'!$C$2:$AC$962,22,FALSE)="",-1000,VLOOKUP($D22,'All-WERTH'!$C$2:$AC$962,22,FALSE)),-1000)) -> -1000 | AI22: =IF($D22="Unlisted Player",-1001,IFERROR(IF(VLOOKUP($D22,'All-WERTH'!$C$2:$AC$962,23,FALSE)="",-1000,VLOOKUP($D22,'All-WERTH'!$C$2:$AC$962,23,FALSE)),-1000)) -> -1000 | AJ22: =IF($D22="Unlisted Player",-1001,IFERROR(IF(VLOOKUP($D22,'All-WERTH'!$C$2:$AC$962,24,FALSE)="",-1000,VLOOKUP($D22,'All-WERTH'!$C$2:$AC$962,24,FALSE)),-1000)) -> -1000 | AK22: =IF($D22="Unlisted Player",-1001,IFERROR(IF(VLOOKUP($D22,'All-WERTH'!$C$2:$AC$962,25,FALSE)="",-1000,VLOOKUP($D22,'All-WERTH'!$C$2:$AC$962,25,FALSE)),-1000)) -> -1000 | AL22: =IF($D22="Unlisted Player",-1001,IFERROR(IF(VLOOKUP($D22,'All-WERTH'!$C$2:$AC$962,26,FALSE)="",-1000,VLOOKUP($D22,'All-WERTH'!$C$2:$AC$962,26,FALSE)),-1000)) -> -1000 | AM22: =IF($D22="Unlisted Player",-1001,IFERROR(IF(VLOOKUP($D22,'All-WERTH'!$C$2:$AC$962,27,FALSE)="",-1000,VLOOKUP($D22,'All-WERTH'!$C$2:$AC$962,27,FALSE)),-1000)) -> -1000 | AN22: =IF(ISERROR(VLOOKUP($B21,Keepers!$C$2:$D$450,2,FALSE)),B21,"") -> Freddie Freeman | AO22: =IFERROR(INDEX($AN$1:$AN$961,SMALL(IF($AN$1:$AN$961<>"",ROW($AN$1:$AN$961)),ROW(AN22))),"") -> Justin Verlander
A23: Justin Verlander | B23: =IFERROR(INDEX($A$1:$A$961,SMALL(IF($A$1:$A$961<>"",ROW($A$1:$A$961)),ROW(A23))),"") -> Corey Kluber | C23: =IFERROR(IF(L23=FALSE,"",CHOOSE(MATCH(RIGHT('Your Roto Draft'!$P$4,LEN('Your Roto Draft'!$P$4)-8),$M$1:$AM$1,0),1+SUMPRODUCT(($L$2:$L$962=TRUE)*($M$2:$M$962<M23))+COUNTIFS($L$2:L23,L23,$M$2:M23,M23)-1,1+SUMPRODUCT(($L$2:$L$962=TRUE)*($N$2:$N$962>N23))+COUNTIFS($L$2:L23,L23,$N$2:N23,N23)-1,1+SUMPRODUCT(($L$2:$L$962=TRUE)*($O$2:$O$962<O23))+COUNTIFS($L$2:L23,L23,$O$2:O23,O23)-1,1+SUMPRODUCT(($L$2:$L$962=TRUE)*($P$2:$P$962>P23))+COUNTIFS($L$2:L23,L23,$P$2:P23,P23)-1,1+SUMPRODUCT(($L$2:$L$962=TRUE)*($Q$2:$Q$962>Q23))+COUNTIFS($L$2:L23,L23,$Q$2:Q23,Q23)-1,1+SUMPRODUCT(($L$2:$L$962=TRUE)*($R$2:$R$962>R23))+COUNTIFS($L$2:L23,L23,$R$2:R23,R23)-1,1+SUMPRODUCT(($L$2:$L$962=TRUE)*($S$2:$S$962>S23))+COUNTIFS($L$2:L23,L23,$S$2:S23,S23)-1,1+SUMPRODUCT(($L$2:$L$962=TRUE)*($T$2:$T$962>T23))+COUNTIFS($L$2:L23,L23,$T$2:T23,T23)-1,1+SUMPRODUCT(($L$2:$L$962=TRUE)*($U$2:$U$962>U23))+COUNTIFS($L$2:L23,L23,$U$2:U23,U23)-1,1+SUMPRODUCT(($L$2:$L$962=TRUE)*($V$2:$V$962>V23))+COUNTIFS($L$2:L23,L23,$V$2:V23,V23)-1,1+SUMPRODUCT(($L$2:$L$962=TRUE)*($W$2:$W$962>W23))+COUNTIFS($L$2:L23,L23,$W$2:W23,W23)-1,1+SUMPRODUCT(($L$2:$L$962=TRUE)*($X$2:$X$962>X23))+COUNTIFS($L$2:L23,L23,$X$2:X23,X23)-1,1+SUMPRODUCT(($L$2:$L$962=TRUE)*($Y$2:$Y$962>Y23))+COUNTIFS($L$2:L23,L23,$Y$2:Y23,Y23)-1,1+SUMPRODUCT(($L$2:$L$962=TRUE)*($Z$2:$Z$962>Z23))+COUNTIFS($L$2:L23,L23,$Z$2:Z23,Z23)-1,1+SUMPRODUCT(($L$2:$L$962=TRUE)*($AA$2:$AA$962>AA23))+COUNTIFS($L$2:L23,L23,$AA$2:AA23,AA23)-1,1+SUMPRODUCT(($L$2:$L$962=TRUE)*($AB$2:$AB$962>AB23))+COUNTIFS($L$2:L23,L23,$AB$2:AB23,AB23)-1,1+SUMPRODUCT(($L$2:$L$962=TRUE)*($AC$2:$AC$962>AC23))+COUNTIFS($L$2:L23,L23,$AC$2:AC23,AC23)-1,1+SUMPRODUCT(($L$2:$L$962=TRUE)*($AD$2:$AD$962>AD23))+COUNTIFS($L$2:L23,L23,$AD$2:AD23,AD23)-1,1+SUMPRODUCT(($L$2:$L$962=TRUE)*($AE$2:$AE$962>AE23))+COUNTIFS($L$2:L23,L23,$AE$2:AE23,AE23)-1,1+SUMPRODUCT(($L$2:$L$962=TRUE)*($AF$2:$AF$962>AF23))+COUNTIFS($L$2:L23,L23,$AF$2:AF23,AF23)-1,1+SUMPRODUCT(($L$2:$L$962=TRUE)*($AG$2:$AG$962>AG23))+COUNTIFS($L$2:L23,L23,$AG$2:AG23,AG23)-1,1+SUMPRODUCT(($L$2:$L$962=TRUE)*($AH$2:$AH$962>AH23))+COUNTIFS($L$2:L23,L23,$AH$2:AH23,AH23)-1,1+SUMPRODUCT(($L$2:$L$962=TRUE)*($AI$2:$AI$962>AI23))+COUNTIFS($L$2:L23,L23,$AI$2:AI23,AI23)-1,1+SUMPRODUCT(($L$2:$L$962=TRUE)*($AJ$2:$AJ$962>AJ23))+COUNTIFS($L$2:L23,L23,$AJ$2:AJ23,AJ23)-1,1+SUMPRODUCT(($L$2:$L$962=TRUE)*($AK$2:$AK$962>AK23))+COUNTIFS($L$2:L23,L23,$AK$2:AK23,AK23)-1,1+SUMPRODUCT(($L$2:$L$962=TRUE)*($AL$2:$AL$962>AL23))+COUNTIFS($L$2:L23,L23,$AL$2:AL23,AL23)-1,1+SUMPRODUCT(($L$2:$L$962=TRUE)*($AM$2:$AM$962>AM23))+COUNTIFS($L$2:L23,L23,$AM$2:AM23,AM23)-1,)),"") -> 292 | D23: Brian Anderson | E23: =IFERROR(INDEX('Draft Log'!$D$4:$D$806,MATCH(D23,'Draft Log'!$C$4:$C$806,0)),"") ->  | F23: =IFERROR(INDEX('ADP-Rank'!$C$2:$C$832,MATCH(D23,'ADP-Rank'!$A$2:$A$832,0)),"") -> 3B | G23: =IFERROR(IF(F23=I23,"",IF(INDEX('Your Roto Draft'!$B$11:$B$634,MATCH(D23,'Your Roto Draft'!$C$11:$C$634,0))="",IF(I23<>"",I23,""),INDEX('Your Roto Draft'!$B$11:$B$634,MATCH(D23,'Your Roto Draft'!$C$11:$C$634,0)))),"") ->  | H23: 3B | J23: =INDEX('ADP-Rank'!$AH$2:$AH$832,MATCH(D23,'ADP-Rank'!$A$2:$A$832,0)) -> TRUE | K23: FALSE | L23: =IF(J23=FALSE,FALSE,IF(AND('Your Roto Draft'!$P$6="Hide Drafted Players",K23=TRUE),FALSE,IF(OR('Your Roto Draft'!$P$5="Show All Positions",AND('Your Roto Draft'!$P$5="Only Show: C",H23="C"),AND('Your Roto Draft'!$P$5="Only Show: 1B",H23="1B"),AND('Your Roto Draft'!$P$5="Only Show: 2B",H23="2B"),AND('Your Roto Draft'!$P$5="Only Show: 3B",H23="3B"),AND('Your Roto Draft'!$P$5="Only Show: SS",H23="SS"),AND('Your Roto Draft'!$P$5="Only Show: OF",H23="OF"),AND('Your Roto Draft'!$P$5="Only Show: SP",H23="SP"),AND('Your Roto Draft'!$P$5="Only Show: RP",H23="RP"),AND('Your Roto Draft'!$P$5="Only Show: CI",OR(H23={"1B","3B"})),AND('Your Roto Draft'!$P$5="Only Show: MI",OR(H23={"2B","SS"})),AND('Your Roto Draft'!$P$5="Only Show: IF",OR(H23={"C","1B","2B","3B","SS"})),AND('Your Roto Draft'!$P$5="Only Show: DH",OR(H23={"C","1B","2B","3B","SS","OF","DH"})),AND('Your Roto Draft'!$P$5="Only Show: P",OR(H23={"SP","RP"})),AND('Your Roto Draft'!$P$5="Only Show: LF",ISERROR(SEARCH("LF",VLOOKUP($D23,'ADP-Rank'!$A$2:$D$961,4,FALSE)))=FALSE),AND('Your Roto Draft'!$P$5="Only Show: RF",ISERROR(SEARCH("RF",VLOOKUP($D23,'ADP-Rank'!$A$2:$D$961,4,FALSE)))=FALSE),AND('Your Roto Draft'!$P$5="Only Show: CF",ISERROR(SEARCH("CF",VLOOKUP($D23,'ADP-Rank'!$A$2:$D$961,4,FALSE)))=FALSE)),TRUE,FALSE))) -> TRUE | M23: =IFERROR(IF(VLOOKUP($D23,'ADP-Rank'!$A$2:$AV$961,38,FALSE)="",9999,VLOOKUP($D23,'ADP-Rank'!$A$2:$AV$961,38,FALSE)),9999) -> 303.3 | N23: =IF(D23="Non-Ranked Player",-1001,IFERROR(VLOOKUP($D23,'All-WERTH'!$C$2:$E$962,3,FALSE),-1000)) -> -2.586840827 | O23: =IF(D23="Non-Ranked Player",10000,IFERROR(IF(VLOOKUP(D23,'ADP-Rank'!$A$2:$AJ$961,36,FALSE)="",9999,VLOOKUP(D23,'ADP-Rank'!$A$2:$AJ$961,36,FALSE)),9999)) -> 276 | P23: =IF($D23="Unlisted Player",-1001,IFERROR(IF(VLOOKUP($D23,'All-WERTH'!$C$2:$AC$962,4,FALSE)="",-1000,VLOOKUP($D23,'All-WERTH'!$C$2:$AC$962,4,FALSE)),-1000)) -> -0.5841036754 | Q23: =IF($D23="Unlisted Player",-1001,IFERROR(IF(VLOOKUP($D23,'All-WERTH'!$C$2:$AC$962,5,FALSE)="",-1000,VLOOKUP($D23,'All-WERTH'!$C$2:$AC$962,5,FALSE)),-1000)) -> -0.9116839528 | R23: =IF($D23="Unlisted Player",-1001,IFERROR(IF(VLOOKUP($D23,'All-WERTH'!$C$2:$AC$962,6,FALSE)="",-1000,VLOOKUP($D23,'All-WERTH'!$C$2:$AC$962,6,FALSE)),-1000)) -> 0.1205488008 | S23: =IF($D23="Unlisted Player",-1001,IFERROR(IF(VLOOKUP($D23,'All-WERTH'!$C$2:$AC$962,7,FALSE)="",-1000,VLOOKUP($D23,'All-WERTH'!$C$2:$AC$962,7,FALSE)),-1000)) -> -0.3683836015 | T23: =IF($D23="Unlisted Player",-1001,IFERROR(IF(VLOOKUP($D23,'All-WERTH'!$C$2:$AC$962,8,FALSE)="",-1000,VLOOKUP($D23,'All-WERTH'!$C$2:$AC$962,8,FALSE)),-1000)) -> -0.843218398 | U23: =IF($D23="Unlisted Player",-1001,IFERROR(IF(VLOOKUP($D23,'All-WERTH'!$C$2:$AC$962,9,FALSE)="",-1000,VLOOKUP($D23,'All-WERTH'!$C$2:$AC$962,9,FALSE)),-1000)) -> -1000 | V23: =IF($D23="Unlisted Player",-1001,IFERROR(IF(VLOOKUP($D23,'All-WERTH'!$C$2:$AC$962,10,FALSE)="",-1000,VLOOKUP($D23,'All-WERTH'!$C$2:$AC$962,10,FALSE)),-1000)) -> -1000 | W23: =IF($D23="Unlisted Player",-1001,IFERROR(IF(VLOOKUP($D23,'All-WERTH'!$C$2:$AC$962,11,FALSE)="",-1000,VLOOKUP($D23,'All-WERTH'!$C$2:$AC$962,11,FALSE)),-1000)) -> -1000 | X23: =IF($D23="Unlisted Player",-1001,IFERROR(IF(VLOOKUP($D23,'All-WERTH'!$C$2:$AC$962,12,FALSE)="",-1000,VLOOKUP($D23,'All-WERTH'!$C$2:$AC$962,12,FALSE)),-1000)) -> -1000 | Y23: =IF($D23="Unlisted Player",-1001,IFERROR(IF(VLOOKUP($D23,'All-WERTH'!$C$2:$AC$962,13,FALSE)="",-1000,VLOOKUP($D23,'All-WERTH'!$C$2:$AC$962,13,FALSE)),-1000)) -> -1000 | Z23: =IF($D23="Unlisted Player",-1001,IFERROR(IF(VLOOKUP($D23,'All-WERTH'!$C$2:$AC$962,14,FALSE)="",-1000,VLOOKUP($D23,'All-WERTH'!$C$2:$AC$962,14,FALSE)),-1000)) -> -1000 | AA23: =IF($D23="Unlisted Player",-1001,IFERROR(IF(VLOOKUP($D23,'All-WERTH'!$C$2:$AC$962,15,FALSE)="",-1000,VLOOKUP($D23,'All-WERTH'!$C$2:$AC$962,15,FALSE)),-1000)) -> -1000 | AB23: =IF($D23="Unlisted Player",-1001,IFERROR(IF(VLOOKUP($D23,'All-WERTH'!$C$2:$AC$962,16,FALSE)="",-1000,VLOOKUP($D23,'All-WERTH'!$C$2:$AC$962,16,FALSE)),-1000)) -> -1000 | AC23: =IF($D23="Unlisted Player",-1001,IFERROR(IF(VLOOKUP($D23,'All-WERTH'!$C$2:$AC$962,17,FALSE)="",-1000,VLOOKUP($D23,'All-WERTH'!$C$2:$AC$962,17,FALSE)),-1000)) -> -1000 | AD23: =IF($D23="Unlisted Player",-1001,IFERROR(IF(VLOOKUP($D23,'All-WERTH'!$C$2:$AC$962,18,FALSE)="",-1000,VLOOKUP($D23,'All-WERTH'!$C$2:$AC$962,18,FALSE)),-1000)) -> -1000 | AE23: =IF($D23="Unlisted Player",-1001,IFERROR(IF(VLOOKUP($D23,'All-WERTH'!$C$2:$AC$962,19,FALSE)="",-1000,VLOOKUP($D23,'All-WERTH'!$C$2:$AC$962,19,FALSE)),-1000)) -> -1000 | AF23: =IF($D23="Unlisted Player",-1001,IFERROR(IF(VLOOKUP($D23,'All-WERTH'!$C$2:$AC$962,20,FALSE)="",-1000,VLOOKUP($D23,'All-WERTH'!$C$2:$AC$962,20,FALSE)),-1000)) -> -1000 | AG23: =IF($D23="Unlisted Player",-1001,IFERROR(IF(VLOOKUP($D23,'All-WERTH'!$C$2:$AC$962,21,FALSE)="",-1000,VLOOKUP($D23,'All-WERTH'!$C$2:$AC$962,21,FALSE)),-1000)) -> -1000 | AH23: =IF($D23="Unlisted Player",-1001,IFERROR(IF(VLOOKUP($D23,'All-WERTH'!$C$2:$AC$962,22,FALSE)="",-1000,VLOOKUP($D23,'All-WERTH'!$C$2:$AC$962,22,FALSE)),-1000)) -> -1000 | AI23: =IF($D23="Unlisted Player",-1001,IFERROR(IF(VLOOKUP($D23,'All-WERTH'!$C$2:$AC$962,23,FALSE)="",-1000,VLOOKUP($D23,'All-WERTH'!$C$2:$AC$962,23,FALSE)),-1000)) -> -1000 | AJ23: =IF($D23="Unlisted Player",-1001,IFERROR(IF(VLOOKUP($D23,'All-WERTH'!$C$2:$AC$962,24,FALSE)="",-1000,VLOOKUP($D23,'All-WERTH'!$C$2:$AC$962,24,FALSE)),-1000)) -> -1000 | AK23: =IF($D23="Unlisted Player",-1001,IFERROR(IF(VLOOKUP($D23,'All-WERTH'!$C$2:$AC$962,25,FALSE)="",-1000,VLOOKUP($D23,'All-WERTH'!$C$2:$AC$962,25,FALSE)),-1000)) -> -1000 | AL23: =IF($D23="Unlisted Player",-1001,IFERROR(IF(VLOOKUP($D23,'All-WERTH'!$C$2:$AC$962,26,FALSE)="",-1000,VLOOKUP($D23,'All-WERTH'!$C$2:$AC$962,26,FALSE)),-1000)) -> -1000 | AM23: =IF($D23="Unlisted Player",-1001,IFERROR(IF(VLOOKUP($D23,'All-WERTH'!$C$2:$AC$962,27,FALSE)="",-1000,VLOOKUP($D23,'All-WERTH'!$C$2:$AC$962,27,FALSE)),-1000)) -> -1000 | AN23: =IF(ISERROR(VLOOKUP($B22,Keepers!$C$2:$D$450,2,FALSE)),B22,"") -> Justin Verlander | AO23: =IFERROR(INDEX($AN$1:$AN$961,SMALL(IF($AN$1:$AN$961<>"",ROW($AN$1:$AN$961)),ROW(AN23))),"") -> Corey Kluber
A24: Corey Kluber | B24: =IFERROR(INDEX($A$1:$A$961,SMALL(IF($A$1:$A$961<>"",ROW($A$1:$A$961)),ROW(A24))),"") -> Trevor Story | C24: =IFERROR(IF(L24=FALSE,"",CHOOSE(MATCH(RIGHT('Your Roto Draft'!$P$4,LEN('Your Roto Draft'!$P$4)-8),$M$1:$AM$1,0),1+SUMPRODUCT(($L$2:$L$962=TRUE)*($M$2:$M$962<M24))+COUNTIFS($L$2:L24,L24,$M$2:M24,M24)-1,1+SUMPRODUCT(($L$2:$L$962=TRUE)*($N$2:$N$962>N24))+COUNTIFS($L$2:L24,L24,$N$2:N24,N24)-1,1+SUMPRODUCT(($L$2:$L$962=TRUE)*($O$2:$O$962<O24))+COUNTIFS($L$2:L24,L24,$O$2:O24,O24)-1,1+SUMPRODUCT(($L$2:$L$962=TRUE)*($P$2:$P$962>P24))+COUNTIFS($L$2:L24,L24,$P$2:P24,P24)-1,1+SUMPRODUCT(($L$2:$L$962=TRUE)*($Q$2:$Q$962>Q24))+COUNTIFS($L$2:L24,L24,$Q$2:Q24,Q24)-1,1+SUMPRODUCT(($L$2:$L$962=TRUE)*($R$2:$R$962>R24))+COUNTIFS($L$2:L24,L24,$R$2:R24,R24)-1,1+SUMPRODUCT(($L$2:$L$962=TRUE)*($S$2:$S$962>S24))+COUNTIFS($L$2:L24,L24,$S$2:S24,S24)-1,1+SUMPRODUCT(($L$2:$L$962=TRUE)*($T$2:$T$962>T24))+COUNTIFS($L$2:L24,L24,$T$2:T24,T24)-1,1+SUMPRODUCT(($L$2:$L$962=TRUE)*($U$2:$U$962>U24))+COUNTIFS($L$2:L24,L24,$U$2:U24,U24)-1,1+SUMPRODUCT(($L$2:$L$962=TRUE)*($V$2:$V$962>V24))+COUNTIFS($L$2:L24,L24,$V$2:V24,V24)-1,1+SUMPRODUCT(($L$2:$L$962=TRUE)*($W$2:$W$962>W24))+COUNTIFS($L$2:L24,L24,$W$2:W24,W24)-1,1+SUMPRODUCT(($L$2:$L$962=TRUE)*($X$2:$X$962>X24))+COUNTIFS($L$2:L24,L24,$X$2:X24,X24)-1,1+SUMPRODUCT(($L$2:$L$962=TRUE)*($Y$2:$Y$962>Y24))+COUNTIFS($L$2:L24,L24,$Y$2:Y24,Y24)-1,1+SUMPRODUCT(($L$2:$L$962=TRUE)*($Z$2:$Z$962>Z24))+COUNTIFS($L$2:L24,L24,$Z$2:Z24,Z24)-1,1+SUMPRODUCT(($L$2:$L$962=TRUE)*($AA$2:$AA$962>AA24))+COUNTIFS($L$2:L24,L24,$AA$2:AA24,AA24)-1,1+SUMPRODUCT(($L$2:$L$962=TRUE)*($AB$2:$AB$962>AB24))+COUNTIFS($L$2:L24,L24,$AB$2:AB24,AB24)-1,1+SUMPRODUCT(($L$2:$L$962=TRUE)*($AC$2:$AC$962>AC24))+COUNTIFS($L$2:L24,L24,$AC$2:AC24,AC24)-1,1+SUMPRODUCT(($L$2:$L$962=TRUE)*($AD$2:$AD$962>AD24))+COUNTIFS($L$2:L24,L24,$AD$2:AD24,AD24)-1,1+SUMPRODUCT(($L$2:$L$962=TRUE)*($AE$2:$AE$962>AE24))+COUNTIFS($L$2:L24,L24,$AE$2:AE24,AE24)-1,1+SUMPRODUCT(($L$2:$L$962=TRUE)*($AF$2:$AF$962>AF24))+COUNTIFS($L$2:L24,L24,$AF$2:AF24,AF24)-1,1+SUMPRODUCT(($L$2:$L$962=TRUE)*($AG$2:$AG$962>AG24))+COUNTIFS($L$2:L24,L24,$AG$2:AG24,AG24)-1,1+SUMPRODUCT(($L$2:$L$962=TRUE)*($AH$2:$AH$962>AH24))+COUNTIFS($L$2:L24,L24,$AH$2:AH24,AH24)-1,1+SUMPRODUCT(($L$2:$L$962=TRUE)*($AI$2:$AI$962>AI24))+COUNTIFS($L$2:L24,L24,$AI$2:AI24,AI24)-1,1+SUMPRODUCT(($L$2:$L$962=TRUE)*($AJ$2:$AJ$962>AJ24))+COUNTIFS($L$2:L24,L24,$AJ$2:AJ24,AJ24)-1,1+SUMPRODUCT(($L$2:$L$962=TRUE)*($AK$2:$AK$962>AK24))+COUNTIFS($L$2:L24,L24,$AK$2:AK24,AK24)-1,1+SUMPRODUCT(($L$2:$L$962=TRUE)*($AL$2:$AL$962>AL24))+COUNTIFS($L$2:L24,L24,$AL$2:AL24,AL24)-1,1+SUMPRODUCT(($L$2:$L$962=TRUE)*($AM$2:$AM$962>AM24))+COUNTIFS($L$2:L24,L24,$AM$2:AM24,AM24)-1,)),"") -> 350 | D24: Chase Anderson | E24: =IFERROR(INDEX('Draft Log'!$D$4:$D$806,MATCH(D24,'Draft Log'!$C$4:$C$806,0)),"") ->  | F24: =IFERROR(INDEX('ADP-Rank'!$C$2:$C$832,MATCH(D24,'ADP-Rank'!$A$2:$A$832,0)),"") -> SP | G24: =IFERROR(IF(F24=I24,"",IF(INDEX('Your Roto Draft'!$B$11:$B$634,MATCH(D24,'Your Roto Draft'!$C$11:$C$634,0))="",IF(I24<>"",I24,""),INDEX('Your Roto Draft'!$B$11:$B$634,MATCH(D24,'Your Roto Draft'!$C$11:$C$634,0)))),"") ->  | H24: SP | J24: =INDEX('ADP-Rank'!$AH$2:$AH$832,MATCH(D24,'ADP-Rank'!$A$2:$A$832,0)) -> TRUE | K24: FALSE | L24: =IF(J24=FALSE,FALSE,IF(AND('Your Roto Draft'!$P$6="Hide Drafted Players",K24=TRUE),FALSE,IF(OR('Your Roto Draft'!$P$5="Show All Positions",AND('Your Roto Draft'!$P$5="Only Show: C",H24="C"),AND('Your Roto Draft'!$P$5="Only Show: 1B",H24="1B"),AND('Your Roto Draft'!$P$5="Only Show: 2B",H24="2B"),AND('Your Roto Draft'!$P$5="Only Show: 3B",H24="3B"),AND('Your Roto Draft'!$P$5="Only Show: SS",H24="SS"),AND('Your Roto Draft'!$P$5="Only Show: OF",H24="OF"),AND('Your Roto Draft'!$P$5="Only Show: SP",H24="SP"),AND('Your Roto Draft'!$P$5="Only Show: RP",H24="RP"),AND('Your Roto Draft'!$P$5="Only Show: CI",OR(H24={"1B","3B"})),AND('Your Roto Draft'!$P$5="Only Show: MI",OR(H24={"2B","SS"})),AND('Your Roto Draft'!$P$5="Only Show: IF",OR(H24={"C","1B","2B","3B","SS"})),AND('Your Roto Draft'!$P$5="Only Show: DH",OR(H24={"C","1B","2B","3B","SS","OF","DH"})),AND('Your Roto Draft'!$P$5="Only Show: P",OR(H24={"SP","RP"})),AND('Your Roto Draft'!$P$5="Only Show: LF",ISERROR(SEARCH("LF",VLOOKUP($D24,'ADP-Rank'!$A$2:$D$961,4,FALSE)))=FALSE),AND('Your Roto Draft'!$P$5="Only Show: RF",ISERROR(SEARCH("RF",VLOOKUP($D24,'ADP-Rank'!$A$2:$D$961,4,FALSE)))=FALSE),AND('Your Roto Draft'!$P$5="Only Show: CF",ISERROR(SEARCH("CF",VLOOKUP($D24,'ADP-Rank'!$A$2:$D$961,4,FALSE)))=FALSE)),TRUE,FALSE))) -> TRUE | M24: =IFERROR(IF(VLOOKUP($D24,'ADP-Rank'!$A$2:$AV$961,38,FALSE)="",9999,VLOOKUP($D24,'ADP-Rank'!$A$2:$AV$961,38,FALSE)),9999) -> 342 | N24: =IF(D24="Non-Ranked Player",-1001,IFERROR(VLOOKUP($D24,'All-WERTH'!$C$2:$E$962,3,FALSE),-1000)) -> -4.930432063 | O24: =IF(D24="Non-Ranked Player",10000,IFERROR(IF(VLOOKUP(D24,'ADP-Rank'!$A$2:$AJ$961,36,FALSE)="",9999,VLOOKUP(D24,'ADP-Rank'!$A$2:$AJ$961,36,FALSE)),9999)) -> 359 | P24: =IF($D24="Unlisted Player",-1001,IFERROR(IF(VLOOKUP($D24,'All-WERTH'!$C$2:$AC$962,4,FALSE)="",-1000,VLOOKUP($D24,'All-WERTH'!$C$2:$AC$962,4,FALSE)),-1000)) -> -1000 | Q24: =IF($D24="Unlisted Player",-1001,IFERROR(IF(VLOOKUP($D24,'All-WERTH'!$C$2:$AC$962,5,FALSE)="",-1000,VLOOKUP($D24,'All-WERTH'!$C$2:$AC$962,5,FALSE)),-1000)) -> -1000 | R24: =IF($D24="Unlisted Player",-1001,IFERROR(IF(VLOOKUP($D24,'All-WERTH'!$C$2:$AC$962,6,FALSE)="",-1000,VLOOKUP($D24,'All-WERTH'!$C$2:$AC$962,6,FALSE)),-1000)) -> -1000 | S24: =IF($D24="Unlisted Player",-1001,IFERROR(IF(VLOOKUP($D24,'All-WERTH'!$C$2:$AC$962,7,FALSE)="",-1000,VLOOKUP($D24,'All-WERTH'!$C$2:$AC$962,7,FALSE)),-1000)) -> -1000 | T24: =IF($D24="Unlisted Player",-1001,IFERROR(IF(VLOOKUP($D24,'All-WERTH'!$C$2:$AC$962,8,FALSE)="",-1000,VLOOKUP($D24,'All-WERTH'!$C$2:$AC$962,8,FALSE)),-1000)) -> -1000 | U24: =IF($D24="Unlisted Player",-1001,IFERROR(IF(VLOOKUP($D24,'All-WERTH'!$C$2:$AC$962,9,FALSE)="",-1000,VLOOKUP($D24,'All-WERTH'!$C$2:$AC$962,9,FALSE)),-1000)) -> -1000 | V24: =IF($D24="Unlisted Player",-1001,IFERROR(IF(VLOOKUP($D24,'All-WERTH'!$C$2:$AC$962,10,FALSE)="",-1000,VLOOKUP($D24,'All-WERTH'!$C$2:$AC$962,10,FALSE)),-1000)) -> -1000 | W24: =IF($D24="Unlisted Player",-1001,IFERROR(IF(VLOOKUP($D24,'All-WERTH'!$C$2:$AC$962,11,FALSE)="",-1000,VLOOKUP($D24,'All-WERTH'!$C$2:$AC$962,11,FALSE)),-1000)) -> -1000 | X24: =IF($D24="Unlisted Player",-1001,IFERROR(IF(VLOOKUP($D24,'All-WERTH'!$C$2:$AC$962,12,FALSE)="",-1000,VLOOKUP($D24,'All-WERTH'!$C$2:$AC$962,12,FALSE)),-1000)) -> -1000 | Y24: =IF($D24="Unlisted Player",-1001,IFERROR(IF(VLOOKUP($D24,'All-WERTH'!$C$2:$AC$962,13,FALSE)="",-1000,VLOOKUP($D24,'All-WERTH'!$C$2:$AC$962,13,FALSE)),-1000)) -> -1000 | Z24: =IF($D24="Unlisted Player",-1001,IFERROR(IF(VLOOKUP($D24,'All-WERTH'!$C$2:$AC$962,14,FALSE)="",-1000,VLOOKUP($D24,'All-WERTH'!$C$2:$AC$962,14,FALSE)),-1000)) -> -1000 | AA24: =IF($D24="Unlisted Player",-1001,IFERROR(IF(VLOOKUP($D24,'All-WERTH'!$C$2:$AC$962,15,FALSE)="",-1000,VLOOKUP($D24,'All-WERTH'!$C$2:$AC$962,15,FALSE)),-1000)) -> -1000 | AB24: =IF($D24="Unlisted Player",-1001,IFERROR(IF(VLOOKUP($D24,'All-WERTH'!$C$2:$AC$962,16,FALSE)="",-1000,VLOOKUP($D24,'All-WERTH'!$C$2:$AC$962,16,FALSE)),-1000)) -> 0.174432418 | AC24: =IF($D24="Unlisted Player",-1001,IFERROR(IF(VLOOKUP($D24,'All-WERTH'!$C$2:$AC$962,17,FALSE)="",-1000,VLOOKUP($D24,'All-WERTH'!$C$2:$AC$962,17,FALSE)),-1000)) -> -0.5767827889 | AD24: =IF($D24="Unlisted Player",-1001,IFERROR(IF(VLOOKUP($D24,'All-WERTH'!$C$2:$AC$962,18,FALSE)="",-1000,VLOOKUP($D24,'All-WERTH'!$C$2:$AC$962,18,FALSE)),-1000)) -> -0.27300119 | AE24: =IF($D24="Unlisted Player",-1001,IFERROR(IF(VLOOKUP($D24,'All-WERTH'!$C$2:$AC$962,19,FALSE)="",-1000,VLOOKUP($D24,'All-WERTH'!$C$2:$AC$962,19,FALSE)),-1000)) -> -2.716201824 | AF24: =IF($D24="Unlisted Player",-1001,IFERROR(IF(VLOOKUP($D24,'All-WERTH'!$C$2:$AC$962,20,FALSE)="",-1000,VLOOKUP($D24,'All-WERTH'!$C$2:$AC$962,20,FALSE)),-1000)) -> -1.538878679 | AG24: =IF($D24="Unlisted Player",-1001,IFERROR(IF(VLOOKUP($D24,'All-WERTH'!$C$2:$AC$962,21,FALSE)="",-1000,VLOOKUP($D24,'All-WERTH'!$C$2:$AC$962,21,FALSE)),-1000)) -> -1000 | AH24: =IF($D24="Unlisted Player",-1001,IFERROR(IF(VLOOKUP($D24,'All-WERTH'!$C$2:$AC$962,22,FALSE)="",-1000,VLOOKUP($D24,'All-WERTH'!$C$2:$AC$962,22,FALSE)),-1000)) -> -1000 | AI24: =IF($D24="Unlisted Player",-1001,IFERROR(IF(VLOOKUP($D24,'All-WERTH'!$C$2:$AC$962,23,FALSE)="",-1000,VLOOKUP($D24,'All-WERTH'!$C$2:$AC$962,23,FALSE)),-1000)) -> -1000 | AJ24: =IF($D24="Unlisted Player",-1001,IFERROR(IF(VLOOKUP($D24,'All-WERTH'!$C$2:$AC$962,24,FALSE)="",-1000,VLOOKUP($D24,'All-WERTH'!$C$2:$AC$962,24,FALSE)),-1000)) -> -1000 | AK24: =IF($D24="Unlisted Player",-1001,IFERROR(IF(VLOOKUP($D24,'All-WERTH'!$C$2:$AC$962,25,FALSE)="",-1000,VLOOKUP($D24,'All-WERTH'!$C$2:$AC$962,25,FALSE)),-1000)) -> -1000 | AL24: =IF($D24="Unlisted Player",-1001,IFERROR(IF(VLOOKUP($D24,'All-WERTH'!$C$2:$AC$962,26,FALSE)="",-1000,VLOOKUP($D24,'All-WERTH'!$C$2:$AC$962,26,FALSE)),-1000)) -> -1000 | AM24: =IF($D24="Unlisted Player",-1001,IFERROR(IF(VLOOKUP($D24,'All-WERTH'!$C$2:$AC$962,27,FALSE)="",-1000,VLOOKUP($D24,'All-WERTH'!$C$2:$AC$962,27,FALSE)),-1000)) -> -1000 | AN24: =IF(ISERROR(VLOOKUP($B23,Keepers!$C$2:$D$450,2,FALSE)),B23,"") -> Corey Kluber | AO24: =IFERROR(INDEX($AN$1:$AN$961,SMALL(IF($AN$1:$AN$961<>"",ROW($AN$1:$AN$961)),ROW(AN24))),"") -> Trevor Story
